Workbook

Sheet T (hidden)
A1: INFORMACIÓN TABLAS | AK1: 0
AJ2: 0 | AK2: 0.05
B3: I+ | D3: I+ TRADICIONAL | E3: TRADICIONAL | T3: HABIDO | AG3: ARBOLES | AJ3: 1 | AK3: =AK2+0.05 -> 0.1
B4: II+ | D4: II+ TRADICIONAL | E4: TRADICIONAL | H4: ABANCAY | K4: BAJO | O4: 1 Litoral tropical | P4: C | Q4: 1 2a 3b2 | T4: NO HABIDO | Y4: Color | Z4: Refl. % | AC4: Material (temperatura del material) | AD4: Emisividad | AG4: alamo | AJ4: 2 | AK4: =AK3+0.05 -> 0.15
B5: III+ | D5: III+ TRADICIONAL | E5: TRADICIONAL | H5: ANDAHUAYLAS | K5: MEDIO | O5: 2a Litoral subtropical Norte | P5: C | Q5: 1 2a 3b2 | T5: NO HALLADO | Y5: Blanco | Z5: 0.8 | AC5: Acero laminado en frío (93 °C) | AD5: 0.8 | AG5: algarrobo | AJ5: 3 | AK5: 0.2
B6: NO APLICA | D6: I+ INTERNACIONAL | E6: INTERNACIONAL | H6: AREQUIPA | K6: ALTO | O6: 2b Litoral subtropical Centro | P6: B | Q6: 2b | Y6: Vidrio plateado | Z6: 0.8 | AC6: Acero oxidado (200 °C) | AD6: 0.79 | AG6: calistemo | AJ6: 4 | AK6: 0.25
B7: 1 | D7: II+ INTERNACIONAL | E7: INTERNACIONAL | H7: AYACUCHO | O7: 2c Litoral subtropical Sur | P7: B | Q7: 2c | T7: ACTIVO | Y7: Aluminio pulido | Z7: 0.8 | AC7: Aluminio muy pulido (100 °C) | AD7: 0.09 | AG7: caoba | AJ7: 5 | AK7: 0.3
B8: 2 | D8: III+ INTERNACIONAL | E8: INTERNACIONAL | H8: BAGUA | O8: 3a Desértico Alto | P8: A | Q8: 3a | T8: SUSPENSIÓN TEMPORAL | Y8: Crema claro | Z8: 0.7 | AC8: Arcilla (70 °C) | AD8: 0.91 | AG8: casuarina | AJ8: 6 | AK8: 0.35
H9: BARRANCA | K9: Anteproyecto en consulta | O9: 3b1 Desértico Bajo | P9: A | Q9: 3b1 | T9: BAJA PROVISIONAL | Y9: Marmol blanco | Z9: 0.6 | AC9: Asfalto | AD9: 0.9 | AG9: caucho | AJ9: 7 | AK9: 0.4
B10: Etapas | D10: TRADICIONAL | H10: CAJAMARCA | K10: Licencia de edificación | O10: 3b2 Desértico Bajo Norte | P10: C | Q10: 1 2a 3b2 | T10: BAJA DEFINITIVA | Y10: Aluminio mate | Z10: 0.55 | AC10: Caucho, blando, gris (23 °C) | AD10: 0.89 | AG10: cedro | AJ10: 8 | AK10: 0.45
B11: Sectores | D11: INTERNACIONAL | H11: CALLAO | O11: 4a1 Continental templado Occidental (entre 500 y 1000 msnm) | P11: B | Q11: 4a | T11: BAJA PROVISIONAL DE OFICIO | Y11: Acero pulido | Z11: 0.55 | AC11: Cinc oxidado | AD11: 0.1 | AG11: ceibo | AJ11: 9 | AK11: 0.5
B12: Torres | H12: CAMANA | O12: 4a2 Continental templado Occidental (entre 1000 y 2000 msnm) | P12: B | Q12: 4a | T12: BAJA DEFINITIVA DE OFICIO | Y12: Amarillo claro | Z12: 0.5 | AC12: Cobre ligeramente deslustrado (20 °C) | AD12: 0.04 | AG12: cipres | AJ12: 10 | AK12: 0.55
B13: Edificios | H13: CASMA | O13: 4b Continental templado Oriental-Ceja de Selva (entre 1500 y 2000 msnm) | P13: B | Q13: 4b | Y13: Celeste claro | Z13: 0.5 | AC13: Cobre oxidado (130 °C) | AD13: 0.76 | AG13: eucalipto de costa | AJ13: 11 | AK13: 0.6
B14: Otro | H14: CASTILLA _ APLAO | O14: 5 Continental frío | P14: D | Q14: 5 | T14: DNI DOCUMENTO NACIONAL DE IDENTIDAD | Y14: Verde claro | Z14: 0.45 | AC14: Corcho (20 °C) | AD14: 0.7 | AG14: eucalipto de sierra | AJ14: 12 | AK14: 0.65
H15: CAÑETE | O15: 6 Continental muy frío | P15: E | Q15: 6 | T15: CE CARNÉ DE EXTRANJERÍA | Y15: Gris claro | Z15: 0.45 | AC15: Cristal (90 °C) | AD15: 0.94 | AG15: falso boliche | AJ15: 13 | AK15: 0.7
B16: SI | H16: CHACHAPOYAS | O16: 7 Selva tropical alta hasta 1500 msnm | P16: C | Q16: 7 | T16: PASAP. PASAPORTE | Y16: Rosa claro | Z16: 0.45 | AC16: Cromo (40 °C) | AD16: 0.08 | AG16: ficus | AJ16: 14 | AK16: 0.75
B17: NO | H17: CHEPEN | O17: 8 Selva tropical baja | P17: C | Q17: 7 | T17: PTP PERMISO TEMPORAL DE PERMANENCIA | Y17: Amarillo oscuro | Z17: 0.4 | AC17: Goma dura (23 °C) | AD17: 0.94 | AG17: fresno | AJ17: 15 | AK17: 0.8
H18: CHICLAYO | Y18: Revoque claro | Z18: 0.35 | AC18: Granito (20 °C) | AD18: 0.45 | AG18: graviela | AJ18: 16 | AK18: 0.85
H19: CHIMBOTE | O19: Zona 1 (Desértico Marino) | Y19: Marrón claro | Z19: 0.3 | AC19: Hielo liso (0 °C) | AD19: 0.97 | AG19: huaranguillo | AJ19: 17 | AK19: 0.9
B20: Encimera / Cocina a gas propietario | H20: CHINCHA | O20: Zona 2 (Desértico) | T20: Goteo estándar | U20: 0.7 | Y20: Concreto claro | Z20: 0.3 | AC20: Hierro con costra de fundición (100 °C) | AD20: 0.8 | AG20: huaranhuay | AJ20: 18 | AK20: 0.95
B21: Encimera eléctrica por inducción | H21: CHOTA | O21: Zona 3 (Interandino Bajo) | T21: Aspersión fija | U21: 0.9 | Y21: Ladrillo claro | Z21: 0.3 | AC21: Concreto (25 °C) | AD21: 0.93 | AG21: jacaranda | AJ21: 19 | AK21: 1
H22: CUSCO | O22: Zona 4 (Meso andino) | T22: Microaspersión | U22: 0.7 | Y22: Madera clara | Z22: 0.3 | AC22: Ladrillo en general, mortero, revoque (20 °C) | AD22: 0.93 | AG22: melia | AJ22: 20
H23: ESPINAR | O23: Zona 5 (Alto andino) | T23: Rotatorio | U23: 0.7 | Y23: Revoque oscuro | Z23: 0.2 | AC23: Latón oxidado (200 °C) | AD23: 0.61 | AG23: mimosa | AJ23: 21
H24: HUACHO | O24: Zona 6 (Nevado) | Y24: Concreto oscuro | Z24: 0.15 | AC24: Madera (70 °C) | AD24: 0.94 | AG24: mioporo | AJ24: 22
H25: HUAMACHUCO | O25: Zona 7 (Ceja de Montaña) | Y25: Ladrillo oscuro | Z25: 0.15 | AC25: Mampostería (40 °C) | AD25: 0.93 | AG25: molle costeño | AJ25: 23
H26: HUANCAVELICA | O26: Zona 8 (Subtropical Húmedo) | Y26: Granito | Z26: 0.15 | AC26: Mármol blanco (40 °C) | AD26: 0.95 | AG26: molle peruano | AJ26: 24
H27: HUANCAYO | O27: Zona 9 (Tropical Húmedo) | Y27: Gris oscuro | Z27: 0.1 | AC27: Papel (20 °C) | AD27: 0.97 | AG27: mora | AJ27: 25
H28: HUANTA | T28: Alto requerimiento (hídrico - Césped) | U28: 0.8 | Y28: Verde oscuro | Z28: 0.1 | AC28: Piedra arenisca o gres (40 °C) | AD28: 0.67 | AG28: oreja de negro | AJ28: 26
H29: HUANUCO | T29: Requerimientos medios | U29: 0.5 | Y29: Azul oscuro | Z29: 0.1 | AC29: Plásticos: PE, PP, PVC (20 °C) | AD29: 0.94 | AG29: palmera abanico | AJ29: 27
H30: HUARAL | O30: Calentadores de paso GN | T30: Bajo requermiento hídrico | U30: 0.2 | Y30: Rojo oscuro | Z30: 0.1 | AC30: Plomo (40 °C) | AD30: 0.43 | AG30: palmera fenix | AJ30: 28
B31: No aplica porque no tiene área verde o se encuentra fuera de los parámetros mínimos | H31: HUARAZ | O31: Calentador centralizado a GN | Y31: Madera oscura | Z31: 0.1 | AC31: Plomo oxidado (40 °C) | AD31: 0.43 | AG31: palmera hawaiana | AJ31: 29
B32: No, porque contará con un sistema de riego tecnificado. | H32: ICA | O32: Calentadores de paso GLP | Y32: Negro | Z32: 0.05 | AC32: Plomo, gris oxidado (40 °C) | AD32: 0.28 | AG32: palmera robelina | AJ32: 30
B33: Si | H33: ILO | O33: Calentador centralizado a GLP | AC33: Porcelana (20 °C) | AD33: 0.92 | AG33: palmera roja | AJ33: 31
H34: ISLAY _ MOLLENDO | O34: Calentador de paso (electricidad) | AG34: palmera verde | AJ34: 32
H35: JAEN | O35: Calentador de acumulación (electricidad) | AG35: papelillo | AJ35: 33
B36: Si | H36: JUANJUI | O36: Bomba de calor ACS (electricidad) | AG36: parkinsonia | AJ36: 34
B37: No | H37: JULIACA | AG37: ponciana | AJ37: 35
H38: LA MERCED (SELVA CENTRAL) | AG38: sauce | AJ38: 36
H39: LIMA | AG39: sauce lloron | AJ39: 37
B40: Si, para riego de áreas verdes | H40: MADRE DE DIOS | AG40: tarnarix | AJ40: 38
B41: Si, para arrastre hidráulico de excretas | H41: MAYNAS | AG41: tara | AJ41: 39
B42: Si, para riego y arrastre hidráulico | H42: MOQUEGUA | AG42: tipa | AJ42: 40
B43: No aplica porque no tiene área verde o se encuentra fuera de los parámetros mínimos | H43: MOYOBAMBA | AG43: tulipan africano | AJ43: 41
B44: No, porque contará con un sistema de riego tecnificado. | H44: NAZCA | AJ44: 42
H45: OTUZCO | AJ45: 43
H46: PASCO | AJ46: 44
H47: PISCO | AJ47: 45
H48: PIURA | AJ48: 46
H49: PUCALLPA | AJ49: 47
H50: PUNO | AJ50: 48
H51: QUILLABAMBA | AJ51: 49
H52: SAN PEDRO | AJ52: 50
H53: SATIPO
H54: SICUANI
H55: SULLANA
H56: TACNA
H57: TARAPOTO
H58: TARMA
H59: TINGO MARIA
H60: TRUJILLO
H61: TUMBES
H62: YURIMAGUAS
F65: 111 - CULTIVO DE CEREALES (EXCEPTO ARROZ), LEGUMBRES Y SEMILLAS OLEAGINOSAS
F66: 112 - CULTIVO DE ARROZ
F67: 113 - CULTIVO DE HORTALIZAS Y MELONES, RAÍCES Y TUBÉRCULOS.
F68: 114 - CULTIVO DE CAÑA DE AZÚCAR
F69: 115 - CULTIVO DE TABACO
F70: 116 - CULTIVO DE PLANTAS DE FIBRA
F71: 119 - CULTIVO DE OTRAS PLANTAS NO PERENNES
F72: 121 - CULTIVO DE UVA
F73: 122 - CULTIVO DE FRUTAS TROPICALES Y SUBTROPICALES
F74: 123 - CULTIVO DE CÍTRICOS
F75: 124 - CULTIVO DE FRUTAS DE PEPITA Y DE HUESO
F76: 125 - CULTIVO DE OTROS FRUTOS Y NUECES DE ÁRBOLES Y ARBUSTOS
F77: 126 - CULTIVO DE FRUTOS OLEAGINOSOS
F78: 127 - CULTIVO DE PLANTAS CON LAS QUE SE PREPARAN BEBIDAS
F79: 128 - CULTIVO DE ESPECIAS Y DE PLANTAS AROMÁTICAS, MEDICINALES Y FARMACEUTICAS
F80: 129 - CULTIVO DE OTRAS PLANTAS NO PERENNES
F81: 130 - PROPAGACIÓN DE PLANTAS
F82: 141 - CRÍA DE GANADO BOVINO Y BÚFALOS
F83: 142 - CRÍA DE CABALLOS Y OTROS EQUINOS
F84: 143 - CRÍA DE CAMELLOS Y OTROS CAMÉLIDOS
F85: 144 - CRÍA DE OVEJAS Y CABRAS
F86: 145 - CRÍA DE CERDOS
F87: 146 - CRÍA DE AVES DE CORRAL
F88: 149 - CRÍA DE OTROS ANIMALES
F89: 150 - CULTIVO DE PRODUCTOS AGRÌCOLAS EN COMBINACIÒN CON LA CRÌA DE ANIMALES
F90: 161 - ACTIVIDADES DE APOYO A LA AGRICULTURA
F91: 162 - ACTIVIDADES DE APOYO A LA GANADERÍA
F92: 163 - ACTIVIDADES POSCOSECHA
F93: 164 - TRATAMIENTO DE SEMILLAS PARA PROPAGACIÓN
F94: 170 - CAZA ORDINARIA Y MEDIANTE TRAMPAS Y ACTIVIDADES DE SERVICIOS CONEXAS
F95: 210 - SILVICULTURA Y OTRAS ACTIVIDADES FORESTALES
F96: 220 - EXTRACCIÓN DE MADERA
F97: 230 - RECOLECCIÓN DE PRODUCTOS FORESTALES DISTINTOS DE LA MADERA
F98: 240 - SERVICIOS DE APOYO A LA SILVICULTURA
F99: 311 - PESCA MARÍTIMA
F100: 312 - PESCA DE AGUA DULCE
F101: 321 - ACUICULTURA MARÍTIMA
F102: 322 - ACUICULTURA DE AGUA DULCE
F103: 510 - EXTRACCIÓN DE CARBÓN DE PIEDRA
F104: 520 - EXTRACCIÓN DE LIGNITO
F105: 610 - EXTRACCIÓN DE PETRÓLEO CRUDO
F106: 620 - EXTRACCIÓN DE GAS NATURAL
F107: 710 - EXTRACCIÓN DE MINERALES DE HIERRO
F108: 721 - EXTRACCIÓN DE MINERALES DE URANIO Y TORIO
F109: 729 - EXTRACCIÓN DE OTROS MINERALES METALÍFEROS NO FERROSOS
F110: 810 - EXTRACCIÓN DE PIEDRA, ARENA Y ARCILLA
F111: 891 - EXTRACCIÓN DE MINERALES PARA LA FABRICACIÓN DE ABONOS Y PRODUCTOS QUÍMICOS
F112: 892 - EXTRACCIÓN DE TURBA
F113: 893 - EXTRACCIÓN DE SAL
F114: 899 - EXPLOTACIÓN DE OTRAS MINAS Y CANTERAS N.C.P.
F115: 910 - ACTIVIDADES DE APOYO PARA LA EXTRACCIÓN DE PETRÓLEO Y GAS NATURAL
F116: 990 - ACTIVIDADES DE APOYO PARA OTRAS ACTIVIDADES DE EXPLOTACIÓN DE MINAS Y CANTERAS
F117: 1010 - ELABORACIÒN Y CONSERVACIÓN DE CARNE
F118: 1020 - ELABORACIÒN Y CONSERVACIÓN DE PESCADOS, CRUSTÁCEOS Y MOLUSCOS
F119: 1030 - ELABORACIÒN Y CONSERVACIÓN DE FRUTAS,LEGUMBRES Y HORTALIZAS
F120: 1040 - ELABORACIÓN DE ACEITES Y GRASAS DE ORIGEN VEGETAL Y ANIMAL
F121: 1050 - ELABORACIÓN DE PRODUCTOS LÁCTEOS
F122: 1061 - ELABORACIÓN DE PRODUCTOS DE MOLINERÍA.
F123: 1062 - ELABORACIÓN DE ALMIDONES Y PRODUCTOS DERIVADOS DEL ALMIDÓN.
F124: 1071 - ELABORACIÓN DE PRODUCTOS DE PANADERÍA
F125: 1072 - ELABORACIÓN DE AZÚCAR
F126: 1073 - ELABORACIÓN DE CACAO Y CHOCOLATE Y DE PRODUCTOS DE CONFITERÍA
F127: 1074 - ELABORACIÓN DE MACARRONES, FIDEOS, ALCUZCUS Y PRODUCTOS FARINÁCEOS SIMILARES
F128: 1075 - ELABORACIÓN DE COMIDAS Y PLATOS PREPARADOS
F129: 1079 - ELABORACIÓN DE OTROS PRODUCTOS ALIMENTICIOS N.C.P.
F130: 1080 - ELABORACIÓN DE PIENSOS PREPARADOS PARA ANIMALES
F131: 1101 - DESTILACIÓN, RECTIFICACIÓN Y MEZCLA DE BEBIDAS ALCOHÓLICAS
F132: 1102 - ELABORACIÓN DE VINOS
F133: 1103 - ELABORACIÓN DE BEBIDAS MALTEADAS Y DE MALTA
F134: 1104 - ELABORACIÓN DE BEBIDAS NO ALCOHÓLICAS; PRODUCCIÓN DE AGUAS MINERALES Y OTRAS AGUAS EMBOTELLADAS
F135: 1200 - ELABORACIÓN DE PRODUCTOS DE TABACO
F136: 1311 - PREPARACIÓN E HILATURA DE FIBRAS TEXTILES
F137: 1312 - TEJEDURA DE PRODUCTOS TEXTILES
F138: 1313 - ACABADO DE PRODUCTOS TEXTILES
F139: 1391 - FABRICACIÓN DE TEJIDOS DE PUNTO Y GANCHILLO
F140: 1392 - FABRICACIÓN DE ARTÍCULOS CONFECCIONADOS DE MATERIALES TEXTILES, EXCEPTO PRENDAS DE VESTIR
F141: 1393 - FABRICACIÓN DE TAPICES Y ALFOMBRAS
F142: 1394 - FABRICACIÓN DE CUERDAS, CORDELES, BRAMANTES Y REDES
F143: 1399 - FABRICACIÓN DE OTROS PRODUCTOS TEXTILES N.C.P.
F144: 1410 - FABRICACIÓN DE PRENDAS DE VESTIR, EXCEPTO PRENDAS DE PIEL
F145: 1420 - FABRICACIÓN DE ARTÍCULOS DE PIEL
F146: 1430 - FABRICACIÓN DE ARTICULOS DE PUNTO Y GANCHILLO
F147: 1511 - CURTIDO Y ADOBO DE CUEROS; ADOBO Y TEÑIDO DE PIELES
F148: 1512 - FABRICACIÓN DE MALETAS, BOLSOS DE MANO, Y ARTÍCULOS SIMILARES,Y DE ARTICULOS DE TALABARTERÍA Y GUARNICIONERÍA
F149: 1520 - FABRICACIÓN DE CALZADO
F150: 1610 - ASERRADOS Y ACEPILLADURA DE MADERA
F151: 1621 - FABRICACIÓN DE HOJAS DE MADERA PARA ENCHAPADO Y TABLEROS A BASE DE MADERA
F152: 1622 - FABRICACIÓN DE PARTES Y PIEZAS DE CARPINTERÍA PARA EDIFICIOS Y CONSTRUCCIONES
F153: 1623 - FABRICACIÓN DE RECIPIENTES DE MADERA
F154: 1629 - FABRICACIÓN DE OTROS PRODUCTOS DE MADERA; FABRICACIÓN DE ARTÍCULOS DE CORCHO, PAJA Y MATERIALES TRENZABLES.
F155: 1701 - FABRICACIÓN DE PASTA DE MADERA, PAPEL Y CARTÓN
F156: 1702 - FABRICACIÓN DEL PAPEL Y CARTÓN ONDULADO Y DE ENVASES DE PAPEL Y CARTÓN
F157: 1709 - FABRICACIÓN DE OTROS ARTÍCULOS DEL PAPEL Y CARTÓN
F158: 1811 - IMPRESIÓN
F159: 1812 - ACTIVIDADES DE SERVICIOS RELACIONADAS CON LA IMPRESIÓN
F160: 1820 - REPRODUCCIÓN DE GRABACIONES
F161: 1910 - FABRICACIÓN DE PRODUCTOS DE HORNOS DE COQUE
F162: 1920 - FABRICACIÓN DE PRODUCTOS DE LA REFINACIÓN DEL PETRÓLEO
F163: 2011 - FABRICACIÓN DE SUSTANCIAS QUÍMICAS BÁSICAS
F164: 2012 - FABRICACIÓN ABONOS Y COMPUESTOS DE NITRÓGENO
F165: 2013 - FABRICACIÓN DE PLÁSTICOS Y DE CAUCHO SINTÉTICO EN FORMAS PRIMARIAS
F166: 2021 - FABRICACIÓN DE PLAGUICIDAS Y OTROS PRODUCTOS QUÍMICOS DE USO AGROPECUARIO
F167: 2022 - FABRICACIÓN DE PINTURAS, BARNICES Y PRODUCTOS DE REVESTIMIENTO SIMILARES, TINTAS DE IMPRENTA Y MASILLAS
F168: 2023 - FABRICACIÓN DE JABONES Y DETERGENTES, PREPARADOS PARA LIMPIAR Y PULIR, PERFUMES Y PREPARADOS DE TOCADOR.
F169: 2029 - FABRICACIÓN DE OTROS PRODUCTOS QUÍMICOS N.C.P.
F170: 2030 - FABRICACIÓN DE FIBRAS ARTIFICIALES
F171: 2100 - FABRICACIÓN DE PRODUCTOS FARMACÉUTICOS, SUSTANCIAS QUÍMICAS MEDICINALES Y PRODUCTOS BOTÁNICOS DE USO FARMACÉUTICO
F172: 2211 - FABRICACIÓN DE CUBIERTAS Y CÁMARAS DE CAUCHO; RECAUCHUTADO Y RENOVACIÓN DE CUBIERTAS DE CAUCHO
F173: 2219 - FABRICACIÓN DE OTROS PRODUCTOS DE CAUCHO
F174: 2220 - FABRICACIÓN DE PRODUCTOS DE PLÁSTICO
F175: 2310 - FABRICACIÓN DE VIDRIO Y DE PRODUCTOS DE VIDRIO
F176: 2391 - FABRICACIÓN DE PRODUCTOS REFRACTARIOS
F177: 2392 - FABRICACIÓN DE MATERIALES DE CONSTRUCCIÓN DE ARCILLA
F178: 2393 - FABRICACIÓN DE OTROS PRODUCTOS DE PORCELANA Y DE CERÁMICA
F179: 2394 - FABRICACIÓN DE CEMENTO, CAL Y YESO
F180: 2395 - FABRICACIÓN DE ARTÍCULOS DE HORMIGÓN, DE CEMENTO Y DE YESO
F181: 2396 - CORTE, TALLA Y ACABADO DE LA PIEDRA
F182: 2399 - FABRICACIÓN DE OTROS PRODUCTOS MINERALES NO METÁLICOS N.C.P.
F183: 2410 - INDUSTRIAS BÁSICAS DE HIERRO Y ACERO
F184: 2420 - FABRICACIÓN DE PRODUCTOS PRIMARIOS DE METALES PRECIOSOS Y OTROS METALES NO FERROSOS
F185: 2431 - FUNDICIÓN DE HIERRO Y ACERO
F186: 2432 - FUNDICIÓN DE METALES NO FERROSOS
F187: 2511 - FABRICACIÓN DE PRODUCTOS METÁLICOS PARA USO ESTRUCTURAL
F188: 2512 - FABRICACIÓN DE TANQUES, DEPÓSITOS Y RECIPIENTES DE METAL
F189: 2513 - FABRICACIÓN DE LOS GENERADORES DEL VAPOR, EXCEPTO CALDERAS DE AGUA CALIENTE PARA CALEFACCIÓN CENTRAL
F190: 2520 - FABRICACIÓN DE ARMAS Y MUNICIONES
F191: 2591 - FORJA, PRENSADO, ESTAMPADO Y LAMINADO DE METALES; PULVIMETALURGIA
F192: 2592 - TRATAMIENTO Y REVESTIMIENTO DE METALES; MAQUINADO
F193: 2593 - FABRICACIÓN DE ARTÍCULOS DE CUCHILLERÍA, HERRAMIENTAS DE MANO Y ARTÍCULOS DE FERRETERÍA
F194: 2599 - FABRICACIÓN DE OTROS PRODUCTOS ELABORADOS DE METAL N.C.P.
F195: 2610 - FABRICACIÓN DE COMPONENTES Y TABLEROS ELECTRÓNICOS
F196: 2620 - FABRICACIÓN DE ORDENADORES Y EQUIPO PERIFÉRICO
F197: 2630 - FABRICACIÓN DE EQUIPOS DE COMUNICACIONES
F198: 2640 - FABRICACIÓN DE APARATOS ELECTRÓNICOS DE CONSUMO
F199: 2651 - FABRICACIÓN DE EQUIPO DE MEDICIÓN, PRUEBA, NAVEGACIÓN Y CONTROL
F200: 2652 - FABRICACIÓN DE RELOJES
F201: 2660 - FABRICACIÓN DE EQUIPO DE IRRADIACIÓN Y EQUIPO ELECTRÓNICO DE USO MÉDICO Y TERAPÉUTICO
F202: 2670 - FABRICACIÓN DE INSTRUMENTOS ÓPTICOS Y EQUIPO FOTOGRÁFICO
... 449 more rows

Sheet U (hidden)
A6: 1 | B6: 10202 | C6: AMAZONAS | D6: BAGUA | E6: ARAMANGO | F6: 809 | G6: 502 | H6: -5.4164 | I6: -78.4378 | J6: =IFERROR(VLOOKUP(B6,#REF!,8,FALSE),"") ->  | L6: ARAMANGO | U6: AMAZONAS | X6: AMAZONAS | Y6: BAGUA
A7: =+A6+1 -> 2 | B7: 10201 | C7: AMAZONAS | D7: BAGUA | E7: BAGUA | F7: 151 | G7: 408 | H7: -5.6389 | I7: -78.5311 | J7: =IFERROR(VLOOKUP(B7,#REF!,8,FALSE),"") ->  | L7: BAGUA | U7: ANCASH | X7: AMAZONAS | Y7: BONGARA
A8: =+A7+1 -> 3 | B8: 10203 | C8: AMAZONAS | D8: BAGUA | E8: COPALLIN | F8: 99 | G8: 693 | H8: -5.675 | I8: -78.4231 | J8: =IFERROR(VLOOKUP(B8,#REF!,8,FALSE),"") ->  | L8: COPALLIN | U8: APURIMAC | X8: AMAZONAS | Y8: CHACHAPOYAS
A9: 4 | B9: 10204 | C9: AMAZONAS | D9: BAGUA | E9: EL PARCO | F9: 18 | G9: 626 | H9: -5.625 | I9: -78.4753 | J9: =IFERROR(VLOOKUP(B9,#REF!,8,FALSE),"") ->  | L9: EL PARCO | U9: AREQUIPA | X9: AMAZONAS | Y9: CHACHAPOYAS
A10: 5 | B10: 10205 | C10: AMAZONAS | D10: BAGUA | E10: IMAZA | F10: 4431 | G10: 317 | H10: -5.1636 | I10: -78.2889 | J10: =IFERROR(VLOOKUP(B10,#REF!,8,FALSE),"") ->  | L10: IMAZA | U10: AYACUCHO | X10: AMAZONAS | Y10: CONDORCANQUI
A11: 6 | B11: 10206 | C11: AMAZONAS | D11: BAGUA | E11: LA PECA | F11: 144 | G11: 892 | H11: -5.6119 | I11: -78.4369 | J11: =IFERROR(VLOOKUP(B11,#REF!,8,FALSE),"") ->  | L11: LA PECA | U11: CAJAMARCA | X11: AMAZONAS | Y11: LUYA
A12: 7 | B12: 10302 | C12: AMAZONAS | D12: BONGARA | E12: CHISQUILLA | F12: 175 | G12: 2057 | H12: -5.8975 | I12: -77.7861 | J12: =IFERROR(VLOOKUP(B12,#REF!,8,FALSE),"") ->  | L12: CHISQUILLA | U12: CUSCO | X12: AMAZONAS | Y12: RODRIGUEZ DE MENDOZA
A13: 8 | B13: 10303 | C13: AMAZONAS | D13: BONGARA | E13: CHURUJA | F13: 33 | G13: 1399 | H13: -6.0194 | I13: -77.9519 | J13: =IFERROR(VLOOKUP(B13,#REF!,8,FALSE),"") ->  | L13: CHURUJA | U13: HUANCAVELICA | X13: AMAZONAS | Y13: UTCUBAMBA
A14: 9 | B14: 10304 | C14: AMAZONAS | D14: BONGARA | E14: COROSHA | F14: 46 | G14: 2297 | H14: -5.8433 | I14: -77.8225 | J14: =IFERROR(VLOOKUP(B14,#REF!,8,FALSE),"") ->  | L14: COROSHA | U14: HUANUCO | X14: ANCASH | Y14: AIJA
A15: 10 | B15: 10305 | C15: AMAZONAS | D15: BONGARA | E15: CUISPES | F15: 111 | G15: 1912 | H15: -5.9283 | I15: -77.9461 | J15: =IFERROR(VLOOKUP(B15,#REF!,8,FALSE),"") ->  | L15: CUISPES | U15: ICA | X15: ANCASH | Y15: ANTONIO RAYMONDI
A16: 11 | B16: 10306 | C16: AMAZONAS | D16: BONGARA | E16: FLORIDA | F16: 203 | G16: 2251 | H16: -5.8261 | I16: -77.9694 | J16: =IFERROR(VLOOKUP(B16,#REF!,8,FALSE),"") ->  | L16: FLORIDA | U16: JUNIN | X16: ANCASH | Y16: ASUNCION
A17: 12 | B17: 10307 | C17: AMAZONAS | D17: BONGARA | E17: JAZAN | F17: 89 | G17: 1342 | H17: -5.9414 | I17: -77.9772 | J17: =IFERROR(VLOOKUP(B17,#REF!,8,FALSE),"") ->  | L17: JAZAN | U17: LA LIBERTAD | X17: ANCASH | Y17: BOLOGNESI
A18: 13 | B18: 10301 | C18: AMAZONAS | D18: BONGARA | E18: JUMBILLA | F18: 154 | G18: 2081 | H18: -5.9044 | I18: -77.7978 | J18: =IFERROR(VLOOKUP(B18,#REF!,8,FALSE),"") ->  | L18: JUMBILLA | U18: LAMBAYEQUE | X18: ANCASH | Y18: CARHUAZ
A19: 14 | B19: 10308 | C19: AMAZONAS | D19: BONGARA | E19: RECTA | F19: 25 | G19: 2166 | H19: -5.9178 | I19: -77.7889 | J19: =IFERROR(VLOOKUP(B19,#REF!,8,FALSE),"") ->  | L19: RECTA | U19: LIMA | X19: ANCASH | Y19: CARLOS FERMIN FITZCARRALD
A20: 15 | B20: 10309 | C20: AMAZONAS | D20: BONGARA | E20: SAN CARLOS | F20: 101 | G20: 1942 | H20: -5.9661 | I20: -77.9453 | J20: =IFERROR(VLOOKUP(B20,#REF!,8,FALSE),"") ->  | L20: SAN CARLOS | U20: LORETO | X20: ANCASH | Y20: CASMA
A21: 16 | B21: 10310 | C21: AMAZONAS | D21: BONGARA | E21: SHIPASBAMBA | F21: 127 | G21: 1668 | H21: -5.9106 | I21: -77.9806 | J21: =IFERROR(VLOOKUP(B21,#REF!,8,FALSE),"") ->  | L21: SHIPASBAMBA | U21: MADRE DE DIOS | X21: ANCASH | Y21: CORONGO
A22: 17 | B22: 10311 | C22: AMAZONAS | D22: BONGARA | E22: VALERA | F22: 90 | G22: 1928 | H22: -6.0428 | I22: -77.9192 | J22: =IFERROR(VLOOKUP(B22,#REF!,8,FALSE),"") ->  | L22: VALERA | U22: MOQUEGUA | X22: ANCASH | Y22: HUARAZ
A23: 18 | B23: 10312 | C23: AMAZONAS | D23: BONGARA | E23: YAMBRASBAMBA | F23: 1716 | G23: 1887 | H23: -5.7353 | I23: -77.925 | J23: =IFERROR(VLOOKUP(B23,#REF!,8,FALSE),"") ->  | L23: YAMBRASBAMBA | U23: PASCO | X23: ANCASH | Y23: HUARI
A24: 19 | B24: 10102 | C24: AMAZONAS | D24: CHACHAPOYAS | E24: ASUNCION | F24: 26 | G24: 2823 | H24: -6.0325 | I24: -77.7108 | J24: =IFERROR(VLOOKUP(B24,#REF!,8,FALSE),"") ->  | L24: ASUNCION | U24: PIURA | X24: ANCASH | Y24: HUARMEY
A25: 20 | B25: 10103 | C25: AMAZONAS | D25: CHACHAPOYAS | E25: BALSAS | F25: 357 | G25: 859 | H25: -6.8358 | I25: -78.0197 | J25: =IFERROR(VLOOKUP(B25,#REF!,8,FALSE),"") ->  | L25: BALSAS | U25: PUNO | X25: ANCASH | Y25: HUAYLAS
A26: 21 | B26: 10101 | C26: AMAZONAS | D26: CHACHAPOYAS | E26: CHACHAPOYAS | F26: 154 | G26: 2338 | H26: -6.2294 | I26: -77.8728 | J26: =IFERROR(VLOOKUP(B26,#REF!,8,FALSE),"") ->  | L26: CHACHAPOYAS | U26: SAN MARTIN | X26: ANCASH | Y26: MARISCAL LUZURIAGA
A27: 22 | B27: 10104 | C27: AMAZONAS | D27: CHACHAPOYAS | E27: CHETO | F27: 57 | G27: 2143 | H27: -6.2556 | I27: -77.7008 | J27: =IFERROR(VLOOKUP(B27,#REF!,8,FALSE),"") ->  | L27: CHETO | U27: TACNA | X27: ANCASH | Y27: OCROS
A28: 23 | B28: 10105 | C28: AMAZONAS | D28: CHACHAPOYAS | E28: CHILIQUIN | F28: 143 | G28: 2677 | H28: -6.0783 | I28: -77.7375 | J28: =IFERROR(VLOOKUP(B28,#REF!,8,FALSE),"") ->  | L28: CHILIQUIN | U28: TUMBES | X28: ANCASH | Y28: PALLASCA
A29: 24 | B29: 10106 | C29: AMAZONAS | D29: CHACHAPOYAS | E29: CHUQUIBAMBA | F29: 279 | G29: 2803 | H29: -6.935 | I29: -77.8542 | J29: =IFERROR(VLOOKUP(B29,#REF!,8,FALSE),"") ->  | L29: CHUQUIBAMBA | U29: UCAYALI | X29: ANCASH | Y29: POMABAMBA
A30: 25 | B30: 10107 | C30: AMAZONAS | D30: CHACHAPOYAS | E30: GRANADA | F30: 181 | G30: 3041 | H30: -6.1064 | I30: -77.6286 | J30: =IFERROR(VLOOKUP(B30,#REF!,8,FALSE),"") ->  | L30: GRANADA | X30: ANCASH | Y30: RECUAY
A31: 26 | B31: 10108 | C31: AMAZONAS | D31: CHACHAPOYAS | E31: HUANCAS | F31: 49 | G31: 2591 | H31: -6.1736 | I31: -77.8644 | J31: =IFERROR(VLOOKUP(B31,#REF!,8,FALSE),"") ->  | L31: HUANCAS | X31: ANCASH | Y31: SANTA
A32: 27 | B32: 10109 | C32: AMAZONAS | D32: CHACHAPOYAS | E32: LA JALCA | F32: 380 | G32: 2869 | H32: -6.4847 | I32: -77.815 | J32: =IFERROR(VLOOKUP(B32,#REF!,8,FALSE),"") ->  | L32: LA JALCA | X32: ANCASH | Y32: SIHUAS
A33: 28 | B33: 10110 | C33: AMAZONAS | D33: CHACHAPOYAS | E33: LEIMEBAMBA | F33: 373 | G33: 2226 | H33: -6.7075 | I33: -77.8039 | J33: =IFERROR(VLOOKUP(B33,#REF!,8,FALSE),"") ->  | L33: LEIMEBAMBA | X33: ANCASH | Y33: YUNGAY
A34: 29 | B34: 10111 | C34: AMAZONAS | D34: CHACHAPOYAS | E34: LEVANTO | F34: 78 | G34: 2681 | H34: -6.3078 | I34: -77.8992 | J34: =IFERROR(VLOOKUP(B34,#REF!,8,FALSE),"") ->  | L34: LEVANTO | X34: APURIMAC | Y34: ABANCAY
A35: 30 | B35: 10112 | C35: AMAZONAS | D35: CHACHAPOYAS | E35: MAGDALENA | F35: 135 | G35: 1892 | H35: -6.3731 | I35: -77.9017 | J35: =IFERROR(VLOOKUP(B35,#REF!,8,FALSE),"") ->  | L35: MAGDALENA | X35: APURIMAC | Y35: ANDAHUAYLAS
A36: 31 | B36: 10113 | C36: AMAZONAS | D36: CHACHAPOYAS | E36: MARISCAL CASTILLA | F36: 84 | G36: 2210 | H36: -6.5944 | I36: -77.8086 | J36: =IFERROR(VLOOKUP(B36,#REF!,8,FALSE),"") ->  | L36: MARISCAL CASTILLA | X36: APURIMAC | Y36: ANTABAMBA
A37: 32 | B37: 10114 | C37: AMAZONAS | D37: CHACHAPOYAS | E37: MOLINOPAMPA | F37: 334 | G37: 2405 | H37: -6.2092 | I37: -77.6692 | J37: =IFERROR(VLOOKUP(B37,#REF!,8,FALSE),"") ->  | L37: MOLINOPAMPA | X37: APURIMAC | Y37: AYMARAES
A38: 33 | B38: 10115 | C38: AMAZONAS | D38: CHACHAPOYAS | E38: MONTEVIDEO | F38: 119 | G38: 2421 | H38: -6.6181 | I38: -77.8022 | J38: =IFERROR(VLOOKUP(B38,#REF!,8,FALSE),"") ->  | L38: MONTEVIDEO | X38: APURIMAC | Y38: CHINCHEROS
A39: 34 | B39: 10116 | C39: AMAZONAS | D39: CHACHAPOYAS | E39: OLLEROS | F39: 125 | G39: 3053 | H39: -6.0239 | I39: -77.6764 | J39: =IFERROR(VLOOKUP(B39,#REF!,8,FALSE),"") ->  | L39: OLLEROS | X39: APURIMAC | Y39: COTABAMBAS
A40: 35 | B40: 10117 | C40: AMAZONAS | D40: CHACHAPOYAS | E40: QUINJALCA | F40: 92 | G40: 3151 | H40: -6.0914 | I40: -77.6786 | J40: =IFERROR(VLOOKUP(B40,#REF!,8,FALSE),"") ->  | L40: QUINJALCA | X40: APURIMAC | Y40: GRAU
A41: 36 | B41: 10118 | C41: AMAZONAS | D41: CHACHAPOYAS | E41: SAN FRANCISCO DE DAGUAS | F41: 47 | G41: 2254 | H41: -6.2292 | I41: -77.74 | J41: =IFERROR(VLOOKUP(B41,#REF!,8,FALSE),"") ->  | L41: SAN FRANCISCO DE DAGUAS | X41: AREQUIPA | Y41: AREQUIPA
A42: 37 | B42: 10119 | C42: AMAZONAS | D42: CHACHAPOYAS | E42: SAN ISIDRO DE MAINO | F42: 102 | G42: 2339 | H42: -6.3372 | I42: -77.8806 | J42: =IFERROR(VLOOKUP(B42,#REF!,8,FALSE),"") ->  | L42: SAN ISIDRO DE MAINO | X42: AREQUIPA | Y42: CAMANA
A43: 38 | B43: 10120 | C43: AMAZONAS | D43: CHACHAPOYAS | E43: SOLOCO | F43: 84 | G43: 2387 | H43: -6.2606 | I43: -77.7442 | J43: =IFERROR(VLOOKUP(B43,#REF!,8,FALSE),"") ->  | L43: SOLOCO | X43: AREQUIPA | Y43: CARAVELI
A44: 39 | B44: 10121 | C44: AMAZONAS | D44: CHACHAPOYAS | E44: SONCHE | F44: 113 | G44: 2089 | H44: -6.2189 | I44: -77.7753 | J44: =IFERROR(VLOOKUP(B44,#REF!,8,FALSE),"") ->  | L44: SONCHE | X44: AREQUIPA | Y44: CASTILLA
A45: 40 | B45: 10402 | C45: AMAZONAS | D45: CONDORCANQUI | E45: EL CENEPA | F45: 5458 | G45: 253 | H45: -4.4556 | I45: -78.1589 | J45: =IFERROR(VLOOKUP(B45,#REF!,8,FALSE),"") ->  | L45: EL CENEPA | X45: AREQUIPA | Y45: CAYLLOMA
A46: 41 | B46: 10401 | C46: AMAZONAS | D46: CONDORCANQUI | E46: NIEVA | F46: 4482 | G46: 189 | H46: -4.5922 | I46: -77.8644 | J46: =IFERROR(VLOOKUP(B46,#REF!,8,FALSE),"") ->  | L46: NIEVA | X46: AREQUIPA | Y46: CONDESUYOS
A47: 42 | B47: 10403 | C47: AMAZONAS | D47: CONDORCANQUI | E47: RIO SANTIAGO | F47: 8035 | G47: 190 | H47: -4.0158 | I47: -77.7608 | J47: =IFERROR(VLOOKUP(B47,#REF!,8,FALSE),"") ->  | L47: RIO SANTIAGO | X47: AREQUIPA | Y47: ISLAY
A48: 43 | B48: 10502 | C48: AMAZONAS | D48: LUYA | E48: CAMPORREDONDO | F48: 376 | G48: 1748 | H48: -6.2133 | I48: -78.32 | J48: =IFERROR(VLOOKUP(B48,#REF!,8,FALSE),"") ->  | L48: CAMPORREDONDO | X48: AREQUIPA | Y48: LA UNION
A49: 44 | B49: 10503 | C49: AMAZONAS | D49: LUYA | E49: COCABAMBA | F49: 356 | G49: 2273 | H49: -6.6142 | I49: -78.005 | J49: =IFERROR(VLOOKUP(B49,#REF!,8,FALSE),"") ->  | L49: COCABAMBA | X49: AYACUCHO | Y49: CANGALLO
A50: 45 | B50: 10504 | C50: AMAZONAS | D50: LUYA | E50: COLCAMAR | F50: 107 | G50: 2355 | H50: -6.2994 | I50: -77.9731 | J50: =IFERROR(VLOOKUP(B50,#REF!,8,FALSE),"") ->  | L50: COLCAMAR | X50: AYACUCHO | Y50: HUAMANGA
A51: 46 | B51: 10505 | C51: AMAZONAS | D51: LUYA | E51: CONILA | F51: 256 | G51: 2767 | H51: -6.1592 | I51: -78.1419 | J51: =IFERROR(VLOOKUP(B51,#REF!,8,FALSE),"") ->  | L51: CONILA | X51: AYACUCHO | Y51: HUANCA SANCOS
A52: 47 | B52: 10506 | C52: AMAZONAS | D52: LUYA | E52: INGUILPATA | F52: 118 | G52: 2380 | H52: -6.2394 | I52: -77.9539 | J52: =IFERROR(VLOOKUP(B52,#REF!,8,FALSE),"") ->  | L52: INGUILPATA | X52: AYACUCHO | Y52: HUANTA
A53: 48 | B53: 10501 | C53: AMAZONAS | D53: LUYA | E53: LAMUD | F53: 69 | G53: 2328 | H53: -6.1392 | I53: -77.9522 | J53: =IFERROR(VLOOKUP(B53,#REF!,8,FALSE),"") ->  | L53: LAMUD | X53: AYACUCHO | Y53: LA MAR
A54: 49 | B54: 10507 | C54: AMAZONAS | D54: LUYA | E54: LONGUITA | F54: 58 | G54: 2799 | H54: -6.4136 | I54: -77.9683 | J54: =IFERROR(VLOOKUP(B54,#REF!,8,FALSE),"") ->  | L54: LONGUITA | X54: AYACUCHO | Y54: LUCANAS
A55: 50 | B55: 10508 | C55: AMAZONAS | D55: LUYA | E55: LONYA CHICO | F55: 84 | G55: 2329 | H55: -6.2297 | I55: -77.955 | J55: =IFERROR(VLOOKUP(B55,#REF!,8,FALSE),"") ->  | L55: LONYA CHICO | X55: AYACUCHO | Y55: PARINACOCHAS
A56: 51 | B56: 10509 | C56: AMAZONAS | D56: LUYA | E56: LUYA | F56: 91 | G56: 2359 | H56: -6.1642 | I56: -77.9442 | J56: =IFERROR(VLOOKUP(B56,#REF!,8,FALSE),"") ->  | L56: LUYA | X56: AYACUCHO | Y56: PAUCAR DEL SARA SARA
A57: 52 | B57: 10510 | C57: AMAZONAS | D57: LUYA | E57: LUYA VIEJO | F57: 74 | G57: 2924 | H57: -6.1275 | I57: -78.085 | J57: =IFERROR(VLOOKUP(B57,#REF!,8,FALSE),"") ->  | L57: LUYA VIEJO | X57: AYACUCHO | Y57: SUCRE
A58: 53 | B58: 10511 | C58: AMAZONAS | D58: LUYA | E58: MARIA | F58: 80 | G58: 2757 | H58: -6.4289 | I58: -77.9608 | J58: =IFERROR(VLOOKUP(B58,#REF!,8,FALSE),"") ->  | L58: MARIA | X58: AYACUCHO | Y58: VICTOR FAJARDO
A59: 54 | B59: 10512 | C59: AMAZONAS | D59: LUYA | E59: OCALLI | F59: 177 | G59: 1757 | H59: -6.2353 | I59: -78.2664 | J59: =IFERROR(VLOOKUP(B59,#REF!,8,FALSE),"") ->  | L59: OCALLI | X59: AYACUCHO | Y59: VILCAS HUAMAN
A60: 55 | B60: 10513 | C60: AMAZONAS | D60: LUYA | E60: OCUMAL | F60: 236 | G60: 1898 | H60: -6.2825 | I60: -78.2108 | J60: =IFERROR(VLOOKUP(B60,#REF!,8,FALSE),"") ->  | L60: OCUMAL | X60: CAJAMARCA | Y60: CAJABAMBA
A61: 56 | B61: 10514 | C61: AMAZONAS | D61: LUYA | E61: PISUQUIA | F61: 307 | G61: 2049 | H61: -6.4533 | I61: -78.0919 | J61: =IFERROR(VLOOKUP(B61,#REF!,8,FALSE),"") ->  | L61: PISUQUIA | X61: CAJAMARCA | Y61: CAJAMARCA
A62: 57 | B62: 10515 | C62: AMAZONAS | D62: LUYA | E62: PROVIDENCIA | F62: 71 | G62: 1784 | H62: -6.2972 | I62: -78.2408 | J62: =IFERROR(VLOOKUP(B62,#REF!,8,FALSE),"") ->  | L62: PROVIDENCIA | X62: CAJAMARCA | Y62: CELENDIN
A63: 58 | B63: 10516 | C63: AMAZONAS | D63: LUYA | E63: SAN CRISTOBAL | F63: 33 | G63: 2636 | H63: -6.1017 | I63: -77.9597 | J63: =IFERROR(VLOOKUP(B63,#REF!,8,FALSE),"") ->  | L63: SAN CRISTOBAL | X63: CAJAMARCA | Y63: CHOTA
A64: 59 | B64: 10517 | C64: AMAZONAS | D64: LUYA | E64: SAN FRANCISCO DEL YESO | F64: 114 | G64: 2404 | H64: -6.6469 | I64: -77.8117 | J64: =IFERROR(VLOOKUP(B64,#REF!,8,FALSE),"") ->  | L64: SAN FRANCISCO DEL YESO | X64: CAJAMARCA | Y64: CONTUMAZA
A65: 60 | B65: 10518 | C65: AMAZONAS | D65: LUYA | E65: SAN JERONIMO | F65: 215 | G65: 2498 | H65: -6.0597 | I65: -77.9744 | J65: =IFERROR(VLOOKUP(B65,#REF!,8,FALSE),"") ->  | L65: SAN JERONIMO | X65: CAJAMARCA | Y65: CUTERVO
A66: 61 | B66: 10519 | C66: AMAZONAS | D66: LUYA | E66: SAN JUAN DE LOPECANCHA | F66: 88 | G66: 2164 | H66: -6.4964 | I66: -77.8619 | J66: =IFERROR(VLOOKUP(B66,#REF!,8,FALSE),"") ->  | L66: SAN JUAN DE LOPECANCHA | X66: CAJAMARCA | Y66: HUALGAYOC
A67: 62 | B67: 10520 | C67: AMAZONAS | D67: LUYA | E67: SANTA CATALINA | F67: 126 | G67: 2574 | H67: -6.1136 | I67: -78.0608 | J67: =IFERROR(VLOOKUP(B67,#REF!,8,FALSE),"") ->  | L67: SANTA CATALINA | X67: CAJAMARCA | Y67: JAEN
A68: 63 | B68: 10521 | C68: AMAZONAS | D68: LUYA | E68: SANTO TOMAS | F68: 85 | G68: 2837 | H68: -6.5725 | I68: -77.8658 | J68: =IFERROR(VLOOKUP(B68,#REF!,8,FALSE),"") ->  | L68: SANTO TOMAS | X68: CAJAMARCA | Y68: SAN IGNACIO
A69: 64 | B69: 10522 | C69: AMAZONAS | D69: LUYA | E69: TINGO | F69: 103 | G69: 1800 | H69: -6.3797 | I69: -77.9058 | J69: =IFERROR(VLOOKUP(B69,#REF!,8,FALSE),"") ->  | L69: TINGO | X69: CAJAMARCA | Y69: SAN MARCOS
A70: 65 | B70: 10523 | C70: AMAZONAS | D70: LUYA | E70: TRITA | F70: 13 | G70: 2888 | H70: -6.1519 | I70: -77.9808 | J70: =IFERROR(VLOOKUP(B70,#REF!,8,FALSE),"") ->  | L70: TRITA | X70: CAJAMARCA | Y70: SAN MIGUEL
A71: 66 | B71: 10602 | C71: AMAZONAS | D71: RODRIGUEZ DE MENDOZA | E71: CHIRIMOTO | F71: 153 | G71: 1663 | H71: -6.5231 | I71: -77.4425 | J71: =IFERROR(VLOOKUP(B71,#REF!,8,FALSE),"") ->  | L71: CHIRIMOTO | X71: CAJAMARCA | Y71: SAN PABLO
A72: =+A71+1 -> 67 | B72: 10603 | C72: AMAZONAS | D72: RODRIGUEZ DE MENDOZA | E72: COCHAMAL | F72: 199 | G72: 1720 | H72: -6.4075 | I72: -77.5853 | J72: =IFERROR(VLOOKUP(B72,#REF!,8,FALSE),"") ->  | L72: COCHAMAL | X72: CAJAMARCA | Y72: SANTA CRUZ
A73: 68 | B73: 10604 | C73: AMAZONAS | D73: RODRIGUEZ DE MENDOZA | E73: HUAMBO | F73: 100 | G73: 1731 | H73: -6.4311 | I73: -77.5367 | J73: =IFERROR(VLOOKUP(B73,#REF!,8,FALSE),"") ->  | L73: HUAMBO | X73: CALLAO | Y73: CALLAO
A74: 69 | B74: 10605 | C74: AMAZONAS | D74: RODRIGUEZ DE MENDOZA | E74: LIMABAMBA | F74: 318 | G74: 1677 | H74: -6.4981 | I74: -77.4989 | J74: =IFERROR(VLOOKUP(B74,#REF!,8,FALSE),"") ->  | L74: LIMABAMBA | X74: CUSCO | Y74: ACOMAYO
A75: 70 | B75: 10606 | C75: AMAZONAS | D75: RODRIGUEZ DE MENDOZA | E75: LONGAR | F75: 66 | G75: 1623 | H75: -6.3858 | I75: -77.5467 | J75: =IFERROR(VLOOKUP(B75,#REF!,8,FALSE),"") ->  | L75: LONGAR | X75: CUSCO | Y75: ANTA
A76: 71 | B76: 10607 | C76: AMAZONAS | D76: RODRIGUEZ DE MENDOZA | E76: MARISCAL BENAVIDES | F76: 176 | G76: 1592 | H76: -6.3861 | I76: -77.5044 | J76: =IFERROR(VLOOKUP(B76,#REF!,8,FALSE),"") ->  | L76: MARISCAL BENAVIDES | X76: CUSCO | Y76: CALCA
A77: 72 | B77: 10608 | C77: AMAZONAS | D77: RODRIGUEZ DE MENDOZA | E77: MILPUC | F77: 27 | G77: 1665 | H77: -6.5 | I77: -77.4364 | J77: =IFERROR(VLOOKUP(B77,#REF!,8,FALSE),"") ->  | L77: MILPUC | X77: CUSCO | Y77: CANAS
A78: 73 | B78: 10609 | C78: AMAZONAS | D78: RODRIGUEZ DE MENDOZA | E78: OMIA | F78: 175 | G78: 1368 | H78: -6.4678 | I78: -77.3956 | J78: =IFERROR(VLOOKUP(B78,#REF!,8,FALSE),"") ->  | L78: OMIA | X78: CUSCO | Y78: CANCHIS
A79: 74 | B79: 10601 | C79: AMAZONAS | D79: RODRIGUEZ DE MENDOZA | E79: SAN NICOLAS | F79: 206 | G79: 1616 | H79: -6.3953 | I79: -77.4822 | J79: =IFERROR(VLOOKUP(B79,#REF!,8,FALSE),"") ->  | L79: SAN NICOLAS | X79: CUSCO | Y79: CHUMBIVILCAS
A80: 75 | B80: 10610 | C80: AMAZONAS | D80: RODRIGUEZ DE MENDOZA | E80: SANTA ROSA | F80: 34 | G80: 1770 | H80: -6.4536 | I80: -77.4553 | J80: =IFERROR(VLOOKUP(B80,#REF!,8,FALSE),"") ->  | L80: SANTA ROSA | X80: CUSCO | Y80: CUSCO
A81: 76 | B81: 10611 | C81: AMAZONAS | D81: RODRIGUEZ DE MENDOZA | E81: TOTORA | F81: 6 | G81: 1674 | H81: -6.4931 | I81: -77.4717 | J81: =IFERROR(VLOOKUP(B81,#REF!,8,FALSE),"") ->  | L81: TOTORA | X81: CUSCO | Y81: ESPINAR
A82: 77 | B82: 10612 | C82: AMAZONAS | D82: RODRIGUEZ DE MENDOZA | E82: VISTA ALEGRE | F82: 899 | G82: 1504 | H82: -6.1508 | I82: -77.3039 | J82: =IFERROR(VLOOKUP(B82,#REF!,8,FALSE),"") ->  | L82: VISTA ALEGRE | X82: CUSCO | Y82: LA CONVENCION
A83: 78 | B83: 10701 | C83: AMAZONAS | D83: UTCUBAMBA | E83: BAGUA GRANDE | F83: 747 | G83: 444 | H83: -5.7547 | I83: -78.4428 | J83: =IFERROR(VLOOKUP(B83,#REF!,8,FALSE),"") ->  | L83: BAGUA GRANDE | X83: CUSCO | Y83: PARURO
A84: 79 | B84: 10702 | C84: AMAZONAS | D84: UTCUBAMBA | E84: CAJARURO | F84: 1746 | G84: 469 | H84: -5.7364 | I84: -78.4267 | J84: =IFERROR(VLOOKUP(B84,#REF!,8,FALSE),"") ->  | L84: CAJARURO | X84: CUSCO | Y84: PAUCARTAMBO
A85: 80 | B85: 10703 | C85: AMAZONAS | D85: UTCUBAMBA | E85: CUMBA | F85: 293 | G85: 477 | H85: -5.9356 | I85: -78.6636 | J85: =IFERROR(VLOOKUP(B85,#REF!,8,FALSE),"") ->  | L85: CUMBA | X85: CUSCO | Y85: QUISPICANCHI
A86: 81 | B86: 10704 | C86: AMAZONAS | D86: UTCUBAMBA | E86: EL MILAGRO | F86: 314 | G86: 392 | H86: -5.6378 | I86: -78.5583 | J86: =IFERROR(VLOOKUP(B86,#REF!,8,FALSE),"") ->  | L86: EL MILAGRO | X86: CUSCO | Y86: URUBAMBA
A87: 82 | B87: 10705 | C87: AMAZONAS | D87: UTCUBAMBA | E87: JAMALCA | F87: 358 | G87: 1184 | H87: -5.8942 | I87: -78.2378 | J87: =IFERROR(VLOOKUP(B87,#REF!,8,FALSE),"") ->  | L87: JAMALCA | X87: HUANCAVELICA | Y87: ACOBAMBA
A88: 83 | B88: 10706 | C88: AMAZONAS | D88: UTCUBAMBA | E88: LONYA GRANDE | F88: 328 | G88: 1269 | H88: -6.0964 | I88: -78.4225 | J88: =IFERROR(VLOOKUP(B88,#REF!,8,FALSE),"") ->  | L88: LONYA GRANDE | X88: HUANCAVELICA | Y88: ANGARAES
A89: 84 | B89: 10707 | C89: AMAZONAS | D89: UTCUBAMBA | E89: YAMON | F89: 58 | G89: 1052 | H89: -6.0508 | I89: -78.5289 | J89: =IFERROR(VLOOKUP(B89,#REF!,8,FALSE),"") ->  | L89: YAMON | X89: HUANCAVELICA | Y89: CASTROVIRREYNA
A90: 85 | B90: 20201 | C90: ANCASH | D90: AIJA | E90: AIJA | F90: 160 | G90: 3421 | H90: -9.7803 | I90: -77.6106 | J90: =IFERROR(VLOOKUP(B90,#REF!,8,FALSE),"") ->  | L90: AIJA | X90: HUANCAVELICA | Y90: CHURCAMPA
A91: 86 | B91: 20202 | C91: ANCASH | D91: AIJA | E91: CORIS | F91: 267 | G91: 2903 | H91: -9.8206 | I91: -77.7194 | J91: =IFERROR(VLOOKUP(B91,#REF!,8,FALSE),"") ->  | L91: CORIS | X91: HUANCAVELICA | Y91: HUANCAVELICA
A92: 87 | B92: 20203 | C92: ANCASH | D92: AIJA | E92: HUACLLAN | F92: 38 | G92: 3020 | H92: -9.7981 | I92: -77.6753 | J92: =IFERROR(VLOOKUP(B92,#REF!,8,FALSE),"") ->  | L92: HUACLLAN | X92: HUANCAVELICA | Y92: HUAYTARA
A93: 88 | B93: 20204 | C93: ANCASH | D93: AIJA | E93: LA MERCED | F93: 153 | G93: 3311 | H93: -9.7356 | I93: -77.6161 | J93: =IFERROR(VLOOKUP(B93,#REF!,8,FALSE),"") ->  | L93: LA MERCED | X93: HUANCAVELICA | Y93: TAYACAJA
A94: 89 | B94: 20205 | C94: ANCASH | D94: AIJA | E94: SUCCHA | F94: 79 | G94: 3167 | H94: -9.8231 | I94: -77.6497 | J94: =IFERROR(VLOOKUP(B94,#REF!,8,FALSE),"") ->  | L94: SUCCHA | X94: HUANUCO | Y94: AMBO
A95: 90 | B95: 20302 | C95: ANCASH | D95: ANTONIO RAYMONDI | E95: ACZO | F95: 69 | G95: 2680 | H95: -9.1519 | I95: -76.9889 | J95: =IFERROR(VLOOKUP(B95,#REF!,8,FALSE),"") ->  | L95: ACZO | X95: HUANUCO | Y95: DOS DE MAYO
A96: 91 | B96: 20303 | C96: ANCASH | D96: ANTONIO RAYMONDI | E96: CHACCHO | F96: 74 | G96: 3371 | H96: -9.0597 | I96: -77.0583 | J96: =IFERROR(VLOOKUP(B96,#REF!,8,FALSE),"") ->  | L96: CHACCHO | X96: HUANUCO | Y96: HUACAYBAMBA
A97: 92 | B97: 20304 | C97: ANCASH | D97: ANTONIO RAYMONDI | E97: CHINGAS | F97: 49 | G97: 2866 | H97: -9.1186 | I97: -76.9919 | J97: =IFERROR(VLOOKUP(B97,#REF!,8,FALSE),"") ->  | L97: CHINGAS | X97: HUANUCO | Y97: HUAMALIES
A98: 93 | B98: 20301 | C98: ANCASH | D98: ANTONIO RAYMONDI | E98: LLAMELLIN | F98: 91 | G98: 3400 | H98: -9.1008 | I98: -77.0169 | J98: =IFERROR(VLOOKUP(B98,#REF!,8,FALSE),"") ->  | L98: LLAMELLIN | X98: HUANUCO | Y98: HUANUCO
A99: 94 | B99: 20305 | C99: ANCASH | D99: ANTONIO RAYMONDI | E99: MIRGAS | F99: 176 | G99: 3147 | H99: -9.0786 | I99: -77.0925 | J99: =IFERROR(VLOOKUP(B99,#REF!,8,FALSE),"") ->  | L99: MIRGAS | X99: HUANUCO | Y99: LAURICOCHA
A100: 95 | B100: 20306 | C100: ANCASH | D100: ANTONIO RAYMONDI | E100: SAN JUAN DE RONTOY | F100: 103 | G100: 3503 | H100: -9.1753 | I100: -77.0028 | J100: =IFERROR(VLOOKUP(B100,#REF!,8,FALSE),"") ->  | L100: SAN JUAN DE RONTOY | X100: HUANUCO | Y100: LEONCIO PRADO
A101: 96 | B101: 20402 | C101: ANCASH | D101: ASUNCION | E101: ACOCHACA | F101: 81 | G101: 2864 | H101: -9.1147 | I101: -77.3683 | J101: =IFERROR(VLOOKUP(B101,#REF!,8,FALSE),"") ->  | L101: ACOCHACA | X101: HUANUCO | Y101: MARAÑON
A102: 97 | B102: 20401 | C102: ANCASH | D102: ASUNCION | E102: CHACAS | F102: 448 | G102: 3387 | H102: -9.1622 | I102: -77.3658 | J102: =IFERROR(VLOOKUP(B102,#REF!,8,FALSE),"") ->  | L102: CHACAS | X102: HUANUCO | Y102: PACHITEA
A103: 98 | B103: 20502 | C103: ANCASH | D103: BOLOGNESI | E103: ABELARDO PARDO LEZAMETA | F103: 11 | G103: 2108 | H103: -10.2992 | I103: -77.1464 | J103: =IFERROR(VLOOKUP(B103,#REF!,8,FALSE),"") ->  | L103: ABELARDO PARDO LEZAMETA | X103: HUANUCO | Y103: PUERTO INCA
A104: 99 | B104: 20503 | C104: ANCASH | D104: BOLOGNESI | E104: ANTONIO RAYMONDI | F104: 119 | G104: 2139 | H104: -10.1572 | I104: -77.4706 | J104: =IFERROR(VLOOKUP(B104,#REF!,8,FALSE),"") ->  | L104: ANTONIO RAYMONDI | X104: HUANUCO | Y104: YAROWILCA
A105: 100 | B105: 20504 | C105: ANCASH | D105: BOLOGNESI | E105: AQUIA | F105: 435 | G105: 3356 | H105: -10.0744 | I105: -77.145 | J105: =IFERROR(VLOOKUP(B105,#REF!,8,FALSE),"") ->  | L105: AQUIA | X105: ICA | Y105: CHINCHA
A106: 101 | B106: 20505 | C106: ANCASH | D106: BOLOGNESI | E106: CAJACAY | F106: 193 | G106: 2616 | H106: -10.1553 | I106: -77.4397 | J106: =IFERROR(VLOOKUP(B106,#REF!,8,FALSE),"") ->  | L106: CAJACAY | X106: ICA | Y106: ICA
A107: 102 | B107: 20506 | C107: ANCASH | D107: BOLOGNESI | E107: CANIS | F107: 19 | G107: 2465 | H107: -10.3389 | I107: -77.1689 | J107: =IFERROR(VLOOKUP(B107,#REF!,8,FALSE),"") ->  | L107: CANIS | X107: ICA | Y107: NAZCA
A108: 103 | B108: 20501 | C108: ANCASH | D108: BOLOGNESI | E108: CHIQUIAN | F108: 184 | G108: 3410 | H108: -10.1519 | I108: -77.1564 | J108: =IFERROR(VLOOKUP(B108,#REF!,8,FALSE),"") ->  | L108: CHIQUIAN | X108: ICA | Y108: PALPA
A109: 104 | B109: 20507 | C109: ANCASH | D109: BOLOGNESI | E109: COLQUIOC | F109: 275 | G109: 772 | H109: -10.3122 | I109: -77.6153 | J109: =IFERROR(VLOOKUP(B109,#REF!,8,FALSE),"") ->  | L109: COLQUIOC | X109: ICA | Y109: PISCO
A110: 105 | B110: 20508 | C110: ANCASH | D110: BOLOGNESI | E110: HUALLANCA | F110: 873 | G110: 3563 | H110: -9.8994 | I110: -76.9417 | J110: =IFERROR(VLOOKUP(B110,#REF!,8,FALSE),"") ->  | L110: HUALLANCA | X110: JUNIN | Y110: CHANCHAMAYO
A111: 106 | B111: 20509 | C111: ANCASH | D111: BOLOGNESI | E111: HUASTA | F111: 388 | G111: 3382 | H111: -10.1233 | I111: -77.1467 | J111: =IFERROR(VLOOKUP(B111,#REF!,8,FALSE),"") ->  | L111: HUASTA | X111: JUNIN | Y111: CHUPACA
A112: 107 | B112: 20510 | C112: ANCASH | D112: BOLOGNESI | E112: HUAYLLACAYAN | F112: 128 | G112: 3287 | H112: -10.245 | I112: -77.4347 | J112: =IFERROR(VLOOKUP(B112,#REF!,8,FALSE),"") ->  | L112: HUAYLLACAYAN | X112: JUNIN | Y112: CONCEPCION
A113: 108 | B113: 20511 | C113: ANCASH | D113: BOLOGNESI | E113: LA PRIMAVERA | F113: 69 | G113: 2658 | H113: -10.3356 | I113: -77.1253 | J113: =IFERROR(VLOOKUP(B113,#REF!,8,FALSE),"") ->  | L113: LA PRIMAVERA | X113: JUNIN | Y113: HUANCAYO
A114: 109 | B114: 20512 | C114: ANCASH | D114: BOLOGNESI | E114: MANGAS | F114: 116 | G114: 3492 | H114: -10.3694 | I114: -77.1033 | J114: =IFERROR(VLOOKUP(B114,#REF!,8,FALSE),"") ->  | L114: MANGAS | X114: JUNIN | Y114: JAUJA
A115: 110 | B115: 20513 | C115: ANCASH | D115: BOLOGNESI | E115: PACLLON | F115: 212 | G115: 3296 | H115: -10.2344 | I115: -77.0717 | J115: =IFERROR(VLOOKUP(B115,#REF!,8,FALSE),"") ->  | L115: PACLLON | X115: JUNIN | Y115: JUNIN
A116: 111 | B116: 20514 | C116: ANCASH | D116: BOLOGNESI | E116: SAN MIGUEL DE CORPANQUI | F116: 44 | G116: 3405 | H116: -10.285 | I116: -77.1989 | J116: =IFERROR(VLOOKUP(B116,#REF!,8,FALSE),"") ->  | L116: SAN MIGUEL DE CORPANQUI | X116: JUNIN | Y116: SATIPO
A117: 112 | B117: 20515 | C117: ANCASH | D117: BOLOGNESI | E117: TICLLOS | F117: 89 | G117: 3665 | H117: -10.2531 | I117: -77.1908 | J117: =IFERROR(VLOOKUP(B117,#REF!,8,FALSE),"") ->  | L117: TICLLOS | X117: JUNIN | Y117: TARMA
A118: 113 | B118: 20602 | C118: ANCASH | D118: CARHUAZ | E118: ACOPAMPA | F118: 14 | G118: 2692 | H118: -9.2947 | I118: -77.6253 | J118: =IFERROR(VLOOKUP(B118,#REF!,8,FALSE),"") ->  | L118: ACOPAMPA | X118: JUNIN | Y118: YAULI
A119: 114 | B119: 20603 | C119: ANCASH | D119: CARHUAZ | E119: AMASHCA | F119: 12 | G119: 2905 | H119: -9.2392 | I119: -77.6467 | J119: =IFERROR(VLOOKUP(B119,#REF!,8,FALSE),"") ->  | L119: AMASHCA | X119: LA LIBERTAD | Y119: ASCOPE
A120: 115 | B120: 20604 | C120: ANCASH | D120: CARHUAZ | E120: ANTA | F120: 41 | G120: 2800 | H120: -9.3578 | I120: -77.5989 | J120: =IFERROR(VLOOKUP(B120,#REF!,8,FALSE),"") ->  | L120: ANTA | X120: LA LIBERTAD | Y120: BOLIVAR
A121: 116 | B121: 20605 | C121: ANCASH | D121: CARHUAZ | E121: ATAQUERO | F121: 47 | G121: 2749 | H121: -9.2622 | I121: -77.6917 | J121: =IFERROR(VLOOKUP(B121,#REF!,8,FALSE),"") ->  | L121: ATAQUERO | X121: LA LIBERTAD | Y121: CHEPEN
A122: 117 | B122: 20601 | C122: ANCASH | D122: CARHUAZ | E122: CARHUAZ | F122: 195 | G122: 2663 | H122: -9.2814 | I122: -77.6467 | J122: =IFERROR(VLOOKUP(B122,#REF!,8,FALSE),"") ->  | L122: CARHUAZ | X122: LA LIBERTAD | Y122: GRAN CHIMU
A123: 118 | B123: 20606 | C123: ANCASH | D123: CARHUAZ | E123: MARCARA | F123: 157 | G123: 2767 | H123: -9.3228 | I123: -77.6036 | J123: =IFERROR(VLOOKUP(B123,#REF!,8,FALSE),"") ->  | L123: MARCARA | X123: LA LIBERTAD | Y123: JULCAN
A124: 119 | B124: 20607 | C124: ANCASH | D124: CARHUAZ | E124: PARIAHUANCA | F124: 12 | G124: 2830 | H124: -9.3653 | I124: -77.5808 | J124: =IFERROR(VLOOKUP(B124,#REF!,8,FALSE),"") ->  | L124: PARIAHUANCA | X124: LA LIBERTAD | Y124: OTUZCO
A125: 120 | B125: 20608 | C125: ANCASH | D125: CARHUAZ | E125: SAN MIGUEL DE ACO | F125: 134 | G125: 2956 | H125: -9.3683 | I125: -77.5644 | J125: =IFERROR(VLOOKUP(B125,#REF!,8,FALSE),"") ->  | L125: SAN MIGUEL DE ACO | X125: LA LIBERTAD | Y125: PACASMAYO
A126: 121 | B126: 20609 | C126: ANCASH | D126: CARHUAZ | E126: SHILLA | F126: 130 | G126: 3036 | H126: -9.2317 | I126: -77.625 | J126: =IFERROR(VLOOKUP(B126,#REF!,8,FALSE),"") ->  | L126: SHILLA | X126: LA LIBERTAD | Y126: PATAZ
A127: 122 | B127: 20610 | C127: ANCASH | D127: CARHUAZ | E127: TINCO | F127: 15 | G127: 2606 | H127: -9.2708 | I127: -77.6775 | J127: =IFERROR(VLOOKUP(B127,#REF!,8,FALSE),"") ->  | L127: TINCO | X127: LA LIBERTAD | Y127: SANCHEZ CARRION
A128: 123 | B128: 20611 | C128: ANCASH | D128: CARHUAZ | E128: YUNGAR | F128: 46 | G128: 2836 | H128: -9.3775 | I128: -77.5922 | J128: =IFERROR(VLOOKUP(B128,#REF!,8,FALSE),"") ->  | L128: YUNGAR | X128: LA LIBERTAD | Y128: SANTIAGO DE CHUCO
A129: 124 | B129: 20701 | C129: ANCASH | D129: CARLOS FERMIN FITZCARRALD | E129: SAN LUIS | F129: 256 | G129: 3145 | H129: -9.0942 | I129: -77.3289 | J129: =IFERROR(VLOOKUP(B129,#REF!,8,FALSE),"") ->  | L129: SAN LUIS | X129: LA LIBERTAD | Y129: TRUJILLO
A130: 125 | B130: 20702 | C130: ANCASH | D130: CARLOS FERMIN FITZCARRALD | E130: SAN NICOLAS | F130: 197 | G130: 2890 | H130: -8.9758 | I130: -77.1892 | J130: =IFERROR(VLOOKUP(B130,#REF!,8,FALSE),"") ->  | L130: SAN NICOLAS | X130: LA LIBERTAD | Y130: VIRU
A131: 126 | B131: 20703 | C131: ANCASH | D131: CARLOS FERMIN FITZCARRALD | E131: YAUYA | F131: 170 | G131: 3257 | H131: -8.9911 | I131: -77.2914 | J131: =IFERROR(VLOOKUP(B131,#REF!,8,FALSE),"") ->  | L131: YAUYA | X131: LAMBAYEQUE | Y131: CHICLAYO
A132: 127 | B132: 20802 | C132: ANCASH | D132: CASMA | E132: BUENA VISTA ALTA | F132: 477 | G132: 225 | H132: -9.4325 | I132: -78.2069 | J132: =IFERROR(VLOOKUP(B132,#REF!,8,FALSE),"") ->  | L132: BUENA VISTA ALTA | X132: LAMBAYEQUE | Y132: FERREÑAFE
A133: 128 | B133: 20801 | C133: ANCASH | D133: CASMA | E133: CASMA | F133: 1205 | G133: 59 | H133: -9.4758 | I133: -78.3064 | J133: =IFERROR(VLOOKUP(B133,#REF!,8,FALSE),"") ->  | L133: CASMA | X133: LAMBAYEQUE | Y133: LAMBAYEQUE
A134: 129 | B134: 20803 | C134: ANCASH | D134: CASMA | E134: COMANDANTE NOEL | F134: 222 | G134: 14 | H134: -9.4625 | I134: -78.3847 | J134: =IFERROR(VLOOKUP(B134,#REF!,8,FALSE),"") ->  | L134: COMANDANTE NOEL | X134: LIMA | Y134: BARRANCA
A135: 130 | B135: 20804 | C135: ANCASH | D135: CASMA | E135: YAUTAN | F135: 357 | G135: 831 | H135: -9.5114 | I135: -77.9964 | J135: =IFERROR(VLOOKUP(B135,#REF!,8,FALSE),"") ->  | L135: YAUTAN | X135: LIMA | Y135: CAJATAMBO
A136: =+A135+1 -> 131 | B136: 20902 | C136: ANCASH | D136: CORONGO | E136: ACO | F136: 57 | G136: 3118 | H136: -8.5231 | I136: -77.8778 | J136: =IFERROR(VLOOKUP(B136,#REF!,8,FALSE),"") ->  | L136: ACO | X136: LIMA | Y136: CANTA
A137: 132 | B137: 20903 | C137: ANCASH | D137: CORONGO | E137: BAMBAS | F137: 151 | G137: 2943 | H137: -8.6025 | I137: -77.9969 | J137: =IFERROR(VLOOKUP(B137,#REF!,8,FALSE),"") ->  | L137: BAMBAS | X137: LIMA | Y137: CAÑETE
A138: 133 | B138: 20901 | C138: ANCASH | D138: CORONGO | E138: CORONGO | F138: 143 | G138: 3172 | H138: -8.5708 | I138: -77.8989 | J138: =IFERROR(VLOOKUP(B138,#REF!,8,FALSE),"") ->  | L138: CORONGO | X138: LIMA | Y138: HUARAL
A139: 134 | B139: 20904 | C139: ANCASH | D139: CORONGO | E139: CUSCA | F139: 412 | G139: 3196 | H139: -8.5133 | I139: -77.8647 | J139: =IFERROR(VLOOKUP(B139,#REF!,8,FALSE),"") ->  | L139: CUSCA | X139: LIMA | Y139: HUAROCHIRI
A140: 135 | B140: 20905 | C140: ANCASH | D140: CORONGO | E140: LA PAMPA | F140: 94 | G140: 1803 | H140: -8.6611 | I140: -77.9008 | J140: =IFERROR(VLOOKUP(B140,#REF!,8,FALSE),"") ->  | L140: LA PAMPA | X140: LIMA | Y140: HUAURA
A141: 136 | B141: 20906 | C141: ANCASH | D141: CORONGO | E141: YANAC | F141: 46 | G141: 2877 | H141: -8.6186 | I141: -77.8647 | J141: =IFERROR(VLOOKUP(B141,#REF!,8,FALSE),"") ->  | L141: YANAC | X141: LIMA | Y141: LIMA METROPOLITANA
A142: 137 | B142: 20907 | C142: ANCASH | D142: CORONGO | E142: YUPAN | F142: 86 | G142: 2781 | H142: -8.6144 | I142: -77.9686 | J142: =IFERROR(VLOOKUP(B142,#REF!,8,FALSE),"") ->  | L142: YUPAN | X142: LIMA | Y142: OYON
A143: 138 | B143: 20102 | C143: ANCASH | D143: HUARAZ | E143: COCHABAMBA | F143: 136 | G143: 2135 | H143: -9.495 | I143: -77.8594 | J143: =IFERROR(VLOOKUP(B143,#REF!,8,FALSE),"") ->  | L143: COCHABAMBA | X143: LIMA | Y143: YAUYOS
A144: 139 | B144: 20103 | C144: ANCASH | D144: HUARAZ | E144: COLCABAMBA | F144: 51 | G144: 3154 | H144: -9.5947 | I144: -77.8086 | J144: =IFERROR(VLOOKUP(B144,#REF!,8,FALSE),"") ->  | L144: COLCABAMBA | X144: LORETO | Y144: ALTO AMAZONAS
A145: 140 | B145: 20104 | C145: ANCASH | D145: HUARAZ | E145: HUANCHAY | F145: 209 | G145: 2592 | H145: -9.7236 | I145: -77.8186 | J145: =IFERROR(VLOOKUP(B145,#REF!,8,FALSE),"") ->  | L145: HUANCHAY | X145: LORETO | Y145: DATEM DEL MARAÑON
A146: 141 | B146: 20101 | C146: ANCASH | D146: HUARAZ | E146: HUARAZ | F146: 433 | G146: 3073 | H146: -9.5297 | I146: -77.5292 | J146: =IFERROR(VLOOKUP(B146,#REF!,8,FALSE),"") ->  | L146: HUARAZ | X146: LORETO | Y146: LORETO
A147: 142 | B147: 20105 | C147: ANCASH | D147: HUARAZ | E147: INDEPENDENCIA ancash | F147: 343 | G147: 3047 | H147: -9.5144 | I147: -77.5325 | J147: =IFERROR(VLOOKUP(B147,#REF!,8,FALSE),"") ->  | L147: INDEPENDENCIA ancash | X147: LORETO | Y147: MARISCAL RAMON CASTILLA
A148: 143 | B148: 20106 | C148: ANCASH | D148: HUARAZ | E148: JANGAS | F148: 60 | G148: 2824 | H148: -9.4006 | I148: -77.5775 | J148: =IFERROR(VLOOKUP(B148,#REF!,8,FALSE),"") ->  | L148: JANGAS | X148: LORETO | Y148: MAYNAS
A149: 144 | B149: 20107 | C149: ANCASH | D149: HUARAZ | E149: LA LIBERTAD | F149: 164 | G149: 3343 | H149: -9.6331 | I149: -77.7414 | J149: =IFERROR(VLOOKUP(B149,#REF!,8,FALSE),"") ->  | L149: LA LIBERTAD | X149: LORETO | Y149: PUTUMAYO
A150: 145 | B150: 20108 | C150: ANCASH | D150: HUARAZ | E150: OLLEROS | F150: 223 | G150: 3443 | H150: -9.6667 | I150: -77.4656 | J150: =IFERROR(VLOOKUP(B150,#REF!,8,FALSE),"") ->  | L150: OLLEROS | X150: LORETO | Y150: REQUENA
A151: 146 | B151: 20109 | C151: ANCASH | D151: HUARAZ | E151: PAMPAS | F151: 358 | G151: 3698 | H151: -9.6553 | I151: -77.8261 | J151: =IFERROR(VLOOKUP(B151,#REF!,8,FALSE),"") ->  | L151: PAMPAS | X151: LORETO | Y151: UCAYALI
A152: 147 | B152: 20110 | C152: ANCASH | D152: HUARAZ | E152: PARIACOTO | F152: 163 | G152: 1264 | H152: -9.5594 | I152: -77.8906 | J152: =IFERROR(VLOOKUP(B152,#REF!,8,FALSE),"") ->  | L152: PARIACOTO | X152: MADRE DE DIOS | Y152: MANU
A153: 148 | B153: 20111 | C153: ANCASH | D153: HUARAZ | E153: PIRA | F153: 244 | G153: 3602 | H153: -9.5811 | I153: -77.7072 | J153: =IFERROR(VLOOKUP(B153,#REF!,8,FALSE),"") ->  | L153: PIRA | X153: MADRE DE DIOS | Y153: TAHUAMANU
A154: 149 | B154: 20112 | C154: ANCASH | D154: HUARAZ | E154: TARICA | F154: 110 | G154: 2832 | H154: -9.3936 | I154: -77.575 | J154: =IFERROR(VLOOKUP(B154,#REF!,8,FALSE),"") ->  | L154: TARICA | X154: MADRE DE DIOS | Y154: TAMBOPATA
A155: 150 | B155: 21002 | C155: ANCASH | D155: HUARI | E155: ANRA | F155: 80 | G155: 3197 | H155: -9.2347 | I155: -76.9264 | J155: =IFERROR(VLOOKUP(B155,#REF!,8,FALSE),"") ->  | L155: ANRA | X155: MOQUEGUA | Y155: GENERAL SANCHEZ CERRO
A156: 151 | B156: 21003 | C156: ANCASH | D156: HUARI | E156: CAJAY | F156: 159 | G156: 3175 | H156: -9.3258 | I156: -77.1575 | J156: =IFERROR(VLOOKUP(B156,#REF!,8,FALSE),"") ->  | L156: CAJAY | X156: MOQUEGUA | Y156: ILO
A157: 152 | B157: 21004 | C157: ANCASH | D157: HUARI | E157: CHAVIN DE HUANTAR | F157: 434 | G157: 3115 | H157: -9.5886 | I157: -77.1783 | J157: =IFERROR(VLOOKUP(B157,#REF!,8,FALSE),"") ->  | L157: CHAVIN DE HUANTAR | X157: MOQUEGUA | Y157: MARISCAL NIETO
A158: 153 | B158: 21005 | C158: ANCASH | D158: HUARI | E158: HUACACHI | F158: 87 | G158: 3498 | H158: -9.3156 | I158: -76.9386 | J158: =IFERROR(VLOOKUP(B158,#REF!,8,FALSE),"") ->  | L158: HUACACHI | X158: PASCO | Y158: DANIEL ALCIDES CARRION
A159: 154 | B159: 21006 | C159: ANCASH | D159: HUARI | E159: HUACCHIS | F159: 72 | G159: 3491 | H159: -9.2006 | I159: -76.7869 | J159: =IFERROR(VLOOKUP(B159,#REF!,8,FALSE),"") ->  | L159: HUACCHIS | X159: PASCO | Y159: OXAPAMPA
A160: 155 | B160: 21007 | C160: ANCASH | D160: HUARI | E160: HUACHIS | F160: 154 | G160: 3275 | H160: -9.41 | I160: -77.1 | J160: =IFERROR(VLOOKUP(B160,#REF!,8,FALSE),"") ->  | L160: HUACHIS | X160: PASCO | Y160: PASCO
A161: 156 | B161: 21008 | C161: ANCASH | D161: HUARI | E161: HUANTAR | F161: 156 | G161: 3363 | H161: -9.4519 | I161: -77.1767 | J161: =IFERROR(VLOOKUP(B161,#REF!,8,FALSE),"") ->  | L161: HUANTAR | X161: PIURA | Y161: AYABACA
A162: 157 | B162: 21001 | C162: ANCASH | D162: HUARI | E162: HUARI | F162: 399 | G162: 3114 | H162: -9.3472 | I162: -77.1708 | J162: =IFERROR(VLOOKUP(B162,#REF!,8,FALSE),"") ->  | L162: HUARI | X162: PIURA | Y162: HUANCABAMBA
A163: 158 | B163: 21009 | C163: ANCASH | D163: HUARI | E163: MASIN | F163: 75 | G163: 2547 | H163: -9.3658 | I163: -77.0964 | J163: =IFERROR(VLOOKUP(B163,#REF!,8,FALSE),"") ->  | L163: MASIN | X163: PIURA | Y163: MORROPON
A164: 159 | B164: 21010 | C164: ANCASH | D164: HUARI | E164: PAUCAS | F164: 135 | G164: 3433 | H164: -9.1525 | I164: -76.8994 | J164: =IFERROR(VLOOKUP(B164,#REF!,8,FALSE),"") ->  | L164: PAUCAS | X164: PIURA | Y164: PAITA
A165: 160 | B165: 21011 | C165: ANCASH | D165: HUARI | E165: PONTO | F165: 118 | G165: 3142 | H165: -9.3261 | I165: -77.0044 | J165: =IFERROR(VLOOKUP(B165,#REF!,8,FALSE),"") ->  | L165: PONTO | X165: PIURA | Y165: PIURA
A166: 161 | B166: 21012 | C166: ANCASH | D166: HUARI | E166: RAHUAPAMPA | F166: 9 | G166: 2521 | H166: -9.3592 | I166: -77.0786 | J166: =IFERROR(VLOOKUP(B166,#REF!,8,FALSE),"") ->  | L166: RAHUAPAMPA | X166: PIURA | Y166: SECHURA
A167: 162 | B167: 21013 | C167: ANCASH | D167: HUARI | E167: RAPAYAN | F167: 143 | G167: 3233 | H167: -9.2025 | I167: -76.7594 | J167: =IFERROR(VLOOKUP(B167,#REF!,8,FALSE),"") ->  | L167: RAPAYAN | X167: PIURA | Y167: SULLANA
A168: 163 | B168: 21014 | C168: ANCASH | D168: HUARI | E168: SAN MARCOS | F168: 557 | G168: 2988 | H168: -9.5242 | I168: -77.1569 | J168: =IFERROR(VLOOKUP(B168,#REF!,8,FALSE),"") ->  | L168: SAN MARCOS | X168: PIURA | Y168: TALARA
A169: 164 | B169: 21015 | C169: ANCASH | D169: HUARI | E169: SAN PEDRO DE CHANA | F169: 139 | G169: 3439 | H169: -9.4031 | I169: -77.0111 | J169: =IFERROR(VLOOKUP(B169,#REF!,8,FALSE),"") ->  | L169: SAN PEDRO DE CHANA | X169: PUNO | Y169: AZANGARO
A170: 165 | B170: 21016 | C170: ANCASH | D170: HUARI | E170: UCO | F170: 54 | G170: 3347 | H170: -9.1883 | I170: -76.9283 | J170: =IFERROR(VLOOKUP(B170,#REF!,8,FALSE),"") ->  | L170: UCO | X170: PUNO | Y170: CARABAYA
A171: 166 | B171: 21102 | C171: ANCASH | D171: HUARMEY | E171: COCHAPETI | F171: 100 | G171: 3529 | H171: -9.9872 | I171: -77.6461 | J171: =IFERROR(VLOOKUP(B171,#REF!,8,FALSE),"") ->  | L171: COCHAPETI | X171: PUNO | Y171: CHUCUITO
A172: 167 | B172: 21103 | C172: ANCASH | D172: HUARMEY | E172: CULEBRAS | F172: 630 | G172: 41 | H172: -9.9503 | I172: -78.2222 | J172: =IFERROR(VLOOKUP(B172,#REF!,8,FALSE),"") ->  | L172: CULEBRAS | X172: PUNO | Y172: EL COLLAO
A173: 168 | B173: 21101 | C173: ANCASH | D173: HUARMEY | E173: HUARMEY | F173: 2894 | G173: 30 | H173: -10.0689 | I173: -78.1517 | J173: =IFERROR(VLOOKUP(B173,#REF!,8,FALSE),"") ->  | L173: HUARMEY | X173: PUNO | Y173: HUANCANE
A174: 169 | B174: 21104 | C174: ANCASH | D174: HUARMEY | E174: HUAYAN | F174: 59 | G174: 2702 | H174: -9.8753 | I174: -77.7083 | J174: =IFERROR(VLOOKUP(B174,#REF!,8,FALSE),"") ->  | L174: HUAYAN | X174: PUNO | Y174: LAMPA
A175: 170 | B175: 21105 | C175: ANCASH | D175: HUARMEY | E175: MALVAS | F175: 220 | G175: 3132 | H175: -9.9297 | I175: -77.6578 | J175: =IFERROR(VLOOKUP(B175,#REF!,8,FALSE),"") ->  | L175: MALVAS | X175: PUNO | Y175: MELGAR
A176: 171 | B176: 21201 | C176: ANCASH | D176: HUAYLAS | E176: CARAZ | F176: 247 | G176: 2273 | H176: -9.0486 | I176: -77.8047 | J176: =IFERROR(VLOOKUP(B176,#REF!,8,FALSE),"") ->  | L176: CARAZ | X176: PUNO | Y176: MOHO
A177: 172 | B177: 21202 | C177: ANCASH | D177: HUAYLAS | E177: HUALLANCA | F177: 179 | G177: 1391 | H177: -8.8189 | I177: -77.8631 | J177: =IFERROR(VLOOKUP(B177,#REF!,8,FALSE),"") ->  | L177: HUALLANCA | X177: PUNO | Y177: PUNO
A178: 173 | B178: 21203 | C178: ANCASH | D178: HUAYLAS | E178: HUATA | F178: 71 | G178: 2712 | H178: -9.0164 | I178: -77.8614 | J178: =IFERROR(VLOOKUP(B178,#REF!,8,FALSE),"") ->  | L178: HUATA | X178: PUNO | Y178: SAN ANTONIO DE PUTINA
A179: 174 | B179: 21204 | C179: ANCASH | D179: HUAYLAS | E179: HUAYLAS | F179: 57 | G179: 2735 | H179: -8.8725 | I179: -77.8928 | J179: =IFERROR(VLOOKUP(B179,#REF!,8,FALSE),"") ->  | L179: HUAYLAS | X179: PUNO | Y179: SAN ROMAN
A180: 175 | B180: 21205 | C180: ANCASH | D180: HUAYLAS | E180: MATO | F180: 107 | G180: 2209 | H180: -8.9614 | I180: -77.8425 | J180: =IFERROR(VLOOKUP(B180,#REF!,8,FALSE),"") ->  | L180: MATO | X180: PUNO | Y180: SANDIA
A181: 176 | B181: 21206 | C181: ANCASH | D181: HUAYLAS | E181: PAMPAROMAS | F181: 496 | G181: 2772 | H181: -9.0733 | I181: -77.9817 | J181: =IFERROR(VLOOKUP(B181,#REF!,8,FALSE),"") ->  | L181: PAMPAROMAS | X181: PUNO | Y181: YUNGUYO
A182: 177 | B182: 21207 | C182: ANCASH | D182: HUAYLAS | E182: PUEBLO LIBRE - ANCASH | F182: 131 | G182: 2485 | H182: -9.11 | I182: -77.8019 | J182: =IFERROR(VLOOKUP(B182,#REF!,8,FALSE),"") ->  | L182: PUEBLO LIBRE - ANCASH | X182: SAN MARTIN | Y182: BELLAVISTA
A183: 178 | B183: 21208 | C183: ANCASH | D183: HUAYLAS | E183: SANTA CRUZ | F183: 358 | G183: 2890 | H183: -8.9519 | I183: -77.815 | J183: =IFERROR(VLOOKUP(B183,#REF!,8,FALSE),"") ->  | L183: SANTA CRUZ | X183: SAN MARTIN | Y183: EL DORADO
A184: 179 | B184: 21209 | C184: ANCASH | D184: HUAYLAS | E184: SANTO TORIBIO | F184: 82 | G184: 2926 | H184: -8.8644 | I184: -77.9147 | J184: =IFERROR(VLOOKUP(B184,#REF!,8,FALSE),"") ->  | L184: SANTO TORIBIO | X184: SAN MARTIN | Y184: HUALLAGA
A185: 180 | B185: 21210 | C185: ANCASH | D185: HUAYLAS | E185: YURACMARCA | F185: 566 | G185: 1484 | H185: -8.7375 | I185: -77.9039 | J185: =IFERROR(VLOOKUP(B185,#REF!,8,FALSE),"") ->  | L185: YURACMARCA | X185: SAN MARTIN | Y185: LAMAS
A186: 181 | B186: 21302 | C186: ANCASH | D186: MARISCAL LUZURIAGA | E186: CASCA | F186: 77 | G186: 3176 | H186: -8.8556 | I186: -77.3986 | J186: =IFERROR(VLOOKUP(B186,#REF!,8,FALSE),"") ->  | L186: CASCA | X186: SAN MARTIN | Y186: MARISCAL CACERES
A187: 182 | B187: 21303 | C187: ANCASH | D187: MARISCAL LUZURIAGA | E187: ELEAZAR GUZMAN BARRON | F187: 94 | G187: 2845 | H187: -8.9022 | I187: -77.2439 | J187: =IFERROR(VLOOKUP(B187,#REF!,8,FALSE),"") ->  | L187: ELEAZAR GUZMAN BARRON | X187: SAN MARTIN | Y187: MOYOBAMBA
A188: 183 | B188: 21304 | C188: ANCASH | D188: MARISCAL LUZURIAGA | E188: FIDEL OLIVAS ESCUDERO | F188: 205 | G188: 2849 | H188: -8.8061 | I188: -77.2797 | J188: =IFERROR(VLOOKUP(B188,#REF!,8,FALSE),"") ->  | L188: FIDEL OLIVAS ESCUDERO | X188: SAN MARTIN | Y188: PICOTA
A189: 184 | B189: 21305 | C189: ANCASH | D189: MARISCAL LUZURIAGA | E189: LLAMA | F189: 48 | G189: 2839 | H189: -8.915 | I189: -77.3014 | J189: =IFERROR(VLOOKUP(B189,#REF!,8,FALSE),"") ->  | L189: LLAMA | X189: SAN MARTIN | Y189: RIOJA
A190: 185 | B190: 21306 | C190: ANCASH | D190: MARISCAL LUZURIAGA | E190: LLUMPA | F190: 143 | G190: 2900 | H190: -8.9608 | I190: -77.3675 | J190: =IFERROR(VLOOKUP(B190,#REF!,8,FALSE),"") ->  | L190: LLUMPA | X190: SAN MARTIN | Y190: SAN MARTIN
A191: 186 | B191: 21307 | C191: ANCASH | D191: MARISCAL LUZURIAGA | E191: LUCMA | F191: 77 | G191: 3096 | H191: -8.9194 | I191: -77.4108 | J191: =IFERROR(VLOOKUP(B191,#REF!,8,FALSE),"") ->  | L191: LUCMA | X191: SAN MARTIN | Y191: TOCACHE
A192: 187 | B192: 21308 | C192: ANCASH | D192: MARISCAL LUZURIAGA | E192: MUSGA | F192: 40 | G192: 3001 | H192: -8.9061 | I192: -77.3392 | J192: =IFERROR(VLOOKUP(B192,#REF!,8,FALSE),"") ->  | L192: MUSGA | X192: TACNA | Y192: CANDARAVE
A193: 188 | B193: 21301 | C193: ANCASH | D193: MARISCAL LUZURIAGA | E193: PISCOBAMBA | F193: 46 | G193: 3326 | H193: -8.865 | I193: -77.3578 | J193: =IFERROR(VLOOKUP(B193,#REF!,8,FALSE),"") ->  | L193: PISCOBAMBA | X193: TACNA | Y193: JORGE BASADRE
A194: 189 | B194: 21402 | C194: ANCASH | D194: OCROS | E194: ACAS | F194: 252 | G194: 3712 | H194: -10.4575 | I194: -77.3278 | J194: =IFERROR(VLOOKUP(B194,#REF!,8,FALSE),"") ->  | L194: ACAS | X194: TACNA | Y194: TACNA
A195: 190 | B195: 21403 | C195: ANCASH | D195: OCROS | E195: CAJAMARQUILLA | F195: 76 | G195: 3545 | H195: -10.3542 | I195: -77.1992 | J195: =IFERROR(VLOOKUP(B195,#REF!,8,FALSE),"") ->  | L195: CAJAMARQUILLA | X195: TACNA | Y195: TARATA
A196: 191 | B196: 21404 | C196: ANCASH | D196: OCROS | E196: CARHUAPAMPA | F196: 110 | G196: 2250 | H196: -10.4975 | I196: -77.2428 | J196: =IFERROR(VLOOKUP(B196,#REF!,8,FALSE),"") ->  | L196: CARHUAPAMPA | X196: TUMBES | Y196: CONTRALMIRANTE VILLAR
A197: 192 | B197: 21405 | C197: ANCASH | D197: OCROS | E197: COCHAS | F197: 409 | G197: 1290 | H197: -10.5367 | I197: -77.4228 | J197: =IFERROR(VLOOKUP(B197,#REF!,8,FALSE),"") ->  | L197: COCHAS | X197: TUMBES | Y197: TUMBES
A198: 193 | B198: 21406 | C198: ANCASH | D198: OCROS | E198: CONGAS | F198: 130 | G198: 3112 | H198: -10.3375 | I198: -77.4428 | J198: =IFERROR(VLOOKUP(B198,#REF!,8,FALSE),"") ->  | L198: CONGAS | X198: TUMBES | Y198: ZARUMILLA
A199: 194 | B199: 21407 | C199: ANCASH | D199: OCROS | E199: LLIPA | F199: 34 | G199: 2767 | H199: -10.3925 | I199: -77.1908 | J199: =IFERROR(VLOOKUP(B199,#REF!,8,FALSE),"") ->  | L199: LLIPA | X199: UCAYALI | Y199: ATALAYA
A200: =+A199+1 -> 195 | B200: 21401 | C200: ANCASH | D200: OCROS | E200: OCROS | F200: 231 | G200: 3238 | H200: -10.4033 | I200: -77.3967 | J200: =IFERROR(VLOOKUP(B200,#REF!,8,FALSE),"") ->  | L200: OCROS | X200: UCAYALI | Y200: CORONEL PORTILLO
A201: 196 | B201: 21408 | C201: ANCASH | D201: OCROS | E201: SAN CRISTOBAL DE RAJAN | F201: 68 | G201: 3634 | H201: -10.3869 | I201: -77.2194 | J201: =IFERROR(VLOOKUP(B201,#REF!,8,FALSE),"") ->  | L201: SAN CRISTOBAL DE RAJAN | X201: UCAYALI | Y201: PADRE ABAD
A202: 197 | B202: 21409 | C202: ANCASH | D202: OCROS | E202: SAN PEDRO | F202: 531 | G202: 2243 | H202: -10.3719 | I202: -77.4872 | J202: =IFERROR(VLOOKUP(B202,#REF!,8,FALSE),"") ->  | L202: SAN PEDRO | X202: UCAYALI | Y202: PURUS
A203: 198 | B203: 21410 | C203: ANCASH | D203: OCROS | E203: SANTIAGO DE CHILCAS | F203: 86 | G203: 3692 | H203: -10.4386 | I203: -77.3658 | J203: =IFERROR(VLOOKUP(B203,#REF!,8,FALSE),"") ->  | L203: SANTIAGO DE CHILCAS
A204: 199 | B204: 21502 | C204: ANCASH | D204: PALLASCA | E204: BOLOGNESI | F204: 87 | G204: 2931 | H204: -8.3506 | I204: -78.0506 | J204: =IFERROR(VLOOKUP(B204,#REF!,8,FALSE),"") ->  | L204: BOLOGNESI
A205: 200 | B205: 21501 | C205: ANCASH | D205: PALLASCA | E205: CABANA | F205: 150 | G205: 3156 | H205: -8.3931 | I205: -78.0089 | J205: =IFERROR(VLOOKUP(B205,#REF!,8,FALSE),"") ->  | L205: CABANA
... 1693 more rows

Sheet C (hidden)
A1: N° Certificado | B1: N° | C1: Año | D1: Promotor | E1: RUC | F1: Nombre del proyecto | G1: DIRECCIÓN DEL PROYECTO | H1: Distrito | I1: Provincia | J1: Departamento | K1: N° Etapa | L1: Cantidad de Viviendas Totales | M1: Cantidad de Viviendas con Bono | N1: Area Promedio M2 | O1: Precio de la Vivienda (S/.) | P1: Precio de la Vivienda (S/.) Mín. | Q1: Precio de la Vivienda (S/.) Máx. | R1: Precio de la Vivienda Promedio (S/.) | S1: Grado de Bono anterior al 2020 | T1: Grado de Bono al que postula | U1: motivo de reitro
A2: AE.RE-092-2020 | B2: 1 | C2: 2017 | D2: Madrid Ingenieros | E2: 20508967226 | F2: Sol de Santa Clara | G2: Ate, Lima | H2: Ate Vitarte | I2: Lima | J2: Lima | K2: 1 | L2: 279 | M2: 279 | N2: 73.23 | O2: 181693 | P2: 181693 | Q2: 181693 | R2: 181693 | S2: 2 | T2: 3+
A3: 301/15-0502.02 | B3: 2 | C3: 2017 | D3: CORPORACION INMOBILIARIA SUDAMERICANA SAC | E3: 20506908061 | F3: Condominio Paseo Colonial | G3: Cercado, Lima | H3: Cercado de Lima | I3: Lima | J3: Lima | K3: 1 | L3: 262 | M3: 262 | N3: 62.02 | O3: 235339 | P3: 235339 | Q3: 235339 | R3: 235339 | S3: 1
A4: AE.RE-053-2020 | B4: 3 | C4: 2017 | D4: REDBAY DEL PERU SAC | E4: 20500523540 | F4: Alameda las Gaviotas | G4: Chorrillos, Lima | H4: Chorrillos | I4: Lima | J4: Lima | K4: Etapa 3 - Torre A y B | L4: 358 | M4: 144 | N4: 66.16 | O4: 265956 | P4: 265956 | Q4: 265956 | R4: 265956 | S4: 1 | T4: 3+
A5: AE-RE-007-2020 | B5: 4 | C5: 2017 | D5: VIVA GYM S.A. | E5: 20493040643 | F5: Los Parques de Comas, Los Girasoles | G5: Comas, Lima | H5: Comas | I5: Lima | J5: Lima | K5: 4 | L5: 384 | M5: 256 | N5: 50 | O5: 101,240 a 81,100 | P5: 101240 | Q5: 81100 | R5: 91170 | S5: 2 | T5: 3+
A6: AE.RE.001.2020 | B6: 5 | C6: 2017 | D6: VIVA GYM S.A. | E6: 20493040643 | F6: Los Parques de Comas, Los Nogales | G6: Comas, Lima | H6: Comas | I6: Lima | J6: Lima | K6: 1 | L6: 576 | M6: 192 | N6: 72 | O6: 281,200 a 161,600 | P6: 281200 | Q6: 161600 | R6: 221400 | S6: 2 | T6: 3+
A7: AE-RE-008-2020 | B7: 6 | C7: 2017 | D7: VIVA GYM S.A. | E7: 20493040643 | F7: Los Parques de Comas, Los Molles | G7: Comas, Lima | H7: Comas | I7: Lima | J7: Lima | K7: 1 | L7: 720 | M7: 360 | N7: 60 | O7: 162,300 a 114,400 | P7: 162200 | Q7: 114400 | R7: 138300 | S7: 2 | T7: 3+
A8: AE-RE-009-2020 | B8: 7 | C8: 2017 | D8: VIVA GYM S.A. | E8: 20493040643 | F8: Los Parques de Comas, Los Girasoles | G8: Comas, Lima | H8: Comas | I8: Lima | J8: Lima | K8: 6 | L8: 512 | M8: 512 | N8: 50 | O8: 101,240 a 80,990 | P8: 101240 | Q8: 80990 | R8: 91115 | S8: 2 | T8: 3+
A9: AE-RE-013-2020 | B9: 8 | C9: 2017 | D9: VIVA GYM S.A. | E9: 20493040643 | F9: Los Parques del Callao | G9: Callao, Lima | H9: Callao | I9: Callao | J9: Lima | K9: 2,3 y 4 | L9: 984 | M9: 360 | N9: 65 | O9: 219,565 a 153,900 | P9: 219565 | Q9: 153900 | R9: 186732.5 | S9: 2 | T9: 3+
A10: AE-RE-002-2020 | B10: 9 | C10: 2017 | D10: Besco S.A.C. | E10: 20416162299 | F10: Altaluz Condominio | G10: Callao, Lima | H10: Callao | I10: Callao | J10: Lima | K10: Etapa 3 - Torre 3 | L10: 338 | M10: 308 | N10: 62.3 | O10: 287,629 a 157,000 | P10: 287629 | Q10: 157000 | R10: 222314.5 | S10: 2 | T10: 3+
A11: AE.RE-016-2020 | B11: 10 | C11: 2017 | D11: Besco S.A.C. | E11: 20416162299 | F11: Nuevo Nogales | G11: El Agustino, Lima | H11: El Agustino | I11: Lima | J11: Lima | K11: Torres 10,11,12 | L11: 2120 | M11: 480 | N11: 63.7 | O11: 155,250 a 305,000 | P11: 155250 | Q11: 305000 | R11: 230125 | S11: 2 | T11: 3+
A12: 301/17-0314.07 | B12: 11 | C12: 2017 | D12: Inmobiliaria Ruttini | E12: 20518010329 | F12: Terrazas del Sol Condominio | G12: SJL, Lima | H12: San Juan de Lurigancho | I12: Lima | J12: Lima | K12: 1, 2,3 y 4 | L12: 858 | M12: 858 | N12: 59.06 | O12: 123,009 a 308,646 | P12: 123009 | Q12: 308646 | R12: 215827.5 | S12: 1
A13: 301/17-2529 | B13: 12 | C13: 2017 | D13: BELGICA EDIFICACIONES S.A. | E13: 20329728022 | F13: Precursores 4 | G13: San Miguel, Lima | H13: San Miguel | I13: Lima | J13: Lima | K13: 1 | L13: 57 | M13: 6 | N13: 89.47 | O13: 425964 | P13: 425964 | Q13: 425964 | R13: 425964 | S13: 1
A14: AE.RE-077-2020 | B14: 13 | C14: 2018 | D14: LIDER INGENIERIA Y CONSTRUCCIÓN SA | E14: 20519431395 | F14: Conjunto Residencial Kampu | G14: Ate, Lima | H14: Ate Vitarte | I14: Lima | J14: Lima | K14: 2 (Edif. 9,10,11); 3(Edif. 5,6); 4(Edif. 12,13); 5(Edif. 14,15); 6( Edif. ,16,17) | L14: 220 | M14: 220 | N14: 65 | O14: 149000 | P14: 149000 | Q14: 149000 | R14: 149000 | S14: 1 | T14: 3+
A15: 301/17-2180 | B15: 14 | C15: 2018 | D15: WR S.A. | E15: 20100048702 | F15: Buganvillas | G15: Comas, Lima | H15: Comas | I15: Lima | J15: Lima | K15: Torre C y Torre D | L15: 384 | M15: 140 | N15: 84 | O15: 225000 | P15: 225000 | Q15: 225000 | R15: 225000 | S15: 1
A16: 301/17-2528 | B16: 15 | C16: 2018 | D16: D&D CONSTRUCTORES S.A.C. | E16: 20494649161 | F16: Urbanizacion Los Huarangos | G16: Ica, Ica | H16: Ica | I16: Ica | J16: Ica | K16: 3 | L16: 99 | M16: 99 | N16: 51.73 | O16: 170000 | P16: 170000 | Q16: 170000 | R16: 170000 | S16: 1
A17: N° 001.2018 | B17: 16 | C17: 2018 | D17: Inversiones Qualiving SAC /Zen Grupo Inmobiliairo | E17: 20601622581 | F17: Edificio Multifamiliar Arnaldo Marquez | G17: Jesus Maria, Lima | H17: Jesús María | I17: Lima | J17: Lima | K17: Torre unica | L17: 132 | M17: 112 | N17: 60 | O17: 307420 | P17: 307420 | Q17: 307420 | R17: 307420 | S17: 1
A18: N° 003.2018 | B18: 17 | C18: 2018 | D18: AN Inmobiliaria | E18: 20563652145 | F18: Ciudad Horcones | G18: Jayanca, Chiclayo, Lambayeque | H18: Jayanca | I18: Lambayeque | J18: Lambayeque | K18: 8 | L18: 1025 | M18: 1025 | N18: 30.76 | O18: 58000 | P18: 58000 | Q18: 58000 | R18: 58000 | S18: 2
A19: N° 002.2018 | B19: 18 | C19: 2018 | D19: Desarrollo Sucre 132 SAC /COSAPI | E19: 20601803993 | F19: Edificio PRANA | G19: Pueblo Libre, Lima | H19: Pueblo Libre | I19: Lima | J19: Lima | K19: 1 | L19: 79 | M19: 73 | N19: 75 | O19: 345675 | P19: 345675 | Q19: 345675 | R19: 345675 | S19: 1
A20: AE.RE.023-2020 | B20: 19 | C20: 2018 | D20: Inversiones Inmobiliarias del Indico S.A. (IMAGINA) | E20: 20514048071 | F20: Alto Benavides | G20: Av. Colonial 1111 - Cercado de Lima, Lima | H20: Cercado de Lima | I20: Lima | J20: Lima | K20: Todo el Proyecto | L20: 647 | M20: 647 | N20: 63 | O20: 270000 | P20: 270000 | Q20: 270000 | R20: 270000 | S20: 1 | T20: 3+
A21: N° 005.2018 | B21: 20 | C21: 2018 | D21: Inversiones Inmobiliarias del Mantaro SA. (IMAGINA) | E21: 20517503224 | F21: Alto Venezuela | G21: Av. Venezuela 5415 - San Miguel, Lima | H21: San Miguel | I21: Lima | J21: Lima | K21: 3 | L21: 687 | M21: 447 | N21: 66.37 | O21: 298251 | P21: 298251 | Q21: 298251 | R21: 298251 | S21: 1 | T21: 3+
A22: AE.RE.028-2020 | B22: 21 | C22: 2018 | D22: MEJ INMOBILIARIA SAC | E22: 20602151655 | F22: Grand Central | G22: jr. Zorritos 475 Breña, Lima | H22: Breña | I22: Lima | J22: Lima | K22: 1 | L22: 148 | M22: 148 | N22: 62.81 | O22: 255098 | P22: 255098 | Q22: 255098 | R22: 255098 | S22: 1 | T22: 3+
A23: N° 007.2018 | B23: 22 | C23: 2018 | D23: CONSTRUCTORA INARCO PERU SAC | E23: 20519219922 | F23: Condominio Paseo San Martin | G23: San Martin de Porres, Lima | H23: San Martin de Porres | I23: Lima | J23: Lima | K23: Torre 3 | L23: 456 | M23: 116 | N23: 68 | O23: 220606 | P23: 220606 | Q23: 220606 | R23: 220606 | S23: 1
A24: AE.RE-159-2020 | B24: 23 | C24: 2018 | D24: MY HOME Organización Inmobiliaria | E24: 20509748633 | F24: Edificio Millenium | G24: Av. Canada 1180 La Victoria, Lima | H24: La Victoria | I24: Lima | J24: Lima | K24: 1 | L24: 84 | M24: 84 | N24: 65 | O24: 330000 | P24: 330000 | Q24: 330000 | R24: 330000 | S24: 1 | T24: 2+
A25: N° 008.2018 | B25: 24 | C25: 2018 | D25: COSAPI INMOBILIARIA & GRUPO LAR | E25: 20555934263 | F25: Duplo | G25: Av. Brasil N° , Breña, Lima | H25: Breña | I25: Lima | J25: Lima | K25: Torre A | L25: 177 | M25: 147 | N25: 65.7 | O25: 355000 | P25: 355000 | Q25: 355000 | R25: 355000 | S25: 1
A26: N° 010.2018 | B26: 25 | C26: 2018 | D26: INVERSIONES GRANADERO S.A.C. | E26: 20506916080 | F26: Altus One | G26: San Miguel, Lima | H26: San Miguel | I26: Lima | J26: Lima | K26: Torre A | L26: 112 | M26: 112 | N26: 68.92 | O26: 362202 | P26: 362202 | Q26: 362202 | R26: 362202 | S26: 1
A27: N° 012.2018 | B27: 26 | C27: 2018 | D27: TM GESTION INMOBILIARIA SAC | E27: 20549790373 | F27: Condominio Jardines de Santa Beatriz | G27: Cercado de Lima, Lima | H27: Cercado de Lima | I27: Lima | J27: Lima | K27: 1 (Torre C) | L27: 77 | M27: 77 | N27: 70 | O27: 346000 | P27: 346000 | Q27: 346000 | R27: 346000 | S27: 1
A28: AE.RE-089-2020 | B28: 27 | C28: 2018 | D28: DESARROLLO INMOBILIARIO FT S.A.C. | E28: 20601881749 | F28: Hara | G28: La Victoria, Lima | H28: La Victoria | I28: Lima | J28: Lima | K28: Fase 1 y Fase 2 | L28: 170 | M28: 160 | N28: 62 | O28: 320000 | P28: 320000 | Q28: 320000 | R28: 320000 | S28: 1 | T28: 3+
A29: N° 012B.2018 | B29: 28 | C29: 2018 | D29: WESCON | E29: 20509940666 | F29: Edificio Residencial Conecta | G29: Cercado de Lima, Lima | H29: Cercado de Lima | I29: Lima | J29: Lima | K29: 1 | L29: 75 | M29: 75 | N29: 60.47 | O29: 317021 | P29: 317021 | Q29: 317021 | R29: 317021 | S29: 1
A30: AE.RE.019-2021 | B30: 29 | C30: 2018 | D30: AMAUTA 2272 SAC (antes WESCON) | E30: 20557848411 | F30: Edificio Multifamiliar FESTIVA - Etapa 2( antes Edificio de Vivienda Multifamiliar Amauta) | G30: Av Arica 2250- 2272 | H30: Cercado de Lima | I30: Lima | J30: Lima | K30: Etapa 2 | L30: 140 | M30: 136 | N30: 67.54 | O30: 269294 | P30: 269294 | Q30: 269294 | R30: 269294 | S30: 1 | T30: 3+
A31: N° 016.2018 | B31: 30 | C31: 2018 | D31: PAZ CENTENARIO S.A. | E31: 20518023579 | F31: Ciudad Verde 3 | G31: Puente Piedra, Lima | H31: Puente Piedra | I31: Lima | J31: Lima | K31: 3 (Torre E y F) | L31: 144 | M31: 45 | N31: 59.45 | O31: 171657 | P31: 171657 | Q31: 171657 | R31: 171657 | S31: 1
A32: N° 015.2018 | B32: 31 | C32: 2018 | D32: PAZ CENTENARIO S.A. | E32: 20518023579 | F32: Ciudad Nueva 3 | G32: Callao, Callao | H32: Callao | I32: Callao | J32: Lima | K32: 3 (Torre E y F) | L32: 444 | M32: 63 | N32: 56.7 | O32: 189311 | P32: 189311 | Q32: 189311 | R32: 189311 | S32: 1
A33: AE.RE-111-2020 | B33: 32 | C33: 2018 | D33: PAZ CENTENARIO S.A. | E33: 20518023579 | F33: Ciudad Nueva 5 | G33: Callao, Callao | H33: Callao | I33: Callao | J33: Lima | K33: 5 (Torre I,J) | L33: 128 | M33: 128 | N33: 62.96 | O33: 192383 | P33: 192383 | Q33: 192383 | R33: 192383 | S33: 1 | T33: 3+
A34: AE.RE-113-2020 | B34: 33 | C34: 2018 | D34: PAZ CENTENARIO S.A. | E34: 20518023579 | F34: Ciudad Nueva 4 | G34: Callao, Callao | H34: Callao | I34: Callao | J34: Lima | K34: 4(Torre D) | L34: 27 | M34: 27 | N34: 56.49 | O34: 192383 | P34: 192383 | Q34: 192383 | R34: 192383 | S34: 1
A35: AE.RE-114-2020 | B35: 34 | C35: 2018 | D35: PAZ CENTENARIO S.A. | E35: 20518023579 | F35: Proyectos Prados del Sol 4 | G35: Ate, Lima | H35: Ate Vitarte | I35: Lima | J35: Lima | K35: 4 (Torre J,K,L) | L35: 120 | M35: 58 | N35: 67.7 | O35: 224689 | P35: 224689 | Q35: 224689 | R35: 224689 | S35: 1 | T35: 3+
A36: N° 018.2018 | B36: 35 | C36: 2018 | D36: PAZ CENTENARIO S.A. | E36: 20518023579 | F36: Ciudad Verde | G36: Puente Piedra, Lima | H36: Puente Piedra | I36: Lima | J36: Lima | K36: 4 (Torre G) | L36: 72 | M36: 72 | N36: 60.9 | O36: 167468 | P36: 167468 | Q36: 167468 | R36: 167468 | S36: 1
A37: AE-RE-027-2020 | B37: 36 | C37: 2018 | D37: DESARROLLO PLAZA GRAU SAC (GRUPO LAR) | E37: 20563177323 | F37: CONJUNTO RESIDENCIAL Y DE COMERCIO MIDLIMA (antes Midtown) | G37: Cercado de Lima, Lima | H37: Cercado de Lima | I37: Lima | J37: Lima | K37: Torres 1,2,3,4,5,6,7,8,9,10,11,12,13 | L37: 414 | M37: 414 | N37: 54.9 | O37: 296690 | P37: 296690 | Q37: 296690 | R37: 296690 | S37: 1 | T37: 3+
A38: AE-RE-052-2020 | B38: 37 | C38: 2018 | D38: DESARROLLADORA VISTA NEVADO SAC (Cissac) | E38: 20602442439 | F38: CasaParq | G38: Pago de Challapampa-Fundo "La Manrique", Cerro Colorado, Arequipa | H38: Cerro Colorado | I38: Arequipa | J38: Arequipa | K38: Torres B | L38: 63 | M38: 63 | N38: 85.65 | O38: 291674 | P38: 291674 | Q38: 291674 | R38: 291674 | S38: 1 | T38: 3+
A39: N° 020.2018 | B39: 38 | C39: 2018 | D39: LIDER INVERSIONES AREQUIPA SA (Lider) | E39: 20539613716 | F39: Almira Condominio | G39: Calle Argentina N° 398, Jacobo D. Hunter, Arequipa | H39: Jacobo D. Hunter | I39: Arequipa | J39: Arequipa | K39: 1 Etapa, 1 Edificio | L39: 63 | M39: 63 | N39: 79.35 | O39: 227115 | P39: 227115 | Q39: 227115 | R39: 227115 | S39: 1
A40: AE-RE-011-2020 | B40: 39 | C40: 2018 | D40: VIVA GYM S.A. | E40: 20493040643 | F40: Los Parques de Comas, Villa Jacaranda | G40: Esquina Av. A con Calle 2 s/n Mz. D Sub Lt. 1, Comas, Lima | H40: Comas | I40: Lima | J40: Lima | K40: 6 Edificios, 1,2,3,4,5,6 | L40: 720 | M40: 720 | N40: 60 | O40: 130000 | P40: 130000 | Q40: 130000 | R40: 130000 | S40: 2 | T40: 3+
A41: N° 025.2018 | B41: 40 | C41: 2018 | D41: A-ZERO INMOBILIARIA S.A.C. | E41: 20451658337 | F41: Buenavista | G41: Surco, Lima | H41: Santiago de Surco | I41: Lima | J41: Lima | K41: Torre unica | L41: 3 | M41: 3 | N41: 75 | O41: 384000 | P41: 384000 | Q41: 384000 | R41: 384000 | S41: 1
A42: N° 026.2018 | B42: 41 | C42: 2018 | D42: A-ZERO INMOBILIARIA S.A.C. | E42: 20451658337 | F42: Multifamiliar Nature | G42: Lurigancho, Chosica | H42: Lurigancho-Chosica | I42: Lima | J42: Lima | K42: Torre unica | L42: 8 | M42: 8 | N42: 70 | O42: 200000 | P42: 200000 | Q42: 200000 | R42: 200000 | S42: 1
A43: AE.RE.026-2020 | B43: 42 | C43: 2018 | D43: DESARROLLO TANGUIS S.A.C. (antes GRUPO LAR DESARROLLOS INMOBILIARIOS S.A.C.) | E43: 20551609538 | F43: Eres | G43: Av. Republica de Panama 4077 , Surquillo, Lima | H43: Surquillo | I43: Lima | J43: Lima | K43: Fase 1 Torre A, Fase 2 Torre B, Fase 3 Torre C | L43: 599 | M43: 365 | N43: 61.06 | O43: 388162 | P43: 388162 | Q43: 388162 | R43: 388162 | S43: 1 | T43: 3+
A44: AE-RE-021-2020 | B44: 43 | C44: 2018 | D44: DESARROLLO PASEO DE LA REPUBLICA S.A.C. (Anteriormente GRUPO LAR DESARROLLOS INMOBILIARIOS SAC) | E44: 20601832098 | F44: Elant | G44: Av. Canada 185 , La Victoria, Lima | H44: La Victoria | I44: Lima | J44: Lima | K44: Fase 1 Torre A, Fase 2 Torre B, Fase 3 Torre C | L44: 448 | M44: 447 | N44: 58.85 | O44: 320992 | P44: 320992 | Q44: 320992 | R44: 320992 | S44: 1 | T44: 3+
A45: N° 029.2018 | B45: 44 | C45: 2018 | D45: INMOBILIARIA VALLE LUZ S.A.C. (CANTABRIA) | E45: 20492434052 | F45: Edificio Motion San Miguel | G45: Calle Cesar Lopez Rojas N°183-187-189-191, Urb. Maranga, San Miguel, Lima | H45: San Miguel | I45: Lima | J45: Lima | K45: Torre Unica | L45: 138 | M45: 54 | N45: 71.18 | O45: 351298 | P45: 351298 | Q45: 351298 | R45: 351298 | S45: 1
A46: N° 030.2018 | B46: 45 | C46: 2018 | D46: INMOBILIARIA NUESTRA SEÑORA DE COPACABANA SAC (Magbis) | E46: 20549933409 | F46: Residencial Nuevo Lurin | G46: Lurin , Lima | H46: Lurin | I46: Lima | J46: Lima | K46: Torre unica | L46: 68 | M46: 68 | N46: 55 | O46: 130000 | P46: 130000 | Q46: 130000 | R46: 130000 | S46: 1
A47: AE.RE-115-2020 | B47: 46 | C47: 2018 | D47: PAZ CENTENARIO S.A. | E47: 20518023579 | F47: Proyectos Prados del Sol 5 | G47: Ate Vitarte , Lima | H47: Ate Vitarte | I47: Lima | J47: Lima | K47: 5 (Torre H,I) | L47: 60 | M47: 40 | N47: 64.55 | O47: 216000 | P47: 216000 | Q47: 216000 | R47: 216000 | S47: 1 | T47: 3+
A48: AE.RE-116-2020 | B48: 47 | C48: 2018 | D48: PAZ CENTENARIO S.A. | E48: 20518023579 | F48: Proyectos Prados del Sol 3 | G48: Ate Vitarte , Lima | H48: Ate Vitarte | I48: Lima | J48: Lima | K48: 3 (Torre M,N,O) | L48: 100 | M48: 70 | N48: 66.44 | O48: 226168 | P48: 226168 | Q48: 226168 | R48: 226168 | S48: 1 | T48: 3+
A49: AE-RE-074-2020 | B49: 48 | C49: 2018 | D49: ALBAURBE PROMOTORA INMOBILIARIA SAC (ALBAMAR) | E49: 20601552249 | F49: POINT PUEBLO LIBRE (antes EDIFICIO BOLIVAR POINT) | G49: Av. Simon Bolivar, Pueblo Libre, Lima | H49: Pueblo Libre | I49: Lima | J49: Lima | K49: Torre unica (del piso 5° al piso 20°) | L49: 166 | M49: 55 | N49: 64.56 | O49: 328921 | P49: 328921 | Q49: 328921 | R49: 328921 | S49: 1 | T49: 3+
A50: AE.RE.004.2020 | B50: 49 | C50: 2018 | D50: VIVA GYM S.A. | E50: 20493040643 | F50: Los Parques de Comas, Los Laureles | G50: Comas, Lima | H50: Comas | I50: Lima | J50: Lima | K50: 1 | L50: 640 | M50: 640 | N50: 50 | O50: 95065 | P50: 95065 | Q50: 95065 | R50: 95065 | S50: 2 | T50: 3+
A51: AE-RE-012-2020 | B51: 50 | C51: 2018 | D51: VIVA GYM S.A. | E51: 20493040643 | F51: Los Parques de Comas, Los Laureles | G51: Comas, Lima | H51: Comas | I51: Lima | J51: Lima | K51: 2 | L51: 640 | M51: 640 | N51: 50 | O51: 95065 | P51: 95065 | Q51: 95065 | R51: 95065 | S51: 2 | T51: 3+
A52: AE-RE-014-2020 | B52: 51 | C52: 2018 | D52: VIVA GYM S.A. | E52: 20493040643 | F52: Los Parques de Comas, Los Laureles | G52: Comas, Lima | H52: Comas | I52: Lima | J52: Lima | K52: 3 | L52: 640 | M52: 640 | N52: 50 | O52: 95065 | P52: 95065 | Q52: 95065 | R52: 95065 | S52: 2 | T52: 3+
A53: AE-RE-015-2020 | B53: 52 | C53: 2018 | D53: VIVA GYM S.A. | E53: 20493040643 | F53: Los Parques de Comas, Los Laureles | G53: Comas, Lima | H53: Comas | I53: Lima | J53: Lima | K53: 4 | L53: 640 | M53: 640 | N53: 50 | O53: 95065 | P53: 95065 | Q53: 95065 | R53: 95065 | S53: 2 | T53: 3+
A54: N° 036.2018 | B54: 53 | C54: 2018 | D54: VIVA GYM S.A. | E54: 20493040643 | F54: Los Parques de Comas, Girasoles 5 | G54: Comas, Lima | H54: Comas | I54: Lima | J54: Lima | K54: 5 | L54: 384 | M54: 384 | N54: 50 | O54: 91433 | P54: 91433 | Q54: 91433 | R54: 91433 | S54: 2
A55: AE-RE-010-2020 | B55: 54 | C55: 2018 | D55: VIVA GYM S.A. | E55: 20493040643 | F55: Los Parques de Comas, Las Magnolias | G55: Comas, Lima | H55: Comas | I55: Lima | J55: Lima | K55: Torres 1,2,3,4,5,6 | L55: 768 | M55: 768 | N55: 76.03 | O55: 204877 | P55: 204877 | Q55: 204877 | R55: 204877 | S55: 2 | T55: 3+
A56: AE.RE-034-2020 | B56: 55 | C56: 2018 | D56: VIVA GYM S.A. | E56: 20493040643 | F56: Los Parques de Piura 2 | G56: Urb. Los parques de Piura, II Etapa, Mza. B Lote 1, Piura | H56: Piura | I56: Piura | J56: Piura | K56: ETAPA 2 | L56: 336 | M56: 240 | N56: 50 | O56: 94189 | P56: 94189 | Q56: 94189 | R56: 94189 | S56: 2 | T56: 3+
A57: N° 040.2018 | B57: 56 | C57: 2018 | D57: NEOVIDA CONSTRUCCIONES SAC | E57: 20524115213 | F57: Residencial Santa elena | G57: Calle 28 de Julio 636, Magdalena del Mar, Lima | H57: Magdalena del Mar | I57: Lima | J57: Lima | K57: Torre unica | L57: 31 | M57: 11 | N57: 75 | O57: 370000 | P57: 370000 | Q57: 370000 | R57: 370000 | S57: 1
A58: AE.RE-160-2020 | B58: 57 | C58: 2018 | D58: VIVA GYM S.A. | E58: 20493040643 | F58: Parques del Mar | G58: Av. Costanera 1690, San Miguel, Lima | H58: San Miguel | I58: Lima | J58: Lima | K58: Torre A y Torre B | L58: 248 | M58: 248 | N58: 77 | O58: 269038 | P58: 269038 | Q58: 269038 | R58: 269038 | S58: 2 | T58: 2+
A59: AE.RE-105-2020 / AE.RE 95-2020. | B59: 58 | C59: 2018 | D59: CONSORCIO DH MONT & CG&M S.A.C. | E59: 20502574109 | F59: Ciudad Sol de Collique | G59: Alt. Cdra. 80 Av. Universitaria con Av. Micaela Bastidas-Urb. El Retablo, Comas, Lima | H59: Comas | I59: Lima | J59: Lima | K59: Manzana E (todos los blocks) y Manzana G Lote 4 (Block N° 9 y 18) y Lote 5 (Block N° 7 y 8) | L59: 4260 | M59: 2906 | N59: 58.3 | O59: 269038 | P59: 269038 | Q59: 269038 | R59: 269038 | S59: 1 | T59: 3+
A60: AE.RE.096-2020 | B60: 59 | C60: 2018 | D60: CONSORCIO DH MONT & CG&M S.A.C. | E60: 20502574109 | F60: Oasis de Piura | G60: Calle Chulucanas s/n distrito 26 de Octubre, provincia y departamento de Piura | H60: Piura | I60: Piura | J60: Piura | K60: 1,2,3,4 | L60: 2352 | M60: 2352 | N60: 63.5 | O60: 131050 | P60: 131050 | Q60: 131050 | R60: 131050 | S60: 1 | T60: 3+
A61: AE.RE.022-2020 | B61: 60 | C61: 2018 | D61: INVERSIONES INMOBILIARIAS DE LA ATLANTIDA S.A. | E61: 20515544187 | F61: Conjunto residencial SMART | G61: Av. Tomas Marsano 358-368, Surquillo, Lima | H61: Surquillo | I61: Lima | J61: Lima | K61: Torre A y Torre B | L61: 306 | M61: 178 | N61: 56 | O61: 428200 | P61: 428200 | Q61: 428200 | R61: 428200 | S61: 1 | T61: 3+
A62: N° 045.2018 | B62: 61 | C62: 2018 | D62: PAZ CENTENARIO S.A. | E62: 20518023579 | F62: Vista Azul Etapa 1 | G62: Av. La Paz, San Miguel, Lima | H62: San Miguel | I62: Lima | J62: Lima | K62: Torre A | L62: 123 | M62: 123 | N62: 57.1 | O62: 281046 | P62: 281046 | Q62: 281046 | R62: 281046 | S62: 1
A63: N° 046.2018 | B63: 62 | C63: 2018 | D63: PAZ CENTENARIO S.A. | E63: 20518023579 | F63: Icono | G63: Av. Arica N° 600, esq. con Jr Jorge Chavez, Breña, Lima | H63: Breña | I63: Lima | J63: Lima | K63: Torre unica | L63: 255 | M63: 75 | N63: 66.23 | O63: 250725 | P63: 250725 | Q63: 250725 | R63: 250725 | S63: 1
A64: AE.RE-055-2020 | B64: 63 | C64: 2018 | D64: CONSORCIO CISSAC SCANDER S.A.C. (CISSAC) | E64: 20601676622 | F64: Del Parque | G64: Av. El Sol S/N - Pimentel, Chiclayo, Lambayeque | H64: Pimentel | I64: Chiclayo | J64: Lambayeque | K64: Edificio 1-Modulo 2 | L64: 120 | M64: 120 | N64: 65.16 | O64: 169325 | P64: 169325 | Q64: 169325 | R64: 169325 | S64: 1 | T64: 3+
A65: N° 048.2018 | B65: 64 | C65: 2018 | D65: PAZ CENTENARIO S.A. | E65: 20492390098 | F65: Villa Club Ica Sub Etapa 2 | G65: Av. Finlandia, Sector Las Lunas-Zona 7, La Tinguiña, Ica | H65: La Tinguiña | I65: Ica | J65: Ica | K65: 2 | L65: 59 | M65: 31 | N65: 53.77 | O65: 176764 | P65: 176764 | Q65: 176764 | R65: 176764 | S65: 1
A66: N° 049.2018 | B66: 65 | C66: 2018 | D66: PAZ CENTENARIO S.A. | E66: 20492390098 | F66: Villa Club Ica Sub Etapa 3 | G66: Av. Finlandia, Sector Las Lunas-Zona 7, La Tinguiña, Ica | H66: La Tinguiña | I66: Ica | J66: Ica | K66: 3 | L66: 68 | M66: 68 | N66: 47.96 | O66: 180300 | P66: 180300 | Q66: 180300 | R66: 180300 | S66: 1
A67: N° 050.2018 | B67: 66 | C67: 2018 | D67: CONSTRUCTORA E INMOBILIARIA PALCER SAC | E67: 20505196865 | F67: Condominio Residencial Los Huertos | G67: Calle Ambo N° 301-311 Urb. Los Huertos de Naranjal - San Martin de Porres, Lima | H67: San Martin de Porres | I67: Lima | J67: Lima | K67: II-2 | L67: 70 | M67: 70 | N67: 78 | O67: 165,000 - 230,000 | P67: 165000 | Q67: 230000 | R67: 197500 | S67: 1
A68: AE.RE-059-2020 | B68: 67 | C68: 2018 | D68: BUENAS INVERSIONES SAC (Senda) | E68: 20600930258 | F68: Vivienda - Comercio MET | G68: Av. Paseo de la Republica esq. con Calle Ricardo Flores N° 2199-2197 y Jr. Flores N° 155, La Victoria, Lima | H68: La Victoria | I68: Lima | J68: Lima | K68: Torre unica | L68: 381 | M68: 256 | N68: 54.92 | O68: 289955 | P68: 289955 | Q68: 289955 | R68: 289955 | S68: 1 | T68: 3+
A69: N° 052.2018 | B69: 68 | C69: 2018 | D69: LAPSA ORGANIZACIÓN INMOBILIARIA SA | E69: 20507908943 | F69: Santa Sofia | G69: Pasaje Las Gaviotas Mz A Lt. 20, Urb. La Campiña, Chorrillos, Lima | H69: Chorrillos | I69: Lima | J69: Lima | K69: Torre A,B y C | L69: 116 | M69: 99 | N69: 75.49 | O69: 315135 | P69: 315135 | Q69: 315135 | R69: 315135 | S69: 1
A70: AE.RE.030-2020 | B70: 69 | C70: 2018 | D70: DESARROLLO OLGUIN S.A.C. | E70: 20603106521 | F70: Epiqe | G70: Av. Olguin, Surco, Lima | H70: Santiago de Surco | I70: Lima | J70: Lima | K70: 3 | L70: 204 | M70: 143 | N70: 62.92 | O70: 365000 | P70: 365000 | Q70: 365000 | R70: 365000 | S70: 1 | T70: 3+
A71: AE.RE-090-2020 | B71: 70 | C71: 2018 | D71: SAN JOSE INMOBILIARIA PERU SAC | E71: 20509534838 | F71: Nuevavista Condominio | G71: Av. Venezuela N° 2597 / 2597-A, Bellavista, Callao | H71: Bellavista | I71: Callao | J71: Lima | K71: Edificio 2,3,4, 5, 6, 7, 8, 9, 10 | L71: 1104 | M71: 1032 | N71: 67.9 | O71: 234100 | P71: 234100 | Q71: 234100 | R71: 234100 | S71: 1 | T71: 3+
A72: AE.RE-016-2021 | B72: 71 | C72: 2018 | D72: A&A GRUPO INMOBILIARIO SAC (antes INVERSIONES CH & M SAC) | E72: 20603898126 | F72: Prados del Este | G72: Panamericana Sur Km. 296 – Distrito de Subtanjalla - Ica, Ica | H72: Subtanjalla | I72: Ica | J72: Ica | K72: 1 y 2 | L72: 322 | M72: 199 | N72: 94.73 | O72: 134400 | P72: 134400 | Q72: 134400 | R72: 134400 | S72: 1 | T72: 1+
A73: AE.RE-038-2020 | B73: 72 | C73: 2018 | D73: CONSTRUCTORA CUMBRES VILLANOVA SAC (Cumbres) | E73: 20602704891 | F73: Conjunto Residencial Villanova 2 | G73: Mz. B, Lote 1, Callao, Callao | H73: Callao | I73: Callao | J73: Lima | K73: Etapa 2 | L73: 538 | M73: 96 | N73: 60.28 | O73: 172440 | P73: 172440 | Q73: 172440 | R73: 172440 | S73: 1 | T73: 3+
A74: AE.RE-102-2020 | B74: 73 | C74: 2018 | D74: INSURCO PROYECTOS SAC (INVENT) | E74: 20602544461 | F74: Invent San Felipe | G74: Av. San Felipe 1191 - 1195, Esquina jr. Pachacutec, Jesus Maria, Lima | H74: Jesús María | I74: Lima | J74: Lima | K74: Torre 1 | L74: 72 | M74: 38 | N74: 58.94 | O74: 377602 | P74: 377602 | Q74: 377602 | R74: 377602 | S74: 1 | T74: 2+
A75: AE-RE-018-2020 | B75: 74 | C75: 2018 | D75: Besco S.A.C. | E75: 20416162299 | F75: Las Palmas (Ex Proyecto Chorrillos) | G75: Chorrillos, Lima | H75: Chorrillos | I75: Lima | J75: Lima | K75: Edif. A, B, C, D, E | L75: 313 | M75: 313 | N75: 65 | O75: 236000 | P75: 236000 | Q75: 236000 | R75: 236000 | S75: 1 | T75: 3+
A76: N° 059.2018 | B76: 75 | C76: 2018 | D76: VILLA CLUB S.A.C. | E76: 20492390098 | F76: Proyecto Villa Club Carabayllo -etapa 4 | G76: Av. Las Lomas km. 6.5 urb. Villa club 4 etapa, Carabayllo, Lima | H76: Carabayllo | I76: Lima | J76: Lima | K76: 4 | L76: 600 | M76: 58 | N76: 79.95 | O76: 223547 | P76: 223547 | Q76: 223547 | R76: 223547 | S76: 1
A77: N° 060.2018 | B77: 76 | C77: 2018 | D77: VILLA CLUB S.A.C. | E77: 20492390098 | F77: Proyecto Villa Club Carabayllo -etapa 5 | G77: Av. Las Lomas km. 6.5 urb. Villa club 4 etapa, Carabayllo, Lima | H77: Carabayllo | I77: Lima | J77: Lima | K77: 5 | L77: 655 | M77: 68 | N77: 76.64 | O77: 212211 | P77: 212211 | Q77: 212211 | R77: 212211 | S77: 1
A78: AE.RE.043.2020 | B78: 77 | C78: 2018 | D78: AIP 15 SAC (Arteco) | E78: 20600327411 | F78: Depa+Club Lince | G78: Av. Prolongacion Iquitos, Lince , Lima | H78: Lince | I78: Lima | J78: Lima | K78: Etapa 1 y 2, Torre única | L78: 177 | M78: 172 | N78: 59.48 | O78: 312105 | P78: 312105 | Q78: 312105 | R78: 312105 | S78: 1 | T78: 3+
A79: N° 062.2018 | B79: 78 | C79: 2018 | D79: CORPORACION INMOBILIARIA NERIDA MARIA SAC (Abril Inmobiliaria) | E79: 20518128249 | F79: Edificio Los Robles | G79: Calle Los Negocios N° 185, Surquillo, Lima | H79: Surquillo | I79: Lima | J79: Lima | K79: Torres A, B, C | L79: 301 | M79: 282 | N79: 63.83 | O79: 340258 | P79: 340258 | Q79: 340258 | R79: 340258 | S79: 1
A80: N° 063.2018 | B80: 79 | C80: 2018 | D80: GRECO INMOBILIARIA SAC | E80: 20552897863 | F80: Edificio Ficus | G80: Av. Horacio Urteaga 432, Jesus Maria | H80: Jesús María | I80: Lima | J80: Lima | K80: Torre 1 | L80: 264 | M80: 264 | N80: 64.73 | O80: 318809 | P80: 318809 | Q80: 318809 | R80: 318809 | S80: 1
A81: N° 064.2018 | B81: 80 | C81: 2018 | D81: AMAUTA 2272 SAC (antes WESCON) | E81: 20557848411 | F81: Edificio Amauta - Etapa 1 | G81: Esquinas entre Av. Arica, Jr. Tellería y Pasaje Casapalca. Urb. Chacra Rios - Cercado de Lima | H81: Cercado de Lima | I81: Lima | J81: Lima | K81: Etapa 1 | L81: 36 | M81: 36 | N81: 58.64 | O81: 275279.7 | P81: 275279.7 | Q81: 275279.7 | R81: 275279.7 | S81: 1
A82: AE.RE-071-2020 | B82: 81 | C82: 2018 | D82: INMOBILIARIA CAPIENTE SAC (URBANA) | E82: 20602336850 | F82: Tempo Etapa 1 Etapa 2 | G82: Av. Republica de Panama N° 2075-2099 Esq. Jr. Ernesto Odriozola N° 111-149-159, Urb. Santa Catalina, La Victoria, Lima | H82: La Victoria | I82: Lima | J82: Lima | K82: 2 Sectores/ Etapa 1 | L82: 396 | M82: 320 | N82: 60 | O82: 325000 | P82: 325000 | Q82: 325000 | R82: 325000 | S82: 1 | T82: 3+
A83: AE.RE-049-2020 | B83: 82 | C83: 2018 | D83: QUATRO PROYECTOS SAC | E83: 20555726075 | F83: FAMILY TOWER | G83: Av. Arica N° 1263-1279, Breña, Lima | H83: Breña | I83: Lima | J83: Lima | K83: Torre unica | L83: 173 | M83: 172 | N83: 64.19 | O83: 273700 | P83: 273700 | Q83: 273700 | R83: 273700 | S83: 1 | T83: 2+
A84: N° 067.2018 | B84: 83 | C84: 2018 | D84: MY HOME Organización Inmobiliaria | E84: 20509748633 | F84: Edificio Voce | G84: Calle Horacio Cachay Diaz Mz. N-7 Lt.4 Urb. Santa Catalina, La Victoria, Lima | H84: La Victoria | I84: Lima | J84: Lima | K84: Torre 1 | L84: 39 | M84: 19 | N84: 71.28 | O84: 404087 | P84: 404087 | Q84: 404087 | R84: 404087 | S84: 1
A85: N° 068.2018 | B85: 84 | C85: 2018 | D85: BARQUEROS GRUPO CONSTRUCTOR SAC | E85: 20601148481 | F85: Residencial Medis | G85: Parque San Martin 241 - 247 - Pueblo Libre, Lima | H85: Pueblo Libre | I85: Lima | J85: Lima | K85: 1 | L85: 63 | M85: 36 | N85: 71 | O85: 333125 | P85: 333125 | Q85: 333125 | R85: 333125 | S85: 1
A86: N° 069.2018 | B86: 85 | C86: 2018 | D86: ZyV INVERSIONES SAC | E86: 20537924137 | F86: Ingarden | G86: Prolongacion Magnolias S/N - Urbanizacion Planicie de San Carlos - El Tambo _ Huancayo | H86: El Tambo | I86: Huancayo | J86: Junin | K86: 1 | L86: 32 | M86: 32 | N86: 90 | O86: 231000 | P86: 231000 | Q86: 231000 | R86: 231000 | S86: 1
A87: N° 070.2018 | B87: 86 | C87: 2018 | D87: LA VENTUROSA S.A. | E87: 20383731705 | F87: Condominio Bella Flora | G87: Lote 1, MzD. Esquina Av. Los Faisanes con Jr. Artemisa - Santiago de Surco, Lima | H87: Santiago de Surco | I87: Lima | J87: Lima | K87: 3 | L87: 215 | M87: 133 | N87: 79.51 | O87: 198,369.6 - 400,648.8 | P87: 198369.6 | Q87: 400648.8 | R87: 299509.2 | S87: 1
A88: N° 071.2018 | B88: 87 | C88: 2018 | D88: URBANIZACION LOS JARDINES DEL EDEN S.A.C. | E88: 20602187145 | F88: Los Jardines del Eden Etapa 2 | G88: Sector Cachiche - Predio Casma Lechuza, Parcela 12875, Ica, Ica | H88: Ica | I88: Ica | J88: Ica | K88: 2 | L88: 178 | M88: 178 | N88: 40.02 | O88: 132709 | P88: 132709 | Q88: 132709 | R88: 132709 | S88: 1
A89: N° 072.2018 | B89: 88 | C89: 2018 | D89: P&G GROUP SAC | E89: 20482628487 | F89: Residencial las Orquideas II | G89: Mz. D, Lote 7A de la Urbanizacion Las Orquideas, Trujillo, La Libertad | H89: Trujillo | I89: Trujillo | J89: La Libertad | K89: Torre Interior y exterior | L89: 60 | M89: 60 | O89: 180342 | P89: 180342 | Q89: 180342 | R89: 180342 | S89: 1
A90: N° 073.2018 | B90: 89 | C90: 2018 | D90: CIUDARIS CONSULTORES INMOBILIARIOS SAC | E90: 20432280056 | F90: Residencial Shine | G90: Av. Escardo 618 - 620 - San Miguel, Lima | H90: San Miguel | I90: Lima | J90: Lima | K90: 1 | L90: 139 | M90: 100 | N90: 71 | O90: 284500 | P90: 284500 | Q90: 284500 | R90: 284500 | S90: 1
A91: N° 074.2018 | B91: 90 | C91: 2018 | D91: A-ZERO INMOBILIARIA S.A.C. | E91: 20451658337 | F91: Edificio Multifamiliar Golf de Huampani | G91: Lurigancho, Chosica, Lima | H91: San Juan de Lurigancho | I91: Lima | J91: Lima | K91: Torre unica | L91: 8 | M91: 8 | N91: 75 | O91: 240000 | P91: 240000 | Q91: 240000 | R91: 240000 | S91: 1
A92: N° 075.2018 | B92: 91 | C92: 2018 | D92: CONSTRUCTORA E INMOBILIARIA OHOSO SAC (ARMAS DOOMO) | E92: 20548363331 | F92: Alto Lima | G92: Av. Paseo de la Republica, Av. Grau N° 102,104,106,108,110,112 y pasaje que comunica al Paseo de l Republica, La Victoria, Lima | H92: La Victoria | I92: Lima | J92: Lima | K92: 1 | L92: 444 | M92: 280 | N92: 66.3 | O92: 270849 | P92: 270849 | Q92: 270849 | R92: 270849 | S92: 1
A93: AE.RE.031.2020 | B93: 92 | C93: 2018 | D93: AIP 14 SAC (Arteco) | E93: 20556280925 | F93: Depas+Club La Breña | G93: Jr. Jorge Chavez N° 1644-1652, Breña, Lima | H93: Breña | I93: Lima | J93: Lima | K93: 1 | L93: 119 | M93: 119 | N93: 70 | O93: 281557 | P93: 281557 | Q93: 281557 | R93: 281557 | S93: 1 | T93: 3+
A94: AE.RE.020-2020 | B94: 93 | C94: 2018 | D94: INVERSIONES INMOBILIARIAS DE LAS CONDES S.A. (Imagina) | E94: 20537745631 | F94: Proyecto Concepto "Magic Ocean" | G94: Av. Costanera N° 2810, San Miguel, Lima | H94: San Miguel | I94: Lima | J94: Lima | K94: 1 y 2 | L94: 368 | M94: 136 | N94: 57.85 | O94: 396159.13 | P94: 386234.07 | Q94: 396159.13 | R94: 391196.6 | S94: 1 | T94: 3+
A95: N° 078.2018 | B95: 94 | C95: 2018 | D95: VIVIENDAS DEL PERU SAC (Urbana) | E95: 20512691529 | F95: Bonavi 2 | G95: Av. Manuel Cipriano Dulanto (Ex La Mar) N°1205 - 1209 - 1213 - 1217 - 1225 Urb. Colmenares - Distrito de Pueblo Libre - Provincia y Departamento de Lima. | H95: Pueblo Libre | I95: Lima | J95: Lima | K95: Proyecto Integral | L95: 75 | M95: 56 | N95: 75.4 | O95: 397024 | P95: 397024 | Q95: 397024 | R95: 397024 | S95: 1
A96: N° 079.2018 | B96: 95 | C96: 2018 | D96: PROEDCO SAC | E96: 20602414630 | F96: Edificio Yanacoto | G96: Calle Yanacoto 151, San Miguel, Lima | H96: San Miguel | I96: Lima | J96: Lima | K96: 1 | L96: 16 | M96: 16 | N96: 65 | O96: 205000 | P96: 205000 | Q96: 205000 | R96: 205000 | S96: 1
A97: AE.RE-060-2020 | B97: 96 | C97: 2018 | D97: INMOBILIARIA NARANJUELO S.A.C. | E97: 20537115026 | F97: Condominio Paseo La Arboleda | G97: Jr. Combate de Angamos S/N Urb. Naranjuelo, Surco, Lima | H97: Santiago de Surco | I97: Lima | J97: Lima | K97: Edificios D, E, F, G, H, I, J, K, L, M, N,O | L97: 480 | M97: 480 | N97: 72 | O97: 335000 | P97: 335000 | Q97: 335000 | R97: 335000 | S97: 1 | T97: 3+
A98: AE.RE-107-2020 (anterior 081-2018) | B98: 97 | C98: 2018 | D98: VIVIENDAS DEL PERU SAC (Urbana) | E98: 20512691529 | F98: Allegro | G98: Av. Costanera N° 980, San Miguel, Lima | H98: San Miguel | I98: Lima | J98: Lima | K98: Torre A y B (4 Y 5) | L98: 180 | M98: 132 | N98: 56 | O98: 344000 | P98: 344000 | Q98: 344000 | R98: 344000 | S98: 1 | T98: 2+
A99: N° 082.2018 | B99: 98 | C99: 2018 | D99: PC SANTA CLARA SRL (Caral) | E99: 20544419081 | F99: Conjunto Residencial La Ribera de Santa Clara | G99: Av. Pedro Ruiz Gallo 2991, Ate, Lima | H99: Ate Vitarte | I99: Lima | J99: Lima | K99: Torres 1,2,3,4,5,6,7,8,9,12 | L99: 812 | M99: 684 | N99: 60.36 | O99: 180859 | P99: 180859 | Q99: 180859 | R99: 180859 | S99: 1
A100: N° 083.2018 | B100: 99 | C100: 2018 | D100: INMOBILIARIA SUANCES SAC (Cantabria) | E100: 20601101221 | F100: Edificio Look Lince | G100: Av. Iquitos N°2501 esquina Calle Tulipanes, Lince, Lima | H100: Lince | I100: Lima | J100: Lima | K100: Torre unica | L100: 147 | M100: 89 | N100: 63.57 | O100: 329339 | P100: 329339 | Q100: 329339 | R100: 329339 | S100: 1
A101: N° 084.2018 | B101: 100 | C101: 2018 | D101: INMOBILIARIA Y EDIFICACIONES DOMUS SAC | E101: 20602501028 | F101: Residencial Madalengoitia | G101: Nestor Madalengoitia Toledo 193, Urb Rosario de Villa, Chorrillos, Lima | H101: Chorrillos | I101: Lima | J101: Lima | K101: Torre unica | L101: 27 | M101: 27 | N101: 60 | O101: 275000 | P101: 275000 | Q101: 275000 | R101: 275000 | S101: 1
A102: N° 085.2018 | B102: 101 | C102: 2018 | D102: INVERSIONES ESTRATEGICAS INTEGRALES SAC | E102: 20503680174 | F102: Residencial del Carmen | G102: Mz. E-2, Lt. 1, Urb. Primavera, Trujillo | H102: Trujillo | I102: Trujillo | J102: La Libertad | K102: Torre unica | L102: 43 | M102: 43 | N102: 94 | O102: 103400 | P102: 103400 | Q102: 103400 | R102: 103400 | S102: 1
A103: AE.RE-086-2020 | B103: 102 | C103: 2018 | D103: CONSTRUCTORA GALILEA SAC | E103: 20521119943 | F103: Sol de Pimentel | G103: Sec. Las Pampas Km 8.5 de la carretera Pimentel, Chiclayo | H103: Pimentel | I103: Chiclayo | J103: Lambayeque | K103: De la etapa 20 a la etapa 36, etapa 44 (lote 11), etapa 45 (lote 3) y etapa 46 | L103: 1139 | M103: 429 | N103: 67.5 | O103: 167131 | P103: 167131 | Q103: 167131 | R103: 167131 | S103: 1 | T103: 3+
A104: N° 087.2018 | B104: 103 | C104: 2018 | D104: GERENCIA Y CONSTRUCCION EDIFICA SAC | E104: 20521800748 | F104: Garden 360 | G104: Via secundaria s/n , Piura, Piura | H104: Piura | I104: Piura | J104: Piura | K104: Torres 1,2,3,4,5,6,7,8 | L104: 360 | M104: 145 | N104: 70 | O104: 240156 | P104: 240156 | Q104: 240156 | R104: 240156 | S104: 1
A105: AE.RE-142-2020 | B105: 104 | C105: 2018 | D105: CIUDARIS CONSULTORES INMOBILIARIOS SAC | E105: 20432280056 | F105: Residencial Serk Barranco Club 2 - 2da etapa | G105: Av. Republica de Panamá 308 - Barranco, Lima | H105: Barranco | I105: Lima | J105: Lima | K105: 2 | L105: 329 | M105: 127 | N105: 60 | O105: 333700 | P105: 333700 | Q105: 333700 | R105: 333700 | S105: 1 | T105: 3+
A106: N° 089.2018 | B106: 105 | C106: 2018 | D106: DHMONT SAC CONTRATISTAS GENERALES | E106: 20108664640 | F106: TORRE LOS CIPRESES | G106: Av. Luis braille 1368-1386-1394, Cercado de Lima, Lima | H106: Cercado de Lima | I106: Lima | J106: Lima | K106: Torre unica | L106: 88 | M106: 26 | N106: 71.49 | O106: 278151 | P106: 278151 | Q106: 278151 | R106: 278151 | S106: 1
A107: N° 091.2018 | B107: 106 | C107: 2018 | D107: MG HOGAR SAC | E107: 20601420121 | F107: Edificio Multifamiliar Aranibar | G107: Av. Nicolas de Aranibar N° 651-661-671 (Mz. 10-E Norte Lt. 07) en la Urbanizacion Santa Beatriz, Cercado de Lima, Lima | H107: Cercado de Lima | I107: Lima | J107: Lima | K107: Torre unica | L107: 54 | M107: 54 | N107: 70.4 | O107: 354767 | P107: 354767 | Q107: 354767 | R107: 354767 | S107: 1
A108: AE.RE-084-2020 | B108: 107 | C108: 2018 | D108: CONSTRUCTORA GALILEA SAC | E108: 20521119943 | F108: Vista Alegre | G108: Predio Vista Alegre y Anexos/Sector Vista Alegre, Valle Chancay, Chiclayo, Lambayeque | H108: Chiclayo | I108: Chiclayo | J108: Lambayeque | K108: 9 hasta la 31 | L108: 1029 | M108: 741 | N108: 67.5 | O108: 157585 | P108: 157585 | Q108: 157585 | R108: 157585 | S108: 1 | T108: 3+
A109: AE.RE-036-2020 | B109: 108 | C109: 2018 | D109: COSAPI INMOBILIARIA & GRUPO LAR | E109: 20555934263 | F109: SENTE (antes Centenario) | G109: Jr. Centenario 175, Urbanizacion Garden City, Breña, Lima | H109: Breña | I109: Lima | J109: Lima | K109: 2 | L109: 204 | M109: 192 | N109: 62.42 | O109: 400000 | P109: 400000 | Q109: 400000 | R109: 400000 | S109: 1 | T109: 3+
A110: AE.RE.035.2020 | B110: 109 | C110: 2018 | D110: AIP 10 SAC (Arteco) | E110: 20548906301 | F110: Paseo la Campiña V | G110: Av. Faisanes N° 356 Urb. La Campiña Chorrillos, Lima | H110: Chorrillos | I110: Lima | J110: Lima | K110: Torre C | L110: 185 | M110: 32 | N110: 70 | O110: 255942 | P110: 255942 | Q110: 255942 | R110: 255942 | S110: 1 | T110: 3+
A111: AE.RE-073-2020 | B111: 110 | C111: 2018 | D111: LOS PORTALES CONSTRUYE SAC | E111: 20553346178 | F111: Conjunto Residencial Mirador del Golf I | G111: Av. Alameda Ñaña S/N, Lurigancho-Chosica, Lima | H111: Lurigancho-Chosica | I111: Lima | J111: Lima | K111: Torres 3,4 y 5 | L111: 320 | M111: 127 | N111: 59.75 | O111: 148422 | P111: 148422 | Q111: 148422 | R111: 148422 | S111: 1 | T111: 3+
A112: N° 096-2018 | B112: 111 | C112: 2018 | D112: LOS PORTALES CONSTRUYE SAC | E112: 20553346178 | F112: Edificio Multifamiliar y comercial Gran Colonial | G112: Av. Oscar Benavides 866 esquina con jr. Antonio Elizalde, Cercado de Lima, Lima | H112: Cercado de Lima | I112: Lima | J112: Lima | K112: Torre A y B | L112: 210 | M112: 95 | N112: 59.03 | O112: 239866 | P112: 239866 | Q112: 239866 | R112: 239866 | S112: 1
A113: N° 097-2018 | B113: 112 | C113: 2018 | D113: Besco S.A.C. | E113: 20416162299 | F113: Alameda Santa Ana I - 2° Etapa | G113: Urb. Residencial Piura - Mz. J Sub Lote B, Piura, Piura | H113: Piura | I113: Piura | J113: Piura | K113: Edificio 2 y Edificio 4 | L113: 144 | M113: 144 | N113: 72 | O113: 218900 | P113: 218900 | Q113: 218900 | R113: 218900 | S113: 2
A114: AE.RE.006-2022 | B114: 113 | C114: 2018 | D114: PC COSTANERA SAN MIGUEL SRL (Caral) | E114: 20600610652 | F114: CONJUNTO RESIDENCIAL VERAH | G114: JR PARQUE ALTO, JR PEÑA RIVERA, JR BATALLA DE MIRAFLORES, SUB LOTE D | H114: SANTIAGO DE SURCO | I114: Lima | J114: LIMA | K114: TORRE 4,5,6,7,8,9,10,11 | L114: 288 | M114: 288 | N114: 68.39 | O114: 293868.0058 | P114: 293868.0058 | Q114: 293868.0058 | R114: 293868.0058 | S114: 2+ | T114: 3+
A115: AE.RE-143-2020 | B115: 114 | C115: 2018 | D115: PORTAL SANTA CLARA (Caral) | E115: 20544155831 | F115: Uptown 2 | G115: Ca. Puquina N° 100 Sección 1 - 4B Urb. Maranga, San Miguel, Lima | H115: San Miguel | I115: Lima | J115: Lima | K115: 2 | L115: 287 | M115: 127 | N115: 81.5 | O115: 333731 | P115: 333731 | Q115: 333731 | R115: 333731 | S115: 1 | T115: 2+
A116: N° 100-2019 | B116: 115 | C116: 2018 | D116: INMOBILIARIA CONSTRUCTORA WASI SAC | E116: 20532672032 | F116: Condominio Club San Pedro de Latarce | G116: Av. Jose Abelardo Quiñones S/N, Gregorio Albarracin, Tacna | H116: Tacna | I116: Tacna | J116: Tacna | K116: Torre B1a, B2a, B1b, B2b | L116: 200 | M116: 200 | N116: 118 | O116: 300000 | P116: 300000 | Q116: 300000 | R116: 300000 | S116: 1
A117: AE.RE-054-2020 | B117: 116 | C117: 2018 | D117: CORPORACION INMOBILIARIA SUDAMERICANA SELVA SAC (CISSAC) | E117: 20602187889 | F117: Condominio Del Parque Tarapoto | G117: Banda de Shilcayo, San Martin, San Martin | H117: Banda de Shilcayo | I117: San Martin | J117: San Martin | K117: 1 | L117: 140 | M117: 100 | N117: 61 | O117: 122734 | P117: 122734 | Q117: 122734 | R117: 122734 | S117: 1 | T117: 3+
A118: AE.RE.024-2020 | B118: 117 | C118: 2018 | D118: INVERSIONES INMOBILIARIAS DEL MOCHE S.A. (Imagina) | E118: 20519159920 | F118: Conjunto Residencial Urban (Etapa II) | G118: Av. Arequipa 1501 esquina con jr. Manuel Segura, Lince, Lima | H118: Lince | I118: Lima | J118: Lima | K118: 2 | L118: 111 | M118: 18 | N118: 66.08 | O118: 333710 | P118: 333710 | Q118: 333710 | R118: 333710 | S118: 1 | T118: 3+
A119: AE.RE-041-2020 | B119: 118 | C119: 2018 | D119: CONSTRUCTORA CUMBRES VILLANOVA SAC (Cumbres) | E119: 20602704891 | F119: Conjunto Residencial " Condominio Villanova 3" | G119: Av. Argentina N°2424 y Av. Villegas N°582-584. Mz: A Lote: 3. Distrito de: Callao. Provincia de: Callao. Departamento de: Lima | H119: Callao | I119: Callao | J119: Lima | K119: 3 | L119: 484 | M119: 484 | N119: 63.94 | O119: 185859.71 | P119: 185859.71 | Q119: 185859.71 | R119: 185859.71 | S119: 1 | T119: 3+
A120: AE.RE-123-2020 | B120: 119 | C120: 2018 | D120: DHMONT SAC CONTRATISTAS GENERALES | E120: 20108664640 | F120: Jockey Residencial | G120: Habilitacion Urbana Los Cipreses de La Victoria | H120: La Victoria | I120: Chiclayo | J120: Lambayeque | K120: Lote 3 Block A-B-C-D-D'; Lote 10 Block AB-AC-AD-AE-AF | L120: 240 | M120: 240 | N120: 78.86 | O120: 173343 | P120: 173343 | Q120: 173343 | R120: 173343 | S120: 1 | T120: 3+
A121: AE.RE-163-2020 | B121: 120 | C121: 2018 | D121: TER EDIFICACIONES SAC | E121: 20602491511 | F121: Marsano 2175 | G121: Av Tomas Marsano 2169 - 2175 - 2183 - 2189, Surquillo, Lima | H121: Surquillo | I121: Lima | J121: Lima | K121: Torre unica | L121: 114 | M121: 68 | N121: 53.26 | O121: 380000 | P121: 380000 | Q121: 380000 | R121: 380000 | S121: 1 | T121: 3+
A122: AE.RE-056-2020 | B122: 121 | C122: 2018 | D122: INVERSIONES INMOBILIARIAS CUBA SAC (Senda) | E122: 20603012110 | F122: Side | G122: Av. Cuba 950, Jesus Maria, Lima | H122: Jesús María | I122: Lima | J122: Lima | K122: 1 | L122: 176 | M122: 176 | N122: 70.9 | O122: 382201 | P122: 382201 | Q122: 382201 | R122: 382201 | S122: 1 | T122: 3+
A123: AE.RE-101-2020 | B123: 122 | C123: 2018 | D123: INJAVIER PRADO PROYECTOS SAC (INVENT) | E123: 20602909965 | F123: Invent Javier Prado | G123: Av. Javier prado Oeste 808, Esquina Jr. Comandante Jimenez, Magdalena del Mar, Lima | H123: Magdalena del Mar | I123: Lima | J123: Lima | K123: Torre 1 | L123: 53 | M123: 17 | N123: 63.5 | O123: 224562 | P123: 224562 | Q123: 224562 | R123: 224562 | S123: 1 | T123: 2+
A124: N° 108-2018 | B124: 123 | C124: 2018 | D124: D&D CONSTRUCTORES S.A.C. | E124: 20494649161 | F124: Urbanizacion Los Huarangos 4 Etapa | G124: Predio Santa Sofia, Sector Casa Blanca-Cachiche, Ica, Ica | H124: Ica | I124: Ica | J124: Ica | K124: 4 ( Mzs L,M,N,O,P,Q,R,S,T) | L124: 159 | M124: 159 | N124: 49.85 | O124: 178000 | P124: 178000 | Q124: 178000 | R124: 178000 | S124: 1
A125: N° 109-2018 | B125: 124 | C125: 2018 | D125: INVERSIONES NUEVO PACIFICO SAC | E125: 20481775575 | F125: Multifamiliar Liverpool | G125: Calle Bruselas N° 139 Urb. Santa Isabel, Trujillo, La Libertad | H125: Trujillo | I125: Trujillo | J125: La Libertad | K125: Dos unicas torres ( del piso 1° al 8°) | L125: 64 | M125: 64 | N125: 79 | O125: 175000 | P125: 175000 | Q125: 175000 | R125: 175000 | S125: 1 | T125: 1+
A126: N° 110-2018 | B126: 125 | C126: 2018 | D126: CONSORCIO DH MONT & CG&M S.A.C. | E126: 20502574109 | F126: Ciudad Sol de Collique | G126: Alt. Cdra. 80 Av. Universitaria con Av. Micaela Bastidas-Urb. El Retablo, Comas, Lima | H126: Comas | I126: Lima | J126: Lima | K126: Manzana G, Lote 5 (Block N° 6), Lote 6 (Block N° 4 y 5), Lote 7 (Block N° 3,19 y 20) | L126: 690 | M126: 127 | O126: 151075 | P126: 151075 | Q126: 151075 | R126: 151075 | S126: 1
A127: AE.RE.125-2020 | B127: 126 | C127: 2018 | D127: CONSORCIO DH MONT & CG&M S.A.C. | E127: 20502574109 | F127: SAN ANDRES HOUSE | G127: Av. Genaro Medrano Cuadra 7, Distrito de San Andres, Provincia de Pisco, departamento de Ica. | H127: San Andres | I127: Pisco | J127: Ica | K127: 3 Etapas (IA, IB,IC, ID) | L127: 114 | M127: 92 | O127: 88000 | P127: 88000 | Q127: 88000 | R127: 88000 | S127: 1 | T127: 3+
A128: AE.RE.033.2020 | B128: 127 | C128: 2018 | D128: AIP 5 SAC (Arteco) | E128: 20537263998 | F128: Depas y Club Huachipa | G128: Calle Guadalupe N° 555 Urbanizacion Lotizacion Industrial La Estrella Limitada, Ate, Lima | H128: Ate Vitarte | I128: Lima | J128: Lima | K128: Etapa 1, torres (A,B,G,H,J,K,L), Etapa 2, torres (C,D,E,F,I,M,N,O) | L128: 396 | M128: 61 | N128: 70 | O128: 235000 | P128: 235000 | Q128: 235000 | R128: 235000 | S128: 1 | T128: 3+
A129: N° 113-2018 | B129: 128 | C129: 2018 | D129: CONSTRUCTORA GALILEA SAC | E129: 20521119943 | F129: Torres de Quevedo | G129: Cruce de Av. Santa Rosa con Av. El Contador, Trujillo, La Libertad | H129: Trujillo | I129: Trujillo | J129: La Libertad | K129: Torre 13 y 14 | L129: 280 | M129: 40 | O129: 133708 | P129: 133708 | Q129: 133708 | R129: 133708 | S129: 1
A130: AE.RE-087-2020 | B130: 129 | C130: 2018 | D130: CONSTRUCTORA GALILEA SAC | E130: 20521119943 | F130: Alto Chimbote | G130: Prolongacion Av. Buenos Aires Km. 4.5 La Campiña Chimbote, Ancash | H130: Chimbote | I130: Chimbote | J130: Ancash | K130: Etapa 6 (2 lotes), 3, 4, 5, 7 | L130: 560 | M130: 121 | N130: 67.5 | O130: 148050 | P130: 148050 | Q130: 148050 | R130: 148050 | S130: 1 | T130: 3+
A131: N° 115-2018 | B131: 130 | C131: 2018 | D131: DESARROLLOS INMOBILIARIOS COMAR S.A.C. | E131: 20537802457 | F131: Edificio Multifamiliar Centric | G131: Av. Petit Thouars N° 1936-1940-1942, Lince, Lima | H131: Lince | I131: Lima | J131: Lima | K131: torre unica | L131: 80 | M131: 80 | N131: 55 | O131: 346500 | P131: 346500 | Q131: 346500 | R131: 346500 | S131: 1
A132: AE.RE-058-2020 | B132: 131 | C132: 2018 | D132: PROMSAL S.A.C. | E132: 20515876937 | F132: Hey Catalina | G132: Av. Esteban Campodónico N°383 – LA VICTORIA | H132: La Victoria | I132: Lima | J132: Lima | K132: torre unica | L132: 112 | M132: 92 | N132: 65.75 | O132: 311911.3894 | P132: 311911.3894 | Q132: 311911.3894 | R132: 311911.3894 | S132: 1 | T132: 3+
A133: AE.RE-108-2020 | B133: 132 | C133: 2018 | D133: INVERSIONES ROCAZUL SAC | E133: 20507322311 | F133: Vista Mar | G133: Av. Costanera N° 1380 Urb. Miramar, San Miguel, Lima | H133: San Miguel | I133: Lima | J133: Lima | K133: Torre A | L133: 80 | M133: 80 | N133: 70 | O133: 360100 | P133: 360100 | Q133: 360100 | R133: 360100 | S133: 1 | T133: 3+
A134: N° 118-2018 | B134: 133 | C134: 2018 | D134: CONSTRUCTORA E INMOBILIARIA OPTIMUS | E134: 20547778333 | F134: Edificio Lugo | G134: Jr. Junin 558, Magdalena del Mar | H134: Magdalena del Mar | I134: Lima | J134: Lima | K134: Torre unica | L134: 38 | M134: 36 | N134: 63.42 | O134: 308169 | P134: 308169 | Q134: 308169 | R134: 308169 | S134: 1
A135: AE.RE-122-2020 | B135: 134 | C135: 2018 | D135: PI JORGE CHAVEZ S.A.C. (Flesan) | E135: 20600833317 | F135: BUENAVISTA | G135: Av. Emilio Fernandez 533. Cercado de Lima, Lima | H135: Cercado de Lima | I135: Lima | J135: Lima | K135: 1 | L135: 49 | M135: 5 | N135: 65 | O135: 352100 | P135: 352100 | Q135: 352100 | R135: 352100 | S135: 1 | T135: 2+
A136: AE.RE-121-2020 | B136: 135 | C136: 2018 | D136: PI PRADO 1 S.A.C. (Flesan) | E136: 20603240163 | F136: VITTORIA | G136: Av. Militar 1765. Lince, Lima | H136: Lince | I136: Lima | J136: Lima | K136: 1 | L136: 128 | M136: 54 | N136: 62 | O136: 327486 | P136: 327486 | Q136: 327486 | R136: 327486 | S136: 1 | T136: 2+
A137: N° 121-2018 | B137: 136 | C137: 2018 | D137: PROMORE INMOBILIARIA S.A.C. | E137: 20524800862 | F137: Edificio Victoria | G137: Pasaje Leoncio Prado N° 206, Huacho, Huaura, Lima | H137: Huacho | I137: Huaura | J137: Lima | K137: Torre unica | L137: 20 | M137: 20 | N137: 70 | O137: 213200 | P137: 213200 | Q137: 213200 | R137: 213200 | S137: 1
A138: N° 123-2018 | B138: 137 | C138: 2019 | D138: EDIFICACIONES INMOBILIARIAS SAC | E138: 20511988757 | F138: Edificio Multifamiliar Avida | G138: Av. Costanera N° 2982, San Miguel , Lima | H138: San Miguel | I138: Lima | J138: Lima | K138: Etapa 2 (Torre A y B) | L138: 166 | M138: 127 | N138: 60.38 | O138: 296425 | P138: 296425 | Q138: 296425 | R138: 296425 | S138: 1 | T138: 2+
A139: AE.RE-098-2020 | B139: 138 | C139: 2019 | D139: CONSTRUCTORA CUMBRES CHALLPAMPA S.A.C. | E139: 20602699537 | F139: Conjunto Residencial “Condominio Villa Verde 2” | G139: Manzana F, Lote 3 Challapampa o la Goyeneche del Distrito de Cerro Colorado Provincia y Departamento de Arequipa. | H139: Cerro Colorado | I139: Arequipa | J139: Arequipa | K139: C Y D | L139: 288 | M139: 160 | N139: 109.88 | O139: 332064 | P139: 332064 | Q139: 332064 | R139: 332064 | S139: 1 | T139: 3+
A140: AE.RE-097.2020 | B140: 139 | C140: 2019 | D140: CONSTRUCTORA CUMBRES CHALLPAMPA S.A.C. | E140: 20602699537 | F140: Conjunto Residencial " Condominio Valle Blanco Reserva" | G140: Manzana D, Lote 1 y 2 Challapampa o la Goyeneche del Distrito de Cerro Colorado Provincia y Departamento de Arequipa. | H140: Cerro Colorado | I140: Arequipa | J140: Arequipa | K140: 4 | L140: 640 | M140: 160 | O140: 178366.0438 | P140: 178366.0438 | Q140: 178366.0438 | R140: 178366.0438 | S140: 1 | T140: 3+
A141: N° 122-2018 | B141: 140 | C141: 2019 | D141: GRUPO ARIATZA S.A.C. | E141: 20600134729 | F141: Mirador Palatino Casa Club | G141: Av. Brasil N° 3445, Magdalena, Lima | H141: Magdalena del Mar | I141: Lima | J141: Lima | K141: Torre unica | L141: 97 | M141: 55 | N141: 73.58 | O141: 331943 | P141: 331943 | Q141: 331943 | R141: 331943 | S141: 1
A142: AE.RE.029-2020 | B142: 141 | C142: 2019 | D142: DESARROLLO SALAVERRY 475 SAC (Cosapi) | E142: 20566143381 | F142: Nesta | G142: Av. Salaverry N° 475, Jesus Maria, Lima | H142: Jesús María | I142: Lima | J142: Lima | K142: Fase 3, 4 Y 5 | L142: 290 | M142: 115 | N142: 75 | O142: 375000 | P142: 355000 | Q142: 375000 | R142: 365000 | S142: 1 | T142: 3+
A143: N° 001-2019 | B143: 142 | C143: 2019 | D143: PROYEC CONTRATISTAS GENERALES S.A. | E143: 20333686237 | F143: Varela 2 | G143: Av. General Varela N° 1270 esquina con Jr. Olmedo N° 400, Breña, Lima | H143: Breña | I143: Lima | J143: Lima | K143: torre unica | L143: 58 | M143: 58 | O143: 293000 | P143: 293000 | Q143: 293000 | R143: 293000 | S143: 1
A144: N° 002-2019 | B144: 143 | C144: 2019 | D144: PROYEC CONTRATISTAS GENERALES S.A. | E144: 20333686237 | F144: Varela 879 | G144: Av. General Varela N° 871-879 , Breña, Lima | H144: Breña | I144: Lima | J144: Lima | K144: torre unica | L144: 23 | M144: 23 | O144: 286820 | P144: 286820 | Q144: 286820 | R144: 286820 | S144: 1
A145: N° 003-2019 | B145: 144 | C145: 2019 | D145: EMPRESA PROMOTORA BRAVO DE RUEDA (MAGVIS) | E145: 20602081797 | F145: Los Jardines del Rimac II | G145: Jr. Jorge Bravo de Rueda N° 270, Urb. El Bosque, Rimac, Lima | H145: Rimac | I145: Lima | J145: Lima | K145: Torre unica | L145: 23 | M145: 17 | N145: 68 | O145: 239000 | P145: 239000 | Q145: 239000 | R145: 239000 | S145: 1
A146: N° 004-2019 | B146: 145 | C146: 2019 | D146: NEOVIDA CONSTRUCCIONES SAC | E146: 20524115213 | F146: Edificio Multifamiliar " Residencial El Rio" | G146: Av. Del Río 209 | H146: Pueblo Libre | I146: Lima | J146: Lima | K146: 1 | L146: 30 | M146: 25 | N146: 64.7 | O146: 341500 | P146: 258000 | Q146: 425000 | R146: 341500 | S146: 1
A147: N° 005-2019 | B147: 146 | C147: 2019 | D147: A&C CONSTRUCTORA E INMOBILIARIA S.A.C. | E147: 20486530147 | F147: Edificio Santa Rosa | G147: Pasaje Santa Mónica (ex Pasaje Santa Rosa) N°135-143, San Carlos, Huancayo, Junín | H147: Huancayo | I147: Huancayo | J147: Junin | K147: 1 | L147: 20 | M147: 20 | N147: 110.65 | O147: 296055.5 | P147: 296055.5 | Q147: 296055.5 | R147: 296055.5 | S147: 1
A148: AE.RE.103.2020 | B148: 147 | C148: 2019 | D148: ALEMAN CONSTRUCTORES CO SAC | E148: 20566072182 | F148: Las Cumbres del Mirador | G148: Calle Vista 300 | H148: Cerro Colorado | I148: Arequipa | J148: Arequipa | K148: Etapa 1 (Torres I, II), Etapa 2 (Torres III, IV) | L148: 116 | M148: 116 | N148: 85 | O148: 260000 | P148: 260000 | Q148: 260000 | R148: 260000 | S148: 2 | T148: 3+
A149: AE.RE-076-2020 | B149: 148 | C149: 2019 | D149: INVERSIONES INMOBILIARIAS MAGDALENA S.A.C. | E149: 20547173261 | F149: Juan de Aliaga | G149: Av. Antonio Miroquesada N° 650-670-690 con Jr. Francisco Graña, Mz. 43 | H149: Magdalena del Mar | I149: Lima | J149: Lima | K149: 1 y 2 | L149: 297 | M149: 175 | N149: 69 | O149: 318780 | P149: 318780 | Q149: 318780 | R149: 318780 | S149: 2 | T149: 3+
A150: N° 014-2019 | B150: 149 | C150: 2019 | D150: MINISTERIO DE TRANSPORTES Y COMUNICACIONES (BESCO, BESALCO) | E150: 20131379944 | F150: Condominio Villa Atletas | G150: Pueblo Joven Villa El Salvador, Sector Quinto, Area Zonal 26, Complejo Biotecnologico Mz. A | H150: Villa El Salvador | I150: Lima | J150: Lima | K150: Torres 1,2,3,4,5,6 y 7 | L150: 1096 | M150: 1096 | O150: 186000 | P150: 186000 | Q150: 186000 | R150: 186000 | S150: 2
A151: N° 009-2019 | B151: 150 | C151: 2019 | D151: ANTARES CONTRATISTAS S.A. | E151: 20143382339 | F151: Edificio Multifamiliar I Los Parques del Chipe | G151: Av. Colectora Norte 359 Ex Fundo El Chipe - Parcela 4 - Lote 07 | H151: 26 de Octubre | I151: Piura | J151: Piura | K151: 2 | L151: 60 | M151: 60 | N151: 55.84 | O151: 161000 | P151: 161000 | Q151: 161000 | R151: 161000 | S151: 1
A152: AE.RE-078-2020 | B152: 151 | C152: 2019 | D152: GLJ CONSTRUCTORES E INMOBILIARIOS SAC | E152: 20547261551 | F152: La Gloria IV | G152: Jr. Alfonso Ugarte N° 535 | H152: Magdalena del Mar | I152: Lima | J152: Lima | K152: 1 | L152: 48 | M152: 41 | N152: 57.85 | O152: 372586 | P152: 372586 | Q152: 372586 | R152: 372586 | S152: 1 | T152: 3+
A153: N° 010-2019 | B153: 152 | C153: 2019 | D153: IMMO NAUTIC SAC (Nuvo) | E153: 20553227080 | F153: Smart San Felipe | G153: Av. San Felipe lote 8 y 9, Jesus Maria, Lima | H153: Jesús María | I153: Lima | J153: Lima | K153: Torre unica | L153: 138 | M153: 98 | N153: 60.38 | O153: 379235 | P153: 379235 | Q153: 379235 | R153: 379235 | S153: 1
A154: AE-RE-006-2020 | B154: 153 | C154: 2019 | D154: MIRANDA CONSTRUCTORES S.A. (BESCO) | E154: 20392504894 | F154: Praderas del Rimac | G154: Terreno eriazo colindante al predio denominado Poligono Nacional de Tiro esquina con acceso por la prolongacion de la Av. Abelardo Gamarra y Pasaje Actual poligono de Tiro Fundo Muñoz | H154: Rimac | I154: Lima | J154: Lima | K154: Condominio del 1 al 6 ( 3 torres c/u) | L154: 2880 | M154: 2880 | N154: 65 | O154: 194326 | P154: 194326 | Q154: 194326 | R154: 194326 | S154: 1 | T154: 3+
A155: AE-RE-005-2020 | B155: 154 | C155: 2019 | D155: MIRANDA CONSTRUCTORES S.A. (BESCO) | E155: 20392504894 | F155: Altos del Rimac | G155: Terreno eriazo colindante al predio denominado Poligono Nacional de Tiro esquina con acceso por la prolongacion de la Av. Abelardo Gamarra y Pasaje Actual poligono de Tiro Fundo Muñoz | H155: Rimac | I155: Lima | J155: Lima | K155: Condominios: 1 (3 torres), 2 (3 torres),3(3 torres),4 (3 torres), 5 (4 torres) | L155: 2304 | M155: 2304 | N155: 50 | O155: 102488 | P155: 102488 | Q155: 102488 | R155: 102488 | S155: 1 | T155: 3+
A156: N° 015-2019 | B156: 155 | C156: 2019 | D156: REPRESENTACIONES DACA S.A.C. | E156: 20477373977 | F156: Residencial Los Jazmines | G156: Av. America Oeste N° 801 Urb. La Esmeralda | H156: Trujillo | I156: Trujillo | J156: La Libertad | K156: 1 | L156: 18 | M156: 17 | N156: 85 | O156: 257206 | P156: 257206 | Q156: 257206 | R156: 257206 | S156: 1
A157: AE.RE-080-2020 | B157: 156 | C157: 2019 | D157: QUATRO PROYECTOS SAC | E157: 20602816851 | F157: Urban Tower 2 | G157: Av. Mariano Cornejo 1436 | H157: Lima Cercado | I157: Lima | J157: Lima | K157: 1 | L157: 98 | M157: 98 | N157: 62.83 | O157: 324533 | P157: 324533 | Q157: 324533 | R157: 324533 | S157: 1 | T157: 3+
A158: AE.RE-047-2020 | B158: 157 | C158: 2019 | D158: INVERSIONES INMOBILIARIAS VERANO S.A.C. | E158: 20553608041 | F158: Edificio Multifamiliar CYPRES | G158: Av. Víctor Alzamora 481 Barrio Médico | H158: Surquillo | I158: Lima | J158: Lima | K158: 1 | L158: 72 | M158: 72 | N158: 56.67 | O158: 364110.15 | P158: 364110.15 | Q158: 364110.15 | R158: 364110.15 | S158: 1 | T158: 3+
A159: AE.RE-154-2020 | B159: 158 | C159: 2019 | D159: MENORCA INVERSIONES S.A.C. | E159: 20173223626 | F159: Proyecto Villa SARAJA | G159: Fundo Santa María Sub lote B | H159: Ica | I159: Ica | J159: Ica | K159: 1 | L159: 147 | M159: 50 | N159: 60.95 | O159: 119239 | P159: 119239 | Q159: 119239 | R159: 119239 | S159: 1 | T159: 2+
A160: AE.RE-106-2020 | B160: 159 | C160: 2019 | D160: GRUPO ORE PARIONA S.A.C. | E160: 20502668421 | F160: Proyecto Camino Real - 1era Etapa | G160: Predio "Los Pecanos Fundo N° 01" - Sector Cachiche | H160: Ica | I160: Ica | J160: Ica | K160: 1 | L160: 51 | M160: 51 | N160: 60.88 | O160: 106259 | P160: 106259 | Q160: 106259 | R160: 106259 | S160: 1 | T160: 2+
A161: AE.RE-136-2020 | B161: 160 | C161: 2019 | D161: BUEN VIVIR S.A.C. | E161: 20554638911 | F161: Proyecto Edificio Libertad | G161: Av. Libertad Esq. Jr. Los Mochicas Mz. KB Lote 15 | H161: San Miguel | I161: Lima | J161: Lima | K161: Torre unica | L161: 23 | M161: 23 | N161: 62.76 | O161: 286530 | P161: 286530 | Q161: 286530 | R161: 286530 | S161: 1 | T161: 2+
A162: N° 021-2019 | B162: 161 | C162: 2019 | D162: LINEA 21 S.A.C. | E162: 20563050331 | F162: Edificio Multifamiliar Los Andes | G162: Jr. Ayacucho N° 649 | H162: Magdalena del Mar | I162: Lima | J162: Lima | K162: 1 | L162: 29 | M162: 29 | N162: 52 | O162: 252720 | P162: 252720 | Q162: 252720 | R162: 252720 | S162: 1
A163: N° 022-2019 | B163: 162 | C163: 2019 | D163: CONSTRUCTORA BETANIA S.A.C. | E163: 20503685567 | F163: PASEO CASTILLA (antes Edificio Multifamiliar Alameda) | G163: Jr. Gran mariscal Ramon Castilla, Grupo K, Sub Lote 1 Urb. Lt. del Fundo San Miguel | H163: San Miguel | I163: Lima | J163: Lima | K163: Torre A | L163: 94 | M163: 94 | N163: 73.73 | O163: 348143 | P163: 348143 | Q163: 348143 | R163: 348143 | S163: 1
A164: N° 023-2019 | B164: 163 | C164: 2019 | D164: CONSTRUCTORA BETANIA S.A.C. | E164: 20503685567 | F164: Edificio Multifamiliar Aereo Home | G164: Av. Arica N°1120, Lt. 2 Mz. 1, Urb. Huerta Izquierda Chacra Colorada | H164: Breña | I164: Lima | J164: Lima | K164: Torre A | L164: 60 | M164: 60 | N164: 68.47 | O164: 305767 | P164: 305767 | Q164: 305767 | R164: 305767 | S164: 1
A165: AE-RE-003-2020 | B165: 164 | C165: 2019 | D165: BESCO S.A.C | E165: 20416162299 | F165: Proyecto Centrika Condominio | G165: Urb. Residencial Piura , Mz. J Sub Lote A | H165: Piura | I165: Piura | J165: Piura | K165: Edificios 1,2 y 3 | L165: 436 | M165: 436 | N165: 50 | O165: 113577 | P165: 113577 | Q165: 113577 | R165: 113577 | S165: 2 | T165: 3+
A166: N° 025-2019 | B166: 165 | C166: 2019 | D166: GRUPO DU BOIS S.A.C. | E166: 20546518567 | F166: Proyecto Residencial DUBOIS III | G166: Calle Fisher (Ex calle 15) Mz. T, Lt. 8 | H166: Surquillo | I166: Lima | J166: Lima | K166: TORRE UNICA | L166: 26 | M166: 26 | N166: 76.4 | O166: 275000 | P166: 275000 | Q166: 275000 | R166: 275000 | S166: 1
A167: AE.RE-093-2020 | B167: 166 | C167: 2019 | D167: INMOBILIARIA RUTURI S.A.C. (ALTOZANO) | E167: 20551234542 | F167: Solar de la Alameda - Prime Torre A y B | G167: Urb. Alameda Salaverry, Mz. 5C, Lt 1 | H167: Miraflores | I167: Arequipa | J167: Arequipa | K167: Torre A y Torre B | L167: 149 | M167: 149 | N167: 75.78 | O167: 209093.06 | P167: 209093.06 | Q167: 209093.06 | R167: 209093.06 | S167: 1 | T167: 2+
A168: N° 026-2019 | B168: 167 | C168: 2019 | D168: BECA INVERSIONES Y PROYECTOS S.A.C. | E168: 20603503326 | F168: Edificio Granada 274 | G168: Jirón Granada 274-278 | H168: Pueblo Libre | I168: Lima | J168: Lima | K168: Torre única | L168: 18 | M168: 11 | O168: 398000 | P168: 398000 | Q168: 398000 | R168: 398000 | S168: 1
A169: N° 027-2019 | B169: 168 | C169: 2019 | D169: INVERSIONES TIERRA BLANCA S.A.C. | E169: 20518883322 | F169: Edificio Granada 135 | G169: Jr. Granada N° 135, Urb. San Martin | H169: Pueblo Libre | I169: Lima | J169: Lima | K169: Torre unica | L169: 18 | M169: 12 | N169: 91.81 | O169: 375208 | P169: 375208 | Q169: 375208 | R169: 375208 | S169: 1
A170: AE.RE-127-2020 | B170: 169 | C170: 2019 | D170: CASAIDEAL PROYECTO BRASIL 3 SAC | E170: 20602736483 | F170: Edificio Multifamiliar NOU | G170: Av. Brasil 2768 - 2790 - 2794 esquina con Jirón San José 112 - 116 - 120 - 124 - 128 - 130 | H170: Pueblo Libre | I170: Lima | J170: Lima | K170: Torre unica | L170: 137 | M170: 137 | N170: 63 | O170: 370552 | P170: 370552 | Q170: 370552 | R170: 370552 | S170: 1 | T170: 2+
A171: N° 029-2019 | B171: 170 | C171: 2019 | D171: LIMACOR INMOBILIARIA S.A.C. | E171: 20563374404 | F171: Residencial Castilla II – Eco House | G171: Jr. Mariscal Castilla 956 - Torre A y B | H171: Magdalena del Mar | I171: Lima | J171: Lima | K171: Torre A y B | L171: 84 | M171: 84 | N171: 56 | O171: 250500 | P171: 250500 | Q171: 250500 | R171: 250500 | S171: 1
A172: AE.RE-088-2020 | B172: 171 | C172: 2019 | D172: CONSTRUCTORA GALILEA SAC | E172: 20521119943 | F172: Conjunto Habitacional Monte Verde II - Etapa 8 - Etapa 29 | G172: A.H. Chiclayito , Av. Progreso 3200 | H172: Castillo | I172: Piura | J172: Piura | K172: Etapa 8 - etapa 29 | L172: 886 | M172: 688 | N172: 62.7 | O172: 135490 | P172: 135490 | Q172: 135490 | R172: 135490 | S172: 1 | T172: 3+
A173: N° 031-2019 | B173: 172 | C173: 2019 | D173: J & F PERU GROUP S.A.C. | E173: 20539995490 | F173: Residencial Primavera | G173: Calle Héctor Villalobos 794 Urb. Primavera | H173: Trujillo | I173: Trujillo | J173: La Libertad | K173: Torre unica | L173: 20 | M173: 16 | N173: 90 | O173: 290000 | P173: 290000 | Q173: 290000 | R173: 290000 | S173: 1
A174: AE.RE-129-2020 | B174: 173 | C174: 2019 | D174: MATIER SAC | E174: 20392737058 | F174: Gorriones | G174: Av. Los Gorriones S/N Lote 28-B Mz A, Urb. La Campiña primera etapa | H174: Chorrillos | I174: Lima | J174: Lima | K174: Torre unica | L174: 167 | M174: 167 | N174: 62.14 | O174: 249610 | P174: 249610 | Q174: 249610 | R174: 249610 | S174: 1 | T174: 2+
A175: AE.RE-016-2020 | B175: 174 | C175: 2019 | D175: Besco S.A.C. | E175: 20416162299 | F175: Nuevo Nogales Condominio Club Torre 13 y 14 | G175: Av. Los Nogales sublote 1 alt. Km 2.8 de la carretera central | H175: El Agustino | I175: Lima | J175: Lima | K175: Torre 13 y 14 | L175: 4240 | M175: 400 | N175: 63.7 | O175: 155,250 - 305,000 | P175: 155250 | Q175: 305000 | R175: 230125 | S175: 2 | T175: 3+
A176: AE.RE-057-2020 | B176: 176 | C176: 2019 | D176: BELGICA EDIFICACIONES S.A. | E176: 20329728022 | F176: Precursores 5 | G176: Av. Elmer Faucett 298 | H176: San Miguel | I176: Lima | J176: Lima | K176: Torre unica | L176: 56 | M176: 56 | N176: 64.38 | O176: 325000 | P176: 325000 | Q176: 325000 | R176: 325000 | S176: 1 | T176: 3+
A177: AE.RE.015-2021 | B177: 177 | C177: 2019 | D177: INMOBILIARIA IPR SAC (antes VERTICALIA S.A.C. (Nuvo)) | E177: 20603264208 | F177: Conjunto Residencial Vive 500 | G177: Terreno denominado "El Morro" - irrigacion Zamácola - Av. Aviacion sin numero | H177: Cerro Colorado | I177: Arequipa | J177: Arequipa | K177: Torres 1,2 y 3 | L177: 240 | M177: 240 | N177: 92.55 | O177: 303833 | P177: 303833 | Q177: 303833 | R177: 303833 | S177: 1 | T177: 2+
A178: N° 037-2019 | B178: 178 | C178: 2019 | D178: CONSTRUCTORA E INMOBILIARIA EL REFUGIO S.A.C. | E178: 20536777891 | F178: Parque de La Justicia | G178: Mz. LL Lote 2 Los Jazmines del Naranjal | H178: Los Olivos | I178: Lima | J178: Lima | K178: Torre unica | L178: 11 | M178: 9 | N178: 90 | O178: 313651 | P178: 313651 | Q178: 313651 | R178: 313651 | S178: 1
A179: N° 038-2019 | B179: 179 | C179: 2019 | D179: SERCON CONSTRUCTORA SAC | E179: 20538605671 | F179: C 943 | G179: Av San Felipe 943 | H179: Jesús María | I179: Lima | J179: Lima | K179: 1 | L179: 77 | M179: 41 | N179: 72.9 | O179: 352276 | P179: 352276 | Q179: 352276 | R179: 352276 | S179: 1
A180: AE.RE-133-2020 | B180: 180 | C180: 2019 | D180: ACTIVA MARIATEGUI SAC (Antes ORION INMOBILIARIA E INVERSIONES SAC) | E180: 20606580551 | F180: Conjunto Residencial Mariategui | G180: Av. Francisco Javier Mariategui Nº558 | H180: Jesús María | I180: Lima | J180: Lima | K180: Torre 01 | L180: 92 | M180: 27 | N180: 67.94 | O180: 357965 | P180: 357965 | Q180: 357965 | R180: 357965 | S180: 1 | T180: 2+
A181: N° 040-2019 | B181: 181 | C181: 2019 | D181: SER CASA S.A.C. | E181: 20603670362 | F181: Edificio La Peña | G181: Urb. La Peña D-10 y D-11 | H181: Sachara | I181: Arequipa | J181: Arequipa | K181: Torre 1 y 2 | L181: 10 | M181: 10 | N181: 70 | O181: 261288 | P181: 261288 | Q181: 261288 | R181: 261288 | S181: 1
A182: AE.RE.010.2021 | B182: 182 | C182: 2019 | D182: S&P DESARROLLADORES INMOBILIARIOS SAC (Grupo Toscana) | E182: 20600690028 | F182: Gorriones 4 | G182: Calle Los Gorriones N° 225, Mz. A Lote 34 y 35, Urb. La Campiña | H182: Chorrillos | I182: Lima | J182: Lima | K182: Torres A,B y C | L182: 132 | M182: 131 | N182: 70 | O182: 235000 | P182: 235000 | Q182: 235000 | R182: 235000 | S182: 1 | T182: 2+
A183: AE.RE-048-2020 | B183: 183 | C183: 2019 | D183: CORPORACION INMOBILIARIA FERMONT S.A.C. (Abril grupo Inmobiliario) | E183: 20600245504 | F183: Abedul | G183: Esq. Av. Brasil 2985 | H183: Magdalena del Mar | I183: Lima | J183: Lima | K183: Torre 1 | L183: 228 | M183: 59 | N183: 69.88 | O183: 334102 | P183: 334102 | Q183: 334102 | R183: 334102 | S183: 1 | T183: 3+
A184: N° 044-2019 | B184: 184 | C184: 2019 | D184: LIDER INVERSIONES AREQUIPA SA (Lider) | E184: 20539613716 | F184: Condominio A_Etapa 2 | G184: Av. Pizarro 115 | H184: José Luis Bustamante y Rivero | I184: Arequipa | J184: Arequipa | K184: Etapa 02 (Torre 01) | L184: 150 | M184: 150 | N184: 95.05 | O184: 293041 | P184: 293041 | Q184: 293041 | R184: 293041 | S184: 1
A185: N° 045-2019 | B185: 185 | C185: 2019 | D185: CONSTRUCTORA E INMOBILIARIA CDR S.A.C. | E185: 20509746428 | F185: Edificio Multifamiliar Vista Club Callao | G185: Av. Oscar R Benavides (Av. Saenz Peña) Nº1839 | H185: Bellavista | I185: Callao | J185: Lima | K185: Torre A y B | L185: 247 | M185: 247 | N185: 60.07 | O185: 219376.3 | P185: 219376.3 | Q185: 219376.3 | R185: 219376.3 | S185: 1
A186: N° 046-2019 | B186: 186 | C186: 2019 | D186: GRINSA S.A.C. | E186: 20440209123 | F186: Urbanizacion Residencial Valle Hermoso | G186: Predio Chacupe UC: 08710, Sector Chacupe | H186: La Victoria | I186: Chiclayo | J186: Lambayeque | K186: 1,2 y 3 | L186: 384 | M186: 136 | N186: 31.12 | O186: 97500 | P186: 97500 | Q186: 97500 | R186: 97500 | S186: 1
A187: N° 047-2019 | B187: 187 | C187: 2019 | D187: GRINSA S.A.C. | E187: 20440209123 | F187: Los Rosales de Miraflores | G187: Predio Miraflores UR: 10864 | H187: Castilla | I187: Piura | J187: Piura | K187: 1,2 y 3 | L187: 178 | M187: 126 | N187: 43.8 | O187: 118000 | P187: 118000 | Q187: 118000 | R187: 118000 | S187: 1
A188: AE.RE-120-2020 | B188: 188 | C188: 2019 | D188: LA PAZ DESARROLLO INMOBILIARIO S.A.C. | E188: 20556482471 | F188: AMARI ( antes Ambar) | G188: Av. La Paz 118-120-122 Urb. Miramar | H188: San Miguel | I188: Lima | J188: Lima | K188: Torre unica | L188: 99 | M188: 99 | N188: 58.2 | O188: 260000 | P188: 260000 | Q188: 260000 | R188: 260000 | S188: 1 | T188: 3+
A189: AE.RE-138-2020 | B189: 189 | C189: 2019 | D189: PROYECTOS Y CONSTRUCCIONES LUGANO S.A.C. | E189: 20507028986 | F189: Green Park | G189: Av. General Santa Cruz | H189: Jesús María | I189: Lima | J189: Lima | K189: Torre unica | L189: 151 | M189: 17 | N189: 97.9 | O189: 253000 | P189: 253000 | Q189: 253000 | R189: 253000 | S189: 1 | T189: 2+
A190: AE.RE-135-2020 | B190: 190 | C190: 2019 | D190: BUEN VIVIR S.A.C. | E190: 20554638911 | F190: Universitaria | G190: Av. Universitaria 2017 Mz A-4 lote 10 | H190: San Miguel | I190: Lima | J190: Lima | K190: 1 | L190: 104 | M190: 104 | N190: 46.81 | O190: 222081.04 | P190: 222081.04 | Q190: 222081.04 | R190: 222081.04 | S190: 1 | T190: 2+
A191: AE.RE-100-2020 | B191: 191 | C191: 2019 | D191: GRUPO D Y M CONSTRUCTORA E INMOBILIARIA S.A.C. | E191: 20550506352 | F191: Residencial Prado | G191: Av. Javier Prado Este Mz. I Lote 25 y 26 Urb. Mayorazgo Chico | H191: Ate Vitarte | I191: Lima | J191: Lima | K191: 1 | L191: 24 | M191: 21 | N191: 81.72 | O191: 344415 | P191: 344415 | Q191: 344415 | R191: 344415 | S191: 1 | T191: 2+
A192: N° 051-2019 | B192: 192 | C192: 2019 | D192: LUIS FERNANDO LINARES MORANTE | E192: 10292204774 | F192: Eco Residencial TAHUAYCANI | G192: Pueblo Tradicional Tahuaycani Mz. B Sub Lote 5B | H192: Sachara | I192: Arequipa | J192: Arequipa | K192: Torre A | L192: 4 | M192: 4 | N192: 65 | O192: 240900 | P192: 240900 | Q192: 240900 | R192: 240900 | S192: 1
A193: N° 052-2019 | B193: 193 | C193: 2019 | D193: INMOBILIARIA EUROEDIFICACIONES S.A.C. | E193: 20486852420 | F193: Condominio Parque San Antonio | G193: Calle José Galvez Barrenechea Lote Acumulado Nº1, Coop. De vivienda Centenario | H193: Huancayo | I193: Huancayo | J193: Junin | K193: Torre 01 y 02 | L193: 188 | M193: 183 | N193: 81.1 | O193: 181441.49 | P193: 181441.49 | Q193: 181441.49 | R193: 181441.49 | S193: 1
A194: N° 053-2019 | B194: 194 | C194: 2019 | D194: INMOBILIARIA LOPEZ S.A.C. | E194: 20505927231 | F194: Proyecto Edificio START | G194: Calle Julian Sandoval n° 155, Urb. Barrio Medico | H194: Surquillo | I194: Lima | J194: Lima | K194: Torre unica | L194: 43 | M194: 12 | N194: 64.38 | O194: 383596 | P194: 383596 | Q194: 383596 | R194: 383596 | S194: 1
A195: N° 054-2019 | B195: 195 | C195: 2019 | D195: REAL EDIFICACIONES S.A.C. | E195: 20562827936 | F195: TORRE REAL 6 | G195: Av. Principal 806 | H195: Surquillo | I195: Lima | J195: Lima | K195: 1 | L195: 59 | M195: 45 | N195: 63.18 | O195: 254488 | P195: 254488 | Q195: 254488 | R195: 254488 | S195: 1
A196: AE.RE-072-2020 | B196: 196 | C196: 2019 | D196: PROYECTOS GCF SAC | E196: 20603961715 | F196: VILLA DULANTO (antes Cipriano Dulanto) | G196: Av. Manuel Cipriano Dulanto N° 1441, 1443, 1445, 1447, 1449 1451 | H196: Pueblo Libre | I196: Lima | J196: Lima | K196: 1 | L196: 102 | M196: 80 | N196: 78.32 | O196: 366678.94 | P196: 366678.94 | Q196: 366678.94 | R196: 366678.94 | S196: 1 | T196: 3+
A197: AE.RE.006.2021 | B197: 197 | C197: 2019 | D197: TOLEMAN SAC (Altozano) | E197: 20603841086 | F197: La Arboleda | G197: Calle 27 de Noviembre, Mz A, lote 1, sector Alto Libertad | H197: Cerro Colorado | I197: Arequipa | J197: Arequipa | K197: Etapa 1 ( Edificios 1,2,3 y 4) | L197: 528 | M197: 528 | N197: 79.45 | O197: 227893 | P197: 227893 | Q197: 227893 | R197: 227893 | S197: 1 | T197: 2+
A198: N° 057-2019 | B198: 198 | C198: 2019 | D198: CONSTRUCTORES INTERAMERICANOS SAC | E198: 20305146618 | F198: Condominio de Viviendas Andalucia | G198: Av. El Cortijo s/n Común de Chacras los Comunes. Mz A Lote 1 Urb. Andalucía. | H198: Huanchaco | I198: Trujillo | J198: La Libertad | K198: 3 | L198: 840 | M198: 80 | N198: 62.04 | O198: 144326.25 | P198: 144326.25 | Q198: 144326.25 | R198: 144326.25 | S198: 1
A199: AE.RE.166-2020 | B199: 199 | C199: 2019 | D199: BERTOLOTTO INVESTMENTS SAC | E199: 20601935458 | F199: PACIFIK OCEAN TOWER | G199: Av. Bertolotto N° 842-844-846-848-850-854 | H199: San Miguel | I199: Lima | J199: Lima | K199: Torre A | L199: 190 | M199: 76 | N199: 63.84 | O199: 398939 | P199: 398939 | Q199: 398939 | R199: 398939 | S199: 1 | T199: 2+
A200: AE.RE-091-2020 | B200: 200 | C200: 2019 | D200: ALTOZANO DESARROLLO Y CONSTRUCCION SAC | E200: 20507251111 | F200: Lomas de La Alameda - 1ra Etapa | G200: Urb. Alameda Salaverry, Manzana 4R, Lote 1 | H200: Miraflores | I200: Arequipa | J200: Arequipa | K200: Modulo 5 ( Etapa 1) | L200: 165 | M200: 165 | N200: 58.71 | O200: 133032.76 | P200: 133032.76 | Q200: 133032.76 | R200: 133032.76 | S200: 1 | T200: 2+
... 463 more rows

Sheet Prefiltro (hidden)
A1: 1 | B1: 2 | C1: 3 | D1: 4 | E1: 5 | F1: 6 | G1: 7 | H1: 8 | I1: 9 | J1: 10 | K1: 11 | L1: 12 | M1: 13 | N1: 14 | O1: 15 | P1: 16 | Q1: 17 | R1: 18
A2: 01-PRE-2025 | B2: LOS PORTALES S.A | C2: 20301837896 | D2: VILLA RINCONADA II | E2: (Mz2A, MZ2B,MZ 2C, MZ 2D, MZ 2E, MZ 2F, MZ 2G) | F2: VEINTISEIS DE OCTUBRE | G2: PIURA | H2: PIURA | I2: H.U / UNIFAMILIAR | J2: ETAPA 1, 93; ETAPA 2, 77 | K2: 170 | M2: JR. MARISCAL LA MAR NRO. 991 (ESQ.AV. EJERCITO.SALAVERRY PISOS 5, 6, 7) LIMA - LIMA - MAGDALENA DEL MAR | N2: JUAN CARLOS CAMPANA HOLGUIN | O2: 535810.17 | Q2: 01-PRE-2025 | R2: ABRIL
H3: PIURA | K3: 133 | L3: 133 | N3: LILIAN TRINIDAD CUSRRAMOS RODRIGO | O3: 540374.4695 | P3: 9421550.662
A4: 03-PRE-2025 | B4: VIVA NEGOCIO INMOBILIARIO S.A.C. | C4: 20493040643 | D4: LOS GERANIOS 2 | E4: AV. BELAUNDE, MZ. I, LOTE 1, URB.LOS PARQUE DE COMAS | F4: COMAS | G4: LIMA | H4: LIMA | I4: MULTIFAMILIAR | J4: 5 TORRES | K4: 814 | L4: 814 | M4: AV. PETIT THOUARS 4957, 2DO PISO, MIRAFLORES, LIMA, LIMA | N4: THERESA GALLUCCIO GALLARDO | O4: 2765652200 | P4: 86659262900 | Q4: 03-PRE-2025 | R4: MAYO
A5: 04-PRE-2025 | B5: ENACORP SOCIEDAD ANONIMA - ENACORP S.A | C5: 20380449405 | D5: CONJUNTO RESIDENCIAL AZUL | E5: PROL. DIEGO FERRE CON PEÑA RIVERA | F5: MIRAFLORES | G5: LIMA | H5: LIMA | I5: MULTIFAMILIAR | J5: TORRE A Y B | K5: 143 | L5: 69 | M5: AV. JOSE PARDO 231 | N5: MARCO AURELIO DEL RIO ARRIETA | O5: 276565,22 | P5: 8665926,29 | Q5: 04-PRE-2025 | R5: MAYO
A6: 05-PRE-2025 | B6: GRUPO DESARROLLADORA SAC | C6: 20612981036 | D6: PARQUE LOS ROSALES | E6: JR. DOÑA DEMIRA CON JR. DOÑA NORA MZ. C-2 LOTE 29 | F6: SANTIAGO DE SURCO | G6: LIMA | H6: LIMA | I6: MULTIFAMILIAR | J6: EDIFICIO 1 | K6: OBSERVADO | L6: OBSERVADO | M6: JIRÓN REAL 195 SANTIAGO DE SURCO, LIMA, LIMA | N6: ANDREY APARICIO VENTURA | O6: 281875 | P6: 8656950 | Q6: 05-PRE-2025 | R6: MAYO
A7: 06-PRE-2025 | B7: CONSTRUCTORA CONCEPCION S.A.C | C7: 20109116051 | D7: HABILITACION URBANA LAS VILLAS DE BOUGANVILLE ICA | E7: SECTOR DE LA HUELGA | F7: ICA | G7: ICA | H7: ICA | I7: H.U / UNIFAMILIAR | J7: ETAPA ÚNICA | K7: 232 | L7: 232 | M7: JR. JUAN PARRA DEL RIEGO NRO. 367 INT. 603 CERCADO DE EL TAMBO JUNIN - HUANCAYO - EL TAMBO | N7: LUIS SALVADOR ZANELLI JONES | O7: 418966 | P7: 8441697 | Q7: 06-PRE-2025 | R7: MAYO
A8: 07-PRE-2025 | B8: LIVENZA PROMOTORA INMOBILIARIA S.A.C | C8: 20605509593 | D8: TORRICO 708 | E8: JR. JOAQUIN TORRICO | F8: SAN JUAN DE MIRAFLORES | G8: LIMA | H8: LIMA | I8: MULTIFAMILIAR | J8: TORRE A (14,14) | K8: 14 | L8: 14 | M8: ALONSO DE MOLINA 1420, INT. 302 | N8: RONALD TINEO ARANGO | Q8: 07-PRE-2025 | R8: MAYO
A9: 08-PRE-2025 | B9: INMOBILIARIA CANEVARO S.A.C | C9: 20610130608 | D9: RESIDENCIAL SOFIA | E9: AV. CESAR CANEVARO 979 | F9: SAN JUAN DE MIRAFLORES | G9: LIMA | H9: LIMA | I9: MULTIFAMILIAR | J9: EDIFICIO 1 | L9: 20 | M9: AV. OVALEGOYA 2017 | N9: LUIS ARMANDO ROSALES HEREDIA | O9: 286266.96 | P9: 8655674.1 | Q9: 08-PRE-2025 | R9: MAYO
A10: 09-PRE-2025 | B10: YOPLAC ASOCIADOS SAC | C10: 20516014912 | D10: RESIDENCIAL SANTA SUSANA | E10: CALLE 142, M-05 | F10: CERCADO DE LIMA | G10: LIMA | H10: LIMA | I10: MULTIFAMILIAR | K10: 38 | L10: 35 | M10: AV. MARIANO CORNEJO 1203 | N10: EDSON ALDAIR YOPLAC VILDOSO | O10: 274368 | P10: 8665353 | Q10: 09-PRE-2025 | R10: MAYO
A11: 10-PRE-2025 | B11: CLASEM SAC | C11: 20516390060 | D11: CONJUNTO RESIDENCIAL LOMAS DE LA ALAMEDA - ETAPA 2 | E11: CALLE 19 4R, LOTE 1 _ ALAMEDA SALAVERRY | F11: MIRAFLORES | G11: AREQUIPA | H11: AREQUIPA | I11: MULTIFAMILIAR | J11: ETAPA 2 | K11: 90 | L11: 90 | M11: AV. REPÚBLICA DE COLOMBIA 185 LIMA - LIMA - SAN ISIDRO | N11: EFRAIN MANUEL POLAR ONTANEDA | O11: 231835.1447 | P11: 8186150.141 | Q11: 10-PRE-2025 | R11: MAYO
A12: 11-PRE-2025 | B12: BESCO SAC | C12: 20416162299 | D12: NUEVO INDEPENDENCIA CONDOMINIO ECOAMIGABLE | E12: AV. INDUSTRIAL N°3458-3436 Y AV. MARCOS FARFÁN N°3457 | F12: INDEPENDENCIA | G12: LIMA | H12: LIMA | I12: MULTIFAMILIAR | J12: TORRE 1 - TORRE 2 | K12: 480 | L12: 480 | M12: AV. PASEO DE LA REPUBLICA NRO. 3245 - SAN ISIDRO | N12: ELISA PIEDAD RIOS NORIEGA | O12: 275915.11 | P12: 8673014.57 | Q12: 11-PRE-2025 | R12: JUNIO
A13: 12-PRE-2025 | B13: CONSTRUCTORA INARCO S.A.C. | C13: 20519219922 | D13: EDIFICIO MULTIFAMILIAR SARANTI | E13: AV. LA PAZ 124 | F13: SAN MIGUEL | G13: LIMA | H13: LIMA | I13: MULTIFAMILIAR | J13: TORRE A | K13: 101 | L13: 98 | M13: AV. LA MOLINA 140 | N13: JAVIER ALONSO TORI GUERRERO | O13: 273091.349 | P13: 8662700.87 | Q13: 12-PRE-2025 | R13: JUNIO
A14: 13-PRE-2025 | B14: SALERNO INMOBILIARIA SOCIEDAD ANONIMA CERRADA | C14: 20611820691 | D14: CEDROS 33 | E14: AV. MARICAL OSCAR R. BENAVIDES 2200 | F14: LIMA | G14: LIMA | H14: LIMA | I14: MULTIFAMILIAR | J14: TORRE A Y TORRE B | K14: 331 | L14: 268 | M14: CALLE MAMA OCLLO 2647 URB. RISSO | N14: FERNANDO FELIX TORATTO FERNANDEZ | O14: 2745980400 | P14: 86671869800 | Q14: 13-PRE-2025 | R14: JUNIO
A15: 14-PRE-2025 | B15: LOS PORTALES S.A | C15: 20301837896 | D15: VILLA DE LA ALAMEDA SUR | E15: FUNDO YOLICO QUEBRADA DE PARCA Sublote N° 02 | F15: CHILCA | G15: CAÑETE | H15: LIMA | I15: H.U / UNIFAMILIAR | J15: ETAPA ÚNICA (MZ. A,MZ. B,MZ. C,MZ. D,MZ. E,MZ. F) | K15: 89 | L15: 89 | M15: JR. MARISCAL LA MAR 991, MAGDALENA DEL MAR, LIMA | N15: JUAN CARLOS CAMPANA HOLGUIN | O15: 308754.00m E | P15: 8616119.00 m S | Q15: 14-PRE-2025 | R15: JUNIO
A16: 15-PRE-2025 | B16: CONSTRUCTORA INMOBILIARIA INKA DE AMERICA S.A.C. | C16: 20605731431 | D16: EDIFICIO MULTIFAMILIAR SEVILLA | E16: AV. TACNA 130 | F16: SAN MIGUEL | G16: LIMA | H16: LIMA | I16: MULTIFAMILIAR | J16: TORRE A | K16: 65 | L16: 61 | M16: MLC.DE LA RESERVA NRO. 775 | N16: JUAN CARLOS PERAMAS SANCHEZ | O16: 273980.477 | P16: 8662487.582 | Q16: 15-PRE-2025 | R16: JUNIO
A17: 16-PRE-2025 | B17: PROYECTOS INMOBILIARIOS LM S.A.C | C17: 20609196051 | D17: EDIFICIO RESIDENCIAL PLAZA 57 | E17: JR. TACNA 1457 - 1457 A - 1459 | F17: MAGDALENA DEL MAR | G17: LIMA | H17: LIMA | I17: MULTIFAMILIAR | J17: EDIFICIO ÚNICO | K17: 47 | L17: 9 | M17: CALLE 2 DE MAYO N°516 (INTERIOR: 401), MIRAFLORES, LIMA, LIMA | N17: ROSA YVONNE SEIJO CHAPA | O17: 274742.318 | P17: 8663174.215 | Q17: 16-PRE-2025 | R17: JUNIO
A18: 17-PRE-2025 | B18: MCR PROYECTO 11 S.A.C. | C18: 20610460993 | D18: AKO RESIDENCIAL | E18: JR. ARICA 859 | F18: SAN MIGUEL | G18: LIMA | H18: LIMA | I18: MULTIFAMILIAR | J18: EDIFICIO 1 | K18: 88 | L18: 80 | M18: CALLE CORONEL ANDRES REYES 550 | N18: YENNER AMANCIO LOPEZ | O18: -12.0894 | P18: -77.0831 | Q18: 17-PRE-2025 | R18: JUNIO
A19: 18-PRE-2025 | B19: PEDRA CONSTRUCTORA E INMOBILIARIA S.A.C. | C19: 20608033859 | D19: PIETRA CENTRALE | E19: JR. MANUEL DEL PINO 238-240 | F19: LIMA | G19: LIMA | H19: LIMA | I19: MULTIFAMILIAR | J19: EDIFICIO 1 | K19: 126 | L19: 120 | M19: AV. ANGAMOS OESTE 651 INTERIOR 205 | N19: ALDO PIERO DIEZ NOBLECILLA | O19: 278508.401 | P19: 8663944.13 | Q19: 18-PRE-2025 | R19: JUNIO
A20: 19-PRE-2025 | B20: THE PISONAY COMPANY SAC | C20: 20601192404 | D20: EVOLUTION | E20: MARIANO CORNEJO | F20: CERCADO DE LIMA | G20: LIMA | H20: LIMA | I20: MULTIFAMILIAR | J20: TORRE ÚNICA | K20: 130 | L20: 98 | M20: AV. CAMINOS DEL INCA 1168 | N20: ERROL ALAN ROZAS ARROYO | O20: 274831 | P20: 8665134 | Q20: 19-PRE-2025 | R20: JUNIO
A21: 20-PRE-2025 | B21: CLASEM SAC | C21: 20516390060 | D21: CONJUNTO RESIDENCIAL PARQUE SANTA SOFÍA | E21: CALLE VIA DE EVITAMIENTO LOTE 2 URB. EX FUNDO PATAZCA | F21: CHICLAYIO | G21: CHICLAYIO | H21: LAMBAYEQUE | I21: H.U / UNIFAMILIAR | J21: ETAPA 1,2,3,4,5 Y 6 | K21: 720 | L21: 720 | M21: AV. REPUBLICA DE COLOMBIA NRO. 185 | N21: EFRAIN MANUEL POLAR ONTANEDA | O21: 624384.3224 | P21: 9250943.271 | Q21: 20-PRE-2025 | R21: JULIO
A22: 21-PRE-2025 | B22: INMOBILIARIA DARALE S.A.C. | C22: 20609614723 | D22: VIDA VARELA | E22: JIRON GENERAL FELIPE VARELA | F22: BREÑA | G22: LIMA | H22: LIMA | I22: MULTIFAMILIAR | J22: EDIFICIO 1 | L22: 42 | M22: CAL.PUMACURCO NRO. 187 URB. MARANGA ET. CUATRO LIMA - LIMA - SAN MIGUEL | N22: SONNY ADOLPH TORBISCO CERVANTES | O22: 276945.9 | P22: 8665679.02 | Q22: 21-PRE-2025 | R22: JULIO
A23: 22-PRE-2025 | B23: INMOBILIARIA EUREKA SAC | C23: 20508000163 | D23: VIRIDIAN | E23: CALLE LOS GERANIOS 244-248 | F23: LINCE | G23: LIMA | H23: LIMA | I23: MULTIFAMILIAR | J23: TORRE ÚNICA | K23: 108 | L23: 42 | M23: AV. BASADRE JORGE 310 | N23: ORLANDO IGOR REQUENA GONZALES DE LA COTERA | O23: 279282.995 | P23: 8662590.468 | Q23: 22-PRE-2025 | R23: JULIO
A24: 23-PRE-2025 | B24: LOS PORTALES DEPARTAMENTOS S.A.C. | C24: 20553346178 | D24: GRAN JARDIN TICINO 2 | E24: CALLE TICINO N°167 SUB LOTE A2-1 Y SUBLOTE A2-2 , URBANIZACIÓN FUNDO INQUISIDOR Y PULIDO | F24: SANTA ANITA | G24: LIMA | H24: LIMA | I24: MULTIFAMILIAR | J24: ETAPA 1 (TORRE 1 Y 2) Y ETAPA 2 (TORRE 3 Y 4) | K24: 594 | L24: 594 | M24: JR. MARISCAL LA MAR N°991, MAGDALENA DEL MAR, LIMA, LIMA | N24: DIEGO ISAAC ABARCA OTAYZA | O24: 285794 | P24: 8666761 | Q24: 23-PRE-2025 | R24: JULIO
A25: 24-PRE-2025 | B25: GRUPO INMOBILIARIO MOLINA SOCIEDAD COMERCIAL DE RESPONSABILIDAD | C25: 20613236563 | D25: RESIDENCIAL GARDENIAS | E25: JR. LAS GARDENIAS, LOTE 108-2 | F25: ABANCAY | G25: ABANCAY | H25: APURIMAC | I25: MULTIFAMILIAR | J25: TORRE ÚNICA | K25: 38 | L25: 38 | M25: AV. ANDRES AVELINO CACERES N°729 ABANCAY, ABANCAY, APURIMAC | N25: FREDY ROLAND MOLINA VILLAR | O25: 728688.38 | P25: 8490891.59 | Q25: 24-PRE-2025 | R25: JULIO
A26: 25-PRE-2025 | B26: PROMOTORA ALBACENTRO SAC. | C26: 20610609687 | D26: EDIFICIO RESIDENCIAL OASIS | E26: AV. ANDRES ARAMBURU 860-862-864-866 | F26: SURQUILLO | G26: LIMA | H26: LIMA | I26: MULTIFAMILIAR | J26: EDIFICIO 1 | K26: 149 | L26: 104 | M26: CALLE ENRIQUE PALACIOS N° 335 MIRAFLORES, LIMA, LIMA | N26: CARLOS EDUARDO HIDALGO PEREZ | O26: 279952.129 | P26: 8661295.514 | Q26: 25-PRE-2025 | R26: JULIO
A27: 26-PRE-2025 | B27: INMOBILARIA LOS ARCES DE CAYMA S.A.C. | C27: 20610947558 | D27: RESIDENCIAL ACCES | E27: CALLE LOS ARCES N°295 | F27: CAYMA | G27: AREQUIPA | H27: AREQUIPA | I27: MULTIFAMILIAR | J27: ETAPA 1 (BLOQUE A, BLOQUE B, BLOQUE C) | K27: 167 | L27: 167 | M27: AV. CAYMA B - N° 701, CAYMA, AREQUIPA, AREQUIPA | N27: LUIS ALBERTO DELGADO ARROSPIDE | O27: 227788.7317 | P27: 8186990.122 | Q27: 26-PRE-2025 | R27: JULIO
A28: 27-PRE-2025 | B28: BARRIONUEVO INMOBILIARIA S.A.C | C28: 20612302481 | D28: KURA DEL BARRIO | E28: JR. GRAU FELIPE VARELA 1594 CON JR. RESTAURACION | F28: LA VICTORIA | G28: LIMA | H28: LIMA | I28: MULTIFAMILIAR | J28: TORRE ÚNICA | K28: 42 | L28: 42 | M28: AV. MARISCAL JOSE DE LA MAR | N28: EDGAR AUGUSTO RIOS REATEGUI | O28: 276884.5838 | P28: 8665613.622 | Q28: 27-PRE-2025 | R28: AGOSTO
A29: 28-PRE-2025 | B29: CONFORTA INMOBILIARIA SAN ISIDRO S.A.C. | C29: 20611036249 | D29: MULTIFAMILIAR INSIGH | E29: AV. JOSE GALVEZ BARRENECHEA N° 459-465 URB. CORPAC | F29: SAN ISIDRO | G29: LIMA | H29: LIMA | I29: MULTIFAMILIAR | J29: EDIFICIO 1 | K29: 80 | L29: 49 | M29: CALLE BREA Y PARIÑAS N° 102 (INT. 302) SANTIAGO DE SURCO, LIMA, LIMA | N29: SUSAN CLAUDIA DURAN PARDES | O29: 280920.452 | P29: 8662078.415 | Q29: 28-PRE-2025 | R29: AGOSTO
A30: 29-PRE-2025 | B30: AF CONSTRUCTECNIA S.A.C. | C30: 20460366624 | D30: LARA | E30: AV. SEVILLA 230 | F30: PUEBLO LIBRE | G30: LIMA | H30: LIMA | I30: MULTIFAMILIAR | J30: EDIFICIO 1 | K30: 26 | L30: 26 | M30: AV. DEFENSORES DEL MORRO 1395 | N30: CESAR ALEJANDRO DEXTRE CHACON | O30: 275199.14 | P30: 8665021.13 | Q30: 29-PRE-2025 | R30: AGOSTO
A31: 30-PRE-2025 | B31: DESARROLLADORA VISTA NEVADO S.A.C. | C31: 20602442439 | D31: CASAPARQ – CERRO COLORADO TORRES F, G y E | E31: PAGO CHALLAPAMPA MZ. A LOTE 01 FUNDO LA MANRIQUE | F31: CERRO COLORADO | G31: AREQUIPA | H31: AREQUIPA | I31: TORRES | J31: TORRES F,G y E | K31: 284 | L31: 154 | M31: AV. LA ENCALADA N°1010 - SANTIAGO DE SURCO-LIMA-LIMA | N31: JULIO CESAR DIAZ COSTA | O31: 227180.34 | P31: 8188126.16 | Q31: 30-PRE-2025 | R31: AGOSTO
A32: 31-PRE-2025 | B32: INMOBILIARIA AGUARICO S.A.C. | C32: 20604507911 | D32: CONJUNTO RESIDENCIAL DEL PARQUE CENTRO TORRE C | E32: JR. LORETO ESQUINA CON JR. DEAN VALDIVIA N° 1608-1610 URB. SAN GREGORIO | F32: BREÑA | G32: LIMA | H32: LIMA | I32: MULTIFAMILIAR | J32: TORRE C | K32: 119 | L32: 119 | M32: AV. LA ENCALADA MZ12 LTE 23 URB. C.C. MONTERRICO SANTIAGO DE SURCO, LIMA, LIMA | N32: JULIO CESAR DIAZ COSTA | O32: 276408.444 | P32: 8665523.417 | Q32: 31-PRE-2025 | R32: AGOSTO
A33: 33-PRE-2025 | B33: VIVA NEGOCIO INMOBILIARIO S.A.C. | C33: 20493040643 | D33: LOS PARQUES DE BREÑA | E33: JR. CHAMAYA - JR MANOA N°280 -N°305 URB. CHACRA COLORADA | F33: BREÑA | G33: LIMA | H33: LIMA | I33: MULTIFAMILIAR | J33: ETAPA 01 / ETAPA 02 / ETAPA 03 / ETAPA 04 / ETAPA 05 | K33: 552 | L33: 552 | M33: AV. PETIT THOUARS N°4957 MIRAFLORES, LIMA, LIMA | N33: GALLUCCIO GALLARDO THERESA | O33: 276481.94 | P33: 8666923.57 | Q33: 33-PRE-2025 | R33: AGOSTO
A34: 34-PRE-2025 | B34: JMS PROYECTOS S.A.C. | C34: 20609824418 | D34: EDIFICIO MULTIFAMILIAR MARABIERTO | E34: AV COSTANERA N°2790 URB. MIRAMAR | F34: SAN MIGUEL | G34: LIMA | H34: LIMA | I34: MULTIFAMILIAR | J34: ETAPA 01 | K34: 220 | L34: 207 | M34: CALLE BOLOGNESI N°180 (OF. 701) MIRAFLORES, LIMA, LIMA | N34: ALVARO RICARDO,PUGA SANCHEZ/ PAOLO ANTONIO, VELASQUEZ OLIVARES | O34: 270479.36 | P34: 8663717.55 | Q34: 34-PRE-2025 | R34: AGOSTO
A35: 35-PRE-2025 | B35: CASAIDEAL PROYECTO 23 S.A.C. | C35: 20612934402 | D35: MULTIFAMILIAR LINK | E35: AV. B (LOS FAISANES), MZ. K, LOTE 14-B, URB. LA CAMPIÑA | F35: CHORILLOS | G35: LIMA | H35: LIMA | I35: MULTIFAMILIAR | J35: TORRE A / TORRE B | K35: 317 | L35: 317 | M35: AV. EL POLO N°670 SANTIAGO DE SURCO, LIMA, LIMA | N35: CARLOS ALFREDO NOVOA AREVALO | O35: 282418.9132 | P35: 8653066.925 | Q35: 35-PRE-2025 | R35: AGOSTO
A36: 36-PRE-2025 | B36: CALICANTO ASESORIA SAC | C36: 20603314361 | D36: MULTIFAMILIAR DEL HORNE | E36: CA. ENRIQUE DEL HORNE N°137 MZ. 26, LOTE 260, URB. FUNDO TEJADA | F36: BARRANCO | G36: LIMA | H36: LIMA | I36: MULTIFAMILIAR | J36: TORRE 1 - TORRE 2 | K36: 67 | L36: 43 | M36: CALLE ENRIQUE DEL HORME N°137, URB. LA VIÑITA, BARRANCO, LIMA, LIMA | N36: ERNESTO ADOLFO ROCA DAMMERT | O36: 280324.7983 | P36: 8657353.963 | Q36: 36-PRE-2025 | R36: SETIEMBRE
A37: 37-PRE-2025 | B37: INMOBILIARIA ACTUAL FAISANES III S.A.C. | C37: 20603605285 | D37: PROYECTO MULTIFAMILIAR FAISANES III | E37: AV. LOS FAISANES N° 348 URB. LA CAMPIÑA | F37: CHORILLOS | G37: LIMA | H37: LIMA | I37: EDIFICIOS | J37: EDIFICIO ÚNICO | K37: 288 | L37: 267 | M37: AV. JAVIER PRADO OESTE N° 757- MAGDALENA DEL MAR-LIMA | N37: GUSTAVO ADOLFO EHNI ALIAGA | O37: 282401.271 | P37: 8652946.503 | Q37: 37-PRE-2025 | R37: AGOSTO
A38: 38-PRE-2025 | B38: ALBA 37 S.A.C. | C38: 20611734213 | D38: EDIFICIO MULTIFAMILIAR PASEO PAZ | E38: AV. CUBA / JR. FRANCISCO DE LA ZELA N° 500-516-520-524 Y 986 - 990 | F38: JESUS MARIA | G38: LIMA | H38: LIMA | I38: H.U. / MULTIFAMILIAR | J38: EDIFICIO 1 | K38: 107 | L38: 79 | M38: CALLE ENRIQUE PALACIOS 335 MIRAFLORES, LIMA, LIMA | N38: CARLOS EDUARDO HIDALGO PEREZ | O38: 277851.971 | P38: 8664338.465 | Q38: 38-PRE-2025 | R38: AGOSTO
A39: 39-PRE-2025 | B39: VIVIENDAS DEL PERÚ SAC | C39: 20512691529 | D39: ATIVO | E39: AV. BOLIVIA N°538 - 544 URB. DEL FUNDO COLORADO | F39: BREÑA | G39: LIMA | H39: LIMA | I39: MULTIFAMILIAR | J39: ETAPA 1 | K39: 192 | L39: 192 | M39: AV. JAVIER PRADO ESTE N° 488 SAN ISIDRO, LIMA, LIMA | N39: JAIME ALBERTO PAREDES SANCHEZ | O39: 277606.032 | P39: 8666426.979 | Q39: 39-PRE-2025 | R39: SETIEMBRE
A40: 32-PRE-2025 | B40: DESARROLLO LINCE S.A.C. | C40: 20605662529 | D40: EDIFICIO MULTIFAMILIAR BOSQO | E40: JIRON LANCEROS 132-142 MZ. A LOTE 13-14 | F40: SANTIAGO DE SURCO | G40: LIMA | H40: LIMA | I40: MULTIFAMILIAR | J40: EDIFICIO 1 | K40: 139 | L40: 80 | M40: AV. REPÚBLICA DE COLOMBIA NRO. 791 INT. 3 | N40: ERICK JARA PALOMINO | O40: 284479.48 | P40: 8663384.44 | Q40: 32-PRE-2025 | R40: AGOSTO
A41: 40-PRE-2025 | B41: JPS TRES INMOBILIARIA S.A.C. | C41: 20612843628 | D41: EDIFICIO MULTIFAMILIAR LAMBAYEQUE 197 | E41: CALLE LAMBAYEQUE N° 197, URB. CAPEBCO | F41: SAN MIGUEL | G41: LIMA | H41: LIMA | I41: MULTIFAMILIAR | J41: EDIFICIO 1 | K41: 52 | L41: 52 | M41: CALLE DOS DE MAYO N° 238, MIRAFLORES, LIMA, LIMA | N41: JOSE EMILIO PEZO BARRIO | O41: 271168.42 | P41: 8664534.418 | Q41: 40-PRE-2025 | R41: SETIEMBRE
A42: 41-PRE-2025 | B42: LA TORRE SERVICIOS INMOBILIARIOS S.A.C. | C42: 20603799942 | D42: PARQUE CHIMÚ | E42: PASAJE CHAQUIRA N°152 URB. SALAMANCA | F42: ATE | G42: LIMA | H42: LIMA | I42: H.U. / MULTIFAMILIAR | J42: EDIFICIO ÚNICO | K42: 9 | L42: 8 | M42: CALLE SAN MARCOS N°236 PUEBLO LIBRE, LIMA, LIMA | N42: JOSUE MAURICIO LA TORRE OROZCO | O42: -76.9892 | P42: -12.0749 | Q42: 41-PRE-2025 | R42: SETIEMBRE
A43: 42-PRE-2025 | B43: INMOBILIARIA CESAR LOPEZ S.A.C. | C43: 20612595047 | D43: EDIFICIO RESIDENCIAL MADISON PARK | E43: JIRON CESAR LOPEZ ROJAS N° 201 | F43: SAN MIGUEL | G43: LIMA | H43: LIMA | I43: H.U. / MULTIFAMILIAR | J43: EDIFICIO 1 | K43: 289 | L43: 287 | M43: AV. REPUBLICA DE PANAMA NRO. 3531 INT. 702 URB. LIMATAMBO, SAN ISIDRO, LIMA, LIMA | N43: MIGUEL SEGUNDO DEUSTUA TAPIA | O43: 272492.48 | P43: 8664301.1 | Q43: 42-PRE-2025 | R43: SETIEMBRE
A44: 43-PRE-2025 | B44: MG PROYECTO 22 S.A.C. | C44: 20610893679 | D44: DULANTO | E44: AV. MANUEL CIPRIANO DULANTO 209, 209-A, 211 , 211-A | F44: PUEBLO LIBRE | G44: LIMA | H44: LIMA | I44: MULTIFAMILIAR | J44: EDIFICIO ÚNICO | K44: 241 | L44: 241 | M44: AV. JAVIER PRADO ESTE 1540-1542, SAN ISIDRO, LIMA, LIMA | N44: VICTOR MAX GUEVARA OTINIANO | O44: 275798 | P44: 8663626 | Q44: 43-PRE-2025 | R44: SETIEMBRE
A45: 44-PRE-2025 | B45: ALBIR INVERSIONES S.A.C | C45: 20606866179 | D45: SUKHA | E45: AVENIDA TOMÁS MARSANO CON CALLE CUATRO N°2293, URB. LOS SAUCES | F45: SURQUILLO | G45: LIMA | H45: LIMA | I45: MULTIFAMILIAR | J45: TORRE 1 | K45: 76 | L45: 24 | M45: CALLE JUAN DE LA FUENTE N° 378 URB. PROLONGACIÓN BENAVIDES, MIRAFLORES, LIMA,LIMA | N45: LUIS ENRIQUE ARIAS CASTILLO | O45: 760500 | P45: 8526300 | Q45: 44-PRE-2025 | R45: SETIEMBRE
A46: 45-PRE-2025 | B46: VIVIENDAS DEL PERÚ SAC | C46: 20512691529 | D46: BILANCIA | E46: JIRON INCLÁN N° 202-206-212 URB. FUNDO ORBEA | F46: MAGDALENA | G46: LIMA | H46: LIMA | I46: MULTIFAMILIAR | J46: EDIFICIO 1 | K46: 144 | L46: 85 | M46: AV. JAVIER PRADO ESTE N° 488 SAN ISIDRO, LIMA, LIMA | N46: JAIME ALBERTO PAREDES SANCHEZ | O46: 277606.032 | P46: 8666426.979 | Q46: 45-PRE-2025 | R46: SETIEMBRE
A47: 46-PRE-2025 | B47: MG PROYECTO 23 S.A.C. | C47: 20611409614 | D47: CENTRICO | E47: JR. SUB- TENIENTE ALEJANDRO TIRADO N°635-655 URB. SANTA BEATRIZ | F47: LIMA | G47: LIMA | H47: LIMA | I47: MULTIFAMILIAR | J47: EDIFICIOS | K47: 212 | L47: 212 | M47: AV. JAVIER PRADO ESTE 1540-1542, SAN ISIDRO, LIMA, LIMA | N47: VICTOR MAX GUEVARA OTINIANO | O47: 275798 | P47: 8663626 | Q47: 46-PRE-2025 | R47: SETIEMBRE
A48: 47-PRE-2025 | B48: INVERSIONES CESIA S.A.C. | C48: 20522872602 | D48: EDIFICIO MULTIFAMILIAR RESIDENCIAL RECUAY | E48: JIRÓN RECUAY N° 273-279-277 URB. CHACRA COLORADA | F48: BREÑA | G48: LIMA | H48: LIMA | I48: MULTIFAMILIAR | J48: TORRE A Y B | K48: 84 | L48: 84 | M48: JR. HUARAZ N°951 BREÑA, LIMA, LIMA | N48: OBED ISAI LANDA VENTURA | O48: 277037.315 | P48: 8666434.172 | Q48: 47-PRE-2025 | R48: SETIEMBRE
A49: 48-PRE-2025 | B49: MILLENNIUM MAGDALENA S.A.C. | C49: 20613998226 | D49: MILLENNIUM | E49: JR JUNIN -ESQ. JR LEONCIO PRADO N°580-582-592-594 /N° 1102-1106-1108-1110 | F49: MAGDALENA DEL MAR | G49: LIMA | H49: LIMA | I49: ETAPAS | J49: EDIFICIO 1 | K49: 74 | L49: 74 | M49: AV. ANGAMOS ESTE NRO. 1555 INT. 2 URB. CASA HUERTA (AL COSTADO DEL C.C. PLAZA HOGAR), SURQUILLO, LIMA, LIMA | N49: JAIME EDUARDO TERRONES LEON | O49: 275823 | P49: 8663426 | Q49: 48-PRE-2025 | R49: SETIEMBRE
A50: 49-PRE-2025 | B50: ANTARES CONTRATISTAS S.A | C50: 20143382339 | D50: EDIFICIO MULTIFAMILIAR SAUCES | E50: VÍA COLECTORA NORTE MZ. A, LOTE 12, URB. LOS PARQUE DEL CHIPE | F50: VEINTISEIS DE OCTUBRE | G50: PIURA | H50: PIURA | I50: H.U / MULTIFAMILIAR | J50: EDIFICIO 1 | K50: 103 | L50: 103 | M50: JR. MONTE ROSA NRO. 255 INTR. 1002 URB. CHACARILLA DEL ESTANQUE (WONG DE CHACARILLA), SANTIAGO DE SURCO, LIMA, LIMA | N50: CARLOS MIGUEL SALINAS ROJAS | O50: 536804.505 | P50: 9428305.491 | Q50: 49-PRE-2025 | R50: OCTUBRE
A51: 50-PRE-2025 | B51: CORPORACIÓN INMOBILIARIA SAN JOSE S.A.C. | C51: 20611517549 | D51: CANNELLE | E51: AVENIDA DE LA POLICIA N° 603, MZ. B, LOTE 9 | F51: JESUS MARIA | G51: LIMA | H51: LIMA | I51: ETAPAS | J51: ETAPA ÚNICA | K51: 83 | L51: 19 | M51: CALLE TENIENTE ENRIQUE PALACIOS N°360 N°INTERIOR 105, MIRAFLORES, LIMA, LIMA | N51: AMELY BALBINA TIMANA VARGAS | O51: 276078.4 | P51: 8662881.65 | Q51: 50-PRE-2025 | R51: OCTUBRE
A52: 51-PRE-2025 | B52: BESCO S.A.C. | C52: 20416162299 | D52: ALAMEDA CENTRAL 2 (ANTES COLONIAL C) | E52: AV. COLONIAL, ANTES AV. OSCAR BENAVIDES N°1140 | F52: LIMA | G52: LIMA | H52: LIMA | I52: H.U. / MULTIFAMILIAR | J52: TORRE 1 / TORRE 2 / TORRE 3 / TORRE 4 | K52: 168 / 168 / 192 / 240 | L52: 168 / 168 / 192 / 240 | M52: AV. PASEO DE LA REPUBLICA N°3245 N°INTER.1101 SAN ISIDRO, LIMA, LIMA | N52: ELISA PIEDAD RIOS NORIEGA | O52: 8667431.026 | P52: 51-PRE-2025 | Q52: 51-PRE-2025 | R52: NOVIEMBRE
A53: 52-PRE-2025 | B53: MONACO PROYECTOS S.A.C. | C53: 20612749044 | D53: EDIFICIO MULTIFAMILIAR ASTRE | E53: AV. GENERAL ARENALES N° 688-698 | F53: JESÚS MARÍA | G53: LIMA | H53: LIMA | I53: MULTIFAMILIAR | J53: TORRE 1 | K53: 84 | L53: 53 | M53: CAL.JUAN DE LA FUENTE NRO. 378 URB. SAN ANTONIO, MIRAFLORES, LIMA,LIMA | N53: LUIS ENRIQUE ARIAS CASTILLO | O53: 277402.4 | P53: 8662352.71 | Q53: 52-PRE-2025 | R53: OCTUBRE
A54: 53-PRE-2025 | B54: PROYEC PROYECTO 02 SAC | C54: 20612811530 | D54: EDIFICIO MULTIFAMILIAR CAPRI | E54: PASAJE CAPRI N° 120-130, URB. PALOMAR NORTE | F54: LA VICTORIA | G54: LIMA | H54: LIMA | I54: MULTIFAMILIAR | J54: ETAPA 1 | K54: 120 | L54: 118 | M54: CAL.LOS ANTARES NRO. 320 INT. 602A URB. LA ALBORADA, SANTIAGO DE SURCO, LIMA,LIMA | N54: JORGE ENRIQUE OTINIANO CABRERA | O54: 280780.278 | P54: 8662887.101 | Q54: 53-PRE-2025 | R54: OCTUBRE
A55: 54-PRE-2025 | B55: GRUPO INMOBILIARIO FNV 1 SAC | C55: 20611738430 | D55: MATCH | E55: AVENIDA LOS PATRIOTAS N° 206-208-210-212 URB. MARANGA 2DA ETAPA | F55: SAN MIGUEL | G55: LIMA | H55: LIMA | I55: MULTIFAMILIAR | J55: TORRE 1 | K55: 131 | L55: 131 | M55: CALLE ENRIQUE PALACIOS N° 335 N° INTERNO 101 MIRAFLORES, LIMA, LIMA | N55: CARLOS EDUARDO HIDALGO PEREZ | O55: 278314 | P55: 8665755 | Q55: 54-PRE-2025 | R55: OCTUBRE
A56: 55-PRE-2025 | B56: ALBA 39 SAC | C56: 20611720077 | D56: RE+ | E56: AVENIDA COLONIAL N° 1740 URB. HUERTA LAZO | F56: LIMA | G56: LIMA | H56: LIMA | I56: H.U / MULTIFAMILIAR | J56: TORRE 1 | K56: 244 | L56: 244 | M56: CALLE ENRIQUE PALACIOS N° 335 N° INTERNO 101 MIRAFLORES, LIMA, LIMA | N56: CARLOS EDUARDO HIDALGO PEREZ | O56: 268000 | P56: 8657000 | Q56: 55-PRE-2025 | R56: OCTUBRE
A57: 56-PRE-2025 | B57: VAL D1 S.A.C. | C57: 20613244965 | D57: CONJUNTO RESIDENCIAL BONAVISTA | E57: CALLE GENERAL ORBEGOZO MZ. P, LOTE 9-10-11-12-13, URB. SAN LUIA GONZAGA -II ETAPA | F57: BREÑA | G57: LIMA | H57: LIMA | I57: SECTORES | J57: BLOQUE A Y BLOQUE B | K57: 178 | L57: 111 | M57: AV. CAMINO REAL NRO. 390 DPTO. 1401 INT. A URB. CENTRO COMERCIAL CAMINO REAL (EDIFICIO TORRE CENTRAL), SAN ISIDRO, LIMA, LIMA | N57: FREDDY SANTIAGO SALCEDO CASASOLA | O57: 276454 | P57: 8665674 | Q57: 56-PRE-2025 | R57: OCTUBRE
A58: 57-PRE-2025 | B58: URSA CONSTRUCTORA S.A.C. | C58: 20602099416 | D58: EDIFICIO FENIX | E58: AV. AFRANIO DE MELIO FRANCO N°365,369,371,375M379 URB. DEL FUNDO JESUS MARIA | F58: JESÚS MARIA | G58: LIMA | H58: LIMA | I58: MULTIFAMILIAR | J58: EDIFICIO ÚNICO | K58: 83 | L58: 61 | M58: CALLE CANTUARIAS N°160 URB. TELLO, MIRAFLORES, LIMA, LIMA | N58: PAULO ALFONSO HIGUERAS SUAREZ | O58: 276815.24 | P58: 8664229.21 | Q58: 57-PRE-2025 | R58: OCTUBRE
A59: 58-PRE-2025 | B59: CONSTRUCTORA GALILEA SAC | C59: 20521119943 | D59: VALLE ALTO | E59: PREDIO ARENA VERDE SAC, VALLE MEDIO PIURA, SUBLOTE 1, URB. SECTOR EJIDOS DEL NORTE | F59: PIURA | G59: PIURA | H59: PIURA | I59: H.U. / UNIFAMILIAR | J59: ETAPAS 1 AL 17 | K59: 507 | L59: 507 | M59: AV. PRIMAVERA NRO. 1796 INT. 601 URB. MONTERRICO (ESQUINA JR. TOMASAL MZ.P2 LOTE 25), SANTIAGO DE SURCO, LIMA, LIMA | N59: RENATO RIVA CANESSA | O59: 540864.2922 | P59: 9430549.86 | Q59: 58-PRE-2025 | R59: OCTUBRE
A60: 59-PRE-2025 | B60: SAN MIGUEL 14 S.A.C. | C60: 20613357557 | D60: VIVUM | E60: JIRÓN GENERAL JUAN JOSÉ SALAS N° 291.289 | F60: SAN MIGUEL | G60: LIMA | H60: LIMA | I60: TORRES | J60: TORRE 1 | K60: 34 | L60: 26 | M60: CALLE CORONEL ANDRES REYES N°550, SAN ISIDRO, LIMA, LIMA | N60: MARCELO MARTIN QUISPE REYNA | O60: 279000 | P60: 1338000 | Q60: 59-PRE-2025 | R60: OCTUBRE
A61: 60-PRE-2025 | B61: DESARROLLO BELLAVISTA SAC | C61: 20612673862 | D61: CONJUNTO RESIDENCIAL PAZEA | E61: AV. OSCAR R. BENAVIDES N°3866-4070, SUB LOTE B | F61: BELLAVISTA | G61: CALLAO | H61: CALLAO | I61: MULTIFAMILIAR | J61: EDIFICIO 1 / EDIFICIO 2 / EDIFICIO 3 / EDIFICIO 4 / EDIFICIO 5 / EDIFICIO 6 / EDIFICIO 7 | K61: 816 | L61: 816 | M61: AV. REPUBLICA DE COLOMBIA NRO. 791 URB. CHACARILLA DE SANTA CRUZ , SAN ISIDRO, LIMA, LIMA | N61: ANA MARIA QUIJANO DOIG | O61: 271381.27 | P61: 8666355.06 | Q61: 60-PRE-2025 | R61: OCTUBRE
A62: 61-PRE-2025 | B62: MATIER S.A.C. | C62: 20392737058 | D62: CONJUNTO RESIDENCIAL GREEN LIFE | E62: AVENIDA LOS GORRIONES / JIRON PERSEO N° 490, MZ. G, LOTE 1, URB. LA CAMPIÑA | F62: CHORRILLOS | G62: LIMA | H62: LIMA | I62: TORRES | J62: TORRE A, TORRE B y TORRE C | K62: 187 | L62: 186 | M62: AV. EMILIO CAVENECIA N°225 URB. ORRANTIA DEL MAR, SAN ISIDRO, LIMA, LIMA | N62: VICTORIA PILAR AYSANOA LOPEZ DE RAMOS | O62: 281905.653 | P62: 8653054.244 | Q62: 61-PRE-2025 | R62: OCTUBRE
A63: 62-PRE-2025 | B63: ECOMARINA DESARROLLOS S.A.C. | C63: 20608895796 | D63: EDIFICIO MULTIFMALIAR VIVAPARK | E63: CALLE ALFREDO ICAZA N°185 URB. MARANGA | F63: SAN MIGUEL | G63: LIMA | H63: LIMA | I63: H.U / MULTIFAMILIAR | J63: TORRE | K63: 24 | L63: 22 | M63: CAL.JUAN FANNING NRO. 561 URB. ARMENDARIZ, MIRAFLORES, LIMA, LIMA | N63: ALFONSO SERRANO ANSELMO | O63: 271852.808 | P63: 8664341.14 | Q63: 62-PRE-2025 | R63: NOVIEMBRE
A64: 63-PRE-2025 | B64: FREAK CONSTRUCTORES Y CONSULTORES S.R.L. | C64: 20450515010 | D64: RESIDENCIAL GRECEL | E64: CALLE LOS GERANIOS LOTE D5-4-5 URB. INGENIEROS LARAPA GRANDE | F64: SAN JERÓNIMO | G64: CUSCO | H64: CUSCO | I64: MULTIFAMILIAR | J64: TORRE 1 | K64: 41 | L64: 34 | M64: AV. REPUBLICA DE PANAMA NRO. 3420 INT. 301 URB. LIMATAMBO, SAN ISIDRO, LIMA, LIMA | N64: DUSHIAN ENRIQUE ROSA CRUZ | O64: 185778 | P64: 8501985 | Q64: 63-PRE-2025 | R64: NOVIEMBRE
A65: 64-PRE-2025 | B65: CONSTRUCTORA CUMBRES MONUMENTAL S.A.C. | C65: 20607279161 | D65: CONJUNTO RESIDENCIAL " VILLA MONUMENTAL" - CONDOMINIO 1 | E65: AV. ARGENTINA N° 1784-1846-1882 | F65: CALLAO | G65: CALLAO | H65: CALLAO | I65: MULTIFAMILIAR | J65: EDIFICIO 1 / EDIFICIO 2 / EDIFICIO 3 / EDIFICIO 4 | K65: 512 | L65: 512 | M65: CAL.ALFONSO COBIAN NRO. 179 URB. BARRANCO (ESPALDA DE PLAZA VEA EL CORTIJO), BARRANCO, LIMA, LIMA | N65: ENRIQUE MARTIN HERRERA MARTINEZ | O65: 268805.5693 | P65: 8666884.008 | Q65: 64-PRE-2025 | R65: NOVIEMBRE
A66: 65-PRE-2025 | B66: ASTER COSTANERA 1010 S.A.C. | C66: 20614462842 | D66: EDIFICIO MULTIFAMILIAR COSTANERA | E66: AV. COSTANERA N°1010, LOTE NRO. 4 | F66: SAN MIGUEL | G66: LIMA | H66: LIMA | I66: H.U / MULTIFAMILIAR | J66: EDIFICIO ÚNICO | K66: 214 | L66: 122 | M66: AV. SANTA CRUZ EL ALAMO NRO. 381 INT. 10 URB. CHACARILLA, SAN BORJA, LIMA, LIMA | N66: GIANCARLO CARBAJAL GALARZA | O66: 272200.61 | P66: 8662969 | Q66: 65-PRE-2025 | R66: NOVIEMBRE
A67: 66-PRE-2025 | B67: MILAN PROYECTOS S.A.C. | C67: 20611644052 | D67: AURORA 4 | E67: AV. SERGIO BERNALES N°258, MZ. W,URB. DEL BARRIO MEDICA Y DE LA CLINICA PROPIA | F67: SURQUILLO | G67: LIMA | H67: LIMA | I67: MULTIFAMILIAR | J67: TORRE 1 | K67: 74 | L67: 43 | M67: CAL.JUAN DE LA FUENTE NRO. 378, MIRAFLORES, LIMA,LIMA | N67: LUIS ENRIQUE ARIAS CASTILLO | O67: 280263 | P67: 8659836 | Q67: 66-PRE-2025 | R67: NOVIEMBRE
A68: 67-PRE-2025 | B68: SAN JOSE INMOBILIARIA PERÚ S.A.C | C68: 20509534838 | D68: ALTAVISTA CONDOMINIO | E68: AV. VENEZUELA, N° 2695 | F68: BELLAVISTA | G68: CALLAO | H68: CALLAO | I68: ETAPAS | J68: ETAPA 1 HASTA LA ETAPA 10 | K68: 1056 | L68: 1056 | M68: AV. SANTA CRUZ N° 120, INT. 402, URB. CHACARILLA SANTA CRUZ EL ÁLAMO, SAN ISIDRO - LIMA | N68: JUAN ANTONIO ACEDO LOPEZ | O68: 272169.8475 | P68: 8665825.94 | Q68: 67-PRE-2025 | R68: NOVIEMBRE
A69: 68-PRE-2025 | B69: INMOBILIARIA 23 S.A.C. | C69: 20609436850 | D69: OCEANIKA | E69: AV. JUAN BERTOLOTTO NEGRO N°570, URB. FUNDO SAN MIGUEL. | F69: SAN MIGUEL | G69: LIMA | H69: LIMA | I69: TORRES | J69: TORRE ÚNICA | K69: 206 | L69: 173 | M69: AV. JUAN DE ALIAGA INT 810 N° 425, MAGDALENA DEL MAR, LIMA | N69: ROMMEL EDWIN VASQUEZ SILVA | O69: 273475 | P69: 8662387 | Q69: 68-PRE-2025 | R69: NOVIEMBRE
A70: 69-PRE-2025 | B70: ECO 564 S.A.C. | C70: 20612060691 | D70: ECOAMIRA | E70: AV. LOS PATRIOTAS MZ. H-M LT. 11 URB. MARANGA 3RA ETAPA. | F70: SAN MIGUEL | G70: LIMA | H70: LIMA | I70: EDIFICIOS | J70: EDIFICIO ÚNICO | K70: 91 | L70: 91 | M70: CAL. JUANA FANING N°561 URB. ALMENDARIZ - MIRAFLORES | N70: ALFONSO SERRANO ANSELMO | O70: 271272.5316 | P70: 8664259.735 | Q70: 69-PRE-2025 | R70: NOVIEMBRE
A71: 70-PRE-2025 | B71: INMOBILIARIA LOS ALERCES S.A.C. | C71: 20600517571 | D71: EDIFICIO MULTIFAMILIAR NARA | E71: AV. AREQUIPA N° 2364 - 2370 | F71: LINCE | G71: LIMA | H71: LIMA | I71: EDIFICIOS | J71: EDIFICIO 1 | K71: 128 | L71: 74 | M71: CAL. GERMAN SCHEREIBER N° 276, URB. SANTA ANA, SAN ISIDRO-LIMA | N71: IAN KUNIJI KISHIMOTO RAMIREZ | O71: 278581.2 | P71: 8662919.28 | Q71: 70-PRE-2025 | R71: NOVIEMBRE
A72: 71-PRE-2025 | B72: INMOBILIARIA SAN MARTIN DE TOURS S.A.C. | C72: 20512781196 | D72: TORRE MARSANO 28 | E72: AV. ANGAMOS ESTE ESQUINA CON AVENIDA TOMAS MARSANO N° 1795, MZ B, LOTE 8-9-10, URB. EL CONDOR. | F72: SURQUILLO | G72: LIMA | H72: LIMA | I72: EDIFICIOS | J72: EDIFICIO ÚNICO | K72: 348 | L72: 348 | M72: AV. ARAMBURU N° 965, DPT. 202, DISTRITO DE SAN ISIDRO, LIMA | N72: GONZALO ENRIQUE SUITO SÁNCHEZ AIZCORBE | O72: 280923.745 | P72: 8660220.812 | Q72: 71-PRE-2025 | R72: NOVIEMBRE
A73: 72-PRE-2025 | B73: CORPORACIÓN INMOBILIARIA FERMONT S.A.C. | C73: 20600245504 | D73: AVELLANA | E73: Av. Brasil / Av. Borgoño, N° 1350-1354 / 147-149 151-153-155-157-159-161, Urb. Desamparados | F73: PUEBLO LIBRE | G73: LIMA | H73: LIMA | I73: TORRES | J73: TORRE A Y B | K73: 656 | L73: 560 | M73: CALLE ENRIQUE PALACIOS N°360 N°INTERIOR 105, MIRAFLORES, LIMA, LIMA | N73: AMELY BALBINA TIMANA VARGAS | O73: 276638.55 | P73: 8664609.01 | Q73: 72-PRE-2025 | R73: DICIEMBRE
A74: 73-PRE-2025 | B74: INMOBILIARIA LA VID S.A.C | C74: 20613240021 | D74: SAUCE ZEN | E74: Calle Carlos Gonzales Candamo / Pje. Martin Murua N°218-222-224-202-206, Mz B, Lote 4-5 , Urbanización. Centro comercial septima etapa. | F74: SAN MIGUEL | G74: LIMA | H74: LIMA | I74: ETAPAS | J74: ETAPA UNICA | K74: 263 | L74: 263 | M74: CAL.MAMA OCLLO NRO. 2647 URB. RISSO (CRUCE CON JR LUIS PASTEUR) LIMA - LIMA - LINCE | N74: FERNANDO FELIX TORATTO FERNANDEZ | O74: 272425.18 | P74: 8664262 | Q74: 73-PRE-2025 | R74: DICIEMBRE
A75: 74-PRE-2025 | B75: INVERSIONES INMOBILIARIAS DE SAN MIGUEL S.A.C. | C75: 20613545230 | D75: NOVA COLONIAL | E75: Av. Oscar Benavides N° 2078-2082, Mz A, Lote 18, Urb. la Trinidad. | F75: LIMA | G75: LIMA | H75: LIMA | I75: TORRES | J75: TORRE UNICA | K75: 199 | L75: 199 | M75: Av. EL DERBY N° 254 DPTO. 803 | N75: FREDY MARTIN LOPEZ PROANO | O75: 274809.324 | P75: 8667219.831 | Q75: 74-PRE-2025 | R75: DICIEMBRE
A76: 75-PRE-2025 | B76: MIRADOR DEL MAR S.A.C. | C76: 20611734183 | D76: MIRAMAR | E76: AV. GUARDIA PERUANA N°295, URB. PARCELA SEMI RUSTICA. | F76: CHORRILLOS | G76: LIMA | H76: LIMA | I76: TORRES | J76: TORRE 1 | K76: 107 | L76: 87 | M76: Av. EL DERBY N° 254 DPTO. 202 URB EL DERBY DE MONTERRICO SURCO-LIMA-LIMA | N76: JOSE MARTIN JIMENEZ LLOSA | O76: 283023.399 | P76: 8652545.363 | Q76: 75-PRE-2025 | R76: DICIEMBRE
A77: 76-PRE-2025 | B77: GRUPO BINOMIO S.A.C | C77: 20536803646 | D77: RESIDENCIAL DELFINA | E77: CALLE GERMÁN AMEZAGA N° 815-817, MZ V1, LOTE 12, URB. SAN JUAN. | F77: SAN JUAN DE MIRAFLORES | G77: LIMA | H77: LIMA | I77: TORRES | J77: TORRE 1 | K77: 29 | L77: 27 | M77: AV. NICOLAS ARRIOLA N°314 OFICINA D-1101 URB SANTA CATALINA VICTORIA-LIMA-LIMA | N77: ANGELA MARIA URBANO PINTO | O77: 85803.326 | P77: 54260.076 | Q77: 76-PRE-2025 | R77: DICIEMBRE

Sheet Propuesta de Certificados (hidden)
A1: N° Certificado | B1: Promotor | C1: Nombre del proyecto | D1: N° Etapa | E1: Cantidad de Viviendas con Bono | F1: Grado de Bono al que postula | G1: RUC | H1: motivo de reitro | L1: Cantidad de Viviendas Totales
A2: AE.RE-092-2020 | B2: Madrid Ingenieros | C2: Sol de Santa Clara | D2: 1 | E2: 279 | F2: 3+ | G2: 20508967226 | I2: ATE | J2: LIMA | K2: LIMA | L2: 279
A3: 301/15-0502.02 | B3: CORPORACION INMOBILIARIA SUDAMERICANA SAC | C3: Condominio Paseo Colonial | D3: 1 | E3: 262 | G3: 20506908061 | I3: LIMA | J3: LIMA | K3: LIMA | L3: 262
A4: AE.RE-053-2020 | B4: REDBAY DEL PERU SAC | C4: Alameda las Gaviotas | D4: Etapa 3 - Torre A y B | E4: 144 | F4: 3+ | G4: 20500523540 | I4: CHORRILLOS | J4: LIMA | K4: LIMA | L4: 358
A5: AE-RE-007-2020 | B5: VIVA GYM S.A. | C5: Los Parques de Comas, Los Girasoles | D5: 4 | E5: 256 | F5: 3+ | G5: 20493040643 | I5: COMAS | J5: LIMA | K5: LIMA | L5: 384
A6: AE.RE.001.2020 | B6: VIVA GYM S.A. | C6: Los Parques de Comas, Los Nogales | D6: 1 | E6: 192 | F6: 3+ | G6: 20493040643 | I6: COMAS | J6: LIMA | K6: LIMA | L6: 576
A7: AE-RE-008-2020 | B7: VIVA GYM S.A. | C7: Los Parques de Comas, Los Molles | D7: 1 | E7: 360 | F7: 3+ | G7: 20493040643 | I7: COMAS | J7: LIMA | K7: LIMA | L7: 720
A8: AE-RE-009-2020 | B8: VIVA GYM S.A. | C8: Los Parques de Comas, Los Girasoles | D8: 6 | E8: 512 | F8: 3+ | G8: 20493040643 | I8: COMAS | J8: LIMA | K8: LIMA | L8: 512
A9: AE-RE-013-2020 | B9: VIVA GYM S.A. | C9: Los Parques del Callao | D9: 2,3 y 4 | E9: 360 | F9: 3+ | G9: 20493040643 | I9: CALLAO | J9: CALLAO | K9: CALLAO | L9: 984
A10: AE-RE-002-2020 | B10: BESCO S.A.C. | C10: Altaluz Condominio | D10: Etapa 3 - Torre 3 | E10: 308 | F10: 3+ | G10: 20416162299 | I10: CALLAO | J10: CALLAO | K10: CALLAO | L10: 338
A11: AE.RE-016-2020 | B11: BESCO S.A.C. | C11: Nuevo Nogales | D11: Torres 10,11,12 | E11: 480 | F11: 3+ | G11: 20416162299 | I11: EL AGUSTINO | J11: LIMA | K11: LIMA | L11: 2120
A12: 301/17-0314.07 | B12: Inmobiliaria Ruttini | C12: Terrazas del Sol Condominio | D12: 1, 2,3 y 4 | E12: 858 | G12: 20518010329 | I12: SAN JUAN DE LURIGANCHO | J12: LIMA | K12: LIMA | L12: 858
A13: 301/17-2529 | B13: BELGICA EDIFICACIONES S.A. | C13: Precursores 4 | D13: 1 | E13: 6 | G13: 20329728022 | I13: SAN MIGUEL | J13: LIMA | K13: LIMA | L13: 57
A14: AE.RE-077-2020 | B14: LIDER INGENIERIA Y CONSTRUCCIÓN SA | C14: Conjunto Residencial Kampu | D14: 2 (Edif. 9,10,11); 3(Edif. 5,6); 4(Edif. 12,13); 5(Edif. 14,15); 6( Edif. ,16,17) | E14: 220 | F14: 3+ | G14: 20519431395 | I14: ATE | J14: LIMA | K14: LIMA | L14: 220
A15: 301/17-2180 | B15: WR S.A. | C15: Buganvillas | D15: Torre C y Torre D | E15: 140 | G15: 20100048702 | I15: COMAS | J15: LIMA | K15: LIMA | L15: 384
A16: 301/17-2528 | B16: D&D CONSTRUCTORES S.A.C. | C16: Urbanizacion Los Huarangos | D16: 3 | E16: 99 | G16: 20494649161 | I16: ICA | J16: ICA | K16: ICA | L16: 99
A17: N° 001.2018 | B17: Inversiones Qualiving SAC /Zen Grupo Inmobiliairo | C17: Edificio Multifamiliar Arnaldo Marquez | D17: Torre unica | E17: 112 | G17: 20601622581 | I17: JESUS MARIA | J17: LIMA | K17: LIMA | L17: 132
A18: N° 003.2018 | B18: AN Inmobiliaria | C18: Ciudad Horcones | D18: 8 | E18: 1025 | G18: 20563652145 | I18: JAYANCA | J18: LAMBAYEQUE | K18: LAMBAYEQUE | L18: 1025
A19: N° 002.2018 | B19: Desarrollo Sucre 132 SAC /COSAPI | C19: Edificio PRANA | D19: 1 | E19: 73 | G19: 20601803993 | I19: PUEBLO LIBRE | J19: LIMA | K19: LIMA | L19: 79
A20: AE.RE.023-2020 | B20: Inversiones Inmobiliarias del Indico S.A. (IMAGINA) | C20: Alto Benavides | D20: Todo el Proyecto | E20: 647 | F20: 3+ | G20: 20514048071 | I20: LIMA | J20: LIMA | K20: LIMA | L20: 647
A21: N° 005.2018 | B21: Inversiones Inmobiliarias del Mantaro SA. (IMAGINA) | C21: Alto Venezuela | D21: 3 | E21: 447 | F21: 3+ | G21: 20517503224 | I21: SAN MIGUEL | J21: LIMA | K21: LIMA | L21: 687
A22: AE.RE.028-2020 | B22: MEJ INMOBILIARIA SAC | C22: Grand Central | D22: 1 | E22: 148 | F22: 3+ | G22: 20602151655 | I22: BREÑA | J22: LIMA | K22: LIMA | L22: 148
A23: N° 007.2018 | B23: CONSTRUCTORA INARCO PERU SAC | C23: Condominio Paseo San Martin | D23: Torre 3 | E23: 116 | G23: 20519219922 | I23: SAN MARTIN DE PORRES | J23: LIMA | K23: LIMA | L23: 456
A24: AE.RE-159-2020 | B24: MY HOME Organización Inmobiliaria | C24: Edificio Millenium | D24: 1 | E24: 84 | F24: 2+ | G24: 20509748633 | I24: LA VICTORIA | J24: LIMA | K24: LIMA | L24: 84
A25: N° 008.2018 | B25: COSAPI INMOBILIARIA & GRUPO LAR | C25: Duplo | D25: Torre A | E25: 147 | G25: 20555934263 | I25: BREÑA | J25: LIMA | K25: LIMA | L25: 177
A26: N° 010.2018 | B26: INVERSIONES GRANADERO S.A.C. | C26: Altus One | D26: Torre A | E26: 112 | G26: 20506916080 | I26: SAN MIGUEL | J26: LIMA | K26: LIMA | L26: 112
A27: N° 012.2018 | B27: TM GESTION INMOBILIARIA S.A.C. | C27: Condominio Jardines de Santa Beatriz | D27: 1 (Torre C) | E27: 77 | G27: 20549790373 | I27: LIMA | J27: LIMA | K27: LIMA | L27: 77
A28: AE.RE-089-2020 | B28: DESARROLLO INMOBILIARIO FT S.A.C. | C28: Hara | D28: Fase 1 y Fase 2 | E28: 160 | F28: 3+ | G28: 20601881749 | I28: LA VICTORIA | J28: LIMA | K28: LIMA | L28: 170
A29: N° 012B.2018 | B29: WESCON | C29: Edificio Residencial Conecta | D29: 1 | E29: 75 | G29: 20509940666 | I29: LIMA | J29: LIMA | K29: LIMA | L29: 75
A30: AE.RE.019-2021 | B30: AMAUTA 2272 SAC (antes WESCON) | C30: Edificio Multifamiliar FESTIVA - Etapa 2( antes Edificio de Vivienda Multifamiliar Amauta) | D30: Etapa 2 | E30: 136 | F30: 3+ | G30: 20557848411 | I30: LIMA | J30: LIMA | K30: LIMA | L30: 140
A31: N° 016.2018 | B31: PAZ CENTENARIO S.A. | C31: Ciudad Verde 3 | D31: 3 (Torre E y F) | E31: 45 | G31: 20518023579 | I31: PUENTE PIEDRA | J31: LIMA | K31: LIMA | L31: 144
A32: N° 015.2018 | B32: PAZ CENTENARIO S.A. | C32: Ciudad Nueva 3 | D32: 3 (Torre E y F) | E32: 63 | G32: 20518023579 | I32: CALLAO | J32: CALLAO | K32: CALLAO | L32: 444
A33: AE.RE-111-2020 | B33: PAZ CENTENARIO S.A. | C33: Ciudad Nueva 5 | D33: 5 (Torre I,J) | E33: 128 | F33: 3+ | G33: 20518023579 | I33: CALLAO | J33: CALLAO | K33: CALLAO | L33: 128
A34: AE.RE-113-2020 | B34: PAZ CENTENARIO S.A. | C34: Ciudad Nueva 4 | D34: 4(Torre D) | E34: 27 | G34: 20518023579 | I34: CALLAO | J34: CALLAO | K34: CALLAO | L34: 27
A35: AE.RE-114-2020 | B35: PAZ CENTENARIO S.A. | C35: Proyectos Prados del Sol 4 | D35: 4 (Torre J,K,L) | E35: 58 | F35: 3+ | G35: 20518023579 | I35: ATE | J35: LIMA | K35: LIMA | L35: 120
A36: N° 018.2018 | B36: PAZ CENTENARIO S.A. | C36: Ciudad Verde | D36: 4 (Torre G) | E36: 72 | G36: 20518023579 | I36: PUENTE PIEDRA | J36: LIMA | K36: LIMA | L36: 72
A37: AE-RE-027-2020 | B37: DESARROLLO PLAZA GRAU SAC (GRUPO LAR) | C37: CONJUNTO RESIDENCIAL Y DE COMERCIO MIDLIMA (antes Midtown) | D37: Torres 1,2,3,4,5,6,7,8,9,10,11,12,13 | E37: 414 | F37: 3+ | G37: 20563177323 | I37: LIMA | J37: LIMA | K37: LIMA | L37: 414
A38: AE-RE-052-2020 | B38: DESARROLLADORA VISTA NEVADO S.A.C. | C38: CasaParq | D38: Torres B | E38: 63 | F38: 3+ | G38: 20602442439 | I38: CERRO COLORADO | J38: AREQUIPA | K38: AREQUIPA | L38: 63
A39: N° 020.2018 | B39: LIDER INVERSIONES AREQUIPA SA (Lider) | C39: Almira Condominio | D39: 1 Etapa, 1 Edificio | E39: 63 | G39: 20539613716 | I39: JACOBO HUNTER | J39: AREQUIPA | K39: AREQUIPA | L39: 63
A40: AE-RE-011-2020 | B40: VIVA GYM S.A. | C40: Los Parques de Comas, Villa Jacaranda | D40: 6 Edificios, 1,2,3,4,5,6 | E40: 720 | F40: 3+ | G40: 20493040643 | I40: COMAS | J40: LIMA | K40: LIMA | L40: 720
A41: N° 025.2018 | B41: A-ZERO INMOBILIARIA S.A.C. | C41: Buenavista | D41: Torre unica | E41: 3 | G41: 20451658337 | I41: SANTIAGO DE SURCO | J41: LIMA | K41: LIMA | L41: 3
A42: N° 026.2018 | B42: A-ZERO INMOBILIARIA S.A.C. | C42: Multifamiliar Nature | D42: Torre unica | E42: 8 | G42: 20451658337 | I42: LURIGANCHO | J42: LIMA | K42: LIMA | L42: 8
A43: AE.RE.026-2020 | B43: DESARROLLO TANGUIS S.A.C. (antes GRUPO LAR DESARROLLOS INMOBILIARIOS S.A.C.) | C43: Eres | D43: Fase 1 Torre A, Fase 2 Torre B, Fase 3 Torre C | E43: 365 | F43: 3+ | G43: 20551609538 | I43: SURQUILLO | J43: LIMA | K43: LIMA | L43: 599
A44: AE-RE-021-2020 | B44: DESARROLLO PASEO DE LA REPUBLICA S.A.C. (Anteriormente GRUPO LAR DESARROLLOS INMOBILIARIOS SAC) | C44: Elant | D44: Fase 1 Torre A, Fase 2 Torre B, Fase 3 Torre C | E44: 447 | F44: 3+ | G44: 20601832098 | I44: LA VICTORIA | J44: LIMA | K44: LIMA | L44: 448
A45: N° 029.2018 | B45: INMOBILIARIA VALLE LUZ S.A.C. (CANTABRIA) | C45: Edificio Motion San Miguel | D45: Torre Unica | E45: 54 | G45: 20492434052 | I45: SAN MIGUEL | J45: LIMA | K45: LIMA | L45: 138
A46: N° 030.2018 | B46: INMOBILIARIA NUESTRA SEÑORA DE COPACABANA SAC (Magbis) | C46: Residencial Nuevo Lurin | D46: Torre unica | E46: 68 | G46: 20549933409 | I46: LURIN | J46: LIMA | K46: LIMA | L46: 68
A47: AE.RE-115-2020 | B47: PAZ CENTENARIO S.A. | C47: Proyectos Prados del Sol 5 | D47: 5 (Torre H,I) | E47: 40 | F47: 3+ | G47: 20518023579 | I47: ATE | J47: LIMA | K47: LIMA | L47: 60
A48: AE.RE-116-2020 | B48: PAZ CENTENARIO S.A. | C48: Proyectos Prados del Sol 3 | D48: 3 (Torre M,N,O) | E48: 70 | F48: 3+ | G48: 20518023579 | I48: ATE | J48: LIMA | K48: LIMA | L48: 100
A49: AE-RE-074-2020 | B49: ALBAURBE PROMOTORA INMOBILIARIA SAC (ALBAMAR) | C49: POINT PUEBLO LIBRE (antes EDIFICIO BOLIVAR POINT) | D49: Torre unica (del piso 5° al piso 20°) | E49: 55 | F49: 3+ | G49: 20601552249 | I49: PUEBLO LIBRE | J49: LIMA | K49: LIMA | L49: 166
A50: AE.RE.004.2020 | B50: VIVA GYM S.A. | C50: Los Parques de Comas, Los Laureles | D50: 1 | E50: 640 | F50: 3+ | G50: 20493040643 | I50: COMAS | J50: LIMA | K50: LIMA | L50: 640
A51: AE-RE-012-2020 | B51: VIVA GYM S.A. | C51: Los Parques de Comas, Los Laureles | D51: 2 | E51: 640 | F51: 3+ | G51: 20493040643 | I51: COMAS | J51: LIMA | K51: LIMA | L51: 640
A52: AE-RE-014-2020 | B52: VIVA GYM S.A. | C52: Los Parques de Comas, Los Laureles | D52: 3 | E52: 640 | F52: 3+ | G52: 20493040643 | I52: COMAS | J52: LIMA | K52: LIMA | L52: 640
A53: AE-RE-015-2020 | B53: VIVA GYM S.A. | C53: Los Parques de Comas, Los Laureles | D53: 4 | E53: 640 | F53: 3+ | G53: 20493040643 | I53: COMAS | J53: LIMA | K53: LIMA | L53: 640
A54: N° 036.2018 | B54: VIVA GYM S.A. | C54: Los Parques de Comas, Girasoles 5 | D54: 5 | E54: 384 | G54: 20493040643 | I54: COMAS | J54: LIMA | K54: LIMA | L54: 384
A55: AE-RE-010-2020 | B55: VIVA GYM S.A. | C55: Los Parques de Comas, Las Magnolias | D55: Torres 1,2,3,4,5,6 | E55: 768 | F55: 3+ | G55: 20493040643 | I55: COMAS | J55: LIMA | K55: LIMA | L55: 768
A56: AE.RE-034-2020 | B56: VIVA GYM S.A. | C56: Los Parques de Piura 2 | D56: ETAPA 2 | E56: 240 | F56: 3+ | G56: 20493040643 | I56: PIURA | J56: PIURA | K56: PIURA | L56: 336
A57: N° 040.2018 | B57: NEOVIDA CONSTRUCCIONES SAC | C57: Residencial Santa elena | D57: Torre unica | E57: 11 | G57: 20524115213 | I57: MAGDALENA DEL MAR | J57: LIMA | K57: LIMA | L57: 31
A58: AE.RE-160-2020 | B58: VIVA GYM S.A. | C58: Parques del Mar | D58: Torre A y Torre B | E58: 248 | F58: 2+ | G58: 20493040643 | I58: SAN MIGUEL | J58: LIMA | K58: LIMA | L58: 248
A59: AE.RE-105-2020 / AE.RE 95-2020. | B59: CONSORCIO DH MONT & CG&M S.A.C. | C59: Ciudad Sol de Collique | D59: Manzana E (todos los blocks) y Manzana G Lote 4 (Block N° 9 y 18) y Lote 5 (Block N° 7 y 8) | E59: 2906 | F59: 3+ | G59: 20502574109 | I59: COMAS | J59: LIMA | K59: LIMA | L59: 4260
A60: AE.RE.096-2020 | B60: CONSORCIO DH MONT & CG&M S.A.C. | C60: Oasis de Piura | D60: 1,2,3,4 | E60: 2352 | F60: 3+ | G60: 20502574109 | I60: PIURA | J60: PIURA | K60: PIURA | L60: 2352
A61: AE.RE.022-2020 | B61: INVERSIONES INMOBILIARIAS DE LA ATLANTIDA S.A. | C61: Conjunto residencial SMART | D61: Torre A y Torre B | E61: 178 | F61: 3+ | G61: 20515544187 | I61: SURQUILLO | J61: LIMA | K61: LIMA | L61: 306
A62: N° 045.2018 | B62: PAZ CENTENARIO S.A. | C62: Vista Azul Etapa 1 | D62: Torre A | E62: 123 | G62: 20518023579 | I62: SAN MIGUEL | J62: LIMA | K62: LIMA | L62: 123
A63: N° 046.2018 | B63: PAZ CENTENARIO S.A. | C63: Icono | D63: Torre unica | E63: 75 | G63: 20518023579 | I63: BREÑA | J63: LIMA | K63: LIMA | L63: 255
A64: AE.RE-055-2020 | B64: CONSORCIO CISSAC SCANDER S.A.C. (CISSAC) | C64: Del Parque | D64: Edificio 1-Modulo 2 | E64: 120 | F64: 3+ | G64: 20601676622 | I64: PIMENTEL | J64: CHICLAYO | K64: LAMBAYEQUE | L64: 120
A65: N° 048.2018 | B65: PAZ CENTENARIO S.A. | C65: Villa Club Ica Sub Etapa 2 | D65: 2 | E65: 31 | G65: 20518023579 | I65: LA TINGUIÑA | J65: ICA | K65: ICA | L65: 59
A66: N° 049.2018 | B66: PAZ CENTENARIO S.A. | C66: Villa Club Ica Sub Etapa 3 | D66: 3 | E66: 68 | G66: 20518023579 | I66: LA TINGUIÑA | J66: ICA | K66: ICA | L66: 68
A67: N° 050.2018 | B67: CONSTRUCTORA E INMOBILIARIA PALCER SAC | C67: Condominio Residencial Los Huertos | D67: II-2 | E67: 70 | G67: 20505196865 | I67: SAN MARTIN DE PORRES | J67: LIMA | K67: LIMA | L67: 70
A68: AE.RE-059-2020 | B68: BUENAS INVERSIONES SAC (Senda) | C68: Vivienda - Comercio MET | D68: Torre unica | E68: 256 | F68: 3+ | G68: 20600930258 | I68: LA VICTORIA | J68: LIMA | K68: LIMA | L68: 381
A69: N° 052.2018 | B69: LAPSA ORGANIZACIÓN INMOBILIARIA SA | C69: Santa Sofia | D69: Torre A,B y C | E69: 99 | G69: 20507908943 | I69: CHORRILLOS | J69: LIMA | K69: LIMA | L69: 116
A70: AE.RE.030-2020 | B70: DESARROLLO OLGUIN S.A.C. | C70: Epiqe | D70: 3 | E70: 143 | F70: 3+ | G70: 20603106521 | I70: SANTIAGO DE SURCO | J70: LIMA | K70: LIMA | L70: 204
A71: AE.RE-090-2020 | B71: SAN JOSE INMOBILIARIA PERU SAC | C71: Nuevavista Condominio | D71: Edificio 2,3,4, 5, 6, 7, 8, 9, 10 | E71: 1032 | F71: 3+ | G71: 20509534838 | I71: BELLAVISTA | J71: CALLAO | K71: CALLAO | L71: 1104
A72: AE.RE-016-2021 | B72: A&A GRUPO INMOBILIARIO SAC (antes INVERSIONES CH & M SAC) | C72: Prados del Este | D72: 1 y 2 | E72: 199 | F72: 1+ | G72: 20603898126 | I72: SUBTANJALLA | J72: ICA | K72: ICA | L72: 322
A73: AE.RE-038-2020 | B73: CONSTRUCTORA CUMBRES VILLANOVA S.A.C. | C73: Conjunto Residencial Villanova 2 | D73: Etapa 2 | E73: 96 | F73: 3+ | G73: 20602704891 | I73: CALLAO | J73: CALLAO | K73: CALLAO | L73: 538
A74: AE.RE-102-2020 | B74: INSURCO PROYECTOS SAC (INVENT) | C74: Invent San Felipe | D74: Torre 1 | E74: 38 | F74: 2+ | G74: 20602544461 | I74: JESUS MARIA | J74: LIMA | K74: LIMA | L74: 72
A75: AE-RE-018-2020 | B75: BESCO S.A.C. | C75: Las Palmas (Ex Proyecto Chorrillos) | D75: Edif. A, B, C, D, E | E75: 313 | F75: 3+ | G75: 20416162299 | I75: CHORRILLOS | J75: LIMA | K75: LIMA | L75: 313
A76: N° 059.2018 | B76: VILLA CLUB S.A.C. | C76: Proyecto Villa Club Carabayllo -etapa 4 | D76: 4 | E76: 58 | G76: 20492390098 | I76: CARABAYLLO | J76: LIMA | K76: LIMA | L76: 600
A77: N° 060.2018 | B77: VILLA CLUB S.A.C. | C77: Proyecto Villa Club Carabayllo -etapa 5 | D77: 5 | E77: 68 | G77: 20492390098 | I77: CARABAYLLO | J77: LIMA | K77: LIMA | L77: 655
A78: AE.RE.043.2020 | B78: AIP 15 SAC (Arteco) | C78: Depa+Club Lince | D78: Etapa 1 y 2, Torre única | E78: 172 | F78: 3+ | G78: 20600327411 | I78: LINCE | J78: LIMA | K78: LIMA | L78: 177
A79: N° 062.2018 | B79: CORPORACION INMOBILIARIA NERIDA MARIA SAC (Abril Inmobiliaria) | C79: Edificio Los Robles | D79: Torres A, B, C | E79: 282 | G79: 20518128249 | I79: SURQUILLO | J79: LIMA | K79: LIMA | L79: 301
A80: N° 063.2018 | B80: GRECO INMOBILIARIA SAC | C80: Edificio Ficus | D80: Torre 1 | E80: 264 | G80: 20552897863 | I80: JESUS MARIA | J80: LIMA | K80: LIMA | L80: 264
A81: N° 064.2018 | B81: AMAUTA 2272 SAC (antes WESCON) | C81: Edificio Amauta - Etapa 1 | D81: Etapa 1 | E81: 36 | G81: 20557848411 | I81: LIMA | J81: LIMA | K81: LIMA | L81: 36
A82: AE.RE-071-2020 | B82: INMOBILIARIA CAPIENTE SAC (URBANA) | C82: Tempo Etapa 1 Etapa 2 | D82: 2 Sectores/ Etapa 1 | E82: 320 | F82: 3+ | G82: 20602336850 | I82: LA VICTORIA | J82: LIMA | K82: LIMA | L82: 396
A83: AE.RE-049-2020 | B83: QUATRO PROYECTOS SAC | C83: FAMILY TOWER | D83: Torre unica | E83: 172 | F83: 2+ | G83: 20555726075 | I83: BREÑA | J83: LIMA | K83: LIMA | L83: 173
A84: N° 067.2018 | B84: MY HOME Organización Inmobiliaria | C84: Edificio Voce | D84: Torre 1 | E84: 19 | G84: 20509748633 | I84: LA VICTORIA | J84: LIMA | K84: LIMA | L84: 39
A85: N° 068.2018 | B85: BARQUEROS GRUPO CONSTRUCTOR SAC | C85: Residencial Medis | D85: 1 | E85: 36 | G85: 20601148481 | I85: PUEBLO LIBRE | J85: LIMA | K85: LIMA | L85: 63
A86: N° 069.2018 | B86: ZyV INVERSIONES SAC | C86: Ingarden | D86: 1 | E86: 32 | G86: 20537924137 | I86: EL TAMBO | J86: HUANCAYO | K86: JUNIN | L86: 32
A87: N° 070.2018 | B87: LA VENTUROSA S.A. | C87: Condominio Bella Flora | D87: 3 | E87: 133 | G87: 20383731705 | I87: SANTIAGO DE SURCO | J87: LIMA | K87: LIMA | L87: 215
A88: N° 071.2018 | B88: URBANIZACION LOS JARDINES DEL EDEN S.A.C. | C88: Los Jardines del Eden Etapa 2 | D88: 2 | E88: 178 | G88: 20602187145 | I88: ICA | J88: ICA | K88: ICA | L88: 178
A89: N° 072.2018 | B89: P&G GROUP SAC | C89: Residencial las Orquideas II | D89: Torre Interior y exterior | E89: 60 | G89: 20482628487 | I89: TRUJILLO | J89: TRUJILLO | K89: LA LIBERTAD | L89: 60
A90: N° 073.2018 | B90: CIUDARIS CONSULTORES INMOBILIARIOS SAC | C90: Residencial Shine | D90: 1 | E90: 100 | G90: 20432280056 | I90: SAN MIGUEL | J90: LIMA | K90: LIMA | L90: 139
A91: N° 074.2018 | B91: A-ZERO INMOBILIARIA S.A.C. | C91: Edificio Multifamiliar Golf de Huampani | D91: Torre unica | E91: 8 | G91: 20451658337 | I91: SAN JUAN DE LURIGANCHO | J91: LIMA | K91: LIMA | L91: 8
A92: N° 075.2018 | B92: CONSTRUCTORA E INMOBILIARIA OHOSO SAC (ARMAS DOOMO) | C92: Alto Lima | D92: 1 | E92: 280 | G92: 20548363331 | I92: LA VICTORIA | J92: LIMA | K92: LIMA | L92: 444
A93: AE.RE.031.2020 | B93: AIP 14 SAC (Arteco) | C93: Depas+Club La Breña | D93: 1 | E93: 119 | F93: 3+ | G93: 20556280925 | I93: BREÑA | J93: LIMA | K93: LIMA | L93: 119
A94: AE.RE.020-2020 | B94: INVERSIONES INMOBILIARIAS DE LAS CONDES S.A. (Imagina) | C94: Proyecto Concepto "Magic Ocean" | D94: 1 y 2 | E94: 136 | F94: 3+ | G94: 20537745631 | I94: SAN MIGUEL | J94: LIMA | K94: LIMA | L94: 368
A95: N° 078.2018 | B95: VIVIENDAS DEL PERÚ S.A.C. | C95: Bonavi 2 | D95: Proyecto Integral | E95: 56 | G95: 20512691529 | I95: PUEBLO LIBRE | J95: LIMA | K95: LIMA | L95: 75
A96: N° 079.2018 | B96: PROEDCO SAC | C96: Edificio Yanacoto | D96: 1 | E96: 16 | G96: 20602414630 | I96: SAN MIGUEL | J96: LIMA | K96: LIMA | L96: 16
A97: AE.RE-060-2020 | B97: INMOBILIARIA NARANJUELO S.A.C. | C97: Condominio Paseo La Arboleda | D97: Edificios D, E, F, G, H, I, J, K, L, M, N,O | E97: 480 | F97: 3+ | G97: 20537115026 | I97: SANTIAGO DE SURCO | J97: LIMA | K97: LIMA | L97: 480
A98: AE.RE-107-2020 (anterior 081-2018) | B98: VIVIENDAS DEL PERÚ S.A.C. | C98: Allegro | D98: Torre A y B (4 Y 5) | E98: 132 | F98: 2+ | G98: 20512691529 | I98: SAN MIGUEL | J98: LIMA | K98: LIMA | L98: 180
A99: N° 082.2018 | B99: PC SANTA CLARA SRL (Caral) | C99: Conjunto Residencial La Ribera de Santa Clara | D99: Torres 1,2,3,4,5,6,7,8,9,12 | E99: 684 | G99: 20544419081 | I99: ATE | J99: LIMA | K99: LIMA | L99: 812
A100: N° 083.2018 | B100: INMOBILIARIA SUANCES SAC (Cantabria) | C100: Edificio Look Lince | D100: Torre unica | E100: 89 | G100: 20601101221 | I100: LINCE | J100: LIMA | K100: LIMA | L100: 147
A101: N° 084.2018 | B101: INMOBILIARIA Y EDIFICACIONES DOMUS SAC | C101: Residencial Madalengoitia | D101: Torre unica | E101: 27 | G101: 20602501028 | I101: CHORRILLOS | J101: LIMA | K101: LIMA | L101: 27
A102: N° 085.2018 | B102: INVERSIONES ESTRATEGICAS INTEGRALES SAC | C102: Residencial del Carmen | D102: Torre unica | E102: 43 | G102: 20503680174 | I102: TRUJILLO | J102: TRUJILLO | K102: LA LIBERTAD | L102: 43
A103: AE.RE-086-2020 | B103: CONSTRUCTORA GALILEA S.A.C. | C103: Sol de Pimentel | D103: De la etapa 20 a la etapa 36, etapa 44 (lote 11), etapa 45 (lote 3) y etapa 46 | E103: 429 | F103: 3+ | G103: 20521119943 | I103: PIMENTEL | J103: CHICLAYO | K103: LAMBAYEQUE | L103: 1139
A104: N° 087.2018 | B104: GERENCIA Y CONSTRUCCION EDIFICA SAC | C104: Garden 360 | D104: Torres 1,2,3,4,5,6,7,8 | E104: 145 | G104: 20521800748 | I104: PIURA | J104: PIURA | K104: PIURA | L104: 360
A105: AE.RE-142-2020 | B105: CIUDARIS CONSULTORES INMOBILIARIOS SAC | C105: Residencial Serk Barranco Club 2 - 2da etapa | D105: 2 | E105: 127 | F105: 3+ | G105: 20432280056 | I105: BARRANCO | J105: LIMA | K105: LIMA | L105: 329
A106: N° 089.2018 | B106: DHMONT SAC CONTRATISTAS GENERALES | C106: TORRE LOS CIPRESES | D106: Torre unica | E106: 26 | G106: 20108664640 | I106: LIMA | J106: LIMA | K106: LIMA | L106: 88
A107: N° 091.2018 | B107: MG HOGAR SAC | C107: Edificio Multifamiliar Aranibar | D107: Torre unica | E107: 54 | G107: 20601420121 | I107: LIMA | J107: LIMA | K107: LIMA | L107: 54
A108: AE.RE-084-2020 | B108: CONSTRUCTORA GALILEA S.A.C. | C108: Vista Alegre | D108: 9 hasta la 31 | E108: 741 | F108: 3+ | G108: 20521119943 | I108: CHICLAYO | J108: CHICLAYO | K108: LAMBAYEQUE | L108: 1029
A109: AE.RE-036-2020 | B109: COSAPI INMOBILIARIA & GRUPO LAR | C109: SENTE (antes Centenario) | D109: 2 | E109: 192 | F109: 3+ | G109: 20555934263 | I109: BREÑA | J109: LIMA | K109: LIMA | L109: 204
A110: AE.RE.035.2020 | B110: AIP 10 SAC (Arteco) | C110: Paseo la Campiña V | D110: Torre C | E110: 32 | F110: 3+ | G110: 20548906301 | I110: CHORRILLOS | J110: LIMA | K110: LIMA | L110: 185
A111: AE.RE-073-2020 | B111: LOS PORTALES CONSTRUYE SAC | C111: Conjunto Residencial Mirador del Golf I | D111: Torres 1,2,3,4 y 5 | E111: 127 | F111: 3+ | G111: 20553346178 | I111: LURIGANCHO | J111: LIMA | K111: LIMA | L111: 320
A112: N° 096-2018 | B112: LOS PORTALES CONSTRUYE SAC | C112: Edificio Multifamiliar y comercial Gran Colonial | D112: Torre A y B | E112: 95 | G112: 20553346178 | I112: LIMA | J112: LIMA | K112: LIMA | L112: 210
A113: N° 097-2018 | B113: BESCO S.A.C. | C113: Alameda Santa Ana I - 2° Etapa | D113: Edificio 2 y Edificio 4 | E113: 144 | G113: 20416162299 | I113: PIURA | J113: PIURA | K113: PIURA | L113: 144
A114: AE.RE.006-2022 | B114: PC COSTANERA SAN MIGUEL SRL (Caral) | C114: CONJUNTO RESIDENCIAL VERAH | D114: TORRE 4,5,6,7,8,9,10,11 | E114: 288 | F114: 3+ | G114: 20600610652 | I114: SANTIAGO DE SURCO | J114: LIMA | K114: LIMA | L114: 288
A115: AE.RE-143-2020 | B115: PORTAL SANTA CLARA (Caral) | C115: Uptown 2 | D115: 2 | E115: 127 | F115: 2+ | G115: 20544155831 | I115: SAN MIGUEL | J115: LIMA | K115: LIMA | L115: 287
A116: N° 100-2019 | B116: INMOBILIARIA CONSTRUCTORA WASI SAC | C116: Condominio Club San Pedro de Latarce | D116: Torre B1a, B2a, B1b, B2b | E116: 200 | G116: 20532672032 | I116: TACNA | J116: TACNA | K116: TACNA | L116: 200
A117: AE.RE-054-2020 | B117: CORPORACION INMOBILIARIA SUDAMERICANA SELVA SAC (CISSAC) | C117: Condominio Del Parque Tarapoto | D117: 1 | E117: 100 | F117: 3+ | G117: 20602187889 | I117: LA BANDA DE SHILCAYO | J117: SAN MARTIN | K117: SAN MARTIN | L117: 140
A118: AE.RE.024-2020 | B118: INVERSIONES INMOBILIARIAS DEL MOCHE S.A. (Imagina) | C118: Conjunto Residencial Urban (Etapa II) | D118: 2 | E118: 18 | F118: 3+ | G118: 20519159920 | I118: LINCE | J118: LIMA | K118: LIMA | L118: 111
A119: AE.RE-041-2020 | B119: CONSTRUCTORA CUMBRES VILLANOVA S.A.C. | C119: Conjunto Residencial " Condominio Villanova 3" | D119: 3 | E119: 484 | F119: 3+ | G119: 20602704891 | I119: CALLAO | J119: CALLAO | K119: CALLAO | L119: 484
A120: AE.RE-123-2020 | B120: DHMONT SAC CONTRATISTAS GENERALES | C120: Jockey Residencial | D120: Lote 3 Block A-B-C-D-D'; Lote 10 Block AB-AC-AD-AE-AF | E120: 240 | F120: 3+ | G120: 20108664640 | I120: LA VICTORIA | J120: CHICLAYO | K120: LAMBAYEQUE | L120: 240
A121: AE.RE-163-2020 | B121: TER EDIFICACIONES S.A.C. | C121: Marsano 2175 | D121: Torre unica | E121: 68 | F121: 3+ | G121: 20602491511 | I121: SURQUILLO | J121: LIMA | K121: LIMA | L121: 114
A122: AE.RE-056-2020 | B122: INVERSIONES INMOBILIARIAS CUBA SAC (Senda) | C122: Side | D122: 1 | E122: 176 | F122: 3+ | G122: 20603012110 | I122: JESUS MARIA | J122: LIMA | K122: LIMA | L122: 176
A123: AE.RE-101-2020 | B123: INJAVIER PRADO PROYECTOS SAC (INVENT) | C123: Invent Javier Prado | D123: Torre 1 | E123: 17 | F123: 2+ | G123: 20602909965 | I123: MAGDALENA DEL MAR | J123: LIMA | K123: LIMA | L123: 53
A124: N° 108-2018 | B124: D&D CONSTRUCTORES S.A.C. | C124: Urbanizacion Los Huarangos 4 Etapa | D124: 4 ( Mzs L,M,N,O,P,Q,R,S,T) | E124: 159 | G124: 20494649161 | I124: ICA | J124: ICA | K124: ICA | L124: 159
A125: N° 109-2018 | B125: INVERSIONES NUEVO PACIFICO S.A.C. | C125: Multifamiliar Liverpool | D125: Dos unicas torres ( del piso 1° al 8°) | E125: 64 | F125: 1+ | G125: 20481775575 | I125: TRUJILLO | J125: TRUJILLO | K125: LA LIBERTAD | L125: 64
A126: N° 110-2018 | B126: CONSORCIO DH MONT & CG&M S.A.C. | C126: Ciudad Sol de Collique | D126: Manzana G, Lote 5 (Block N° 6), Lote 6 (Block N° 4 y 5), Lote 7 (Block N° 3,19 y 20) | E126: 127 | G126: 20502574109 | I126: COMAS | J126: LIMA | K126: LIMA | L126: 690
A127: AE.RE.125-2020 | B127: CONSORCIO DH MONT & CG&M S.A.C. | C127: SAN ANDRES HOUSE | D127: 3 Etapas (IA, IB,IC, ID) | E127: 92 | F127: 3+ | G127: 20502574109 | I127: SAN ANDRES | J127: PISCO | K127: ICA | L127: 114
A128: AE.RE.033.2020 | B128: AIP 5 SAC (Arteco) | C128: Depas y Club Huachipa | D128: Etapa 1, torres (A,B,G,H,J,K,L), Etapa 2, torres (C,D,E,F,I,M,N,O) | E128: 61 | F128: 3+ | G128: 20537263998 | I128: ATE | J128: LIMA | K128: LIMA | L128: 396
A129: N° 113-2018 | B129: CONSTRUCTORA GALILEA S.A.C. | C129: Torres de Quevedo | D129: Torre 13 y 14 | E129: 40 | G129: 20521119943 | I129: TRUJILLO | J129: TRUJILLO | K129: LA LIBERTAD | L129: 280
A130: AE.RE-087-2020 | B130: CONSTRUCTORA GALILEA S.A.C. | C130: Alto Chimbote | D130: Etapa 6 (2 lotes), 3, 4, 5, 7 | E130: 121 | F130: 3+ | G130: 20521119943 | I130: CHIMBOTE | J130: SANTA | K130: ANCASH | L130: 560
A131: N° 115-2018 | B131: DESARROLLOS INMOBILIARIOS COMAR S.A.C. | C131: Edificio Multifamiliar Centric | D131: torre unica | E131: 80 | G131: 20537802457 | I131: LINCE | J131: LIMA | K131: LIMA | L131: 80
A132: AE.RE-058-2020 | B132: PROMSAL S.A.C. | C132: Hey Catalina | D132: torre unica | E132: 92 | F132: 3+ | G132: 20515876937 | I132: LA VICTORIA | J132: LIMA | K132: LIMA | L132: 112
A133: AE.RE-108-2020 | B133: INVERSIONES ROCAZUL SAC | C133: Vista Mar | D133: Torre A | E133: 80 | F133: 3+ | G133: 20507322311 | I133: SAN MIGUEL | J133: LIMA | K133: LIMA | L133: 80
A134: N° 118-2018 | B134: CONSTRUCTORA E INMOBILIARIA OPTIMUS S.A.C. | C134: Edificio Lugo | D134: Torre unica | E134: 36 | G134: 20547778333 | I134: MAGDALENA DEL MAR | J134: LIMA | K134: LIMA | L134: 38
A135: AE.RE-122-2020 | B135: PI JORGE CHAVEZ S.A.C. (Flesan) | C135: BUENAVISTA | D135: 1 | E135: 5 | F135: 2+ | G135: 20600833317 | I135: LIMA | J135: LIMA | K135: LIMA | L135: 49
A136: AE.RE-121-2020 | B136: PI PRADO 1 S.A.C. (Flesan) | C136: VITTORIA | D136: 1 | E136: 54 | F136: 2+ | G136: 20603240163 | I136: LINCE | J136: LIMA | K136: LIMA | L136: 128
A137: N° 121-2018 | B137: PROMORE INMOBILIARIA S.A.C. | C137: Edificio Victoria | D137: Torre unica | E137: 20 | G137: 20524800862 | I137: HUACHO | J137: HUAURA | K137: LIMA | L137: 20
A138: N° 123-2018 | B138: EDIFICACIONES INMOBILIARIAS SAC | C138: Edificio Multifamiliar Avida | D138: Etapa 2 (Torre A y B) | E138: 127 | F138: 2+ | G138: 20511988757 | I138: SAN MIGUEL | J138: LIMA | K138: LIMA | L138: 166
A139: AE.RE-098-2020 | B139: CONSTRUCTORA CUMBRES CHALLPAMPA S.A.C. | C139: Conjunto Residencial “Condominio Villa Verde 2” | D139: C Y D | E139: 160 | F139: 3+ | G139: 20602699537 | I139: CERRO COLORADO | J139: AREQUIPA | K139: AREQUIPA | L139: 288
A140: AE.RE-097.2020 | B140: CONSTRUCTORA CUMBRES CHALLPAMPA S.A.C. | C140: Conjunto Residencial " Condominio Valle Blanco Reserva" | D140: 4 | E140: 160 | F140: 3+ | G140: 20602699537 | I140: CERRO COLORADO | J140: AREQUIPA | K140: AREQUIPA | L140: 640
A141: N° 122-2018 | B141: GRUPO ARIATZA S.A.C. | C141: Mirador Palatino Casa Club | D141: Torre unica | E141: 55 | G141: 20600134729 | I141: MAGDALENA DEL MAR | J141: LIMA | K141: LIMA | L141: 97
A142: AE.RE.029-2020 | B142: DESARROLLO SALAVERRY 475 SAC (Cosapi) | C142: Nesta | D142: Fase 3, 4 Y 5 | E142: 115 | F142: 3+ | G142: 20566143381 | I142: JESUS MARIA | J142: LIMA | K142: LIMA | L142: 290
A143: N° 001-2019 | B143: PROYEC CONTRATISTAS GENERALES S.A. | C143: Varela 2 | D143: torre unica | E143: 58 | G143: 20333686237 | I143: BREÑA | J143: LIMA | K143: LIMA | L143: 58
A144: N° 002-2019 | B144: PROYEC CONTRATISTAS GENERALES S.A. | C144: Varela 879 | D144: torre unica | E144: 23 | G144: 20333686237 | I144: BREÑA | J144: LIMA | K144: LIMA | L144: 23
A145: N° 003-2019 | B145: EMPRESA PROMOTORA BRAVO DE RUEDA (MAGVIS) | C145: Los Jardines del Rimac II | D145: Torre unica | E145: 17 | G145: 20602081797 | I145: RIMAC | J145: LIMA | K145: LIMA | L145: 23
A146: N° 004-2019 | B146: NEOVIDA CONSTRUCCIONES SAC | C146: Edificio Multifamiliar " Residencial El Rio" | D146: 1 | E146: 25 | G146: 20524115213 | I146: PUEBLO LIBRE | J146: LIMA | K146: LIMA | L146: 30
A147: N° 005-2019 | B147: A&C CONSTRUCTORA E INMOBILIARIA S.A.C. | C147: Edificio Santa Rosa | D147: 1 | E147: 20 | G147: 20486530147 | I147: HUANCAYO | J147: HUANCAYO | K147: JUNIN | L147: 20
A148: AE.RE.103.2020 | B148: ALEMAN CONSTRUCTORES CO SAC | C148: Las Cumbres del Mirador | D148: Etapa 1 (Torres I, II), Etapa 2 (Torres III, IV) | E148: 116 | F148: 3+ | G148: 20566072182 | I148: CERRO COLORADO | J148: AREQUIPA | K148: AREQUIPA | L148: 116
A149: AE.RE-076-2020 | B149: INVERSIONES INMOBILIARIAS MAGDALENA S.A.C. | C149: Juan de Aliaga | D149: 1 y 2 | E149: 175 | F149: 3+ | G149: 20547173261 | I149: MAGDALENA DEL MAR | J149: LIMA | K149: LIMA | L149: 297
A150: N° 014-2019 | B150: MINISTERIO DE TRANSPORTES Y COMUNICACIONES (BESCO, BESALCO) | C150: Condominio Villa Atletas | D150: Torres 1,2,3,4,5,6 y 7 | E150: 1096 | G150: 20131379944 | I150: VILLA EL SALVADOR | J150: LIMA | K150: LIMA | L150: 1096
A151: N° 009-2019 | B151: ANTARES CONTRATISTAS S.A. | C151: Edificio Multifamiliar I Los Parques del Chipe | D151: 2 | E151: 60 | G151: 20143382339 | I151: VEINTISEIS DE OCTUBRE | J151: PIURA | K151: PIURA | L151: 60
A152: AE.RE-078-2020 | B152: GLJ CONSTRUCTORES E INMOBILIARIOS SAC | C152: La Gloria IV | D152: 1 | E152: 41 | F152: 3+ | G152: 20547261551 | I152: MAGDALENA DEL MAR | J152: LIMA | K152: LIMA | L152: 48
A153: N° 010-2019 | B153: IMMO NAUTIC SAC (Nuvo) | C153: Smart San Felipe | D153: Torre unica | E153: 98 | G153: 20553227080 | I153: JESUS MARIA | J153: LIMA | K153: LIMA | L153: 138
A154: AE-RE-006-2020 | B154: MIRANDA CONSTRUCTORES S.A. | C154: Praderas del Rimac | D154: Condominio del 1 al 6 ( 3 torres c/u) | E154: 2880 | F154: 3+ | G154: 20392504894 | I154: RIMAC | J154: LIMA | K154: LIMA | L154: 2880
A155: AE-RE-005-2020 | B155: MIRANDA CONSTRUCTORES S.A. | C155: Altos del Rimac | D155: Condominios: 1 (3 torres), 2 (3 torres),3(3 torres),4 (3 torres), 5 (4 torres) | E155: 2304 | F155: 3+ | G155: 20392504894 | I155: RIMAC | J155: LIMA | K155: LIMA | L155: 2304
A156: N° 015-2019 | B156: REPRESENTACIONES DACA S.A.C. | C156: Residencial Los Jazmines | D156: 1 | E156: 17 | G156: 20477373977 | I156: TRUJILLO | J156: TRUJILLO | K156: LA LIBERTAD | L156: 18
A157: AE.RE-080-2020 | B157: QUATRO PROYECTOS SAC | C157: Urban Tower 2 | D157: 1 | E157: 98 | F157: 3+ | G157: 20602816851 | I157: LIMA | J157: LIMA | K157: LIMA | L157: 98
A158: AE.RE-047-2020 | B158: INVERSIONES INMOBILIARIAS VERANO S.A.C. | C158: Edificio Multifamiliar CYPRES | D158: 1 | E158: 72 | F158: 3+ | G158: 20553608041 | I158: SURQUILLO | J158: LIMA | K158: LIMA | L158: 72
A159: AE.RE-154-2020 | B159: MENORCA INVERSIONES S.A.C. | C159: Proyecto Villa SARAJA | D159: 1 | E159: 50 | F159: 2+ | G159: 20173223626 | I159: ICA | J159: ICA | K159: ICA | L159: 147
A160: AE.RE-106-2020 | B160: GRUPO ORE PARIONA S.A.C. | C160: Proyecto Camino Real - 1era Etapa | D160: 1 | E160: 51 | F160: 2+ | G160: 20502668421 | I160: ICA | J160: ICA | K160: ICA | L160: 51
A161: AE.RE-136-2020 | B161: BUEN VIVIR S.A.C. | C161: Proyecto Edificio Libertad | D161: Torre unica | E161: 23 | F161: 2+ | G161: 20554638911 | I161: SAN MIGUEL | J161: LIMA | K161: LIMA | L161: 23
A162: N° 021-2019 | B162: LINEA 21 S.A.C. | C162: Edificio Multifamiliar Los Andes | D162: 1 | E162: 29 | G162: 20563050331 | I162: MAGDALENA DEL MAR | J162: LIMA | K162: LIMA | L162: 29
A163: N° 022-2019 | B163: CONSTRUCTORA BETANIA S.A.C. | C163: PASEO CASTILLA (antes Edificio Multifamiliar Alameda) | D163: Torre A | E163: 94 | G163: 20503685567 | I163: SAN MIGUEL | J163: LIMA | K163: LIMA | L163: 94
A164: N° 023-2019 | B164: CONSTRUCTORA BETANIA S.A.C. | C164: Edificio Multifamiliar Aereo Home | D164: Torre A | E164: 60 | G164: 20503685567 | I164: BREÑA | J164: LIMA | K164: LIMA | L164: 60
A165: AE-RE-003-2020 | B165: BESCO S.A.C. | C165: Proyecto Centrika Condominio | D165: Edificios 1,2 y 3 | E165: 436 | F165: 3+ | G165: 20416162299 | I165: PIURA | J165: PIURA | K165: PIURA | L165: 436
A166: N° 025-2019 | B166: GRUPO DU BOIS S.A.C. | C166: Proyecto Residencial DUBOIS III | D166: TORRE UNICA | E166: 26 | G166: 20546518567 | I166: SURQUILLO | J166: LIMA | K166: LIMA | L166: 26
A167: AE.RE-093-2020 | B167: INMOBILIARIA RUTURI S.A.C. (ALTOZANO) | C167: Solar de la Alameda - Prime Torre A y B | D167: Torre A y Torre B | E167: 149 | F167: 2+ | G167: 20551234542 | I167: MIRAFLORES | J167: AREQUIPA | K167: AREQUIPA | L167: 149
A168: N° 026-2019 | B168: BECA INVERSIONES Y PROYECTOS S.A.C. | C168: Edificio Granada 274 | D168: Torre única | E168: 11 | G168: 20603503326 | I168: PUEBLO LIBRE | J168: LIMA | K168: LIMA | L168: 18
A169: N° 027-2019 | B169: INVERSIONES TIERRA BLANCA S.A.C. | C169: Edificio Granada 135 | D169: Torre unica | E169: 12 | G169: 20518883322 | I169: PUEBLO LIBRE | J169: LIMA | K169: LIMA | L169: 18
A170: AE.RE-127-2020 | B170: CASAIDEAL PROYECTO BRASIL 3 SAC | C170: Edificio Multifamiliar NOU | D170: Torre unica | E170: 137 | F170: 2+ | G170: 20602736483 | I170: PUEBLO LIBRE | J170: LIMA | K170: LIMA | L170: 137
A171: N° 029-2019 | B171: LIMACOR INMOBILIARIA S.A.C. | C171: Residencial Castilla II – Eco House | D171: Torre A y B | E171: 84 | G171: 20563374404 | I171: MAGDALENA DEL MAR | J171: LIMA | K171: LIMA | L171: 84
A172: AE.RE-088-2020 | B172: CONSTRUCTORA GALILEA S.A.C. | C172: Conjunto Habitacional Monte Verde II - Etapa 8 - Etapa 29 | D172: Etapa 8 - etapa 29 | E172: 688 | F172: 3+ | G172: 20521119943 | I172: CASTILLA | J172: PIURA | K172: PIURA | L172: 886
A173: N° 031-2019 | B173: J & F PERU GROUP S.A.C. | C173: Residencial Primavera | D173: Torre unica | E173: 16 | G173: 20539995490 | I173: TRUJILLO | J173: TRUJILLO | K173: LA LIBERTAD | L173: 20
A174: AE.RE-129-2020 | B174: MATIER SAC | C174: Gorriones | D174: Torre unica | E174: 167 | F174: 2+ | G174: 20392737058 | I174: CHORRILLOS | J174: LIMA | K174: LIMA | L174: 167
A175: AE.RE-016-2020 | B175: BESCO S.A.C. | C175: Nuevo Nogales Condominio Club Torre 13 y 14 | D175: Torre 13 y 14 | E175: 400 | F175: 3+ | G175: 20416162299 | I175: EL AGUSTINO | J175: LIMA | K175: LIMA | L175: 4240
A176: AE.RE-057-2020 | B176: BELGICA EDIFICACIONES S.A. | C176: Precursores 5 | D176: Torre unica | E176: 56 | F176: 3+ | G176: 20329728022 | I176: SAN MIGUEL | J176: LIMA | K176: LIMA | L176: 56
A177: AE.RE.015-2021 | B177: INMOBILIARIA IPR SAC (antes VERTICALIA S.A.C. (Nuvo)) | C177: Conjunto Residencial Vive 500 | D177: Torres 1,2 y 3 | E177: 240 | F177: 2+ | G177: 20603264208 | I177: CERRO COLORADO | J177: AREQUIPA | K177: AREQUIPA | L177: 240
A178: N° 037-2019 | B178: CONSTRUCTORA E INMOBILIARIA EL REFUGIO S.A.C. | C178: Parque de La Justicia | D178: Torre unica | E178: 9 | G178: 20536777891 | I178: LOS OLIVOS | J178: LIMA | K178: LIMA | L178: 11
A179: N° 038-2019 | B179: SERCON CONSTRUCTORA SAC | C179: C 943 | D179: 1 | E179: 41 | G179: 20538605671 | I179: JESUS MARIA | J179: LIMA | K179: LIMA | L179: 77
A180: AE.RE-133-2020 | B180: ACTIVA MARIATEGUI SAC (Antes ORION INMOBILIARIA E INVERSIONES SAC) | C180: Conjunto Residencial Mariategui | D180: Torre 01 | E180: 27 | F180: 2+ | G180: 20606580551 | I180: JESUS MARIA | J180: LIMA | K180: LIMA | L180: 92
A181: N° 040-2019 | B181: SER CASA S.A.C. | C181: Edificio La Peña | D181: Torre 1 y 2 | E181: 10 | G181: 20603670362 | I181: SACHACA | J181: AREQUIPA | K181: AREQUIPA | L181: 10
A182: AE.RE.010.2021 | B182: S&P DESARROLLADORES INMOBILIARIOS S.A.C | C182: Gorriones 4 | D182: Torres A,B y C | E182: 131 | F182: 2+ | G182: 20600690028 | I182: CHORRILLOS | J182: LIMA | K182: LIMA | L182: 132
A183: AE.RE-048-2020 | B183: CORPORACION INMOBILIARIA FERMONT S.A.C. (Abril grupo Inmobiliario) | C183: Abedul | D183: Torre 1 | E183: 59 | F183: 3+ | G183: 20600245504 | I183: MAGDALENA DEL MAR | J183: LIMA | K183: LIMA | L183: 228
A184: N° 044-2019 | B184: LIDER INVERSIONES AREQUIPA SA (Lider) | C184: Condominio A_Etapa 2 | D184: Etapa 02 (Torre 01) | E184: 150 | G184: 20539613716 | I184: JOSE LUIS BUSTAMANTE Y RIVERO | J184: AREQUIPA | K184: AREQUIPA | L184: 150
A185: N° 045-2019 | B185: CONSTRUCTORA E INMOBILIARIA CDR S.A.C. | C185: Edificio Multifamiliar Vista Club Callao | D185: Torre A y B | E185: 247 | G185: 20509746428 | I185: BELLAVISTA | J185: CALLAO | K185: CALLAO | L185: 247
A186: N° 046-2019 | B186: GRINSA S.A.C. | C186: Urbanizacion Residencial Valle Hermoso | D186: 1,2 y 3 | E186: 136 | G186: 20440209123 | I186: LA VICTORIA | J186: CHICLAYO | K186: LAMBAYEQUE | L186: 384
A187: N° 047-2019 | B187: GRINSA S.A.C. | C187: Los Rosales de Miraflores | D187: 1,2 y 3 | E187: 126 | G187: 20440209123 | I187: CASTILLA | J187: PIURA | K187: PIURA | L187: 178
A188: AE.RE-120-2020 | B188: LA PAZ DESARROLLO INMOBILIARIO S.A.C. | C188: AMARI ( antes Ambar) | D188: Torre unica | E188: 99 | F188: 3+ | G188: 20556482471 | I188: SAN MIGUEL | J188: LIMA | K188: LIMA | L188: 99
A189: AE.RE-138-2020 | B189: PROYECTOS Y CONSTRUCCIONES LUGANO S.A.C. | C189: Green Park | D189: Torre unica | E189: 17 | F189: 2+ | G189: 20507028986 | I189: JESUS MARIA | J189: LIMA | K189: LIMA | L189: 151
A190: AE.RE-135-2020 | B190: BUEN VIVIR S.A.C. | C190: Universitaria | D190: 1 | E190: 104 | F190: 2+ | G190: 20554638911 | I190: SAN MIGUEL | J190: LIMA | K190: LIMA | L190: 104
A191: AE.RE-100-2020 | B191: GRUPO D Y M CONSTRUCTORA E INMOBILIARIA S.A.C. | C191: Residencial Prado | D191: 1 | E191: 21 | F191: 2+ | G191: 20550506352 | I191: ATE | J191: LIMA | K191: LIMA | L191: 24
A192: N° 051-2019 | B192: LUIS FERNANDO LINARES MORANTE | C192: Eco Residencial TAHUAYCANI | D192: Torre A | E192: 4 | G192: 10292204774 | I192: SACHACA | J192: AREQUIPA | K192: AREQUIPA | L192: 4
A193: N° 052-2019 | B193: INMOBILIARIA EUROEDIFICACIONES S.A.C. | C193: Condominio Parque San Antonio | D193: Torre 01 y 02 | E193: 183 | G193: 20486852420 | I193: HUANCAYO | J193: HUANCAYO | K193: JUNIN | L193: 188
A194: N° 053-2019 | B194: INMOBILIARIA LOPEZ S.A.C. | C194: Proyecto Edificio START | D194: Torre unica | E194: 12 | G194: 20505927231 | I194: SURQUILLO | J194: LIMA | K194: LIMA | L194: 43
A195: N° 054-2019 | B195: REAL EDIFICACIONES S.A.C. | C195: TORRE REAL 6 | D195: 1 | E195: 45 | G195: 20562827936 | I195: SURQUILLO | J195: LIMA | K195: LIMA | L195: 59
A196: AE.RE-072-2020 | B196: PROYECTOS GCF SAC | C196: VILLA DULANTO (antes Cipriano Dulanto) | D196: 1 | E196: 80 | F196: 3+ | G196: 20603961715 | I196: PUEBLO LIBRE | J196: LIMA | K196: LIMA | L196: 102
A197: AE.RE.006.2021 | B197: TOLEMAN SAC (Altozano) | C197: La Arboleda | D197: Etapa 1 ( Edificios 1,2,3 y 4) | E197: 528 | F197: 2+ | G197: 20603841086 | I197: CERRO COLORADO | J197: AREQUIPA | K197: AREQUIPA | L197: 528
A198: N° 057-2019 | B198: CONSTRUCTORES INTERAMERICANOS SAC | C198: Condominio de Viviendas Andalucia | D198: 3 | E198: 80 | G198: 20305146618 | I198: HUANCHACO | J198: TRUJILLO | K198: LA LIBERTAD | L198: 840
A199: AE.RE.166-2020 | B199: BERTOLOTTO INVESTMENTS SAC | C199: PACIFIK OCEAN TOWER | D199: Torre A | E199: 76 | F199: 2+ | G199: 20601935458 | I199: SAN MIGUEL | J199: LIMA | K199: LIMA | L199: 190
A200: AE.RE-091-2020 | B200: ALTOZANO DESARROLLO Y CONSTRUCCION SAC | C200: Lomas de La Alameda - 1ra Etapa | D200: Modulo 5 ( Etapa 1) | E200: 165 | F200: 2+ | G200: 20507251111 | I200: MIRAFLORES | J200: AREQUIPA | K200: AREQUIPA | L200: 165
... 521 more rows

Sheet Formato 1
A1: Formato N°1: “Solicitud de verificación de proyecto” (Declaración Jurada)
A2: Código: F1282/PR-N3-3-2-6
A3: APLICAR AL TIPO DE CERTIFICADO (marcar con X) | N3: =IF(AND(C4="",J4=""),"FALTA LLENAR EL TIPO DE CERTIFICADO AL CUAL SE POSTULA",IF(AND(C4<>"",J4<>""),"NO PUEDE LLENAR LAS DOS TIPOS DE CERTIFICADOS"," ")) -> 
A4: MiVivienda Verde | C4: I+ TRADICIONAL | G4: MiVivienda Verde Internacional
A5: DATOS DEL PROYECTO
A6: Nombre del Proyecto | G6: Numeración de proyecto | J6: Grado
A7: =IFERROR(VLOOKUP(I8,'Propuesta de Certificados'!$A$2:$G$1025,3,FALSE),"") ->  | G7: Certificado inicial del proyecto | J7: =IFERROR(VLOOKUP(I7,'Propuesta de Certificados'!$A$2:$G$1025,6,FALSE),"") -> 
G8: Recertificado del proyecto | J8: =IFERROR(VLOOKUP(I8,'Propuesta de Certificados'!$A$2:$G$1025,6,FALSE),"") -> 
A9: Dirección completa | G9: =_xlfn.CONCAT(IFERROR(VLOOKUP(I8,'Propuesta de Certificados'!$A$2:$K$1025,9,FALSE),"")," / ",IFERROR(VLOOKUP(I8,'Propuesta de Certificados'!$A$2:$K$1025,10,FALSE),"")," / ",IFERROR(VLOOKUP(I8,'Propuesta de Certificados'!$A$2:$K$1025,11,FALSE),"")) -> / /
A10: Tipo de vivienda (unifamiliar/ multifamiliar) | G10: Unidades Inmobiliarias (U.I.) | J10: =IFERROR(VLOOKUP(I8,'Propuesta de Certificados'!A2:L1025,12,FALSE),"") -> 
A11: Cantidad de Torres/ Etapas | G11: U.I. afectas al Bono Verde | J11: =IFERROR(VLOOKUP(I8,'Propuesta de Certificados'!A2:L1025,5,FALSE),"") -> 
A12: Cantidad de áreas comunes | G12: U.I. afectas vendidas
A13: Edificios/ Etapas del proyecto pendientes de verificación | G13: Porcentaje de U.I. afectas vendidas verificables (10%) | J13: =J12*0.1 -> 0
A14: ACTUALIZACIONES AL PROYECTO Y/O SUBSANACIÓN DE CARTAS DE COMPROMISO (de aplicar)
A15: N° de expediente | D15: Requisito Original | H15: Ambiente (área común/ área exclusiva) | I15: Requisito actualizado | K15: Ambiente (área común/ área exclusiva)
A19: N° de expediente | D19: Otros (detallar)
A21: DATOS DE LA EMPRESA INMOBILIARIA
A22: Nombre de la Empresa (según ficha Ruc) | E22: RUC | H22: Número de partida SUNARP | I22: Oficina Registral SUNARP | K22: Fecha de creación SUNARP
A24: Nombre comercial | I24: Número Autogenerado FMV
A26: DATOS DE LA EMPRESA CONSTRUCTORA
A27: Nombre de la Empresa (según ficha Ruc) | E27: RUC | H27: Número de partida SUNARP | I27: Oficina Registral SUNARP | K27: Fecha de creación SUNARP
A29: Nombre comercial | I29: Número Autogenerado FMV
A31: Avenida / Calle / Jirón / Pasaje Empresa | C31: Manzana | D31: Lote | E31: Numeración | G31: Interior | H31: Región | I31: Provincia | K31: Distrito
A33: Apellidos Representante Legal | C33: Nombres Representante Legal | G33: Tipo doc. | H33: Número de documento | I33: Número de Partida (Poder) | J33: Oficina Registral SUNARP (Poder) | L33: Fecha de emisión (Poder)
A35: Condición del Domicilio Fiscal Empresa | C35: Estado del contribuyente | E35: Correo electrónico 1 (Ficha RUC) | H35: Teléfono móvil 1 (Ficha RUC) | I35: Actividad Económica Principal
A37: Accionistas, Socios o Asociados
A38: Accionistas, Socios o Asociados, Representantes Legales que tengan directa o indirectamente más del 25% del capital social, aporte o participación de la persona jurídica:
A39: Apellidos | C39: Nombres completos | E39: Tipo Doc. | F39: Número | H39: Cargo | I39: % | J39: Teléfono de contacto | K39: Correo Electrónico
A45: Coordinador / Tramitador de la Certificación
A46: Apellidos | C46: Nombres completos | E46: Tipo Doc. | F46: Número | H46: Correo Electrónico | J46: Teléfonos de contacto
A48: DATOS DE LA LICENCIA / CONFORMIDAD DE OBRA
A49: Datos administrativos de la Licencia de obra | H49: Datos administrativos de la conformidad de obra
A50: Anteproyecto o Licencia de edificación: | H50: Anteproyecto o Licencia de edificación:
A51: Emitida en la jurisdicción de | H51: Emitida en la jurisdicción de
A52: Gerencia | H52: Gerencia
A53: Subgerencia | H53: Subgerencia
A54: Notificación de autorización: | H54: Notificación de autorización:
A55: Número de expediente | H55: Número de expediente
A56: Número de acta | H56: Número de acta
A57: Fecha de emisión | H57: Fecha de emisión
A58: Responsable de obra
A59: Nombre | I59: Teléfono | K59: CAP/CIP
A60: Datos de obra
A61: Fecha de inicio de obra | H61: Fecha de fin de obra
A62: Observaciones: | H62: Firma de representante legal:

Sheet Formato 2
A1: Formato N° 2: “Residuos sólidos de la construcción y demolición” (Declaración Jurada)
A2: Código: F1283/ PR-N3-3-2-6
A3: APLICAR AL TIPO DE CERTIFICADO (marcar con X) | N3: =IF(AND(C4="",J4=""),"FALTA LLENAR EL TIPO DE CERTIFICADO AL CUAL SE POSTULA",IF(AND(C4<>"",J4<>""),"NO PUEDE LLENAR LAS DOS TIPOS DE CERTIFICADOS"," ")) -> 
A4: MiVivienda Verde | C4: =IF('Formato 1'!C4="","",'Formato 1'!C4) -> I+ TRADICIONAL | H4: MiVivienda Verde Internacional | J4: =IF('Formato 1'!J4="","",'Formato 1'!J4) -> 
A5: DATOS DE LA EMPRESA INMOBILIARIA
A6: Nombre de la Empresa (según ficha Ruc) | E6: RUC | H6: Número de partida SUNARP | I6: Oficina Registral SUNARP | K6: Fecha de creación SUNARP
A7: =IF('Formato 1'!A23="","",'Formato 1'!A23) ->  | E7: =IF('Formato 1'!E23="","",'Formato 1'!E23) ->  | H7: =IF('Formato 1'!H23="","",'Formato 1'!H23) ->  | K7: =IF('Formato 1'!K23="","",'Formato 1'!K23) -> 
A8: Nombre comercial | I8: Número Autogenerado FMV
A9: =IF('Formato 1'!A25="","",'Formato 1'!A25) ->  | I9: =IF('Formato 1'!I23="","",'Formato 1'!I23) -> 
A10: DATOS DEL PROYECTO
A11: Nombre del Proyecto | G11: Numeración de proyecto | J11: Grado
A12: =IF('Formato 1'!A7="","",'Formato 1'!A7) ->  | G12: Certificado inicial del proyecto | I12: =IF('Formato 1'!I7="","",'Formato 1'!I7) ->  | J12: =IF('Formato 1'!J7="","",'Formato 1'!J7) -> 
G13: Recertificado del proyecto | I13: =IF('Formato 1'!I8="","",'Formato 1'!I8) ->  | J13: =IF('Formato 1'!J8="","",'Formato 1'!J8) -> 
A14: TRATAMIENTO DE LOS RESIDUOS SÓLIDOS DE LA CONSTRUCCIÓN Y DEMOLICIÓN
A15: Empresa o persona natural que realizó el Plan de Minimización de RRSS-CD
A16: EORRSS - CD (En caso de haber 2, llenar el segundo o siguientes)
A17: Empresa Operadora de RRSS-CD | I17: Número de Registro Autoritario
A18: Empresa Operadora de RRSS-CD | I18: Número de Registro Autoritario
A19: Empresa Operadora de RRSS-CD | I19: Número de Registro Autoritario
A20: Declaración anual de manejo residuos
A21: Declaración anual de manejo residuos - Número documento | J21: Fecha
A22: Imágenes de la obra (áreas de almacenamiento) | H22: Imágenes de la obra (áreas de almacenamiento)
A29: Imágenes de la obra (Rutas de acceso) | H29: Imágenes de la obra (Rutas de acceso)
A36: Imágenes de la obra (Rutas de acceso) | H36: Imágenes de la obra (Rutas de acceso)
A43: DISMINUCIÓN DE EMISIONES DE GEI POR TRATAMIENTO DE RESIDUOS SÓLIDOS DE LA CONSTRUCCIÓN
A44: Llenado con sustento en los reportes y por tanto lo que se subió o subirá al SIGERSOL
A45: Concepto | D45: m3 | I45: Tn | L45: % Minimización
D46: Aprovechados | G46: Dispuestos relleno Sanitario | H46: Volumen | I46: Aprovechados | J46: Dispuestos relleno Sanitario | K46: Masa
A47: RCD: Naturaleza pétrea | D47: =F48 -> 0 | G47: =G48 -> 97 | H47: =D47+G47 -> 97 | I47: =I48 -> 125.73 | J47: =J48 -> 49.07 | K47: =I47+J47 -> 174.8 | L47: =IF(K57=0,"",(I47+I49+I55)/K57) -> 0.6851020408
A48: RCD de Naturaleza Pétrea (Grava, arena, arcillas, tierras vegetales, piedras, restos de hormigón, restos de mescla, restos de cerámicos, porcelanato, yesos, restos de ladrillos). | D48: 248.5 | G48: 97 | H48: =F48+G48 -> 97 | I48: 125.73 | J48: 49.07 | K48: 174.8
A49: RCD: Naturaleza no pétrea | D49: =F50+F51+F52+F53+F54 -> 0 | G49: =G50+G51+G52+G53+G54 -> 14.6 | H49: =D49+G49 -> 14.6 | I49: =I50+I51+I52+I53+I54 -> 8.55 | J49: =J50+J51+J52+J53+J54 -> 5.75 | K49: 14.3
A50: Madera | D50: 3.6 | G50: 0.9 | H50: =F50+G50 -> 0.9 | I50: 1.44 | J50: 0.36 | K50: 1.8
A51: Metales Ferrosos y No Ferrosos | D51: 1.2 | G51: 0 | H51: =F51+G51 -> 0 | I51: 0.54 | J51: 0 | K51: 0.54
A52: Plástico (PET, PEAD, PEBD, PP, PS) | D52: 3.7 | G52: 1.2 | H52: =F52+G52 -> 1.2 | I52: 1.21 | J52: 0.39 | K52: 1.6
A53: Papel y Cartón | D53: 7.8 | G53: 3.6 | H53: =F53+G53 -> 3.6 | I53: 2.63 | J53: 1.27 | K53: 3.9
A54: Otros (PVC, Mangueras, Suelas de Zapatos, bolsas, film) | D54: 7.3 | G54: 8.9 | H54: =F54+G54 -> 8.9 | I54: 2.73 | J54: 3.73 | K54: 6.46
A55: RCD: Otros | D55: =F56 -> 0 | G55: =G56 -> 24.3 | H55: =D55+G55 -> 24.3 | I55: =I56 -> 0 | J55: =J56 -> 6.9 | K55: 6.9
A56: Basuras (Tecnopor, telas, restos orgánicos, envolturas, etc.). | D56: 0 | G56: 24.3 | H56: 24.3 | I56: 0 | J56: 6.9 | K56: 6.9
A57: TOTAL | D57: =D47+D49+D55 -> 0 | G57: =G47+G49+G55 -> 135.9 | H57: =D57+G57 -> 135.9 | I57: =I47+I49+I55 -> 134.28 | J57: =J47+J49+J55 -> 61.72 | K57: 196

Sheet Formato 3
A1: Formato N° 3: “Ciclo de Vida ETAPA A4 y A5” (Declaración Jurada) (Solo para proyectos certificados a partir del Procedimiento XI)
A2: Código: F1284/ PR-N3-3-2-6
A3: APLICAR AL TIPO DE CERTIFICADO (marcar con X) | N3: =IF(AND(C4="",J4=""),"FALTA LLENAR EL TIPO DE CERTIFICADO AL CUAL SE POSTULA",IF(AND(C4<>"",J4<>""),"NO PUEDE LLENAR LAS DOS TIPOS DE CERTIFICADOS"," ")) -> 
A4: MiVivienda Verde | C4: =IF('Formato 1'!C4="","",'Formato 1'!C4) -> I+ TRADICIONAL | H4: MiVivienda Verde Internacional | J4: =IF('Formato 1'!J4="","",'Formato 1'!J4) -> 
A5: DATOS DE LA EMPRESA INMOBILIARIA
A6: Nombre de la Empresa (según ficha Ruc) | E6: RUC | H6: Número de partida SUNARP | I6: Oficina Registral SUNARP | K6: Fecha de creación SUNARP
A7: =IF('Formato 1'!A23="","",'Formato 1'!A23) ->  | E7: =IF('Formato 1'!E23="","",'Formato 1'!E23) ->  | H7: =IF('Formato 1'!H23="","",'Formato 1'!H23) ->  | K7: =IF('Formato 1'!K23="","",'Formato 1'!K23) -> 
A8: Nombre Comercial | I8: Número Autogenerado FMV
A9: =IF('Formato 1'!A25="","",'Formato 1'!A25) ->  | I9: =IF('Formato 1'!I23="","",'Formato 1'!I23) -> 
A10: DATOS DEL PROYECTO
A11: Nombre del Proyecto | G11: Numeración de proyecto | J11: Grado
A12: =IF('Formato 1'!A7="","",'Formato 1'!A7) ->  | G12: Certificado inicial del proyecto | I12: =IF('Formato 1'!I7="","",'Formato 1'!I7) ->  | J12: =IF('Formato 1'!J7="","",'Formato 1'!J7) -> 
G13: Recertificado del proyecto | I13: =IF('Formato 1'!I8="","",'Formato 1'!I8) ->  | J13: =IF('Formato 1'!J8="","",'Formato 1'!J8) -> 
A14: CICLO DE VIDA DEL EDIFICIO - CONSTRUCCIÓN - ETAPA A4 Transporte al sitio
A15: Cantidad de viajes promedio para llevar los materiales a la obra | H15: Recorrido distancia promedio de kms
A16: Entrega información de sustento
A17: Resumir el sustento (agregar el estudio):
A18: CICLO DE VIDA DEL EDIFICIO - CONSTRUCCIÓN - ETAPA A5 Construcción e instalación
A19: Cantidad de galones de combustible usado en la maquinaria (Petroleo) | H19: Cantidad de galones de combustible usado en la maquinaria (Gasolina)
A20: Cantidad de m3 de combustible usado en la maquinaria (GN) | H20: Cantidad de galones de combustible usado en la maquinaria (GLP)
A21: Cantidad de kWh (1) | H21: Cantidad de kWh (2)
A22: N° Suministro electrico (1) | H22: N° Suministro electrico (2)
A23: Entrega información de sustento de todos los consumos
A24: Resumir el sustento (agregar el estudio):

Sheet Formato 4
A1: Formato N° 4: “Identificación de las Unidades de vivienda para el Monitoreo de Consumos” (Declaración Jurada)
A2: Código: F1285/PR-N3-3-2-6
A3: DATOS DEL PROYECTO
A4: Nombre del Proyecto | D4: Numeración de proyecto (Recertificado) | F4: Grado del BBP Verde | G4: Área Total del proyecto (m2) | H4: Tipo de MIVIVIENDA VERDE | I4: Partida Registral del Edificio | J4: Oficina Registral SUNARP | K4: Empresa de agua | L4: Número de suministro de agua (General) | M4: Empresa de energía eléctrica | N4: Número de suministro de energía eléctrica (Áreas comunes) | O4: Empresa de distribución de gas | Q4: Número de suministro de distribución de GAS NATURAL (General)
A5: =IF('Formato 1'!A7="","",'Formato 1'!A7) ->  | D5: =IF('Formato 1'!I8="","",'Formato 1'!I8) ->  | F5: =IF('Formato 1'!C4<>"",'Formato 1'!C4,'Formato 1'!J4) -> I+ TRADICIONAL | H5: =IFERROR(VLOOKUP(F5,T!D3:E8,2,FALSE),"") -> TRADICIONAL
A6: IDENTIFICACIÓN DE LAS UNIDADES DE VIVIENDA PARA EL MONITOREO DE CONSUMOS
A7: Correlativo | B7: Torre/ Etapa | C7: Unidad de vivienda | D7: Cantidad de dormitorios | E7: Área de departamento | F7: Partida Registral | G7: Numeración FMV | H7: Tipo de Documento-Número | I7: Apellido Paterno | J7: Apellido Materno | K7: Nombres completos | M7: Teléfono | N7: Correo electrónico | O7: Fecha de capacitación a charla de sensibilización (con Acta y/o medio probatorio) | P7: Número de suministro de empresa de energía eléctrica | Q7: Número de suministro de distribución de GAS NATURAL
A8: 1
A9: 2
A10: 3
A11: 4
A12: 5
A13: 6
A14: 7
A15: 8
A16: 9
A17: 10
A18: 11
A19: 12
A20: 13
A21: 14
A22: 15
A23: 16
A24: 17
A25: 18
A26: 19
A27: 20
A28: 21
A29: 22
A30: 23
A31: 24
A32: 25
A33: 26
A34: 27
A35: 28
A36: 29
A37: 30
A38: 31
A39: 32
A40: 33
A41: 34
A42: 35
A43: 36
A44: 37
A45: 38
A46: 39
A47: 40
A48: 41
A49: 42
A50: 43
A51: 44
A52: 45
A53: 46
A54: 47
A55: 48
A56: 49
A57: 50
A58: 51
A59: 52
A60: 53
A61: 54
A62: 55
A63: 56
A64: 57
A65: 58
A66: 59
A67: 60
A68: 61
A69: 62
A70: 63
A71: 64
A72: 65
A73: 66
A74: 67
A75: 68
A76: 69
A77: 70
A78: 71
A79: 72
A80: 73
A81: 74
A82: 75
A83: 76
A84: 77
A85: 78
A86: 79
A87: 80
A88: 81
A89: 82
A90: 83
A91: 84
A92: 85
A93: 86
A94: 87
A95: 88
A96: 89
A97: 90
A98: 91
A99: 92
A100: 93
A101: 94
A102: 95
A103: 96
A104: 97
A105: 98
A106: 99
A107: 100

Sheet Formato 5
A1: Formato N° 5: “Monitoreo de consumo de eléctrico” (Declaración Jurada)
A2: Código: F1286/PR-N3-3-2-6
A3: DATOS DEL PROYECTO | K3: CONSUMO DE ENERGÍA ELÉCTRICA DE ÁREAS COMUNES
A4: Nombre del Proyecto | D4: Numeración de proyecto (Recertificado) | F4: Grado del BBP Verde | G4: Área Total del proyecto | H4: Tipo de MIVIVIENDA VERDE | I4: Partida Registral del Edificio | J4: Oficina Registral SUNARP | K4: Empresa de energía eléctrica | L4: Número de suministro de energía eléctrica (Áreas comunes) | M4: MES 01 | N4: MES 02 | O4: MES 03 | P4: MES 04 | Q4: MES 05 | R4: MES 06
A5: =IF('Formato 1'!A7="","",'Formato 1'!A7) ->  | D5: =IF('Formato 1'!I8="","",'Formato 1'!I8) ->  | F5: ='Formato 4'!F5 -> I+ TRADICIONAL | G5: =IF('Formato 4'!G5="","",'Formato 4'!G5) ->  | H5: =IF('Formato 4'!H5="","",'Formato 4'!H5) -> TRADICIONAL | I5: =IF('Formato 4'!I5="","",'Formato 4'!I5) ->  | J5: =IF('Formato 4'!J5="","",'Formato 4'!J5) -> 
A6: MONITOREO DE CONSUMO ELÉCTRICO
A7: Correlativo | B7: Torre/ Etapa | C7: Unidad de vivienda | D7: Cantidad de dormitorios | E7: Área de departamento | F7: Partida Registral | G7: Numeración FMV | H7: Número de suministro de energía eléctrica de la unidad inmobiliaria | I7: MES 01 | J7: MES 02 | K7: MES 03 | L7: MES 04 | M7: MES 05 | N7: MES 06 | O7: MES 07 | P7: MES 08 | Q7: MES 09 | R7: MES 10
A8: 1 | B8: =IF('Formato 4'!B8="","",'Formato 4'!B8) ->  | C8: =IF('Formato 4'!C8="","",'Formato 4'!C8) ->  | D8: =IF('Formato 4'!D8="","",'Formato 4'!D8) ->  | E8: =IF('Formato 4'!E8="","",'Formato 4'!E8) ->  | F8: =IF('Formato 4'!F8="","",'Formato 4'!F8) ->  | G8: =IF('Formato 4'!G8="","",'Formato 4'!G8) -> 
A9: 2 | B9: =IF('Formato 4'!B9="","",'Formato 4'!B9) ->  | C9: =IF('Formato 4'!C9="","",'Formato 4'!C9) ->  | D9: =IF('Formato 4'!D9="","",'Formato 4'!D9) ->  | E9: =IF('Formato 4'!E9="","",'Formato 4'!E9) ->  | F9: =IF('Formato 4'!F9="","",'Formato 4'!F9) ->  | G9: =IF('Formato 4'!G9="","",'Formato 4'!G9) -> 
A10: 3 | B10: =IF('Formato 4'!B10="","",'Formato 4'!B10) ->  | C10: =IF('Formato 4'!C10="","",'Formato 4'!C10) ->  | D10: =IF('Formato 4'!D10="","",'Formato 4'!D10) ->  | E10: =IF('Formato 4'!E10="","",'Formato 4'!E10) ->  | F10: =IF('Formato 4'!F10="","",'Formato 4'!F10) ->  | G10: =IF('Formato 4'!G10="","",'Formato 4'!G10) -> 
A11: 4 | B11: =IF('Formato 4'!B11="","",'Formato 4'!B11) ->  | C11: =IF('Formato 4'!C11="","",'Formato 4'!C11) ->  | D11: =IF('Formato 4'!D11="","",'Formato 4'!D11) ->  | E11: =IF('Formato 4'!E11="","",'Formato 4'!E11) ->  | F11: =IF('Formato 4'!F11="","",'Formato 4'!F11) ->  | G11: =IF('Formato 4'!G11="","",'Formato 4'!G11) -> 
A12: 5 | B12: =IF('Formato 4'!B12="","",'Formato 4'!B12) ->  | C12: =IF('Formato 4'!C12="","",'Formato 4'!C12) ->  | D12: =IF('Formato 4'!D12="","",'Formato 4'!D12) ->  | E12: =IF('Formato 4'!E12="","",'Formato 4'!E12) ->  | F12: =IF('Formato 4'!F12="","",'Formato 4'!F12) ->  | G12: =IF('Formato 4'!G12="","",'Formato 4'!G12) -> 
A13: 6 | B13: =IF('Formato 4'!B13="","",'Formato 4'!B13) ->  | C13: =IF('Formato 4'!C13="","",'Formato 4'!C13) ->  | D13: =IF('Formato 4'!D13="","",'Formato 4'!D13) ->  | E13: =IF('Formato 4'!E13="","",'Formato 4'!E13) ->  | F13: =IF('Formato 4'!F13="","",'Formato 4'!F13) ->  | G13: =IF('Formato 4'!G13="","",'Formato 4'!G13) -> 
A14: 7 | B14: =IF('Formato 4'!B14="","",'Formato 4'!B14) ->  | C14: =IF('Formato 4'!C14="","",'Formato 4'!C14) ->  | D14: =IF('Formato 4'!D14="","",'Formato 4'!D14) ->  | E14: =IF('Formato 4'!E14="","",'Formato 4'!E14) ->  | F14: =IF('Formato 4'!F14="","",'Formato 4'!F14) ->  | G14: =IF('Formato 4'!G14="","",'Formato 4'!G14) -> 
A15: 8 | B15: =IF('Formato 4'!B15="","",'Formato 4'!B15) ->  | C15: =IF('Formato 4'!C15="","",'Formato 4'!C15) ->  | D15: =IF('Formato 4'!D15="","",'Formato 4'!D15) ->  | E15: =IF('Formato 4'!E15="","",'Formato 4'!E15) ->  | F15: =IF('Formato 4'!F15="","",'Formato 4'!F15) ->  | G15: =IF('Formato 4'!G15="","",'Formato 4'!G15) -> 
A16: 9 | B16: =IF('Formato 4'!B16="","",'Formato 4'!B16) ->  | C16: =IF('Formato 4'!C16="","",'Formato 4'!C16) ->  | D16: =IF('Formato 4'!D16="","",'Formato 4'!D16) ->  | E16: =IF('Formato 4'!E16="","",'Formato 4'!E16) ->  | F16: =IF('Formato 4'!F16="","",'Formato 4'!F16) ->  | G16: =IF('Formato 4'!G16="","",'Formato 4'!G16) -> 
A17: 10 | B17: =IF('Formato 4'!B17="","",'Formato 4'!B17) ->  | C17: =IF('Formato 4'!C17="","",'Formato 4'!C17) ->  | D17: =IF('Formato 4'!D17="","",'Formato 4'!D17) ->  | E17: =IF('Formato 4'!E17="","",'Formato 4'!E17) ->  | F17: =IF('Formato 4'!F17="","",'Formato 4'!F17) ->  | G17: =IF('Formato 4'!G17="","",'Formato 4'!G17) -> 
A18: 11 | B18: =IF('Formato 4'!B18="","",'Formato 4'!B18) ->  | C18: =IF('Formato 4'!C18="","",'Formato 4'!C18) ->  | D18: =IF('Formato 4'!D18="","",'Formato 4'!D18) ->  | E18: =IF('Formato 4'!E18="","",'Formato 4'!E18) ->  | F18: =IF('Formato 4'!F18="","",'Formato 4'!F18) ->  | G18: =IF('Formato 4'!G18="","",'Formato 4'!G18) -> 
A19: 12 | B19: =IF('Formato 4'!B19="","",'Formato 4'!B19) ->  | C19: =IF('Formato 4'!C19="","",'Formato 4'!C19) ->  | D19: =IF('Formato 4'!D19="","",'Formato 4'!D19) ->  | E19: =IF('Formato 4'!E19="","",'Formato 4'!E19) ->  | F19: =IF('Formato 4'!F19="","",'Formato 4'!F19) ->  | G19: =IF('Formato 4'!G19="","",'Formato 4'!G19) -> 
A20: 13 | B20: =IF('Formato 4'!B20="","",'Formato 4'!B20) ->  | C20: =IF('Formato 4'!C20="","",'Formato 4'!C20) ->  | D20: =IF('Formato 4'!D20="","",'Formato 4'!D20) ->  | E20: =IF('Formato 4'!E20="","",'Formato 4'!E20) ->  | F20: =IF('Formato 4'!F20="","",'Formato 4'!F20) ->  | G20: =IF('Formato 4'!G20="","",'Formato 4'!G20) -> 
A21: 14 | B21: =IF('Formato 4'!B21="","",'Formato 4'!B21) ->  | C21: =IF('Formato 4'!C21="","",'Formato 4'!C21) ->  | D21: =IF('Formato 4'!D21="","",'Formato 4'!D21) ->  | E21: =IF('Formato 4'!E21="","",'Formato 4'!E21) ->  | F21: =IF('Formato 4'!F21="","",'Formato 4'!F21) ->  | G21: =IF('Formato 4'!G21="","",'Formato 4'!G21) -> 
A22: 15 | B22: =IF('Formato 4'!B22="","",'Formato 4'!B22) ->  | C22: =IF('Formato 4'!C22="","",'Formato 4'!C22) ->  | D22: =IF('Formato 4'!D22="","",'Formato 4'!D22) ->  | E22: =IF('Formato 4'!E22="","",'Formato 4'!E22) ->  | F22: =IF('Formato 4'!F22="","",'Formato 4'!F22) ->  | G22: =IF('Formato 4'!G22="","",'Formato 4'!G22) -> 
A23: 16 | B23: =IF('Formato 4'!B23="","",'Formato 4'!B23) ->  | C23: =IF('Formato 4'!C23="","",'Formato 4'!C23) ->  | D23: =IF('Formato 4'!D23="","",'Formato 4'!D23) ->  | E23: =IF('Formato 4'!E23="","",'Formato 4'!E23) ->  | F23: =IF('Formato 4'!F23="","",'Formato 4'!F23) ->  | G23: =IF('Formato 4'!G23="","",'Formato 4'!G23) -> 
A24: 17 | B24: =IF('Formato 4'!B24="","",'Formato 4'!B24) ->  | C24: =IF('Formato 4'!C24="","",'Formato 4'!C24) ->  | D24: =IF('Formato 4'!D24="","",'Formato 4'!D24) ->  | E24: =IF('Formato 4'!E24="","",'Formato 4'!E24) ->  | F24: =IF('Formato 4'!F24="","",'Formato 4'!F24) ->  | G24: =IF('Formato 4'!G24="","",'Formato 4'!G24) -> 
A25: 18 | B25: =IF('Formato 4'!B25="","",'Formato 4'!B25) ->  | C25: =IF('Formato 4'!C25="","",'Formato 4'!C25) ->  | D25: =IF('Formato 4'!D25="","",'Formato 4'!D25) ->  | E25: =IF('Formato 4'!E25="","",'Formato 4'!E25) ->  | F25: =IF('Formato 4'!F25="","",'Formato 4'!F25) ->  | G25: =IF('Formato 4'!G25="","",'Formato 4'!G25) -> 
A26: 19 | B26: =IF('Formato 4'!B26="","",'Formato 4'!B26) ->  | C26: =IF('Formato 4'!C26="","",'Formato 4'!C26) ->  | D26: =IF('Formato 4'!D26="","",'Formato 4'!D26) ->  | E26: =IF('Formato 4'!E26="","",'Formato 4'!E26) ->  | F26: =IF('Formato 4'!F26="","",'Formato 4'!F26) ->  | G26: =IF('Formato 4'!G26="","",'Formato 4'!G26) -> 
A27: 20 | B27: =IF('Formato 4'!B27="","",'Formato 4'!B27) ->  | C27: =IF('Formato 4'!C27="","",'Formato 4'!C27) ->  | D27: =IF('Formato 4'!D27="","",'Formato 4'!D27) ->  | E27: =IF('Formato 4'!E27="","",'Formato 4'!E27) ->  | F27: =IF('Formato 4'!F27="","",'Formato 4'!F27) ->  | G27: =IF('Formato 4'!G27="","",'Formato 4'!G27) -> 
A28: 21 | B28: =IF('Formato 4'!B28="","",'Formato 4'!B28) ->  | C28: =IF('Formato 4'!C28="","",'Formato 4'!C28) ->  | D28: =IF('Formato 4'!D28="","",'Formato 4'!D28) ->  | E28: =IF('Formato 4'!E28="","",'Formato 4'!E28) ->  | F28: =IF('Formato 4'!F28="","",'Formato 4'!F28) ->  | G28: =IF('Formato 4'!G28="","",'Formato 4'!G28) -> 
A29: 22 | B29: =IF('Formato 4'!B29="","",'Formato 4'!B29) ->  | C29: =IF('Formato 4'!C29="","",'Formato 4'!C29) ->  | D29: =IF('Formato 4'!D29="","",'Formato 4'!D29) ->  | E29: =IF('Formato 4'!E29="","",'Formato 4'!E29) ->  | F29: =IF('Formato 4'!F29="","",'Formato 4'!F29) ->  | G29: =IF('Formato 4'!G29="","",'Formato 4'!G29) -> 
A30: 23 | B30: =IF('Formato 4'!B30="","",'Formato 4'!B30) ->  | C30: =IF('Formato 4'!C30="","",'Formato 4'!C30) ->  | D30: =IF('Formato 4'!D30="","",'Formato 4'!D30) ->  | E30: =IF('Formato 4'!E30="","",'Formato 4'!E30) ->  | F30: =IF('Formato 4'!F30="","",'Formato 4'!F30) ->  | G30: =IF('Formato 4'!G30="","",'Formato 4'!G30) -> 
A31: 24 | B31: =IF('Formato 4'!B31="","",'Formato 4'!B31) ->  | C31: =IF('Formato 4'!C31="","",'Formato 4'!C31) ->  | D31: =IF('Formato 4'!D31="","",'Formato 4'!D31) ->  | E31: =IF('Formato 4'!E31="","",'Formato 4'!E31) ->  | F31: =IF('Formato 4'!F31="","",'Formato 4'!F31) ->  | G31: =IF('Formato 4'!G31="","",'Formato 4'!G31) -> 
A32: 25 | B32: =IF('Formato 4'!B32="","",'Formato 4'!B32) ->  | C32: =IF('Formato 4'!C32="","",'Formato 4'!C32) ->  | D32: =IF('Formato 4'!D32="","",'Formato 4'!D32) ->  | E32: =IF('Formato 4'!E32="","",'Formato 4'!E32) ->  | F32: =IF('Formato 4'!F32="","",'Formato 4'!F32) ->  | G32: =IF('Formato 4'!G32="","",'Formato 4'!G32) -> 
A33: 26 | B33: =IF('Formato 4'!B33="","",'Formato 4'!B33) ->  | C33: =IF('Formato 4'!C33="","",'Formato 4'!C33) ->  | D33: =IF('Formato 4'!D33="","",'Formato 4'!D33) ->  | E33: =IF('Formato 4'!E33="","",'Formato 4'!E33) ->  | F33: =IF('Formato 4'!F33="","",'Formato 4'!F33) ->  | G33: =IF('Formato 4'!G33="","",'Formato 4'!G33) -> 
A34: 27 | B34: =IF('Formato 4'!B34="","",'Formato 4'!B34) ->  | C34: =IF('Formato 4'!C34="","",'Formato 4'!C34) ->  | D34: =IF('Formato 4'!D34="","",'Formato 4'!D34) ->  | E34: =IF('Formato 4'!E34="","",'Formato 4'!E34) ->  | F34: =IF('Formato 4'!F34="","",'Formato 4'!F34) ->  | G34: =IF('Formato 4'!G34="","",'Formato 4'!G34) -> 
A35: 28 | B35: =IF('Formato 4'!B35="","",'Formato 4'!B35) ->  | C35: =IF('Formato 4'!C35="","",'Formato 4'!C35) ->  | D35: =IF('Formato 4'!D35="","",'Formato 4'!D35) ->  | E35: =IF('Formato 4'!E35="","",'Formato 4'!E35) ->  | F35: =IF('Formato 4'!F35="","",'Formato 4'!F35) ->  | G35: =IF('Formato 4'!G35="","",'Formato 4'!G35) -> 
A36: 29 | B36: =IF('Formato 4'!B36="","",'Formato 4'!B36) ->  | C36: =IF('Formato 4'!C36="","",'Formato 4'!C36) ->  | D36: =IF('Formato 4'!D36="","",'Formato 4'!D36) ->  | E36: =IF('Formato 4'!E36="","",'Formato 4'!E36) ->  | F36: =IF('Formato 4'!F36="","",'Formato 4'!F36) ->  | G36: =IF('Formato 4'!G36="","",'Formato 4'!G36) -> 
A37: 30 | B37: =IF('Formato 4'!B37="","",'Formato 4'!B37) ->  | C37: =IF('Formato 4'!C37="","",'Formato 4'!C37) ->  | D37: =IF('Formato 4'!D37="","",'Formato 4'!D37) ->  | E37: =IF('Formato 4'!E37="","",'Formato 4'!E37) ->  | F37: =IF('Formato 4'!F37="","",'Formato 4'!F37) ->  | G37: =IF('Formato 4'!G37="","",'Formato 4'!G37) -> 
A38: 31 | B38: =IF('Formato 4'!B38="","",'Formato 4'!B38) ->  | C38: =IF('Formato 4'!C38="","",'Formato 4'!C38) ->  | D38: =IF('Formato 4'!D38="","",'Formato 4'!D38) ->  | E38: =IF('Formato 4'!E38="","",'Formato 4'!E38) ->  | F38: =IF('Formato 4'!F38="","",'Formato 4'!F38) ->  | G38: =IF('Formato 4'!G38="","",'Formato 4'!G38) -> 
A39: 32 | B39: =IF('Formato 4'!B39="","",'Formato 4'!B39) ->  | C39: =IF('Formato 4'!C39="","",'Formato 4'!C39) ->  | D39: =IF('Formato 4'!D39="","",'Formato 4'!D39) ->  | E39: =IF('Formato 4'!E39="","",'Formato 4'!E39) ->  | F39: =IF('Formato 4'!F39="","",'Formato 4'!F39) ->  | G39: =IF('Formato 4'!G39="","",'Formato 4'!G39) -> 
A40: 33 | B40: =IF('Formato 4'!B40="","",'Formato 4'!B40) ->  | C40: =IF('Formato 4'!C40="","",'Formato 4'!C40) ->  | D40: =IF('Formato 4'!D40="","",'Formato 4'!D40) ->  | E40: =IF('Formato 4'!E40="","",'Formato 4'!E40) ->  | F40: =IF('Formato 4'!F40="","",'Formato 4'!F40) ->  | G40: =IF('Formato 4'!G40="","",'Formato 4'!G40) -> 
A41: 34 | B41: =IF('Formato 4'!B41="","",'Formato 4'!B41) ->  | C41: =IF('Formato 4'!C41="","",'Formato 4'!C41) ->  | D41: =IF('Formato 4'!D41="","",'Formato 4'!D41) ->  | E41: =IF('Formato 4'!E41="","",'Formato 4'!E41) ->  | F41: =IF('Formato 4'!F41="","",'Formato 4'!F41) ->  | G41: =IF('Formato 4'!G41="","",'Formato 4'!G41) -> 
A42: 35 | B42: =IF('Formato 4'!B42="","",'Formato 4'!B42) ->  | C42: =IF('Formato 4'!C42="","",'Formato 4'!C42) ->  | D42: =IF('Formato 4'!D42="","",'Formato 4'!D42) ->  | E42: =IF('Formato 4'!E42="","",'Formato 4'!E42) ->  | F42: =IF('Formato 4'!F42="","",'Formato 4'!F42) ->  | G42: =IF('Formato 4'!G42="","",'Formato 4'!G42) -> 
A43: 36 | B43: =IF('Formato 4'!B43="","",'Formato 4'!B43) ->  | C43: =IF('Formato 4'!C43="","",'Formato 4'!C43) ->  | D43: =IF('Formato 4'!D43="","",'Formato 4'!D43) ->  | E43: =IF('Formato 4'!E43="","",'Formato 4'!E43) ->  | F43: =IF('Formato 4'!F43="","",'Formato 4'!F43) ->  | G43: =IF('Formato 4'!G43="","",'Formato 4'!G43) -> 
A44: 37 | B44: =IF('Formato 4'!B44="","",'Formato 4'!B44) ->  | C44: =IF('Formato 4'!C44="","",'Formato 4'!C44) ->  | D44: =IF('Formato 4'!D44="","",'Formato 4'!D44) ->  | E44: =IF('Formato 4'!E44="","",'Formato 4'!E44) ->  | F44: =IF('Formato 4'!F44="","",'Formato 4'!F44) ->  | G44: =IF('Formato 4'!G44="","",'Formato 4'!G44) -> 
A45: 38 | B45: =IF('Formato 4'!B45="","",'Formato 4'!B45) ->  | C45: =IF('Formato 4'!C45="","",'Formato 4'!C45) ->  | D45: =IF('Formato 4'!D45="","",'Formato 4'!D45) ->  | E45: =IF('Formato 4'!E45="","",'Formato 4'!E45) ->  | F45: =IF('Formato 4'!F45="","",'Formato 4'!F45) ->  | G45: =IF('Formato 4'!G45="","",'Formato 4'!G45) -> 
A46: 39 | B46: =IF('Formato 4'!B46="","",'Formato 4'!B46) ->  | C46: =IF('Formato 4'!C46="","",'Formato 4'!C46) ->  | D46: =IF('Formato 4'!D46="","",'Formato 4'!D46) ->  | E46: =IF('Formato 4'!E46="","",'Formato 4'!E46) ->  | F46: =IF('Formato 4'!F46="","",'Formato 4'!F46) ->  | G46: =IF('Formato 4'!G46="","",'Formato 4'!G46) -> 
A47: 40 | B47: =IF('Formato 4'!B47="","",'Formato 4'!B47) ->  | C47: =IF('Formato 4'!C47="","",'Formato 4'!C47) ->  | D47: =IF('Formato 4'!D47="","",'Formato 4'!D47) ->  | E47: =IF('Formato 4'!E47="","",'Formato 4'!E47) ->  | F47: =IF('Formato 4'!F47="","",'Formato 4'!F47) ->  | G47: =IF('Formato 4'!G47="","",'Formato 4'!G47) -> 
A48: 41 | B48: =IF('Formato 4'!B48="","",'Formato 4'!B48) ->  | C48: =IF('Formato 4'!C48="","",'Formato 4'!C48) ->  | D48: =IF('Formato 4'!D48="","",'Formato 4'!D48) ->  | E48: =IF('Formato 4'!E48="","",'Formato 4'!E48) ->  | F48: =IF('Formato 4'!F48="","",'Formato 4'!F48) ->  | G48: =IF('Formato 4'!G48="","",'Formato 4'!G48) -> 
A49: 42 | B49: =IF('Formato 4'!B49="","",'Formato 4'!B49) ->  | C49: =IF('Formato 4'!C49="","",'Formato 4'!C49) ->  | D49: =IF('Formato 4'!D49="","",'Formato 4'!D49) ->  | E49: =IF('Formato 4'!E49="","",'Formato 4'!E49) ->  | F49: =IF('Formato 4'!F49="","",'Formato 4'!F49) ->  | G49: =IF('Formato 4'!G49="","",'Formato 4'!G49) -> 
A50: 43 | B50: =IF('Formato 4'!B50="","",'Formato 4'!B50) ->  | C50: =IF('Formato 4'!C50="","",'Formato 4'!C50) ->  | D50: =IF('Formato 4'!D50="","",'Formato 4'!D50) ->  | E50: =IF('Formato 4'!E50="","",'Formato 4'!E50) ->  | F50: =IF('Formato 4'!F50="","",'Formato 4'!F50) ->  | G50: =IF('Formato 4'!G50="","",'Formato 4'!G50) -> 
A51: 44 | B51: =IF('Formato 4'!B51="","",'Formato 4'!B51) ->  | C51: =IF('Formato 4'!C51="","",'Formato 4'!C51) ->  | D51: =IF('Formato 4'!D51="","",'Formato 4'!D51) ->  | E51: =IF('Formato 4'!E51="","",'Formato 4'!E51) ->  | F51: =IF('Formato 4'!F51="","",'Formato 4'!F51) ->  | G51: =IF('Formato 4'!G51="","",'Formato 4'!G51) -> 
A52: 45 | B52: =IF('Formato 4'!B52="","",'Formato 4'!B52) ->  | C52: =IF('Formato 4'!C52="","",'Formato 4'!C52) ->  | D52: =IF('Formato 4'!D52="","",'Formato 4'!D52) ->  | E52: =IF('Formato 4'!E52="","",'Formato 4'!E52) ->  | F52: =IF('Formato 4'!F52="","",'Formato 4'!F52) ->  | G52: =IF('Formato 4'!G52="","",'Formato 4'!G52) -> 
A53: 46 | B53: =IF('Formato 4'!B53="","",'Formato 4'!B53) ->  | C53: =IF('Formato 4'!C53="","",'Formato 4'!C53) ->  | D53: =IF('Formato 4'!D53="","",'Formato 4'!D53) ->  | E53: =IF('Formato 4'!E53="","",'Formato 4'!E53) ->  | F53: =IF('Formato 4'!F53="","",'Formato 4'!F53) ->  | G53: =IF('Formato 4'!G53="","",'Formato 4'!G53) -> 
A54: 47 | B54: =IF('Formato 4'!B54="","",'Formato 4'!B54) ->  | C54: =IF('Formato 4'!C54="","",'Formato 4'!C54) ->  | D54: =IF('Formato 4'!D54="","",'Formato 4'!D54) ->  | E54: =IF('Formato 4'!E54="","",'Formato 4'!E54) ->  | F54: =IF('Formato 4'!F54="","",'Formato 4'!F54) ->  | G54: =IF('Formato 4'!G54="","",'Formato 4'!G54) -> 
A55: 48 | B55: =IF('Formato 4'!B55="","",'Formato 4'!B55) ->  | C55: =IF('Formato 4'!C55="","",'Formato 4'!C55) ->  | D55: =IF('Formato 4'!D55="","",'Formato 4'!D55) ->  | E55: =IF('Formato 4'!E55="","",'Formato 4'!E55) ->  | F55: =IF('Formato 4'!F55="","",'Formato 4'!F55) ->  | G55: =IF('Formato 4'!G55="","",'Formato 4'!G55) -> 
A56: 49 | B56: =IF('Formato 4'!B56="","",'Formato 4'!B56) ->  | C56: =IF('Formato 4'!C56="","",'Formato 4'!C56) ->  | D56: =IF('Formato 4'!D56="","",'Formato 4'!D56) ->  | E56: =IF('Formato 4'!E56="","",'Formato 4'!E56) ->  | F56: =IF('Formato 4'!F56="","",'Formato 4'!F56) ->  | G56: =IF('Formato 4'!G56="","",'Formato 4'!G56) -> 
A57: 50 | B57: =IF('Formato 4'!B57="","",'Formato 4'!B57) ->  | C57: =IF('Formato 4'!C57="","",'Formato 4'!C57) ->  | D57: =IF('Formato 4'!D57="","",'Formato 4'!D57) ->  | E57: =IF('Formato 4'!E57="","",'Formato 4'!E57) ->  | F57: =IF('Formato 4'!F57="","",'Formato 4'!F57) ->  | G57: =IF('Formato 4'!G57="","",'Formato 4'!G57) -> 
A58: 51 | B58: =IF('Formato 4'!B58="","",'Formato 4'!B58) ->  | C58: =IF('Formato 4'!C58="","",'Formato 4'!C58) ->  | D58: =IF('Formato 4'!D58="","",'Formato 4'!D58) ->  | E58: =IF('Formato 4'!E58="","",'Formato 4'!E58) ->  | F58: =IF('Formato 4'!F58="","",'Formato 4'!F58) ->  | G58: =IF('Formato 4'!G58="","",'Formato 4'!G58) -> 
A59: 52 | B59: =IF('Formato 4'!B59="","",'Formato 4'!B59) ->  | C59: =IF('Formato 4'!C59="","",'Formato 4'!C59) ->  | D59: =IF('Formato 4'!D59="","",'Formato 4'!D59) ->  | E59: =IF('Formato 4'!E59="","",'Formato 4'!E59) ->  | F59: =IF('Formato 4'!F59="","",'Formato 4'!F59) ->  | G59: =IF('Formato 4'!G59="","",'Formato 4'!G59) -> 
A60: 53 | B60: =IF('Formato 4'!B60="","",'Formato 4'!B60) ->  | C60: =IF('Formato 4'!C60="","",'Formato 4'!C60) ->  | D60: =IF('Formato 4'!D60="","",'Formato 4'!D60) ->  | E60: =IF('Formato 4'!E60="","",'Formato 4'!E60) ->  | F60: =IF('Formato 4'!F60="","",'Formato 4'!F60) ->  | G60: =IF('Formato 4'!G60="","",'Formato 4'!G60) -> 
A61: 54 | B61: =IF('Formato 4'!B61="","",'Formato 4'!B61) ->  | C61: =IF('Formato 4'!C61="","",'Formato 4'!C61) ->  | D61: =IF('Formato 4'!D61="","",'Formato 4'!D61) ->  | E61: =IF('Formato 4'!E61="","",'Formato 4'!E61) ->  | F61: =IF('Formato 4'!F61="","",'Formato 4'!F61) ->  | G61: =IF('Formato 4'!G61="","",'Formato 4'!G61) -> 
A62: 55 | B62: =IF('Formato 4'!B62="","",'Formato 4'!B62) ->  | C62: =IF('Formato 4'!C62="","",'Formato 4'!C62) ->  | D62: =IF('Formato 4'!D62="","",'Formato 4'!D62) ->  | E62: =IF('Formato 4'!E62="","",'Formato 4'!E62) ->  | F62: =IF('Formato 4'!F62="","",'Formato 4'!F62) ->  | G62: =IF('Formato 4'!G62="","",'Formato 4'!G62) -> 
A63: 56 | B63: =IF('Formato 4'!B63="","",'Formato 4'!B63) ->  | C63: =IF('Formato 4'!C63="","",'Formato 4'!C63) ->  | D63: =IF('Formato 4'!D63="","",'Formato 4'!D63) ->  | E63: =IF('Formato 4'!E63="","",'Formato 4'!E63) ->  | F63: =IF('Formato 4'!F63="","",'Formato 4'!F63) ->  | G63: =IF('Formato 4'!G63="","",'Formato 4'!G63) -> 
A64: 57 | B64: =IF('Formato 4'!B64="","",'Formato 4'!B64) ->  | C64: =IF('Formato 4'!C64="","",'Formato 4'!C64) ->  | D64: =IF('Formato 4'!D64="","",'Formato 4'!D64) ->  | E64: =IF('Formato 4'!E64="","",'Formato 4'!E64) ->  | F64: =IF('Formato 4'!F64="","",'Formato 4'!F64) ->  | G64: =IF('Formato 4'!G64="","",'Formato 4'!G64) -> 
A65: 58 | B65: =IF('Formato 4'!B65="","",'Formato 4'!B65) ->  | C65: =IF('Formato 4'!C65="","",'Formato 4'!C65) ->  | D65: =IF('Formato 4'!D65="","",'Formato 4'!D65) ->  | E65: =IF('Formato 4'!E65="","",'Formato 4'!E65) ->  | F65: =IF('Formato 4'!F65="","",'Formato 4'!F65) ->  | G65: =IF('Formato 4'!G65="","",'Formato 4'!G65) -> 
A66: 59 | B66: =IF('Formato 4'!B66="","",'Formato 4'!B66) ->  | C66: =IF('Formato 4'!C66="","",'Formato 4'!C66) ->  | D66: =IF('Formato 4'!D66="","",'Formato 4'!D66) ->  | E66: =IF('Formato 4'!E66="","",'Formato 4'!E66) ->  | F66: =IF('Formato 4'!F66="","",'Formato 4'!F66) ->  | G66: =IF('Formato 4'!G66="","",'Formato 4'!G66) -> 
A67: 60 | B67: =IF('Formato 4'!B67="","",'Formato 4'!B67) ->  | C67: =IF('Formato 4'!C67="","",'Formato 4'!C67) ->  | D67: =IF('Formato 4'!D67="","",'Formato 4'!D67) ->  | E67: =IF('Formato 4'!E67="","",'Formato 4'!E67) ->  | F67: =IF('Formato 4'!F67="","",'Formato 4'!F67) ->  | G67: =IF('Formato 4'!G67="","",'Formato 4'!G67) -> 
A68: *Monitoreo de consumo eléctrico no menor a 06 meses. Unidad mensual kwh/m2*mes

Sheet Formato 6
A1: Formato N° 6: “Monitoreo de consumo de agua” (Declaración Jurada)
A2: Código: F1287/PR-N3-3-2-6
A3: DATOS DEL PROYECTO | K3: CONSUMO DE AGUA DEL EDIFICIO TOTAL - RECIBO
A4: Nombre del Proyecto | D4: Numeración de proyecto (Recertificado) | F4: Grado del BBP Verde | G4: Área Total del proyecto | H4: Tipo de MIVIVIENDA VERDE | I4: Partida Registral del Edificio | J4: Oficina Registral SUNARP | K4: Empresa de agua | L4: Número de suministro de agua (General) | M4: MES 01 | N4: MES 02 | O4: MES 03 | P4: MES 04 | Q4: MES 05 | R4: MES 06
A5: =IF('Formato 1'!A7="","",'Formato 1'!A7) ->  | D5: =IF('Formato 1'!I8="","",'Formato 1'!I8) ->  | F5: ='Formato 5'!F5 -> I+ TRADICIONAL | G5: =IF('Formato 4'!G5="","",'Formato 4'!G5) ->  | H5: =IF('Formato 4'!H5="","",'Formato 4'!H5) -> TRADICIONAL | I5: =IF('Formato 4'!I5="","",'Formato 4'!I5) ->  | J5: =IF('Formato 4'!J5="","",'Formato 4'!J5) -> 
A6: MONITOREO DE CONSUMO DE AGUA
A7: Correlativo | B7: Torre/ Etapa | C7: Unidad de vivienda | D7: Cantidad de dormitorios | E7: Área de departamento | F7: Partida Registral | G7: Numeración FMV | H7: Número de suministro de MEDIDOR - JUNTA PROPIETARIOS | I7: MES 01 | J7: MES 02 | K7: MES 03 | L7: MES 04 | M7: MES 05 | N7: MES 06 | O7: MES 07 | P7: MES 08 | Q7: MES 09 | R7: MES 10
A8: 1 | B8: =IF('Formato 4'!B8="","",'Formato 4'!B8) ->  | C8: =IF('Formato 4'!C8="","",'Formato 4'!C8) ->  | D8: =IF('Formato 4'!D8="","",'Formato 4'!D8) ->  | E8: =IF('Formato 4'!E8="","",'Formato 4'!E8) ->  | F8: =IF('Formato 4'!F8="","",'Formato 4'!F8) ->  | G8: =IF('Formato 4'!G8="","",'Formato 4'!G8) -> 
A9: 2 | B9: =IF('Formato 4'!B9="","",'Formato 4'!B9) ->  | C9: =IF('Formato 4'!C9="","",'Formato 4'!C9) ->  | D9: =IF('Formato 4'!D9="","",'Formato 4'!D9) ->  | E9: =IF('Formato 4'!E9="","",'Formato 4'!E9) ->  | F9: =IF('Formato 4'!F9="","",'Formato 4'!F9) ->  | G9: =IF('Formato 4'!G9="","",'Formato 4'!G9) -> 
A10: 3 | B10: =IF('Formato 4'!B10="","",'Formato 4'!B10) ->  | C10: =IF('Formato 4'!C10="","",'Formato 4'!C10) ->  | D10: =IF('Formato 4'!D10="","",'Formato 4'!D10) ->  | E10: =IF('Formato 4'!E10="","",'Formato 4'!E10) ->  | F10: =IF('Formato 4'!F10="","",'Formato 4'!F10) ->  | G10: =IF('Formato 4'!G10="","",'Formato 4'!G10) -> 
A11: 4 | B11: =IF('Formato 4'!B11="","",'Formato 4'!B11) ->  | C11: =IF('Formato 4'!C11="","",'Formato 4'!C11) ->  | D11: =IF('Formato 4'!D11="","",'Formato 4'!D11) ->  | E11: =IF('Formato 4'!E11="","",'Formato 4'!E11) ->  | F11: =IF('Formato 4'!F11="","",'Formato 4'!F11) ->  | G11: =IF('Formato 4'!G11="","",'Formato 4'!G11) -> 
A12: 5 | B12: =IF('Formato 4'!B12="","",'Formato 4'!B12) ->  | C12: =IF('Formato 4'!C12="","",'Formato 4'!C12) ->  | D12: =IF('Formato 4'!D12="","",'Formato 4'!D12) ->  | E12: =IF('Formato 4'!E12="","",'Formato 4'!E12) ->  | F12: =IF('Formato 4'!F12="","",'Formato 4'!F12) ->  | G12: =IF('Formato 4'!G12="","",'Formato 4'!G12) -> 
A13: 6 | B13: =IF('Formato 4'!B13="","",'Formato 4'!B13) ->  | C13: =IF('Formato 4'!C13="","",'Formato 4'!C13) ->  | D13: =IF('Formato 4'!D13="","",'Formato 4'!D13) ->  | E13: =IF('Formato 4'!E13="","",'Formato 4'!E13) ->  | F13: =IF('Formato 4'!F13="","",'Formato 4'!F13) ->  | G13: =IF('Formato 4'!G13="","",'Formato 4'!G13) -> 
A14: 7 | B14: =IF('Formato 4'!B14="","",'Formato 4'!B14) ->  | C14: =IF('Formato 4'!C14="","",'Formato 4'!C14) ->  | D14: =IF('Formato 4'!D14="","",'Formato 4'!D14) ->  | E14: =IF('Formato 4'!E14="","",'Formato 4'!E14) ->  | F14: =IF('Formato 4'!F14="","",'Formato 4'!F14) ->  | G14: =IF('Formato 4'!G14="","",'Formato 4'!G14) -> 
A15: 8 | B15: =IF('Formato 4'!B15="","",'Formato 4'!B15) ->  | C15: =IF('Formato 4'!C15="","",'Formato 4'!C15) ->  | D15: =IF('Formato 4'!D15="","",'Formato 4'!D15) ->  | E15: =IF('Formato 4'!E15="","",'Formato 4'!E15) ->  | F15: =IF('Formato 4'!F15="","",'Formato 4'!F15) ->  | G15: =IF('Formato 4'!G15="","",'Formato 4'!G15) -> 
A16: 9 | B16: =IF('Formato 4'!B16="","",'Formato 4'!B16) ->  | C16: =IF('Formato 4'!C16="","",'Formato 4'!C16) ->  | D16: =IF('Formato 4'!D16="","",'Formato 4'!D16) ->  | E16: =IF('Formato 4'!E16="","",'Formato 4'!E16) ->  | F16: =IF('Formato 4'!F16="","",'Formato 4'!F16) ->  | G16: =IF('Formato 4'!G16="","",'Formato 4'!G16) -> 
A17: 10 | B17: =IF('Formato 4'!B17="","",'Formato 4'!B17) ->  | C17: =IF('Formato 4'!C17="","",'Formato 4'!C17) ->  | D17: =IF('Formato 4'!D17="","",'Formato 4'!D17) ->  | E17: =IF('Formato 4'!E17="","",'Formato 4'!E17) ->  | F17: =IF('Formato 4'!F17="","",'Formato 4'!F17) ->  | G17: =IF('Formato 4'!G17="","",'Formato 4'!G17) -> 
A18: 11 | B18: =IF('Formato 4'!B18="","",'Formato 4'!B18) ->  | C18: =IF('Formato 4'!C18="","",'Formato 4'!C18) ->  | D18: =IF('Formato 4'!D18="","",'Formato 4'!D18) ->  | E18: =IF('Formato 4'!E18="","",'Formato 4'!E18) ->  | F18: =IF('Formato 4'!F18="","",'Formato 4'!F18) ->  | G18: =IF('Formato 4'!G18="","",'Formato 4'!G18) -> 
A19: 12 | B19: =IF('Formato 4'!B19="","",'Formato 4'!B19) ->  | C19: =IF('Formato 4'!C19="","",'Formato 4'!C19) ->  | D19: =IF('Formato 4'!D19="","",'Formato 4'!D19) ->  | E19: =IF('Formato 4'!E19="","",'Formato 4'!E19) ->  | F19: =IF('Formato 4'!F19="","",'Formato 4'!F19) ->  | G19: =IF('Formato 4'!G19="","",'Formato 4'!G19) -> 
A20: 13 | B20: =IF('Formato 4'!B20="","",'Formato 4'!B20) ->  | C20: =IF('Formato 4'!C20="","",'Formato 4'!C20) ->  | D20: =IF('Formato 4'!D20="","",'Formato 4'!D20) ->  | E20: =IF('Formato 4'!E20="","",'Formato 4'!E20) ->  | F20: =IF('Formato 4'!F20="","",'Formato 4'!F20) ->  | G20: =IF('Formato 4'!G20="","",'Formato 4'!G20) -> 
A21: 14 | B21: =IF('Formato 4'!B21="","",'Formato 4'!B21) ->  | C21: =IF('Formato 4'!C21="","",'Formato 4'!C21) ->  | D21: =IF('Formato 4'!D21="","",'Formato 4'!D21) ->  | E21: =IF('Formato 4'!E21="","",'Formato 4'!E21) ->  | F21: =IF('Formato 4'!F21="","",'Formato 4'!F21) ->  | G21: =IF('Formato 4'!G21="","",'Formato 4'!G21) -> 
A22: 15 | B22: =IF('Formato 4'!B22="","",'Formato 4'!B22) ->  | C22: =IF('Formato 4'!C22="","",'Formato 4'!C22) ->  | D22: =IF('Formato 4'!D22="","",'Formato 4'!D22) ->  | E22: =IF('Formato 4'!E22="","",'Formato 4'!E22) ->  | F22: =IF('Formato 4'!F22="","",'Formato 4'!F22) ->  | G22: =IF('Formato 4'!G22="","",'Formato 4'!G22) -> 
A23: 16 | B23: =IF('Formato 4'!B23="","",'Formato 4'!B23) ->  | C23: =IF('Formato 4'!C23="","",'Formato 4'!C23) ->  | D23: =IF('Formato 4'!D23="","",'Formato 4'!D23) ->  | E23: =IF('Formato 4'!E23="","",'Formato 4'!E23) ->  | F23: =IF('Formato 4'!F23="","",'Formato 4'!F23) ->  | G23: =IF('Formato 4'!G23="","",'Formato 4'!G23) -> 
A24: 17 | B24: =IF('Formato 4'!B24="","",'Formato 4'!B24) ->  | C24: =IF('Formato 4'!C24="","",'Formato 4'!C24) ->  | D24: =IF('Formato 4'!D24="","",'Formato 4'!D24) ->  | E24: =IF('Formato 4'!E24="","",'Formato 4'!E24) ->  | F24: =IF('Formato 4'!F24="","",'Formato 4'!F24) ->  | G24: =IF('Formato 4'!G24="","",'Formato 4'!G24) -> 
A25: 18 | B25: =IF('Formato 4'!B25="","",'Formato 4'!B25) ->  | C25: =IF('Formato 4'!C25="","",'Formato 4'!C25) ->  | D25: =IF('Formato 4'!D25="","",'Formato 4'!D25) ->  | E25: =IF('Formato 4'!E25="","",'Formato 4'!E25) ->  | F25: =IF('Formato 4'!F25="","",'Formato 4'!F25) ->  | G25: =IF('Formato 4'!G25="","",'Formato 4'!G25) -> 
A26: 19 | B26: =IF('Formato 4'!B26="","",'Formato 4'!B26) ->  | C26: =IF('Formato 4'!C26="","",'Formato 4'!C26) ->  | D26: =IF('Formato 4'!D26="","",'Formato 4'!D26) ->  | E26: =IF('Formato 4'!E26="","",'Formato 4'!E26) ->  | F26: =IF('Formato 4'!F26="","",'Formato 4'!F26) ->  | G26: =IF('Formato 4'!G26="","",'Formato 4'!G26) -> 
A27: 20 | B27: =IF('Formato 4'!B27="","",'Formato 4'!B27) ->  | C27: =IF('Formato 4'!C27="","",'Formato 4'!C27) ->  | D27: =IF('Formato 4'!D27="","",'Formato 4'!D27) ->  | E27: =IF('Formato 4'!E27="","",'Formato 4'!E27) ->  | F27: =IF('Formato 4'!F27="","",'Formato 4'!F27) ->  | G27: =IF('Formato 4'!G27="","",'Formato 4'!G27) -> 
A28: 21 | B28: =IF('Formato 4'!B28="","",'Formato 4'!B28) ->  | C28: =IF('Formato 4'!C28="","",'Formato 4'!C28) ->  | D28: =IF('Formato 4'!D28="","",'Formato 4'!D28) ->  | E28: =IF('Formato 4'!E28="","",'Formato 4'!E28) ->  | F28: =IF('Formato 4'!F28="","",'Formato 4'!F28) ->  | G28: =IF('Formato 4'!G28="","",'Formato 4'!G28) -> 
A29: 22 | B29: =IF('Formato 4'!B29="","",'Formato 4'!B29) ->  | C29: =IF('Formato 4'!C29="","",'Formato 4'!C29) ->  | D29: =IF('Formato 4'!D29="","",'Formato 4'!D29) ->  | E29: =IF('Formato 4'!E29="","",'Formato 4'!E29) ->  | F29: =IF('Formato 4'!F29="","",'Formato 4'!F29) ->  | G29: =IF('Formato 4'!G29="","",'Formato 4'!G29) -> 
A30: 23 | B30: =IF('Formato 4'!B30="","",'Formato 4'!B30) ->  | C30: =IF('Formato 4'!C30="","",'Formato 4'!C30) ->  | D30: =IF('Formato 4'!D30="","",'Formato 4'!D30) ->  | E30: =IF('Formato 4'!E30="","",'Formato 4'!E30) ->  | F30: =IF('Formato 4'!F30="","",'Formato 4'!F30) ->  | G30: =IF('Formato 4'!G30="","",'Formato 4'!G30) -> 
A31: 24 | B31: =IF('Formato 4'!B31="","",'Formato 4'!B31) ->  | C31: =IF('Formato 4'!C31="","",'Formato 4'!C31) ->  | D31: =IF('Formato 4'!D31="","",'Formato 4'!D31) ->  | E31: =IF('Formato 4'!E31="","",'Formato 4'!E31) ->  | F31: =IF('Formato 4'!F31="","",'Formato 4'!F31) ->  | G31: =IF('Formato 4'!G31="","",'Formato 4'!G31) -> 
A32: 25 | B32: =IF('Formato 4'!B32="","",'Formato 4'!B32) ->  | C32: =IF('Formato 4'!C32="","",'Formato 4'!C32) ->  | D32: =IF('Formato 4'!D32="","",'Formato 4'!D32) ->  | E32: =IF('Formato 4'!E32="","",'Formato 4'!E32) ->  | F32: =IF('Formato 4'!F32="","",'Formato 4'!F32) ->  | G32: =IF('Formato 4'!G32="","",'Formato 4'!G32) -> 
A33: 26 | B33: =IF('Formato 4'!B33="","",'Formato 4'!B33) ->  | C33: =IF('Formato 4'!C33="","",'Formato 4'!C33) ->  | D33: =IF('Formato 4'!D33="","",'Formato 4'!D33) ->  | E33: =IF('Formato 4'!E33="","",'Formato 4'!E33) ->  | F33: =IF('Formato 4'!F33="","",'Formato 4'!F33) ->  | G33: =IF('Formato 4'!G33="","",'Formato 4'!G33) -> 
A34: 27 | B34: =IF('Formato 4'!B34="","",'Formato 4'!B34) ->  | C34: =IF('Formato 4'!C34="","",'Formato 4'!C34) ->  | D34: =IF('Formato 4'!D34="","",'Formato 4'!D34) ->  | E34: =IF('Formato 4'!E34="","",'Formato 4'!E34) ->  | F34: =IF('Formato 4'!F34="","",'Formato 4'!F34) ->  | G34: =IF('Formato 4'!G34="","",'Formato 4'!G34) -> 
A35: 28 | B35: =IF('Formato 4'!B35="","",'Formato 4'!B35) ->  | C35: =IF('Formato 4'!C35="","",'Formato 4'!C35) ->  | D35: =IF('Formato 4'!D35="","",'Formato 4'!D35) ->  | E35: =IF('Formato 4'!E35="","",'Formato 4'!E35) ->  | F35: =IF('Formato 4'!F35="","",'Formato 4'!F35) ->  | G35: =IF('Formato 4'!G35="","",'Formato 4'!G35) -> 
A36: 29 | B36: =IF('Formato 4'!B36="","",'Formato 4'!B36) ->  | C36: =IF('Formato 4'!C36="","",'Formato 4'!C36) ->  | D36: =IF('Formato 4'!D36="","",'Formato 4'!D36) ->  | E36: =IF('Formato 4'!E36="","",'Formato 4'!E36) ->  | F36: =IF('Formato 4'!F36="","",'Formato 4'!F36) ->  | G36: =IF('Formato 4'!G36="","",'Formato 4'!G36) -> 
A37: 30 | B37: =IF('Formato 4'!B37="","",'Formato 4'!B37) ->  | C37: =IF('Formato 4'!C37="","",'Formato 4'!C37) ->  | D37: =IF('Formato 4'!D37="","",'Formato 4'!D37) ->  | E37: =IF('Formato 4'!E37="","",'Formato 4'!E37) ->  | F37: =IF('Formato 4'!F37="","",'Formato 4'!F37) ->  | G37: =IF('Formato 4'!G37="","",'Formato 4'!G37) -> 
A38: 31 | B38: =IF('Formato 4'!B38="","",'Formato 4'!B38) ->  | C38: =IF('Formato 4'!C38="","",'Formato 4'!C38) ->  | D38: =IF('Formato 4'!D38="","",'Formato 4'!D38) ->  | E38: =IF('Formato 4'!E38="","",'Formato 4'!E38) ->  | F38: =IF('Formato 4'!F38="","",'Formato 4'!F38) ->  | G38: =IF('Formato 4'!G38="","",'Formato 4'!G38) -> 
A39: 32 | B39: =IF('Formato 4'!B39="","",'Formato 4'!B39) ->  | C39: =IF('Formato 4'!C39="","",'Formato 4'!C39) ->  | D39: =IF('Formato 4'!D39="","",'Formato 4'!D39) ->  | E39: =IF('Formato 4'!E39="","",'Formato 4'!E39) ->  | F39: =IF('Formato 4'!F39="","",'Formato 4'!F39) ->  | G39: =IF('Formato 4'!G39="","",'Formato 4'!G39) -> 
A40: 33 | B40: =IF('Formato 4'!B40="","",'Formato 4'!B40) ->  | C40: =IF('Formato 4'!C40="","",'Formato 4'!C40) ->  | D40: =IF('Formato 4'!D40="","",'Formato 4'!D40) ->  | E40: =IF('Formato 4'!E40="","",'Formato 4'!E40) ->  | F40: =IF('Formato 4'!F40="","",'Formato 4'!F40) ->  | G40: =IF('Formato 4'!G40="","",'Formato 4'!G40) -> 
A41: 34 | B41: =IF('Formato 4'!B41="","",'Formato 4'!B41) ->  | C41: =IF('Formato 4'!C41="","",'Formato 4'!C41) ->  | D41: =IF('Formato 4'!D41="","",'Formato 4'!D41) ->  | E41: =IF('Formato 4'!E41="","",'Formato 4'!E41) ->  | F41: =IF('Formato 4'!F41="","",'Formato 4'!F41) ->  | G41: =IF('Formato 4'!G41="","",'Formato 4'!G41) -> 
A42: 35 | B42: =IF('Formato 4'!B42="","",'Formato 4'!B42) ->  | C42: =IF('Formato 4'!C42="","",'Formato 4'!C42) ->  | D42: =IF('Formato 4'!D42="","",'Formato 4'!D42) ->  | E42: =IF('Formato 4'!E42="","",'Formato 4'!E42) ->  | F42: =IF('Formato 4'!F42="","",'Formato 4'!F42) ->  | G42: =IF('Formato 4'!G42="","",'Formato 4'!G42) -> 
A43: 36 | B43: =IF('Formato 4'!B43="","",'Formato 4'!B43) ->  | C43: =IF('Formato 4'!C43="","",'Formato 4'!C43) ->  | D43: =IF('Formato 4'!D43="","",'Formato 4'!D43) ->  | E43: =IF('Formato 4'!E43="","",'Formato 4'!E43) ->  | F43: =IF('Formato 4'!F43="","",'Formato 4'!F43) ->  | G43: =IF('Formato 4'!G43="","",'Formato 4'!G43) -> 
A44: 37 | B44: =IF('Formato 4'!B44="","",'Formato 4'!B44) ->  | C44: =IF('Formato 4'!C44="","",'Formato 4'!C44) ->  | D44: =IF('Formato 4'!D44="","",'Formato 4'!D44) ->  | E44: =IF('Formato 4'!E44="","",'Formato 4'!E44) ->  | F44: =IF('Formato 4'!F44="","",'Formato 4'!F44) ->  | G44: =IF('Formato 4'!G44="","",'Formato 4'!G44) -> 
A45: 38 | B45: =IF('Formato 4'!B45="","",'Formato 4'!B45) ->  | C45: =IF('Formato 4'!C45="","",'Formato 4'!C45) ->  | D45: =IF('Formato 4'!D45="","",'Formato 4'!D45) ->  | E45: =IF('Formato 4'!E45="","",'Formato 4'!E45) ->  | F45: =IF('Formato 4'!F45="","",'Formato 4'!F45) ->  | G45: =IF('Formato 4'!G45="","",'Formato 4'!G45) -> 
A46: 39 | B46: =IF('Formato 4'!B46="","",'Formato 4'!B46) ->  | C46: =IF('Formato 4'!C46="","",'Formato 4'!C46) ->  | D46: =IF('Formato 4'!D46="","",'Formato 4'!D46) ->  | E46: =IF('Formato 4'!E46="","",'Formato 4'!E46) ->  | F46: =IF('Formato 4'!F46="","",'Formato 4'!F46) ->  | G46: =IF('Formato 4'!G46="","",'Formato 4'!G46) -> 
A47: 40 | B47: =IF('Formato 4'!B47="","",'Formato 4'!B47) ->  | C47: =IF('Formato 4'!C47="","",'Formato 4'!C47) ->  | D47: =IF('Formato 4'!D47="","",'Formato 4'!D47) ->  | E47: =IF('Formato 4'!E47="","",'Formato 4'!E47) ->  | F47: =IF('Formato 4'!F47="","",'Formato 4'!F47) ->  | G47: =IF('Formato 4'!G47="","",'Formato 4'!G47) -> 
A48: 41 | B48: =IF('Formato 4'!B48="","",'Formato 4'!B48) ->  | C48: =IF('Formato 4'!C48="","",'Formato 4'!C48) ->  | D48: =IF('Formato 4'!D48="","",'Formato 4'!D48) ->  | E48: =IF('Formato 4'!E48="","",'Formato 4'!E48) ->  | F48: =IF('Formato 4'!F48="","",'Formato 4'!F48) ->  | G48: =IF('Formato 4'!G48="","",'Formato 4'!G48) -> 
A49: 42 | B49: =IF('Formato 4'!B49="","",'Formato 4'!B49) ->  | C49: =IF('Formato 4'!C49="","",'Formato 4'!C49) ->  | D49: =IF('Formato 4'!D49="","",'Formato 4'!D49) ->  | E49: =IF('Formato 4'!E49="","",'Formato 4'!E49) ->  | F49: =IF('Formato 4'!F49="","",'Formato 4'!F49) ->  | G49: =IF('Formato 4'!G49="","",'Formato 4'!G49) -> 
A50: 43 | B50: =IF('Formato 4'!B50="","",'Formato 4'!B50) ->  | C50: =IF('Formato 4'!C50="","",'Formato 4'!C50) ->  | D50: =IF('Formato 4'!D50="","",'Formato 4'!D50) ->  | E50: =IF('Formato 4'!E50="","",'Formato 4'!E50) ->  | F50: =IF('Formato 4'!F50="","",'Formato 4'!F50) ->  | G50: =IF('Formato 4'!G50="","",'Formato 4'!G50) -> 
A51: 44 | B51: =IF('Formato 4'!B51="","",'Formato 4'!B51) ->  | C51: =IF('Formato 4'!C51="","",'Formato 4'!C51) ->  | D51: =IF('Formato 4'!D51="","",'Formato 4'!D51) ->  | E51: =IF('Formato 4'!E51="","",'Formato 4'!E51) ->  | F51: =IF('Formato 4'!F51="","",'Formato 4'!F51) ->  | G51: =IF('Formato 4'!G51="","",'Formato 4'!G51) -> 
A52: 45 | B52: =IF('Formato 4'!B52="","",'Formato 4'!B52) ->  | C52: =IF('Formato 4'!C52="","",'Formato 4'!C52) ->  | D52: =IF('Formato 4'!D52="","",'Formato 4'!D52) ->  | E52: =IF('Formato 4'!E52="","",'Formato 4'!E52) ->  | F52: =IF('Formato 4'!F52="","",'Formato 4'!F52) ->  | G52: =IF('Formato 4'!G52="","",'Formato 4'!G52) -> 
A53: 46 | B53: =IF('Formato 4'!B53="","",'Formato 4'!B53) ->  | C53: =IF('Formato 4'!C53="","",'Formato 4'!C53) ->  | D53: =IF('Formato 4'!D53="","",'Formato 4'!D53) ->  | E53: =IF('Formato 4'!E53="","",'Formato 4'!E53) ->  | F53: =IF('Formato 4'!F53="","",'Formato 4'!F53) ->  | G53: =IF('Formato 4'!G53="","",'Formato 4'!G53) -> 
A54: 47 | B54: =IF('Formato 4'!B54="","",'Formato 4'!B54) ->  | C54: =IF('Formato 4'!C54="","",'Formato 4'!C54) ->  | D54: =IF('Formato 4'!D54="","",'Formato 4'!D54) ->  | E54: =IF('Formato 4'!E54="","",'Formato 4'!E54) ->  | F54: =IF('Formato 4'!F54="","",'Formato 4'!F54) ->  | G54: =IF('Formato 4'!G54="","",'Formato 4'!G54) -> 
A55: 48 | B55: =IF('Formato 4'!B55="","",'Formato 4'!B55) ->  | C55: =IF('Formato 4'!C55="","",'Formato 4'!C55) ->  | D55: =IF('Formato 4'!D55="","",'Formato 4'!D55) ->  | E55: =IF('Formato 4'!E55="","",'Formato 4'!E55) ->  | F55: =IF('Formato 4'!F55="","",'Formato 4'!F55) ->  | G55: =IF('Formato 4'!G55="","",'Formato 4'!G55) -> 
A56: 49 | B56: =IF('Formato 4'!B56="","",'Formato 4'!B56) ->  | C56: =IF('Formato 4'!C56="","",'Formato 4'!C56) ->  | D56: =IF('Formato 4'!D56="","",'Formato 4'!D56) ->  | E56: =IF('Formato 4'!E56="","",'Formato 4'!E56) ->  | F56: =IF('Formato 4'!F56="","",'Formato 4'!F56) ->  | G56: =IF('Formato 4'!G56="","",'Formato 4'!G56) -> 
A57: 50 | B57: =IF('Formato 4'!B57="","",'Formato 4'!B57) ->  | C57: =IF('Formato 4'!C57="","",'Formato 4'!C57) ->  | D57: =IF('Formato 4'!D57="","",'Formato 4'!D57) ->  | E57: =IF('Formato 4'!E57="","",'Formato 4'!E57) ->  | F57: =IF('Formato 4'!F57="","",'Formato 4'!F57) ->  | G57: =IF('Formato 4'!G57="","",'Formato 4'!G57) -> 
A58: 51 | B58: =IF('Formato 4'!B58="","",'Formato 4'!B58) ->  | C58: =IF('Formato 4'!C58="","",'Formato 4'!C58) ->  | D58: =IF('Formato 4'!D58="","",'Formato 4'!D58) ->  | E58: =IF('Formato 4'!E58="","",'Formato 4'!E58) ->  | F58: =IF('Formato 4'!F58="","",'Formato 4'!F58) ->  | G58: =IF('Formato 4'!G58="","",'Formato 4'!G58) -> 
A59: 52 | B59: =IF('Formato 4'!B59="","",'Formato 4'!B59) ->  | C59: =IF('Formato 4'!C59="","",'Formato 4'!C59) ->  | D59: =IF('Formato 4'!D59="","",'Formato 4'!D59) ->  | E59: =IF('Formato 4'!E59="","",'Formato 4'!E59) ->  | F59: =IF('Formato 4'!F59="","",'Formato 4'!F59) ->  | G59: =IF('Formato 4'!G59="","",'Formato 4'!G59) -> 
A60: 53 | B60: =IF('Formato 4'!B60="","",'Formato 4'!B60) ->  | C60: =IF('Formato 4'!C60="","",'Formato 4'!C60) ->  | D60: =IF('Formato 4'!D60="","",'Formato 4'!D60) ->  | E60: =IF('Formato 4'!E60="","",'Formato 4'!E60) ->  | F60: =IF('Formato 4'!F60="","",'Formato 4'!F60) ->  | G60: =IF('Formato 4'!G60="","",'Formato 4'!G60) -> 
A61: 54 | B61: =IF('Formato 4'!B61="","",'Formato 4'!B61) ->  | C61: =IF('Formato 4'!C61="","",'Formato 4'!C61) ->  | D61: =IF('Formato 4'!D61="","",'Formato 4'!D61) ->  | E61: =IF('Formato 4'!E61="","",'Formato 4'!E61) ->  | F61: =IF('Formato 4'!F61="","",'Formato 4'!F61) ->  | G61: =IF('Formato 4'!G61="","",'Formato 4'!G61) -> 
A62: 55 | B62: =IF('Formato 4'!B62="","",'Formato 4'!B62) ->  | C62: =IF('Formato 4'!C62="","",'Formato 4'!C62) ->  | D62: =IF('Formato 4'!D62="","",'Formato 4'!D62) ->  | E62: =IF('Formato 4'!E62="","",'Formato 4'!E62) ->  | F62: =IF('Formato 4'!F62="","",'Formato 4'!F62) ->  | G62: =IF('Formato 4'!G62="","",'Formato 4'!G62) -> 
A63: 56 | B63: =IF('Formato 4'!B63="","",'Formato 4'!B63) ->  | C63: =IF('Formato 4'!C63="","",'Formato 4'!C63) ->  | D63: =IF('Formato 4'!D63="","",'Formato 4'!D63) ->  | E63: =IF('Formato 4'!E63="","",'Formato 4'!E63) ->  | F63: =IF('Formato 4'!F63="","",'Formato 4'!F63) ->  | G63: =IF('Formato 4'!G63="","",'Formato 4'!G63) -> 
A64: 57 | B64: =IF('Formato 4'!B64="","",'Formato 4'!B64) ->  | C64: =IF('Formato 4'!C64="","",'Formato 4'!C64) ->  | D64: =IF('Formato 4'!D64="","",'Formato 4'!D64) ->  | E64: =IF('Formato 4'!E64="","",'Formato 4'!E64) ->  | F64: =IF('Formato 4'!F64="","",'Formato 4'!F64) ->  | G64: =IF('Formato 4'!G64="","",'Formato 4'!G64) -> 
A65: 58 | B65: =IF('Formato 4'!B65="","",'Formato 4'!B65) ->  | C65: =IF('Formato 4'!C65="","",'Formato 4'!C65) ->  | D65: =IF('Formato 4'!D65="","",'Formato 4'!D65) ->  | E65: =IF('Formato 4'!E65="","",'Formato 4'!E65) ->  | F65: =IF('Formato 4'!F65="","",'Formato 4'!F65) ->  | G65: =IF('Formato 4'!G65="","",'Formato 4'!G65) -> 
A66: 59 | B66: =IF('Formato 4'!B66="","",'Formato 4'!B66) ->  | C66: =IF('Formato 4'!C66="","",'Formato 4'!C66) ->  | D66: =IF('Formato 4'!D66="","",'Formato 4'!D66) ->  | E66: =IF('Formato 4'!E66="","",'Formato 4'!E66) ->  | F66: =IF('Formato 4'!F66="","",'Formato 4'!F66) ->  | G66: =IF('Formato 4'!G66="","",'Formato 4'!G66) -> 
A67: 60 | B67: =IF('Formato 4'!B67="","",'Formato 4'!B67) ->  | C67: =IF('Formato 4'!C67="","",'Formato 4'!C67) ->  | D67: =IF('Formato 4'!D67="","",'Formato 4'!D67) ->  | E67: =IF('Formato 4'!E67="","",'Formato 4'!E67) ->  | F67: =IF('Formato 4'!F67="","",'Formato 4'!F67) ->  | G67: =IF('Formato 4'!G67="","",'Formato 4'!G67) -> 
A68: *Monitoreo de consumo de agua no menor a 06 meses. Unidad mensual m3/m2.

Sheet Formato 7
A1: Formato N° 7: “Monitoreo de consumo de GN - GLP” (Declaración Jurada)
A2: Código: F1288/PR-N3-3-2-6
A3: DATOS DEL PROYECTO
A4: Nombre del Proyecto | F4: Numeración de proyecto | H4: Grado del BBP Verde | I4: Área Total del proyecto | J4: Tipo de MIVIVIENDA VERDE | L4: Partida Registral del Edificio | N4: Oficina Registral SUNARP | P4: Empresa de distribución de gas
A5: =IF('Formato 1'!A7="","",'Formato 1'!A7) ->  | F5: =IF('Formato 1'!I8="","",'Formato 1'!I8) ->  | H5: ='Formato 6'!F5 -> I+ TRADICIONAL | I5: =IF('Formato 4'!G5="","",'Formato 4'!G5) ->  | J5: =IF('Formato 4'!H5="","",'Formato 4'!H5) -> TRADICIONAL | L5: =IF('Formato 4'!I5="","",'Formato 4'!I5) ->  | N5: =IF('Formato 4'!J5="","",'Formato 4'!J5) -> 
A6: MONITOREO DE CONSUMO DE GAS - GN
A7: Correlativo | B7: Torre/ Etapa | C7: Unidad de vivienda | D7: Cantidad de dormitorios | E7: Área de departamento | F7: Partida Registral | G7: Numeración FMV | H7: Número de suministro de gas natural | I7: MES 01 | J7: MES 02 | K7: MES 03 | L7: MES 04 | M7: MES 05 | N7: MES 06 | O7: MES 07 | P7: MES 08 | Q7: MES 09
A8: 1 | B8: =IF('Formato 4'!B8="","",'Formato 4'!B8) ->  | C8: =IF('Formato 4'!C8="","",'Formato 4'!C8) ->  | D8: =IF('Formato 4'!D8="","",'Formato 4'!D8) ->  | E8: =IF('Formato 4'!E8="","",'Formato 4'!E8) ->  | F8: =IF('Formato 4'!F8="","",'Formato 4'!F8) ->  | G8: =IF('Formato 4'!G8="","",'Formato 4'!G8) -> 
A9: 2 | B9: =IF('Formato 4'!B9="","",'Formato 4'!B9) ->  | C9: =IF('Formato 4'!C9="","",'Formato 4'!C9) ->  | D9: =IF('Formato 4'!D9="","",'Formato 4'!D9) ->  | E9: =IF('Formato 4'!E9="","",'Formato 4'!E9) ->  | F9: =IF('Formato 4'!F9="","",'Formato 4'!F9) ->  | G9: =IF('Formato 4'!G9="","",'Formato 4'!G9) -> 
A10: 3 | B10: =IF('Formato 4'!B10="","",'Formato 4'!B10) ->  | C10: =IF('Formato 4'!C10="","",'Formato 4'!C10) ->  | D10: =IF('Formato 4'!D10="","",'Formato 4'!D10) ->  | E10: =IF('Formato 4'!E10="","",'Formato 4'!E10) ->  | F10: =IF('Formato 4'!F10="","",'Formato 4'!F10) ->  | G10: =IF('Formato 4'!G10="","",'Formato 4'!G10) -> 
A11: 4 | B11: =IF('Formato 4'!B11="","",'Formato 4'!B11) ->  | C11: =IF('Formato 4'!C11="","",'Formato 4'!C11) ->  | D11: =IF('Formato 4'!D11="","",'Formato 4'!D11) ->  | E11: =IF('Formato 4'!E11="","",'Formato 4'!E11) ->  | F11: =IF('Formato 4'!F11="","",'Formato 4'!F11) ->  | G11: =IF('Formato 4'!G11="","",'Formato 4'!G11) -> 
A12: 5 | B12: =IF('Formato 4'!B12="","",'Formato 4'!B12) ->  | C12: =IF('Formato 4'!C12="","",'Formato 4'!C12) ->  | D12: =IF('Formato 4'!D12="","",'Formato 4'!D12) ->  | E12: =IF('Formato 4'!E12="","",'Formato 4'!E12) ->  | F12: =IF('Formato 4'!F12="","",'Formato 4'!F12) ->  | G12: =IF('Formato 4'!G12="","",'Formato 4'!G12) -> 
A13: 6 | B13: =IF('Formato 4'!B13="","",'Formato 4'!B13) ->  | C13: =IF('Formato 4'!C13="","",'Formato 4'!C13) ->  | D13: =IF('Formato 4'!D13="","",'Formato 4'!D13) ->  | E13: =IF('Formato 4'!E13="","",'Formato 4'!E13) ->  | F13: =IF('Formato 4'!F13="","",'Formato 4'!F13) ->  | G13: =IF('Formato 4'!G13="","",'Formato 4'!G13) -> 
A14: 7 | B14: =IF('Formato 4'!B14="","",'Formato 4'!B14) ->  | C14: =IF('Formato 4'!C14="","",'Formato 4'!C14) ->  | D14: =IF('Formato 4'!D14="","",'Formato 4'!D14) ->  | E14: =IF('Formato 4'!E14="","",'Formato 4'!E14) ->  | F14: =IF('Formato 4'!F14="","",'Formato 4'!F14) ->  | G14: =IF('Formato 4'!G14="","",'Formato 4'!G14) -> 
A15: 8 | B15: =IF('Formato 4'!B15="","",'Formato 4'!B15) ->  | C15: =IF('Formato 4'!C15="","",'Formato 4'!C15) ->  | D15: =IF('Formato 4'!D15="","",'Formato 4'!D15) ->  | E15: =IF('Formato 4'!E15="","",'Formato 4'!E15) ->  | F15: =IF('Formato 4'!F15="","",'Formato 4'!F15) ->  | G15: =IF('Formato 4'!G15="","",'Formato 4'!G15) -> 
A16: 9 | B16: =IF('Formato 4'!B16="","",'Formato 4'!B16) ->  | C16: =IF('Formato 4'!C16="","",'Formato 4'!C16) ->  | D16: =IF('Formato 4'!D16="","",'Formato 4'!D16) ->  | E16: =IF('Formato 4'!E16="","",'Formato 4'!E16) ->  | F16: =IF('Formato 4'!F16="","",'Formato 4'!F16) ->  | G16: =IF('Formato 4'!G16="","",'Formato 4'!G16) -> 
A17: 10 | B17: =IF('Formato 4'!B17="","",'Formato 4'!B17) ->  | C17: =IF('Formato 4'!C17="","",'Formato 4'!C17) ->  | D17: =IF('Formato 4'!D17="","",'Formato 4'!D17) ->  | E17: =IF('Formato 4'!E17="","",'Formato 4'!E17) ->  | F17: =IF('Formato 4'!F17="","",'Formato 4'!F17) ->  | G17: =IF('Formato 4'!G17="","",'Formato 4'!G17) -> 
A18: 11 | B18: =IF('Formato 4'!B18="","",'Formato 4'!B18) ->  | C18: =IF('Formato 4'!C18="","",'Formato 4'!C18) ->  | D18: =IF('Formato 4'!D18="","",'Formato 4'!D18) ->  | E18: =IF('Formato 4'!E18="","",'Formato 4'!E18) ->  | F18: =IF('Formato 4'!F18="","",'Formato 4'!F18) ->  | G18: =IF('Formato 4'!G18="","",'Formato 4'!G18) -> 
A19: 12 | B19: =IF('Formato 4'!B19="","",'Formato 4'!B19) ->  | C19: =IF('Formato 4'!C19="","",'Formato 4'!C19) ->  | D19: =IF('Formato 4'!D19="","",'Formato 4'!D19) ->  | E19: =IF('Formato 4'!E19="","",'Formato 4'!E19) ->  | F19: =IF('Formato 4'!F19="","",'Formato 4'!F19) ->  | G19: =IF('Formato 4'!G19="","",'Formato 4'!G19) -> 
A20: 13 | B20: =IF('Formato 4'!B20="","",'Formato 4'!B20) ->  | C20: =IF('Formato 4'!C20="","",'Formato 4'!C20) ->  | D20: =IF('Formato 4'!D20="","",'Formato 4'!D20) ->  | E20: =IF('Formato 4'!E20="","",'Formato 4'!E20) ->  | F20: =IF('Formato 4'!F20="","",'Formato 4'!F20) ->  | G20: =IF('Formato 4'!G20="","",'Formato 4'!G20) -> 
A21: 14 | B21: =IF('Formato 4'!B21="","",'Formato 4'!B21) ->  | C21: =IF('Formato 4'!C21="","",'Formato 4'!C21) ->  | D21: =IF('Formato 4'!D21="","",'Formato 4'!D21) ->  | E21: =IF('Formato 4'!E21="","",'Formato 4'!E21) ->  | F21: =IF('Formato 4'!F21="","",'Formato 4'!F21) ->  | G21: =IF('Formato 4'!G21="","",'Formato 4'!G21) -> 
A22: 15 | B22: =IF('Formato 4'!B22="","",'Formato 4'!B22) ->  | C22: =IF('Formato 4'!C22="","",'Formato 4'!C22) ->  | D22: =IF('Formato 4'!D22="","",'Formato 4'!D22) ->  | E22: =IF('Formato 4'!E22="","",'Formato 4'!E22) ->  | F22: =IF('Formato 4'!F22="","",'Formato 4'!F22) ->  | G22: =IF('Formato 4'!G22="","",'Formato 4'!G22) -> 
A23: 16 | B23: =IF('Formato 4'!B23="","",'Formato 4'!B23) ->  | C23: =IF('Formato 4'!C23="","",'Formato 4'!C23) ->  | D23: =IF('Formato 4'!D23="","",'Formato 4'!D23) ->  | E23: =IF('Formato 4'!E23="","",'Formato 4'!E23) ->  | F23: =IF('Formato 4'!F23="","",'Formato 4'!F23) ->  | G23: =IF('Formato 4'!G23="","",'Formato 4'!G23) -> 
A24: 17 | B24: =IF('Formato 4'!B24="","",'Formato 4'!B24) ->  | C24: =IF('Formato 4'!C24="","",'Formato 4'!C24) ->  | D24: =IF('Formato 4'!D24="","",'Formato 4'!D24) ->  | E24: =IF('Formato 4'!E24="","",'Formato 4'!E24) ->  | F24: =IF('Formato 4'!F24="","",'Formato 4'!F24) ->  | G24: =IF('Formato 4'!G24="","",'Formato 4'!G24) -> 
A25: 18 | B25: =IF('Formato 4'!B25="","",'Formato 4'!B25) ->  | C25: =IF('Formato 4'!C25="","",'Formato 4'!C25) ->  | D25: =IF('Formato 4'!D25="","",'Formato 4'!D25) ->  | E25: =IF('Formato 4'!E25="","",'Formato 4'!E25) ->  | F25: =IF('Formato 4'!F25="","",'Formato 4'!F25) ->  | G25: =IF('Formato 4'!G25="","",'Formato 4'!G25) -> 
A26: 19 | B26: =IF('Formato 4'!B26="","",'Formato 4'!B26) ->  | C26: =IF('Formato 4'!C26="","",'Formato 4'!C26) ->  | D26: =IF('Formato 4'!D26="","",'Formato 4'!D26) ->  | E26: =IF('Formato 4'!E26="","",'Formato 4'!E26) ->  | F26: =IF('Formato 4'!F26="","",'Formato 4'!F26) ->  | G26: =IF('Formato 4'!G26="","",'Formato 4'!G26) -> 
A27: 20 | B27: =IF('Formato 4'!B27="","",'Formato 4'!B27) ->  | C27: =IF('Formato 4'!C27="","",'Formato 4'!C27) ->  | D27: =IF('Formato 4'!D27="","",'Formato 4'!D27) ->  | E27: =IF('Formato 4'!E27="","",'Formato 4'!E27) ->  | F27: =IF('Formato 4'!F27="","",'Formato 4'!F27) ->  | G27: =IF('Formato 4'!G27="","",'Formato 4'!G27) -> 
A28: 21 | B28: =IF('Formato 4'!B28="","",'Formato 4'!B28) ->  | C28: =IF('Formato 4'!C28="","",'Formato 4'!C28) ->  | D28: =IF('Formato 4'!D28="","",'Formato 4'!D28) ->  | E28: =IF('Formato 4'!E28="","",'Formato 4'!E28) ->  | F28: =IF('Formato 4'!F28="","",'Formato 4'!F28) ->  | G28: =IF('Formato 4'!G28="","",'Formato 4'!G28) -> 
A29: 22 | B29: =IF('Formato 4'!B29="","",'Formato 4'!B29) ->  | C29: =IF('Formato 4'!C29="","",'Formato 4'!C29) ->  | D29: =IF('Formato 4'!D29="","",'Formato 4'!D29) ->  | E29: =IF('Formato 4'!E29="","",'Formato 4'!E29) ->  | F29: =IF('Formato 4'!F29="","",'Formato 4'!F29) ->  | G29: =IF('Formato 4'!G29="","",'Formato 4'!G29) -> 
A30: 23 | B30: =IF('Formato 4'!B30="","",'Formato 4'!B30) ->  | C30: =IF('Formato 4'!C30="","",'Formato 4'!C30) ->  | D30: =IF('Formato 4'!D30="","",'Formato 4'!D30) ->  | E30: =IF('Formato 4'!E30="","",'Formato 4'!E30) ->  | F30: =IF('Formato 4'!F30="","",'Formato 4'!F30) ->  | G30: =IF('Formato 4'!G30="","",'Formato 4'!G30) -> 
A31: 24 | B31: =IF('Formato 4'!B31="","",'Formato 4'!B31) ->  | C31: =IF('Formato 4'!C31="","",'Formato 4'!C31) ->  | D31: =IF('Formato 4'!D31="","",'Formato 4'!D31) ->  | E31: =IF('Formato 4'!E31="","",'Formato 4'!E31) ->  | F31: =IF('Formato 4'!F31="","",'Formato 4'!F31) ->  | G31: =IF('Formato 4'!G31="","",'Formato 4'!G31) -> 
A32: 25 | B32: =IF('Formato 4'!B32="","",'Formato 4'!B32) ->  | C32: =IF('Formato 4'!C32="","",'Formato 4'!C32) ->  | D32: =IF('Formato 4'!D32="","",'Formato 4'!D32) ->  | E32: =IF('Formato 4'!E32="","",'Formato 4'!E32) ->  | F32: =IF('Formato 4'!F32="","",'Formato 4'!F32) ->  | G32: =IF('Formato 4'!G32="","",'Formato 4'!G32) -> 
A33: 26 | B33: =IF('Formato 4'!B33="","",'Formato 4'!B33) ->  | C33: =IF('Formato 4'!C33="","",'Formato 4'!C33) ->  | D33: =IF('Formato 4'!D33="","",'Formato 4'!D33) ->  | E33: =IF('Formato 4'!E33="","",'Formato 4'!E33) ->  | F33: =IF('Formato 4'!F33="","",'Formato 4'!F33) ->  | G33: =IF('Formato 4'!G33="","",'Formato 4'!G33) -> 
A34: 27 | B34: =IF('Formato 4'!B34="","",'Formato 4'!B34) ->  | C34: =IF('Formato 4'!C34="","",'Formato 4'!C34) ->  | D34: =IF('Formato 4'!D34="","",'Formato 4'!D34) ->  | E34: =IF('Formato 4'!E34="","",'Formato 4'!E34) ->  | F34: =IF('Formato 4'!F34="","",'Formato 4'!F34) ->  | G34: =IF('Formato 4'!G34="","",'Formato 4'!G34) -> 
A35: 28 | B35: =IF('Formato 4'!B35="","",'Formato 4'!B35) ->  | C35: =IF('Formato 4'!C35="","",'Formato 4'!C35) ->  | D35: =IF('Formato 4'!D35="","",'Formato 4'!D35) ->  | E35: =IF('Formato 4'!E35="","",'Formato 4'!E35) ->  | F35: =IF('Formato 4'!F35="","",'Formato 4'!F35) ->  | G35: =IF('Formato 4'!G35="","",'Formato 4'!G35) -> 
A36: 29 | B36: =IF('Formato 4'!B36="","",'Formato 4'!B36) ->  | C36: =IF('Formato 4'!C36="","",'Formato 4'!C36) ->  | D36: =IF('Formato 4'!D36="","",'Formato 4'!D36) ->  | E36: =IF('Formato 4'!E36="","",'Formato 4'!E36) ->  | F36: =IF('Formato 4'!F36="","",'Formato 4'!F36) ->  | G36: =IF('Formato 4'!G36="","",'Formato 4'!G36) -> 
A37: 30 | B37: =IF('Formato 4'!B37="","",'Formato 4'!B37) ->  | C37: =IF('Formato 4'!C37="","",'Formato 4'!C37) ->  | D37: =IF('Formato 4'!D37="","",'Formato 4'!D37) ->  | E37: =IF('Formato 4'!E37="","",'Formato 4'!E37) ->  | F37: =IF('Formato 4'!F37="","",'Formato 4'!F37) ->  | G37: =IF('Formato 4'!G37="","",'Formato 4'!G37) -> 
A38: 31 | B38: =IF('Formato 4'!B38="","",'Formato 4'!B38) ->  | C38: =IF('Formato 4'!C38="","",'Formato 4'!C38) ->  | D38: =IF('Formato 4'!D38="","",'Formato 4'!D38) ->  | E38: =IF('Formato 4'!E38="","",'Formato 4'!E38) ->  | F38: =IF('Formato 4'!F38="","",'Formato 4'!F38) ->  | G38: =IF('Formato 4'!G38="","",'Formato 4'!G38) -> 
A39: 32 | B39: =IF('Formato 4'!B39="","",'Formato 4'!B39) ->  | C39: =IF('Formato 4'!C39="","",'Formato 4'!C39) ->  | D39: =IF('Formato 4'!D39="","",'Formato 4'!D39) ->  | E39: =IF('Formato 4'!E39="","",'Formato 4'!E39) ->  | F39: =IF('Formato 4'!F39="","",'Formato 4'!F39) ->  | G39: =IF('Formato 4'!G39="","",'Formato 4'!G39) -> 
A40: 33 | B40: =IF('Formato 4'!B40="","",'Formato 4'!B40) ->  | C40: =IF('Formato 4'!C40="","",'Formato 4'!C40) ->  | D40: =IF('Formato 4'!D40="","",'Formato 4'!D40) ->  | E40: =IF('Formato 4'!E40="","",'Formato 4'!E40) ->  | F40: =IF('Formato 4'!F40="","",'Formato 4'!F40) ->  | G40: =IF('Formato 4'!G40="","",'Formato 4'!G40) -> 
A41: 34 | B41: =IF('Formato 4'!B41="","",'Formato 4'!B41) ->  | C41: =IF('Formato 4'!C41="","",'Formato 4'!C41) ->  | D41: =IF('Formato 4'!D41="","",'Formato 4'!D41) ->  | E41: =IF('Formato 4'!E41="","",'Formato 4'!E41) ->  | F41: =IF('Formato 4'!F41="","",'Formato 4'!F41) ->  | G41: =IF('Formato 4'!G41="","",'Formato 4'!G41) -> 
A42: 35 | B42: =IF('Formato 4'!B42="","",'Formato 4'!B42) ->  | C42: =IF('Formato 4'!C42="","",'Formato 4'!C42) ->  | D42: =IF('Formato 4'!D42="","",'Formato 4'!D42) ->  | E42: =IF('Formato 4'!E42="","",'Formato 4'!E42) ->  | F42: =IF('Formato 4'!F42="","",'Formato 4'!F42) ->  | G42: =IF('Formato 4'!G42="","",'Formato 4'!G42) -> 
A43: 36 | B43: =IF('Formato 4'!B43="","",'Formato 4'!B43) ->  | C43: =IF('Formato 4'!C43="","",'Formato 4'!C43) ->  | D43: =IF('Formato 4'!D43="","",'Formato 4'!D43) ->  | E43: =IF('Formato 4'!E43="","",'Formato 4'!E43) ->  | F43: =IF('Formato 4'!F43="","",'Formato 4'!F43) ->  | G43: =IF('Formato 4'!G43="","",'Formato 4'!G43) -> 
A44: 37 | B44: =IF('Formato 4'!B44="","",'Formato 4'!B44) ->  | C44: =IF('Formato 4'!C44="","",'Formato 4'!C44) ->  | D44: =IF('Formato 4'!D44="","",'Formato 4'!D44) ->  | E44: =IF('Formato 4'!E44="","",'Formato 4'!E44) ->  | F44: =IF('Formato 4'!F44="","",'Formato 4'!F44) ->  | G44: =IF('Formato 4'!G44="","",'Formato 4'!G44) -> 
A45: 38 | B45: =IF('Formato 4'!B45="","",'Formato 4'!B45) ->  | C45: =IF('Formato 4'!C45="","",'Formato 4'!C45) ->  | D45: =IF('Formato 4'!D45="","",'Formato 4'!D45) ->  | E45: =IF('Formato 4'!E45="","",'Formato 4'!E45) ->  | F45: =IF('Formato 4'!F45="","",'Formato 4'!F45) ->  | G45: =IF('Formato 4'!G45="","",'Formato 4'!G45) -> 
A46: 39 | B46: =IF('Formato 4'!B46="","",'Formato 4'!B46) ->  | C46: =IF('Formato 4'!C46="","",'Formato 4'!C46) ->  | D46: =IF('Formato 4'!D46="","",'Formato 4'!D46) ->  | E46: =IF('Formato 4'!E46="","",'Formato 4'!E46) ->  | F46: =IF('Formato 4'!F46="","",'Formato 4'!F46) ->  | G46: =IF('Formato 4'!G46="","",'Formato 4'!G46) -> 
A47: 40 | B47: =IF('Formato 4'!B47="","",'Formato 4'!B47) ->  | C47: =IF('Formato 4'!C47="","",'Formato 4'!C47) ->  | D47: =IF('Formato 4'!D47="","",'Formato 4'!D47) ->  | E47: =IF('Formato 4'!E47="","",'Formato 4'!E47) ->  | F47: =IF('Formato 4'!F47="","",'Formato 4'!F47) ->  | G47: =IF('Formato 4'!G47="","",'Formato 4'!G47) -> 
A48: 41 | B48: =IF('Formato 4'!B48="","",'Formato 4'!B48) ->  | C48: =IF('Formato 4'!C48="","",'Formato 4'!C48) ->  | D48: =IF('Formato 4'!D48="","",'Formato 4'!D48) ->  | E48: =IF('Formato 4'!E48="","",'Formato 4'!E48) ->  | F48: =IF('Formato 4'!F48="","",'Formato 4'!F48) ->  | G48: =IF('Formato 4'!G48="","",'Formato 4'!G48) -> 
A49: 42 | B49: =IF('Formato 4'!B49="","",'Formato 4'!B49) ->  | C49: =IF('Formato 4'!C49="","",'Formato 4'!C49) ->  | D49: =IF('Formato 4'!D49="","",'Formato 4'!D49) ->  | E49: =IF('Formato 4'!E49="","",'Formato 4'!E49) ->  | F49: =IF('Formato 4'!F49="","",'Formato 4'!F49) ->  | G49: =IF('Formato 4'!G49="","",'Formato 4'!G49) -> 
A50: 43 | B50: =IF('Formato 4'!B50="","",'Formato 4'!B50) ->  | C50: =IF('Formato 4'!C50="","",'Formato 4'!C50) ->  | D50: =IF('Formato 4'!D50="","",'Formato 4'!D50) ->  | E50: =IF('Formato 4'!E50="","",'Formato 4'!E50) ->  | F50: =IF('Formato 4'!F50="","",'Formato 4'!F50) ->  | G50: =IF('Formato 4'!G50="","",'Formato 4'!G50) -> 
A51: 44 | B51: =IF('Formato 4'!B51="","",'Formato 4'!B51) ->  | C51: =IF('Formato 4'!C51="","",'Formato 4'!C51) ->  | D51: =IF('Formato 4'!D51="","",'Formato 4'!D51) ->  | E51: =IF('Formato 4'!E51="","",'Formato 4'!E51) ->  | F51: =IF('Formato 4'!F51="","",'Formato 4'!F51) ->  | G51: =IF('Formato 4'!G51="","",'Formato 4'!G51) -> 
A52: 45 | B52: =IF('Formato 4'!B52="","",'Formato 4'!B52) ->  | C52: =IF('Formato 4'!C52="","",'Formato 4'!C52) ->  | D52: =IF('Formato 4'!D52="","",'Formato 4'!D52) ->  | E52: =IF('Formato 4'!E52="","",'Formato 4'!E52) ->  | F52: =IF('Formato 4'!F52="","",'Formato 4'!F52) ->  | G52: =IF('Formato 4'!G52="","",'Formato 4'!G52) -> 
A53: 46 | B53: =IF('Formato 4'!B53="","",'Formato 4'!B53) ->  | C53: =IF('Formato 4'!C53="","",'Formato 4'!C53) ->  | D53: =IF('Formato 4'!D53="","",'Formato 4'!D53) ->  | E53: =IF('Formato 4'!E53="","",'Formato 4'!E53) ->  | F53: =IF('Formato 4'!F53="","",'Formato 4'!F53) ->  | G53: =IF('Formato 4'!G53="","",'Formato 4'!G53) -> 
A54: 47 | B54: =IF('Formato 4'!B54="","",'Formato 4'!B54) ->  | C54: =IF('Formato 4'!C54="","",'Formato 4'!C54) ->  | D54: =IF('Formato 4'!D54="","",'Formato 4'!D54) ->  | E54: =IF('Formato 4'!E54="","",'Formato 4'!E54) ->  | F54: =IF('Formato 4'!F54="","",'Formato 4'!F54) ->  | G54: =IF('Formato 4'!G54="","",'Formato 4'!G54) -> 
A55: 48 | B55: =IF('Formato 4'!B55="","",'Formato 4'!B55) ->  | C55: =IF('Formato 4'!C55="","",'Formato 4'!C55) ->  | D55: =IF('Formato 4'!D55="","",'Formato 4'!D55) ->  | E55: =IF('Formato 4'!E55="","",'Formato 4'!E55) ->  | F55: =IF('Formato 4'!F55="","",'Formato 4'!F55) ->  | G55: =IF('Formato 4'!G55="","",'Formato 4'!G55) -> 
A56: 49 | B56: =IF('Formato 4'!B56="","",'Formato 4'!B56) ->  | C56: =IF('Formato 4'!C56="","",'Formato 4'!C56) ->  | D56: =IF('Formato 4'!D56="","",'Formato 4'!D56) ->  | E56: =IF('Formato 4'!E56="","",'Formato 4'!E56) ->  | F56: =IF('Formato 4'!F56="","",'Formato 4'!F56) ->  | G56: =IF('Formato 4'!G56="","",'Formato 4'!G56) -> 
A57: 50 | B57: =IF('Formato 4'!B57="","",'Formato 4'!B57) ->  | C57: =IF('Formato 4'!C57="","",'Formato 4'!C57) ->  | D57: =IF('Formato 4'!D57="","",'Formato 4'!D57) ->  | E57: =IF('Formato 4'!E57="","",'Formato 4'!E57) ->  | F57: =IF('Formato 4'!F57="","",'Formato 4'!F57) ->  | G57: =IF('Formato 4'!G57="","",'Formato 4'!G57) -> 
A58: 51 | B58: =IF('Formato 4'!B58="","",'Formato 4'!B58) ->  | C58: =IF('Formato 4'!C58="","",'Formato 4'!C58) ->  | D58: =IF('Formato 4'!D58="","",'Formato 4'!D58) ->  | E58: =IF('Formato 4'!E58="","",'Formato 4'!E58) ->  | F58: =IF('Formato 4'!F58="","",'Formato 4'!F58) ->  | G58: =IF('Formato 4'!G58="","",'Formato 4'!G58) -> 
A59: 52 | B59: =IF('Formato 4'!B59="","",'Formato 4'!B59) ->  | C59: =IF('Formato 4'!C59="","",'Formato 4'!C59) ->  | D59: =IF('Formato 4'!D59="","",'Formato 4'!D59) ->  | E59: =IF('Formato 4'!E59="","",'Formato 4'!E59) ->  | F59: =IF('Formato 4'!F59="","",'Formato 4'!F59) ->  | G59: =IF('Formato 4'!G59="","",'Formato 4'!G59) -> 
A60: 53 | B60: =IF('Formato 4'!B60="","",'Formato 4'!B60) ->  | C60: =IF('Formato 4'!C60="","",'Formato 4'!C60) ->  | D60: =IF('Formato 4'!D60="","",'Formato 4'!D60) ->  | E60: =IF('Formato 4'!E60="","",'Formato 4'!E60) ->  | F60: =IF('Formato 4'!F60="","",'Formato 4'!F60) ->  | G60: =IF('Formato 4'!G60="","",'Formato 4'!G60) -> 
A61: 54 | B61: =IF('Formato 4'!B61="","",'Formato 4'!B61) ->  | C61: =IF('Formato 4'!C61="","",'Formato 4'!C61) ->  | D61: =IF('Formato 4'!D61="","",'Formato 4'!D61) ->  | E61: =IF('Formato 4'!E61="","",'Formato 4'!E61) ->  | F61: =IF('Formato 4'!F61="","",'Formato 4'!F61) ->  | G61: =IF('Formato 4'!G61="","",'Formato 4'!G61) -> 
A62: 55 | B62: =IF('Formato 4'!B62="","",'Formato 4'!B62) ->  | C62: =IF('Formato 4'!C62="","",'Formato 4'!C62) ->  | D62: =IF('Formato 4'!D62="","",'Formato 4'!D62) ->  | E62: =IF('Formato 4'!E62="","",'Formato 4'!E62) ->  | F62: =IF('Formato 4'!F62="","",'Formato 4'!F62) ->  | G62: =IF('Formato 4'!G62="","",'Formato 4'!G62) -> 
A63: 56 | B63: =IF('Formato 4'!B63="","",'Formato 4'!B63) ->  | C63: =IF('Formato 4'!C63="","",'Formato 4'!C63) ->  | D63: =IF('Formato 4'!D63="","",'Formato 4'!D63) ->  | E63: =IF('Formato 4'!E63="","",'Formato 4'!E63) ->  | F63: =IF('Formato 4'!F63="","",'Formato 4'!F63) ->  | G63: =IF('Formato 4'!G63="","",'Formato 4'!G63) -> 
A64: 57 | B64: =IF('Formato 4'!B64="","",'Formato 4'!B64) ->  | C64: =IF('Formato 4'!C64="","",'Formato 4'!C64) ->  | D64: =IF('Formato 4'!D64="","",'Formato 4'!D64) ->  | E64: =IF('Formato 4'!E64="","",'Formato 4'!E64) ->  | F64: =IF('Formato 4'!F64="","",'Formato 4'!F64) ->  | G64: =IF('Formato 4'!G64="","",'Formato 4'!G64) -> 
A65: 58 | B65: =IF('Formato 4'!B65="","",'Formato 4'!B65) ->  | C65: =IF('Formato 4'!C65="","",'Formato 4'!C65) ->  | D65: =IF('Formato 4'!D65="","",'Formato 4'!D65) ->  | E65: =IF('Formato 4'!E65="","",'Formato 4'!E65) ->  | F65: =IF('Formato 4'!F65="","",'Formato 4'!F65) ->  | G65: =IF('Formato 4'!G65="","",'Formato 4'!G65) -> 
A66: 59 | B66: =IF('Formato 4'!B66="","",'Formato 4'!B66) ->  | C66: =IF('Formato 4'!C66="","",'Formato 4'!C66) ->  | D66: =IF('Formato 4'!D66="","",'Formato 4'!D66) ->  | E66: =IF('Formato 4'!E66="","",'Formato 4'!E66) ->  | F66: =IF('Formato 4'!F66="","",'Formato 4'!F66) ->  | G66: =IF('Formato 4'!G66="","",'Formato 4'!G66) -> 
A67: 60 | B67: =IF('Formato 4'!B67="","",'Formato 4'!B67) ->  | C67: =IF('Formato 4'!C67="","",'Formato 4'!C67) ->  | D67: =IF('Formato 4'!D67="","",'Formato 4'!D67) ->  | E67: =IF('Formato 4'!E67="","",'Formato 4'!E67) ->  | F67: =IF('Formato 4'!F67="","",'Formato 4'!F67) ->  | G67: =IF('Formato 4'!G67="","",'Formato 4'!G67) -> 
A68: *Monitoreo de consumo de GN no menor a 06 meses. Unidad mensual m3

Sheet ESCOMBRERA (hidden)
C5: Concepto | D5: m3 | G5: Tn | J5: % Minimización
D6: Aprovechados | E6: Dispuestos relleno Sanitario | F6: Volumen | G6: Aprovechados | H6: Dispuestos relleno Sanitario | I6: Masa
C7: RCD: Naturaleza pétrea | D7: =D8 -> 248.5 | E7: =E8 -> 97 | F7: =D7+E7 -> 345.5 | G7: =G8 -> 125.73 | H7: =H8 -> 49.07 | I7: =G7+H7 -> 174.8 | J7: =(G7+G9+G15)/I17 -> 0.6861522739
C8: RCD de Naturaleza Pétrea (Grava, arena, arcillas, tierras vegetales, piedras, restos de hormigón, restos de mescla, restos de cerámicos, porcelanato, yesos, restos de ladrillos). | D8: ='Formato 2'!D48 -> 248.5 | E8: ='Formato 2'!G48 -> 97 | F8: 345.5 | G8: ='Formato 2'!I48 -> 125.73 | H8: ='Formato 2'!J48 -> 49.07 | I8: 174.8
C9: RCD: Naturaleza no pétrea | D9: =D10+D11+D12+D13+D14 -> 23.6 | E9: =E10+E11+E12+E13+E14 -> 14.6 | F9: 38.2 | G9: 8.55 | H9: 5.45 | I9: 14
C10: Madera | D10: ='Formato 2'!D50 -> 3.6 | E10: ='Formato 2'!G50 -> 0.9 | F10: 4.5 | G10: ='Formato 2'!G50 -> 0.9 | H10: ='Formato 2'!J50 -> 0.36 | I10: 1.26
C11: Metales Ferrosos y No Ferrosos | D11: ='Formato 2'!D51 -> 1.2 | E11: ='Formato 2'!G51 -> 0 | F11: 1.2 | G11: ='Formato 2'!G51 -> 0 | H11: ='Formato 2'!J51 -> 0 | I11: 0
C12: Plástico (PET, PEAD, PEBD, PP, PS) | D12: ='Formato 2'!D52 -> 3.7 | E12: ='Formato 2'!G52 -> 1.2 | F12: 4.9 | G12: ='Formato 2'!G52 -> 1.2 | H12: ='Formato 2'!J52 -> 0.39 | I12: 1.59
C13: Papel y Cartón | D13: ='Formato 2'!D53 -> 7.8 | E13: ='Formato 2'!G53 -> 3.6 | F13: 11.4 | G13: ='Formato 2'!G53 -> 3.6 | H13: ='Formato 2'!J53 -> 1.27 | I13: 4.87 | L13: Total reducciones kg CO2 eq | O13: =O70 -> 8383.642527
C14: Otros (PVC, Mangueras, Suelas de Zapatos, bolsas, film) | D14: ='Formato 2'!D54 -> 7.3 | E14: ='Formato 2'!G54 -> 8.9 | F14: 16.2 | G14: ='Formato 2'!G54 -> 8.9 | H14: ='Formato 2'!J54 -> 3.73 | I14: 12.63 | L14: Total reducciones ton CO2 eq | O14: =O13/1000 -> 8.383642527
C15: RCD: Otros | D15: =D16 -> 0 | E15: =E16 -> 24.3 | F15: 24.3 | G15: =G16 -> 0 | H15: =H16 -> 6.9 | I15: 6.9 | N15: tCO2eq/t RCD | O15: =O72 -> 0.04283925665
C16: Basuras (Tecnopor, telas, restos orgánicos, envolturas, etc.). | D16: ='Formato 2'!D56 -> 0 | E16: ='Formato 2'!G56 -> 24.3 | F16: 24.3 | G16: ='Formato 2'!I56 -> 0 | H16: ='Formato 2'!J56 -> 6.9 | I16: 6.9
C17: TOTAL | D17: =D7+D9+D15 -> 272.1 | E17: =E7+E9+E15 -> 135.9 | F17: 408 | G17: =G7+G9+G15 -> 134.28 | H17: =H7+H9+H15 -> 61.42 | I17: 195.7
G19: =G16+G14+G8 -> 134.63 | H19: =H16+H14+H8 -> 59.7 | I19: =I16+I14+I8 -> 194.33
G20: % residuos con estimación GEI | H20: =+I11+I12+I13 -> 6.46 | I20: Masa
H21: =+H20/I17 -> 0.03300970874 | I21: Porcentaje sobre el total
C23: Elementos de incertidumbre
B24: 1 | C24: Condiciones de línea base de los materiales (ej. Madera de bosque primario deforestado o de bosques certificados, metal de producción local o importado, etc)
B25: 2 | C25: Tipo de valorización ( reuso directo, reciclaje, transporte, procesamiento, distribución, etc).
B26: 3 | C26: % de participación detallada por tipo de material (% po tipo de plástico, tipo de metal, etc)
B27: 4 | C27: Las reducciones de emisiones se hacen sobre bases comparadas y proyectadas de emisiones en línea base y con proyecto. Los factores utilizados deben ser en base a enfoques de ciclo de vida. La información nacional al respecto es limitada y se asumen las variaciones por la apliación de factores internacionales.
C29: Supuestos Herramienta EPA https://www.epa.gov/warm/documentation-chapters-greenhouse-gas-emission-energy-and-economic-factors-used-waste
B30: 1 | C30: Emisiones evitadas por disposición en relleno sanitario, reciclaje y elimininación de materia prima, según permite la herramienta
B31: 2 | C31: Se aplica mix de elementos al no tener valores específicos (ej, mix de plásticos).
B32: 3 | C32: Para los elementos variados se le asigna al componente de "Mixed MSW", sin embargo, los RCD de naturaleza pétrea no se corresponden con la composición de los residuos sólidos (ver Infocarbono) y en la herramienta no se tiene la opcion de valorizardos, por tanto no se consideran en esta estimación.
B33: 4 | C33: La herramienta indica sobre los resultados "The GHG emissions results estimated in WARM indicate the full life-cycle benefits waste management alternatives. Due to the timing of the GHG emissions from the waste management pathways, (e.g., avoided landfilling and increased recycling), the actual GHG implications may accrue over the long-term. Therefore, one should not interpret the GHG emissions implications as occurring all in one year, but rather through time."
B34: 5 | C34: Los catalogados como Mixed MSW, no permiten ser reciclados en el escenario con proyecto y por tanto no aportan en la variación de emisiones
C36: RCD: Naturaleza pétrea | D36: Componente en la herramienta | E36: LInea Base | F36: Proyecto-aprovechado | G36: Proyecto - relleno sanitario | H36: Caracteristicas de distancia y condiciones de relleno sanitario y fuente
C37: RCD de Naturaleza Pétrea (Grava, arena, arcillas, tierras vegetales, piedras, restos de hormigón, restos de mescla, restos de cerámicos, porcelanato, yesos, restos de ladrillos). | D37: - | E37: - | F37: - | G37: - | H37: -
C38: RCD: Naturaleza no pétrea
C39: Madera | D39: Wood Flooring | E39: Relleno sanitario | F39: Reducido en fuente | G39: Relleno sanitario | H39: Por defecto en la herramienta
C40: Metales Ferrosos y No Ferrosos | D40: Mixed Metals | E40: Relleno sanitario | F40: Reciclado | G40: Relleno sanitario | H40: Por defecto en la herramienta
C41: Plástico (PET, PEAD, PEBD, PP, PS) | D41: Mixed Plastics | E41: Relleno sanitario | F41: Reciclado | G41: Relleno sanitario | H41: Por defecto en la herramienta
C42: Papel y Cartón | D42: Mixed Paper (general) | E42: Relleno sanitario | F42: Reciclado | G42: Relleno sanitario | H42: Por defecto en la herramienta
C43: Otros (PVC, Mangueras, Suelas de Zapatos, bolsas, film) | D43: Mixed MSW | E43: Relleno sanitario | F43: Relleno sanitario: la herramienta no permite opciones adicinoales | G43: Relleno sanitario | H43: Por defecto en la herramienta
C44: RCD: Otros
C45: Basuras (Tecnopor, telas, restos orgánicos, envolturas, etc.). | D45: Mixed MSW | E45: Relleno sanitario | F45: Relleno sanitario: la herramienta no permite opciones adicinoales | G45: Relleno sanitario | H45: Por defecto en la herramienta
C47: Resultado: 17.61 toneladas CO2eq reducidas
C50: Supuestos Herramienta UK https://www.gov.uk/government/publications/greenhouse-gas-reporting-conversion-factors-2021?msclkid=876e4ff4ce8b11eca8e90d9eda7879d2
B51: 1. | C51: La herramienta estima emisiones en base a análisis de ciclo de via para inventarios corporativos, tanto para el uso de material valorizado en la construcción como para la gestión de los residuos. En este caso se aplica gestión de residuos.
B52: 2. | C52: Se aplica mix de elementos al no tener valores específicos (ej, mix de papel y cartón).
B53: 3. | C53: Para los RCD de naturaleza pétrea, metales y madera se hace uso de los valores del rubro construcción, mientras que para el papel y cartón, y los plásticos, se hace uso de los factores de sus respectivas actividades.
B54: 4. | C54: Para los RCD de naturaleza pétrea, por simplificación y ante la falta de % de composición se hace uso del valor referente a los agregados.
B55: 5. | C55: Para el caso de los residuos variados, de manera referencial se hace uso de los valores para residuos variados del sector comercial e industrial.
C59: RCD: Naturaleza pétrea | D59: Componente en la herramienta | E59: LInea Base | F59: FE (kg CO2e/ton) | G59: Proyecto-aprovechado | H59: FE (kg CO2e/ton) | I59: Proyecto - relleno sanitario | J59: FE (kg CO2e/ton) | K59: Emisiones Línea base | L59: Emisiones proyecto / aprovechado | M59: Emisiones proyecto / relleno sanitario | N59: Emisiones proyecto total | O59: Reducciones de emisiones
C60: RCD de Naturaleza Pétrea (Grava, arena, arcillas, tierras vegetales, piedras, restos de hormigón, restos de mescla, restos de cerámicos, porcelanato, yesos, restos de ladrillos). | D60: Aggregates | E60: Relleno sanitario | F60: 1.239 | G60: Open-loop | H60: 0.9891 | I60: Relleno sanitario | J60: 1.239 | K60: =F60*I8 -> 216.5772 | L60: =H60*G8 -> 124.359543 | M60: =J60*H8 -> 60.79773 | N60: =L60+M60 -> 185.157273 | O60: =K60-N60 -> 31.419927
C61: RCD: Naturaleza no pétrea
C62: Madera | D62: Wood | E62: Relleno sanitario | F62: 828.032 | G62: Closed-loop | H62: 21.294 | I62: Relleno sanitario | J62: 828.032 | K62: =F62*I10 -> 1043.32032 | L62: =H62*G10 -> 19.1646 | M62: =J62*H10 -> 298.09152 | N62: =L62+M62 -> 317.25612 | O62: =K62-N62 -> 726.0642
C63: Metales Ferrosos y No Ferrosos | D63: Metals | E63: Relleno sanitario | F63: 1.264 | G63: Closed-loop | H63: 0.989 | I63: Relleno sanitario | J63: 1.264 | K63: =F63*I11 -> 0 | L63: =H63*G11 -> 0 | M63: =J63*H11 -> 0 | N63: 0 | O63: 0
C64: Plástico (PET, PEAD, PEBD, PP, PS) | D64: Plastics: average plastics | E64: Relleno sanitario | F64: 8.902 | G64: Open-loop | H64: 21.294 | I64: Relleno sanitario | J64: 8.902 | K64: =F64*I12 -> 14.15418 | L64: =H64*G12 -> 25.5528 | M64: =J64*H12 -> 3.47178 | N64: 29.02458 | O64: -14.8704
C65: Papel y Cartón | D65: Paper and board: mixed | E65: Relleno sanitario | F65: 1041.804 | G65: Closed-loop | H65: 21.294 | I65: Relleno sanitario | J65: 1041.804 | K65: =F65*I13 -> 5073.58548 | L65: =H65*G13 -> 76.6584 | M65: =J65*H13 -> 1323.09108 | N65: 1399.74948 | O65: 3673.836
C66: Otros (PVC, Mangueras, Suelas de Zapatos, bolsas, film) | D66: Commercial and industrial waste | E66: Relleno sanitario | F66: 467.046 | G66: Closed-loop | H66: 21.294 | I66: Relleno sanitario | J66: 467.046 | K66: =F66*I14 -> 5898.79098 | L66: =H66*G14 -> 189.5166 | M66: =J66*H14 -> 1742.08158 | N66: 1931.59818 | O66: 3967.1928
C67: RCD: Otros
C68: Basuras (Tecnopor, telas, restos orgánicos, envolturas, etc.). | D68: Commercial and industrial waste | E68: Relleno sanitario | F68: 467.046 | G68: Closed-loop | H68: 21.294 | I68: Relleno sanitario | J68: 467.046 | K68: =F68*I16 -> 3222.6174 | L68: =H68*G16 -> 0 | M68: =J68*H16 -> 3222.6174 | N68: =L68+M68 -> 3222.6174 | O68: 0
L70: Total reducciones kg CO2 eq | O70: =SUM(O60:O68) -> 8383.642527
L71: Total reducciones ton CO2 eq | O71: =O70/1000 -> 8.383642527
N72: tCO2eq/t RCD | O72: =O71/I17 -> 0.04283925665
C78: UNFCC https://cdm.unfccc.int/methodologies/index.html?msclkid=d53ac000ce9311ec922f92674d698816
C79: No se realizan estimaciones debido a limitaciones de información, pero se listan las ecuaciones requeridas de acuerdo a la metodología AMS-III.AJ. (ver hoja de cálculo "Reciclaje UNFCCC")
C83: Factor de emisión de la red electrica nacional
C84: El factor al año 2020, aplicado para inventarios corporativos por uso de energía de la red es de: 0.155 t CO2 / MWh

Sheet Etapa A4 A5 (hidden)
B2: Tipo de transporte | C2: Unidad | D2: Factor CO₂ (kg/ton-km) | E2: Factor CH₄ (kg/ton-km) | F2: Factor N₂O (kg/ton-km) | G2: PCG CH₄ | H2: PCG N₂O | I2: CO₂e total (kg/ton-km)
B3: Camión ligero (diésel) | C3: ton-km | D3: 0.1 | E3: 2e-05 | F3: 1e-05 | G3: 28 | H3: 265 | I3: =D3 + E3*G3 + F3*H3 -> 0.10321
B4: Camión medio (diésel) | C4: ton-km | D4: 0.12 | E4: 3e-05 | F4: 1.5e-05 | G4: 28 | H4: 265 | I4: =D4 + E4*G4 + F4*H4 -> 0.124815
B5: Camión pesado (diésel) | C5: ton-km | D5: 0.13 | E5: 4e-05 | F5: 2e-05 | G5: 28 | H5: 265 | I5: =D5 + E5*G5 + F5*H5 -> 0.13642
B6: Camión medio (gasolina) | C6: ton-km | D6: 0.11 | E6: 5e-05 | F6: 2.5e-05 | G6: 28 | H6: 265 | I6: =D6 + E6*G6 + F6*H6 -> 0.118025
B9: Cantidad de viajes promedio para llevar los materiales a la obra | C9: ='Formato 3'!F15 -> 0
B10: Recorrido distancia promedio de kms | C10: ='Formato 3'!J15 -> 0
B11: Factor de emisión promedio camión pesado diesel (kgCO₂eq/ton-km) | C11: =I5 -> 0.13642
B12: Carga promedio por viaje (toneladas) | C12: 10
E14: ETAPA A4 | F14: Emisiones estimadas de CO₂ transporte (kgCO₂eq) | J14: =C9*C10*C12*C11 -> 0
B17: Fuente de energía | C17: Cantidad | D17: Unidad | E17: Factor CO₂ (kg/unidad) | F17: Factor CH₄ (kg/unidad) | G17: Factor N₂O (kg/unidad) | H17: PCG CH₄ | I17: PCG N₂O | J17: kg CO₂e
B18: Cantidad de galones de combustible usado en la maquinaria (Petroleo) | C18: ='Formato 3'!F19 -> 0 | D18: galones | E18: 10 | F18: 0.0005 | G18: 0.0002 | H18: 28 | I18: 265 | J18: =C18*E18 + C18*F18*H18 + C18*G18*I18 -> 0
B19: Cantidad de galones de combustible usado en la maquinaria (Gasolina) | C19: ='Formato 3'!K19 -> 0 | D19: galones | E19: 8.75 | F19: 0.0004 | G19: 0.0003 | H19: 28 | I19: 265 | J19: 0
B20: Cantidad de m3 de combustible usado en la maquinaria (GN) | C20: ='Formato 3'!F20 -> 0 | D20: m3 | E20: 1.8 | F20: 0.002 | G20: 0.0001 | H20: 28 | I20: 265 | J20: 0
B21: Cantidad de galones de combustible usado en la maquinaria (GLP) | C21: ='Formato 3'!K20 -> 0 | D21: galones | E21: 6 | F21: 0.0003 | G21: 0.0002 | H21: 28 | I21: 265 | J21: 0
B22: Cantidad de kWh (1) | C22: ='Formato 3'!F21 -> 0 | D22: kWh | E22: 0.202 | F22: 1e-05 | G22: 5e-06 | H22: 28 | I22: 265 | J22: 0
B23: Cantidad de kWh (2) | C23: ='Formato 3'!K21 -> 0 | D23: kWh | E23: 0.202 | F23: 1e-05 | G23: 5e-06 | H23: 28 | I23: 265 | J23: 0
E25: ETAPA A5 | F25: Emisiones totales CO₂ estimadas (kgCO₂eq) | J25: =SUM(J18:J23) -> 0
B28: Etapa | C28: Emisiones (kgCO₂eq)
B29: A1-A3 Fabricación | C29: 9136604.551
B30: A4 Transporte | C30: ='Etapa A4 A5'!J14 -> 0
B31: A5 Construcción | C31: ='Etapa A4 A5'!J25 -> 0
B33: Total Emisiones | C33: =C29+C30+C31 -> 9136604.551
